Workbook

Sheet Dane Wnioskodawcy
C5: Dane Wnioskodawcy
C7: Pełna nazwa | E7: =IF(ISTEXT(D7),"✅","⛔") -> ⛔ | F7: Osoba do kontaktu | H7: =IF(ISTEXT(G7),"✅","⛔") -> ⛔
C8: NIP | E8: =IF(ISTEXT(D8),"✅","⛔") -> ⛔ | F8: Numer telefonu | H8: =IF(ISNUMBER(G8),"✅","⛔") -> ⛔
C9: Ulica | E9: =IF(ISTEXT(D9),"✅","⛔") -> ⛔ | F9: Adres e-mail | H9: =IF(ISTEXT(G9),"✅","⛔") -> ⛔
C10: Miejscowość i kod pocztowy | E10: =IF(ISTEXT(D10),"✅","⛔") -> ⛔ | F10: Rodzaj Wnioskodawcy | H10: =IF(ISTEXT(G10),IF(OR(AND(G10="Lider konsorcjum",G11<>"Organizacja badawcza"),AND(G10="Wnioskodawca samodzielny",G11<>"Organizacja badawcza"),AND(G11="Organizacja badawcza",G10="Konsorcjant")),"✅","⛔"),"⛔") -> ⛔
C11: Województwo | E11: =IF(ISTEXT(D11),"✅","⛔") -> ⛔ | F11: Rodzaj podmiotu | H11: =IF(ISTEXT(G11),"✅","⛔") -> ⛔
F12: Sprawozdawczość | H12: =IF(ISTEXT(G12),IF(OR(AND(G12="Pełna rachunkowość",G11="Duże przedsiębiorstwo"),AND(G12="Pełna rachunkowość",G11="MŚP"),AND(G12="Uproszczona",G11="MŚP"),AND(G12="Uproszczona",G11="Organizacja pozarządowa"),AND(G12="Pełna rachunkowość",G11="Organizacja pozarządowa"),AND(G12="Uproszczona",G11="Organizacja badawcza")),"✅","⛔"),"⛔") -> ⛔
E13: =IF(ISTEXT(Tytul_projektu),"✅","⛔") -> ⛔ | F13: Płatnik VAT | H13: =IF(ISTEXT(G13),"✅","⛔") -> ⛔
C14: Tytuł projektu | G14: Podmiot jest organizacją badawczą (OB) która nie ma prawnej możliwości odzyskania podatku VAT oraz VAT będzie kosztem kwalifikowalnym w projekcie
G22: Model finansowy v.3.031 [260302031] - Działanie 5.1 Fundusz Wsparcia Technologii Krytycznych

Sheet Założenia
B2: =Projekt_Info_Short -> Wstaw nazwę podmiotu oraz tytuł projektu w zakładce Dane Wnioskodawcy
B12: Data rozpoczęcia bieżącego roku obrotowego | C12: 2026-01-01 | D12: =IF(ISNUMBER(C12),"✅","⛔") -> ✅ | H12: =IF(ISBLANK(RokObrotowyPoczatek),"",IF(MONTH(RokObrotowyPoczatek)<>1,"Rok obrotowy różny od roku kalendarzowego","Rok obrotowy zgodny z rokiem kalendarzowym")) -> Rok obrotowy zgodny z rokiem kalendarzowym
B14: Data ostatniego sporządzonego sprawozdania finansowego | C14: 2025-09-30 | H14: =IF(OR(ISBLANK(C12),ISBLANK(Poczatek),ISBLANK(C18),ISBLANK(D16),ISBLANK(D18),H19<0,ISBLANK(Okres_Prognozy)),"Uzupełnij wszystkie wymagane pola: datę rozpoczęcia bieżącego roku obrotowego oraz rok i miesiąc rozpoczęcia i zakończenia Projektu","") -> 
B16: Rok i miesiąc rozpoczęcia realizacji Projektu | C16: 2027 | D16: 1 | F16: =IF(AND(ISNUMBER(C16),ISNUMBER(D16)),"✅","⛔") -> ✅
B17: Ostatni rok kwalifikowalności wydatków | C17: 2030
B18: Rok i miesiąc zakończenia realizacji Projektu | C18: 2029 | D18: 12 | F18: =IF(AND(ISNUMBER(C18),ISNUMBER(D18)),"✅","⛔") -> ✅ | H18: Okres realizacji Projektu
B19: Minimalny okres prognozy | C19: =IF(OR(ISBLANK(RokObrotowyPoczatek),ISBLANK(Koniec_Projekt)),"Niepełne dane",IF('Dane Wnioskodawcy'!G11="Organizacja badawcza",Koniec_Projekt-YEAR(RokObrotowyPoczatek),Koniec_Projekt-YEAR(RokObrotowyPoczatek)+1)) -> 4 | H19: =IF(OR(ISBLANK(D16),ISBLANK(D18),ISBLANK(Poczatek),ISBLANK(Koniec_Projekt)),0,IFERROR(((Koniec_Projekt-Poczatek)*12)+(D18-D16)+1,0)) -> 36 | I19: tj. | J19: =ROUNDDOWN(H19/12,0) -> 3 | K19: =H19-(12*J19) -> 0
A20: =IF(Okres_Prognozy>10,"⚠","") ->  | B20: Okres prognozy [lata] | C20: 10 | D20: =IF(Okres_Prognozy>10,"⚠ Uzasadnij okres","") ->  | H20: =IF(H19=1,"miesiąc",IF(AND(H19>1,H19<5),"miesiące","miesięcy")) -> miesięcy | J20: =IF(J19=1,"rok",IF(AND(J19>1,J19<5),"lata","lat")) -> lata | K20: =IF(K19=1,"miesiąc",IF(AND(K19>1,K19<5),"miesiące","miesięcy")) -> miesięcy
B21: Rok zakończenia projekcji finansowej | C21: =IF(OR(ISBLANK(RokObrotowyPoczatek),ISBLANK(Koniec_Projekt),ISBLANK(Okres_Prognozy)),"Niepełne dane",Koniec_Projekt+$C$20) -> 2039
B23: Projekt uwzględnia prace B+R | C23: tak | H23: =IF(AND(C23="nie",OR(ISBLANK(C24)=FALSE,ISBLANK(D24)=FALSE)),"Usuń rok i/lub miesiąc zakończenia prac rozwojowych",IF(AND(C23="tak",OR(ISBLANK(C24)=TRUE,ISBLANK(D24)=TRUE)),"Uzupełnij rok i/lub miesiąc zakończenia prac rozwojowych",IF(AND(Koniec_PR=Koniec_Projekt,Modul_badawczo_rozwojowy=tak,D24>D18),"Popraw miesiąc zakończenia prac rozwojowych",""))) -> 
B24: Rok i miesiąc zakończenia prac rozwojowych | C24: 2028 | D24: 12 | F24: =IF(AND(Modul_badawczo_rozwojowy="nie",ISBLANK(C24),ISBLANK(D24)),"✅",IF(AND(Modul_badawczo_rozwojowy="tak",ISNUMBER(C24),ISNUMBER(D24)),"✅","⛔")) -> ✅
B25: =IF(Modul_badawczo_rozwojowy=tak,"Najpóźniejszy dopuszczalny termin zakończenia prac rozwojowych:","") -> Najpóźniejszy dopuszczalny termin zakończenia prac rozwojowych: | C25: =IF(Modul_badawczo_rozwojowy=tak,Koniec_Projekt,"") -> 2029 | D25: =IF(Modul_badawczo_rozwojowy=tak,D18,"") -> 12
J27: 0 | K27: 0 | L27: =IF(L28=(Koniec_Projekt+1),1,IF(L28>(Koniec_Projekt+1),K27+1,0)) -> 0 | M27: =IF(M28=(Koniec_Projekt+1),1,IF(M28>(Koniec_Projekt+1),L27+1,0)) -> 0 | N27: =IF(N28=(Koniec_Projekt+1),1,IF(N28>(Koniec_Projekt+1),M27+1,0)) -> 0 | O27: =IF(O28=(Koniec_Projekt+1),1,IF(O28>(Koniec_Projekt+1),N27+1,0)) -> 0 | P27: =IF(P28=(Koniec_Projekt+1),1,IF(P28>(Koniec_Projekt+1),O27+1,0)) -> 1 | Q27: =IF(Q28=(Koniec_Projekt+1),1,IF(Q28>(Koniec_Projekt+1),P27+1,0)) -> 2 | R27: =IF(R28=(Koniec_Projekt+1),1,IF(R28>(Koniec_Projekt+1),Q27+1,0)) -> 3 | S27: =IF(S28=(Koniec_Projekt+1),1,IF(S28>(Koniec_Projekt+1),R27+1,0)) -> 4 | T27: =IF(T28=(Koniec_Projekt+1),1,IF(T28>(Koniec_Projekt+1),S27+1,0)) -> 5 | U27: =IF(U28=(Koniec_Projekt+1),1,IF(U28>(Koniec_Projekt+1),T27+1,0)) -> 6 | V27: =IF(V28=(Koniec_Projekt+1),1,IF(V28>(Koniec_Projekt+1),U27+1,0)) -> 7 | W27: =IF(W28=(Koniec_Projekt+1),1,IF(W28>(Koniec_Projekt+1),V27+1,0)) -> 8 | X27: =IF(X28=(Koniec_Projekt+1),1,IF(X28>(Koniec_Projekt+1),W27+1,0)) -> 9 | Y27: =IF(Y28=(Koniec_Projekt+1),1,IF(Y28>(Koniec_Projekt+1),X27+1,0)) -> 10 | Z27: =IF(Z28=(Koniec_Projekt+1),1,IF(Z28>(Koniec_Projekt+1),Y27+1,0)) -> 11 | AA27: =IF(AA28=(Koniec_Projekt+1),1,IF(AA28>(Koniec_Projekt+1),Z27+1,0)) -> 12 | AB27: =IF(AB28=(Koniec_Projekt+1),1,IF(AB28>(Koniec_Projekt+1),AA27+1,0)) -> 13 | AC27: =IF(AC28=(Koniec_Projekt+1),1,IF(AC28>(Koniec_Projekt+1),AB27+1,0)) -> 14 | AD27: =IF(AD28=(Koniec_Projekt+1),1,IF(AD28>(Koniec_Projekt+1),AC27+1,0)) -> 15 | AE27: =IF(AE28=(Koniec_Projekt+1),1,IF(AE28>(Koniec_Projekt+1),AD27+1,0)) -> 16
B28: Lata projekcji | G28: =IF(H28=0,0,H28-1) -> 2022 | H28: =IF(I28=0,0,I28-1) -> 2023 | I28: =IF(OR(ISBLANK(C12),ISBLANK(Poczatek),ISBLANK(C18),ISBLANK(D16),ISBLANK(D18),H19<0),0,IF(ISBLANK(DaneBiezace),YEAR(RokObrotowyPoczatek)-1,IF(ISNUMBER(J28),YEAR(J28)-1,IF(ISBLANK(C12),0,IF(OR(AND(YEAR(TODAY())=YEAR(C12),ISBLANK(DaneBiezace)),AND((YEAR(C12)-YEAR(DaneBiezace)=1),(YEAR(TODAY())-YEAR(DaneBiezace)=1))),YEAR(C12)-2,YEAR(C12)-1))))) -> 2024 | J28: =IF(OR(ISBLANK(DaneBiezace),YEAR(C12)-YEAR(DaneBiezace)>1),"",DaneBiezace) -> 2025-09-30 | K28: =IF(ISBLANK(C16),"Uzupełnij dane",IF(D139=0,D151,D139)) -> 2025 | L28: =IFERROR(K28+1,"") -> 2026 | M28: =IFERROR(L28+1,"") -> 2027 | N28: 2028 | O28: 2029 | P28: 2030 | Q28: 2031 | R28: 2032 | S28: 2033 | T28: 2034 | U28: 2035 | V28: 2036 | W28: 2037 | X28: =IFERROR(W28+1,"") -> 2038 | Y28: =IFERROR(X28+1,"") -> 2039 | Z28: =IFERROR(Y28+1,"") -> 2040 | AA28: 2041 | AB28: =IFERROR(AA28+1,"") -> 2042 | AC28: =IFERROR(AB28+1,"") -> 2043 | AD28: =IFERROR(AC28+1,"") -> 2044 | AE28: =IFERROR(AD28+1,"") -> 2045
G29: n-3 | H29: n-2 | I29: n-1 | J29: n | K29: =IFERROR(VLOOKUP(K28,$D$139:$F$189,3,),"") -> pr1 | L29: pr2 | M29: r1 | N29: r2 | O29: r3 | P29: p1 | Q29: p2 | R29: p3 | S29: p4 | T29: p5 | U29: p6 | V29: p7 | W29: p8 | X29: p9 | Y29: p10 | Z29: p11 | AA29: p12 | AB29: p13 | AC29: p14 | AD29: =IFERROR(VLOOKUP(AD28,$D$139:$F$189,3,),"") -> p15 | AE29: p16
B31: Liczba dni w okresie | G31: =IFERROR(IF(G32=12,IF(OR(G28=2012,G28=2016,G28=2020,G28=2024,G28=2028,G28=2032,G28=2036,G28=2040),366,365),ROUND(30.4166*G32,0)),"") -> 365 | H31: =IFERROR(IF(H32=12,IF(OR(H28=2012,H28=2016,H28=2020,H28=2024,H28=2028,H28=2032,H28=2036,H28=2040),366,365),ROUND(30.4166*H32,0)),"") -> 365 | I31: 366 | J31: =IFERROR(IF(Rok_n="","",IF(J32=12,IF(OR(J28=2012,J28=2016,J28=2020,J28=2024,J28=2028,J28=2032,J28=2036,J28=2040),366,365),ROUND(30.4166*J32,0))),"") -> 274 | K31: 365 | L31: 365 | M31: 365 | N31: 366 | O31: 365 | P31: 365 | Q31: 365 | R31: 366 | S31: 365 | T31: =IFERROR(IF(T32=12,IF(OR(T28=2012,T28=2016,T28=2020,T28=2024,T28=2028,T28=2032,T28=2036,T28=2040),366,365),ROUND(30.4166*T32,0)),"") -> 365 | U31: 365 | V31: 366 | W31: 365 | X31: 365 | Y31: 365 | Z31: =IFERROR(IF(Z32=12,IF(OR(Z28=2012,Z28=2016,Z28=2020,Z28=2024,Z28=2028,Z28=2032,Z28=2036,Z28=2040),366,365),ROUND(30.4166*Z32,0)),"") -> 366 | AA31: 365 | AB31: =IFERROR(IF(AB32=12,IF(OR(AB28=2012,AB28=2016,AB28=2020,AB28=2024,AB28=2028,AB28=2032,AB28=2036,AB28=2040),366,365),ROUND(30.4166*AB32,0)),"") -> 365 | AC31: 365 | AD31: =IFERROR(IF(AD32=12,IF(OR(AD28=2012,AD28=2016,AD28=2020,AD28=2024,AD28=2028,AD28=2032,AD28=2036,AD28=2040),366,365),ROUND(30.4166*AD32,0)),"") -> 365 | AE31: 365
B32: Liczba miesięcy | G32: 12 | H32: 12 | I32: 12 | J32: =IF(Rok_n="","",IF(ISBLANK(DaneBiezace),"",IF((MONTH(DaneBiezace)-MONTH(C12))<0,((MONTH(DaneBiezace)-MONTH(C12))+1)+12,(MONTH(DaneBiezace)-MONTH(C12))+1))) -> 9 | K32: =IF(ISNUMBER(K28),12,"") -> 12 | L32: =IF(ISNUMBER(L28),12,"") -> 12 | M32: 12 | N32: 12 | O32: 12 | P32: 12 | Q32: 12 | R32: 12 | S32: 12 | T32: =IF(ISNUMBER(T28),12,"") -> 12 | U32: 12 | V32: 12 | W32: 12 | X32: 12 | Y32: 12 | Z32: =IF(ISNUMBER(Z28),12,"") -> 12 | AA32: 12 | AB32: =IF(ISNUMBER(AB28),12,"") -> 12 | AC32: 12 | AD32: =IF(ISNUMBER(AD28),12,"") -> 12 | AE32: 12
B34: Stopa dyskonta
B35: Współczynnik dyskonta | K35: =IF(ISBLANK(WACC),"n/d",IF(LataProjekcji<=Koniec,(1/((1+WACC)^K122)),0)) -> n/d | L35: n/d | M35: n/d | N35: n/d | O35: n/d | P35: n/d | Q35: n/d | R35: n/d | S35: n/d | T35: n/d | U35: n/d | V35: n/d | W35: n/d | X35: n/d | Y35: n/d | Z35: n/d | AA35: n/d | AB35: n/d | AC35: n/d | AD35: n/d | AE35: n/d
B37: Stopa podatku dochodowego
B40: Kapitał pracujący (dla Projektu)
B41: Rotacja należności | C41: dni
B42: Rotacja zapasów | C42: dni
B43: Rotacja zobowiązań | C43: dni
B45: Stawki amortyzacji
B46: koszty zakończonych prac rozwojowych | C46: % | J46: =B206 -> koszty zakończonych prac rozwojowych
B47: wartość firmy | C47: % | J47: =B207 -> wartość firmy
B48: inne wartości niematerialne i prawne | C48: % | J48: inne wartości niematerialne i prawne
B49: grunty (w tym prawo użytkowania wieczystego gruntu) | C49: % | J49: grunty
B50: budynki i budowle | C50: % | J50: budynki i budowle
B51: urządzenia techniczne i maszyny | C51: % | J51: urządzenia techniczne i maszyny
B52: środki transportu | C52: % | J52: środki transportu
B53: inne środki trwałe | C53: % | J53: inne środki trwałe
B56: Finansowanie
B58: Działalność dotychczasowa (bez Projektu)
B60: Koszt pożyczek od udziałowców | C60: %
B61: Koszt kredytów krótkoterminowych | C61: %
B62: Koszt kredytów długoterminowych | C62: %
B63: Przychody z tytułu oprocentowania środków pieniężnych | C63: %
B64: Przychody z tytułu oprocentowania depozytów | C64: %
B66: Projekt
B68: Koszt pożyczek od udziałowców | C68: %
B69: Koszt kredytów krótkoterminowych | C69: %
B70: Koszt kredytów długoterminowych | C70: %
B71: Przychody z tytułu oprocentowania środków pieniężnych | C71: %
B72: Przychody z tytułu oprocentowania depozytów | C72: %
B75: Komentarz
B77: =IF(Okres_Prognozy>10,"Uwaga! Okres prognozy przekracza 10 lat. Należy uzasadnić przyjęty okres prognozy","") -> 
B120: Współczynnik dyskonta - rok rozpoczęcia roku obrotowego
B121: rok z wiersza Lata projekcji | K121: =K28 -> 2025 | L121: 2026 | M121: 2027 | N121: 2028 | O121: 2029 | P121: 2030 | Q121: 2031 | R121: 2032 | S121: 2033 | T121: 2034 | U121: 2035 | V121: 2036 | W121: 2037 | X121: 2038 | Y121: 2039 | Z121: 2040 | AA121: 2041 | AB121: 2042 | AC121: 2043 | AD121: 2044 | AE121: 2045
B122: potęga do podnoszenia we współczynniku dyskonta | K122: =IF(K121<=YEAR(RokObrotowyPoczatek),0,0) -> 0 | L122: =IF(L121<=YEAR(RokObrotowyPoczatek),0,K122+1) -> 0 | M122: =IF(M121<=YEAR(RokObrotowyPoczatek),0,L122+1) -> 1 | N122: =IF(N121<=YEAR(RokObrotowyPoczatek),0,M122+1) -> 2 | O122: =IF(O121<=YEAR(RokObrotowyPoczatek),0,N122+1) -> 3 | P122: =IF(P121<=YEAR(RokObrotowyPoczatek),0,O122+1) -> 4 | Q122: =IF(Q121<=YEAR(RokObrotowyPoczatek),0,P122+1) -> 5 | R122: =IF(R121<=YEAR(RokObrotowyPoczatek),0,Q122+1) -> 6 | S122: =IF(S121<=YEAR(RokObrotowyPoczatek),0,R122+1) -> 7 | T122: =IF(T121<=YEAR(RokObrotowyPoczatek),0,S122+1) -> 8 | U122: =IF(U121<=YEAR(RokObrotowyPoczatek),0,T122+1) -> 9 | V122: =IF(V121<=YEAR(RokObrotowyPoczatek),0,U122+1) -> 10 | W122: =IF(W121<=YEAR(RokObrotowyPoczatek),0,V122+1) -> 11 | X122: =IF(X121<=YEAR(RokObrotowyPoczatek),0,W122+1) -> 12 | Y122: =IF(Y121<=YEAR(RokObrotowyPoczatek),0,X122+1) -> 13 | Z122: =IF(Z121<=YEAR(RokObrotowyPoczatek),0,Y122+1) -> 14 | AA122: =IF(AA121<=YEAR(RokObrotowyPoczatek),0,Z122+1) -> 15 | AB122: =IF(AB121<=YEAR(RokObrotowyPoczatek),0,AA122+1) -> 16 | AC122: =IF(AC121<=YEAR(RokObrotowyPoczatek),0,AB122+1) -> 17 | AD122: =IF(AD121<=YEAR(RokObrotowyPoczatek),0,AC122+1) -> 18 | AE122: =IF(AE121<=YEAR(RokObrotowyPoczatek),0,AD122+1) -> 19
G133: poniżej wiersz z latami prognozy potrzebny do formatowania warunkowego w wierszu 26
B134: Maksymalny okres realizacji Projektu | C134: =IF(ISBLANK(C16),0,C17-C16+1) -> 4 | G134: =G28 -> 2022 | H134: =H28 -> 2023 | I134: =I28 -> 2024 | J134: =YEAR(J28) -> 2025 | K134: =K28 -> 2025 | L134: 2026 | M134: 2027 | N134: 2028 | O134: 2029 | P134: 2030 | Q134: 2031 | R134: 2032 | S134: 2033 | T134: 2034 | U134: 2035 | V134: 2036 | W134: 2037 | X134: 2038 | Y134: 2039 | Z134: 2040 | AA134: 2041 | AB134: 2042 | AC134: =AC28 -> 2043 | AD134: 2044 | AE134: 2045
B135: Okres realizacji Projektu (lata) | C135: =IF(OR(ISBLANK(Poczatek),ISBLANK(Koniec_Projekt)),0,Koniec_Projekt-Poczatek+1) -> 3 | G135: =MID(G29,1,1) -> n | H135: n | I135: n | J135: n | K135: p | L135: p | M135: r | N135: r | O135: r | P135: p | Q135: p | R135: p | S135: p | T135: p | U135: p | V135: p | W135: p | X135: p | Y135: p | Z135: p | AA135: p | AB135: p | AC135: =MID(AC29,1,1) -> p | AD135: p | AE135: p
B139: PrzedRealizacją | C139: 1 | D139: =IF(ISTEXT(J28),I28+1,IF(RokObrotowyPoczatek-DaneBiezace=1,I28+2,IF($C$16<=YEAR(DaneBiezace),0,YEAR(DaneBiezace)))) -> 2025 | F139: =IF(D139=D151,"r1","pr1") -> pr1
C140: 2 | D140: =IF(OR(($C$16<=(D139+1)),(D139=0)),0,(D139+1)) -> 2026 | F140: pr2
C141: 3 | D141: 0 | F141: pr3
C142: 4 | D142: 0 | F142: pr4
C143: 5 | D143: 0 | F143: pr5
C144: 6 | D144: 0 | F144: pr6
C145: 7 | D145: 0 | F145: pr7
C146: 8 | D146: 0 | F146: pr8
C147: 9 | D147: 0 | F147: pr9
B151: Realizacja | C151: 1 | D151: =IF(C151>$C$135,0,$C$16+C151-1) -> 2027 | F151: r1
C152: 2 | D152: 2028 | F152: r2
C153: 3 | D153: 2029 | F153: r3
C154: 4 | D154: 0 | F154: r4
C155: 5 | D155: 0 | F155: r5
C156: 6 | D156: 0 | F156: r6
C157: 7 | D157: 0 | F157: r7
C158: 8 | D158: 0 | F158: r8
C159: 9 | D159: 0 | F159: r9
B162: Trwałość | C162: 1
C163: 2
C164: 3
C165: 4
C166: 5
B169: Po trwałości | C169: 0 | D169: =Koniec_Projekt -> 2029 | F169: p0
C170: 1 | D170: =D169+1 -> 2030 | F170: p1
C171: 2 | D171: =D170+1 -> 2031 | F171: p2
C172: 3 | D172: 2032 | F172: p3
C173: 4 | D173: 2033 | F173: p4
C174: 5 | D174: 2034 | F174: p5
C175: 6 | D175: 2035 | F175: p6
C176: 7 | D176: 2036 | F176: p7
C177: 8 | D177: 2037 | F177: p8
C178: 9 | D178: 2038 | F178: p9
C179: 10 | D179: 2039 | F179: p10
C180: 11 | D180: 2040 | F180: p11
C181: 12 | D181: 2041 | F181: p12
C182: 13 | D182: 2042 | F182: p13
C183: 14 | D183: 2043 | F183: p14
C184: 15 | D184: 2044 | F184: p15
C185: 16 | D185: 2045 | F185: p16
C186: 17 | D186: 2046 | F186: p17
C187: 18 | D187: 2047 | F187: p18
C188: 19 | D188: 2048 | F188: p19
C189: 20 | D189: 2049 | F189: p20
B193: MŚP | C193: =B193='Dane Wnioskodawcy'!G11 -> FALSE | H193: <--tutaj było odwołanie do wielkości MŚP z arkusza "Dane podmiotu". Aby prawidłowo obliczały się wskaźniki w arkuszu Ocena Kondycji Finansowej
B195: czy rok realizacji nie jest wcześniejszy niż bieżący okres | C195: =IF(AND((C16>=YEAR(C12)),(C16<=$C$17)),1,0) -> 1
B196: Okres realizacji projektu | C196: =IF(C134=0,0,IF(C135=0,0,IF(C135>C134,0,1))) -> 1
B197: Start projektu | C197: =DATE(Poczatek,D16,1) -> 2027-01-01
B198: Koniec projektu | C198: =EOMONTH(DATE(Koniec_Projekt,D18,1),0) -> 2029-12-31
B199: Początek danych do środków trwałych w budowie | C199: =DaneBiezace+1 -> 2025-10-01
B200: Koniec danych do środków trwałych w budowie | C200: =EOMONTH(DATE(Koniec,12,1),0) -> 2039-12-31
B201: Koniec prac rozwojowych | C201: =EOMONTH(DATE(C24,D24,1),0) -> 2028-12-31
B202: Warunek dla miesiąca zakończenia prac rozwojowych:
B203: min | C203: 1
B204: max | C204: =IF(AND(Modul_badawczo_rozwojowy=tak,Koniec_PR<Koniec_Projekt),12,IF(AND(Modul_badawczo_rozwojowy=tak,Koniec_PR=Koniec_Projekt),D18,"")) -> 12
B206: koszty zakończonych prac rozwojowych
B207: wartość firmy
B208: inne wartości niematerialne i prawne
B209: grunty
B210: budynki i budowle
B211: urządzenia techniczne i maszyny
B212: środki transportu
B213: inne środki trwałe
B215: nowy
B216: przeniesiony
B219: Rodzaj podmiotu | C219: =Firma -> 0
B220: ='Dane Wnioskodawcy'!G11 -> 0 | C220: =IF(B220="Duże przedsiębiorstwo","[DP] ",IF(B220="MŚP","[MŚP] ",IF(B220="Organizacja badawcza","[OB] ","[…]"))) -> […] | D220: powiązanie z komórką Dane podmiotu G10
C221: =IF(B221="tak","[Lider] ",IF(B221="nie",C220,"[…]")) -> […] | D221: powiązanie z komórką Dane podmiotu G11 - PŁATNIK VAT
B222: ='Dane Wnioskodawcy'!G10 -> 0 | C222: =IF(B222="tak","[Lider] ",IF(B222="nie",C221,"[…]")) -> […]
C223: =C220&" "&C219 -> […] 0 | D223: Identyfikator podmiotu
B225: PRZENIESIONE Z ARKUSZA 'MODUŁY' wiersze B 573 - 597
L227: ="" ->  | M227: ="" ->  | N227: ="" -> 
B228: B+R | K228: TRUE | L228: =IF(K228=TRUE,B228,"") -> B+R | M228: =IFERROR(INDEX($L$228:$L$234,MATCH(0,IF($L$228:$L$234="",1,COUNTIF($M$227:M227,$L$228:$L$234)),0)),1111) -> B+R | N228: =COUNTA($M$228:$M$234)-COUNTIF($M$228:$M$234,">0") -> 1 | O228: =OFFSET($M$228,,,$N$228) -> B+R
B229: Wdrożenie innowacji | K229: FALSE | M229: =IFERROR(INDEX($L$228:$L$234,MATCH(0,IF($L$228:$L$234="",1,COUNTIF($M$227:M228,$L$228:$L$234)),0)),1111) -> 1111
B230: Infrastruktura B+R | K230: FALSE | M230: =IFERROR(INDEX($L$228:$L$234,MATCH(0,IF($L$228:$L$234="",1,COUNTIF($M$227:M229,$L$228:$L$234)),0)),1111) -> 1111
B231: Cyfryzacja | K231: FALSE | M231: =IFERROR(INDEX($L$228:$L$234,MATCH(0,IF($L$228:$L$234="",1,COUNTIF($M$227:M230,$L$228:$L$234)),0)),1111) -> 1111
B232: Zazielenienie | K232: FALSE | M232: =IFERROR(INDEX($L$228:$L$234,MATCH(0,IF($L$228:$L$234="",1,COUNTIF($M$227:M231,$L$228:$L$234)),0)),1111) -> 1111
B233: Kompetencje | K233: FALSE | M233: =IFERROR(INDEX($L$228:$L$234,MATCH(0,IF($L$228:$L$234="",1,COUNTIF($M$227:M232,$L$228:$L$234)),0)),1111) -> 1111
B234: Internacjonalizacja | K234: FALSE | M234: =IFERROR(INDEX($L$228:$L$234,MATCH(0,IF($L$228:$L$234="",1,COUNTIF($M$227:M233,$L$228:$L$234)),0)),1111) -> 1111
B236: tak
B237: nie
B239: nie dotyczy | L239: nie dotyczy
B240: badania przemysłowe
B241: prace rozwojowe
C244: ='Dane Wnioskodawcy'!G11 -> 0 | D244: ←połączenie z komórką G10 i weryfikacja czy tu jest Organizacja badawcza
C245: FALSE | D245: ←połączenie z checkboxem z arkusza Dane wnioskodawcy
C246: =AND(C244="Organizacja badawcza",C245=TRUE) -> FALSE

Sheet Sprawozdania finansowe
B2: =Założenia!B2 -> Wstaw nazwę podmiotu oraz tytuł projektu w zakładce Dane Wnioskodawcy
B11: Bilans (w tys. PLN) | C11: =Założenia!G28 -> 2022 | D11: =Założenia!H28 -> 2023 | E11: =Założenia!I28 -> 2024 | F11: =Założenia!J28 -> 2025-09-30
B13: A. Aktywa trwałe | C13: =ROUND(C14+C19+C28+C31+C46,0) -> 0 | D13: =ROUND(D14+D19+D28+D31+D46,0) -> 0 | E13: =ROUND(E14+E19+E28+E31+E46,0) -> 0 | F13: =ROUND(F14+F19+F28+F31+F46,0) -> 0
B14: I. Wartości niematerialne i prawne | C14: =ROUND(SUM(C15:C18),0) -> 0 | D14: =ROUND(SUM(D15:D18),0) -> 0 | E14: =ROUND(SUM(E15:E18),0) -> 0 | F14: =ROUND(SUM(F15:F18),0) -> 0
B15: 1. Koszty zakończonych prac rozwojowych
B16: 2. Wartość firmy
B17: 3. Inne wartości niematerialne i prawne
B18: 4. Zaliczki na wartości niematerialne i prawne
B19: II. Rzeczowe aktywa trwałe | C19: =ROUND(C20+C26+C27,0) -> 0 | D19: =ROUND(D20+D26+D27,0) -> 0 | E19: =ROUND(E20+E26+E27,0) -> 0 | F19: =ROUND(F20+F26+F27,0) -> 0
B20: 1. Środki trwałe | C20: =ROUND(SUM(C21:C25),0) -> 0 | D20: =ROUND(SUM(D21:D25),0) -> 0 | E20: =ROUND(SUM(E21:E25),0) -> 0 | F20: =ROUND(SUM(F21:F25),0) -> 0
B21: a) grunty (w tym prawo użytk. wiecz. gruntu)
B22: b) budynki, lokale i obiekty inż. lądowej i wodnej
B23: c) urządzenia techniczne i maszyny
B24: d) środki transportu
B25: e) inne środki trwałe
B26: 2. Środki trwałe w budowie
B27: 3. Zaliczki na środki trwałe w budowie
B28: III. Należności długoterminowe | C28: =ROUND(C29+C30,0) -> 0 | D28: =ROUND(D29+D30,0) -> 0 | E28: =ROUND(E29+E30,0) -> 0 | F28: =ROUND(F29+F30,0) -> 0
B29: 1. Od jednostek powiązanych
B30: 2. Od pozostałych jednostek
B31: IV. Inwestycje długoterminowe | C31: =ROUND(C32+C33+C34+C45,0) -> 0 | D31: =ROUND(D32+D33+D34+D45,0) -> 0 | E31: =ROUND(E32+E33+E34+E45,0) -> 0 | F31: =ROUND(F32+F33+F34+F45,0) -> 0
B32: 1. Nieruchomości
B33: 2. Wartości niematerialne i prawne
B34: 3. Długoterminowe aktywa finansowe | C34: =ROUND(C35+C40,0) -> 0 | D34: =ROUND(D35+D40,0) -> 0 | E34: =ROUND(E35+E40,0) -> 0 | F34: =ROUND(F35+F40,0) -> 0
B35: a) w jednostkach powiązanych | C35: =ROUND(SUM(C36:C39),0) -> 0 | D35: =ROUND(SUM(D36:D39),0) -> 0 | E35: =ROUND(SUM(E36:E39),0) -> 0 | F35: =ROUND(SUM(F36:F39),0) -> 0
B36: - udziały lub akcje
B37: - inne papiery wartościowe
B38: - udzielone pożyczki
B39: - inne długoterminowe aktywa finansowe
B40: b) w pozostałych jednostkach | C40: =ROUND(SUM(C41:C44),0) -> 0 | D40: =ROUND(SUM(D41:D44),0) -> 0 | E40: =ROUND(SUM(E41:E44),0) -> 0 | F40: =ROUND(SUM(F41:F44),0) -> 0
B41: - udziały lub akcje
B42: - inne papiery wartościowe
B43: - udzielone pożyczki
B44: - inne długoterminowe aktywa finansowe
B45: 4. Inne inwestycje długoterminowe
B46: V. Długoterminowe rozliczenia międzyokresowe | C46: =ROUND(SUM(C47:C48),0) -> 0 | D46: =ROUND(SUM(D47:D48),0) -> 0 | E46: =ROUND(SUM(E47:E48),0) -> 0 | F46: =ROUND(SUM(F47:F48),0) -> 0
B47: 1. Aktywa z tytułu odroczonego pod. dochodowego
B48: 2. Inne rozliczenia międzyokresowe
B49: B. Aktywa obrotowe | C49: =ROUND(C50+C56+C69+C86,0) -> 0 | D49: =ROUND(D50+D56+D69+D86,0) -> 0 | E49: =ROUND(E50+E56+E69+E86,0) -> 0 | F49: =ROUND(F50+F56+F69+F86,0) -> 0
B50: I. Zapasy | C50: =ROUND(SUM(C51:C55),0) -> 0 | D50: =ROUND(SUM(D51:D55),0) -> 0 | E50: =ROUND(SUM(E51:E55),0) -> 0 | F50: =ROUND(SUM(F51:F55),0) -> 0
B51: 1. Materiały
B52: 2. Półprodukty i produkty w toku
B53: 3. Produkty gotowe
B54: 4. Towary
B55: 5. Zaliczki na dostawy
B56: II. Należności krótkoterminowe | C56: =ROUND(C57+C62,0) -> 0 | D56: =ROUND(D57+D62,0) -> 0 | E56: =ROUND(E57+E62,0) -> 0 | F56: =ROUND(F57+F62,0) -> 0
B57: 1. Należności od jednostek powiązanych | C57: =ROUND(C58+C61,0) -> 0 | D57: =ROUND(D58+D61,0) -> 0 | E57: =ROUND(E58+E61,0) -> 0 | F57: =ROUND(F58+F61,0) -> 0
B58: a) z tytułu dostaw i usług o okresie spłaty | C58: =ROUND(SUM(C59:C60),0) -> 0 | D58: =ROUND(SUM(D59:D60),0) -> 0 | E58: =ROUND(SUM(E59:E60),0) -> 0 | F58: =ROUND(SUM(F59:F60),0) -> 0
B59: - do 12 miesięcy
B60: - powyżej 12 miesięcy
B61: b) inne
B62: 2. Należności od pozostałych jednostek | C62: =ROUND(C63+C66+C67+C68,0) -> 0 | D62: =ROUND(D63+D66+D67+D68,0) -> 0 | E62: =ROUND(E63+E66+E67+E68,0) -> 0 | F62: =ROUND(F63+F66+F67+F68,0) -> 0
B63: a) z tytułu dostaw i usług o okresie spłaty | C63: =ROUND(SUM(C64:C65),0) -> 0 | D63: =ROUND(SUM(D64:D65),0) -> 0 | E63: =ROUND(SUM(E64:E65),0) -> 0 | F63: =ROUND(SUM(F64:F65),0) -> 0
B64: - do 12 miesięcy
B65: - powyżej 12 miesięcy
B66: b) z tytułu podatków, dotacji, ceł, ubezp.społ i zdrowotnych oraz innych świadczeń
B67: c) inne
B68: d) dochodzone na drodze sądowej
B69: III. Inwestycje krótkoterminowe | C69: =ROUND(C70+C85,0) -> 0 | D69: =ROUND(D70+D85,0) -> 0 | E69: =ROUND(E70+E85,0) -> 0 | F69: =ROUND(F70+F85,0) -> 0
B70: 1. Krótkoterminowe aktywa finansowe | C70: =ROUND(C71+C76+C81,0) -> 0 | D70: =ROUND(D71+D76+D81,0) -> 0 | E70: =ROUND(E71+E76+E81,0) -> 0 | F70: =ROUND(F71+F76+F81,0) -> 0
B71: a) w jednostkach powiązanych | C71: =ROUND(SUM(C72:C75),0) -> 0 | D71: =ROUND(SUM(D72:D75),0) -> 0 | E71: =ROUND(SUM(E72:E75),0) -> 0 | F71: =ROUND(SUM(F72:F75),0) -> 0
B72: - udziały lub akcje
B73: - inne papiery wartościowe
B74: - udzielone pożyczki
B75: - inne krótkoterminowe aktywa finansowe
B76: b) w pozostałych jednostkach | C76: =ROUND(SUM(C77:C80),0) -> 0 | D76: =ROUND(SUM(D77:D80),0) -> 0 | E76: =ROUND(SUM(E77:E80),0) -> 0 | F76: =ROUND(SUM(F77:F80),0) -> 0
B77: - udziały lub akcje
B78: - inne papiery wartościowe
B79: - udzielone pożyczki
B80: - inne krótkoterminowe aktywa finansowe
B81: c) środki pieniężne i inne aktywa pieniężne | C81: =ROUND(SUM(C82:C84),0) -> 0 | D81: =ROUND(SUM(D82:D84),0) -> 0 | E81: =ROUND(SUM(E82:E84),0) -> 0 | F81: =ROUND(SUM(F82:F84),0) -> 0
B82: - środki pieniężne w kasie i na rachunkach
B83: - inne środki pieniężne
B84: - inne aktywa pieniężne
B85: 2. Inne inwestycje krótkoterminowe
B86: IV. Krótkoterminowe rozliczenia międzyokresowe
B87: Aktywa razem | C87: =ROUND(C13+C49,0) -> 0 | D87: =ROUND(D13+D49,0) -> 0 | E87: =ROUND(E13+E49,0) -> 0 | F87: =ROUND(F13+F49,0) -> 0
B92: Aktywa - Pasywa: jeżeli 0 to OK | C92: =IF(C144=C87,"OK",C87-C144) -> OK | D92: =IF(D144=D87,"OK",D87-D144) -> OK | E92: =IF(E144=E87,"OK",E87-E144) -> OK | F92: =IF(F144=F87,"OK",F87-F144) -> OK
B93: Bilans (w tys. PLN) | C93: =C11 -> 2022 | D93: =D11 -> 2023 | E93: =E11 -> 2024 | F93: =F11 -> 2025-09-30
B94: A. Kapitał (fundusz) własny | C94: =ROUND(SUM(C95:C103),0) -> 0 | D94: =ROUND(SUM(D95:D103),0) -> 0 | E94: =ROUND(SUM(E95:E103),0) -> 0 | F94: =ROUND(SUM(F95:F103),0) -> 0
B95: I. Kapitał (fundusz) podstawowy
B96: II. Należne wpłaty na kapitał podstawowy (wielkość ujemna)
B97: III. Udziały (akcje) własne (wielkość ujemna)
B98: IV. Kapitał (fundusz) zapasowy
B99: V. Kapitał (fundusz) z aktualizacji wyceny
B100: VI. Pozostałe kapitały (fundusze) rezerwowe
B101: VII. Zysk (strata) z lat ubiegłych
B102: VIII. Zysk (strata) netto | C102: =ROUND(C197,0) -> 0 | D102: =ROUND(D197,0) -> 0 | E102: =ROUND(E197,0) -> 0 | F102: =ROUND(F197,0) -> 0
B103: IX. Odpisy z zysku netto w ciągu roku obrotowego (wielkość ujemna)
B104: B. Zobowiązania i rezerwy na zobowiązania | C104: =ROUND(C105+C113+C120+C139,0) -> 0 | D104: =ROUND(D105+D113+D120+D139,0) -> 0 | E104: =ROUND(E105+E113+E120+E139,0) -> 0 | F104: =ROUND(F105+F113+F120+F139,0) -> 0
B105: I. Rezerwy na zobowiązania | C105: =ROUND(C106+C107+C110,0) -> 0 | D105: =ROUND(D106+D107+D110,0) -> 0 | E105: =ROUND(E106+E107+E110,0) -> 0 | F105: =ROUND(F106+F107+F110,0) -> 0
B106: 1. Rezerwa z tytułu odroczonego pod. doch.
B107: 2. Rezerwa na świadczenia emerytalne i podobne | C107: =ROUND(C108+C109,0) -> 0 | D107: =ROUND(D108+D109,0) -> 0 | E107: =ROUND(E108+E109,0) -> 0 | F107: =ROUND(F108+F109,0) -> 0
B108: - długoterminowa
B109: - krótkoterminowa
B110: 3. Pozostałe rezerwy | C110: =ROUND(C111+C112,0) -> 0 | D110: =ROUND(D111+D112,0) -> 0 | E110: =ROUND(E111+E112,0) -> 0 | F110: =ROUND(F111+F112,0) -> 0
B111: - długoterminowe
B112: - krótkoterminowe
B113: II. Zobowiązania długoterminowe | C113: =ROUND(C114+C115,0) -> 0 | D113: =ROUND(D114+D115,0) -> 0 | E113: =ROUND(E114+E115,0) -> 0 | F113: =ROUND(F114+F115,0) -> 0
B114: 1. Wobec jednostek powiązanych
B115: 2. Wobec pozostałych jednostek | C115: =ROUND(SUM(C116:C119),0) -> 0 | D115: =ROUND(SUM(D116:D119),0) -> 0 | E115: =ROUND(SUM(E116:E119),0) -> 0 | F115: =ROUND(SUM(F116:F119),0) -> 0
B116: a) kredyty i pożyczki
B117: b) z tytułu emisji dłużnych papierów wart.
B118: c) inne zobowiązania finansowe
B119: d) inne
B120: III. Zobowiązania krótkoterminowe | C120: =ROUND(C121+C126+C138,0) -> 0 | D120: =ROUND(D121+D126+D138,0) -> 0 | E120: =ROUND(E121+E126+E138,0) -> 0 | F120: =ROUND(F121+F126+F138,0) -> 0
B121: 1. Wobec jednostek powiązanych | C121: =ROUND(C122+C125,0) -> 0 | D121: =ROUND(D122+D125,0) -> 0 | E121: =ROUND(E122+E125,0) -> 0 | F121: =ROUND(F122+F125,0) -> 0
B122: a) z tytułu dostaw i usług o okresie wymagalności | C122: =ROUND(C123+C124,0) -> 0 | D122: =ROUND(D123+D124,0) -> 0 | E122: =ROUND(E123+E124,0) -> 0 | F122: =ROUND(F123+F124,0) -> 0
B123: - do 12 miesięcy
B124: - powyżej 12 miesięcy
B125: b) inne
B126: 2. Wobec pozostałych jednostek | C126: =ROUND(C127+C128+C129+C130+C133+C134+C135+C136+C137,0) -> 0 | D126: =ROUND(D127+D128+D129+D130+D133+D134+D135+D136+D137,0) -> 0 | E126: =ROUND(E127+E128+E129+E130+E133+E134+E135+E136+E137,0) -> 0 | F126: =ROUND(F127+F128+F129+F130+F133+F134+F135+F136+F137,0) -> 0
B127: a) kredyty i pożyczki
B128: b) z tytułu emisji dłużnych papierów wart.
B129: c) inne zobowiązania finansowe
B130: d) z tytułu dostaw i usług o okresie wymagalności | C130: =ROUND(C131+C132,0) -> 0 | D130: =ROUND(D131+D132,0) -> 0 | E130: =ROUND(E131+E132,0) -> 0 | F130: =ROUND(F131+F132,0) -> 0
B131: - do 12 miesięcy
B132: - powyżej 12 miesięcy
B133: e) zaliczki otrzymane na dostawy
B134: f) zobowiązania wekslowe
B135: g) z tytułu podatków, ceł, ubezp. i innych świadczeń
B136: h) z tytułu wynagrodzeń
B137: i) inne
B138: 3. Fundusze specjalne
B139: IV. Rozliczenia międzyokresowe | C139: =ROUND(C140+C141,0) -> 0 | D139: =ROUND(D140+D141,0) -> 0 | E139: =ROUND(E140+E141,0) -> 0 | F139: =ROUND(F140+F141,0) -> 0
B140: 1. Ujemna wartość firmy
B141: 2. Inne rozliczenia międzyokresowe | C141: =ROUND(C142+C143,0) -> 0 | D141: =ROUND(D142+D143,0) -> 0 | E141: =ROUND(E142+E143,0) -> 0 | F141: =ROUND(F142+F143,0) -> 0
B142: - długoterminowe
B143: - krótkoterminowe
B144: Pasywa razem | C144: =ROUND(C104+C94,0) -> 0 | D144: =ROUND(D104+D94,0) -> 0 | E144: =ROUND(E104+E94,0) -> 0 | F144: =ROUND(F104+F94,0) -> 0
B146: Aktywa - Pasywa: jeżeli 0 to OK | C146: =IF(C144=C87,"OK",C87-C144) -> OK | D146: =IF(D144=D87,"OK",D87-D144) -> OK | E146: =IF(E144=E87,"OK",E87-E144) -> OK | F146: =IF(F144=F87,"OK",F87-F144) -> OK
B149: Rachunek zysków i strat (w tys. PLN) | C149: =C11 -> 2022 | D149: =D11 -> 2023 | E149: =E11 -> 2024 | F149: =F11 -> 2025-09-30
B150: A. Przychody netto ze sprzedaży i zrównane z nimi, w tym | C150: =ROUND(C152+C153+C154+C155,0) -> 0 | D150: =ROUND(D152+D153+D154+D155,0) -> 0 | E150: =ROUND(E152+E153+E154+E155,0) -> 0 | F150: =ROUND(F152+F153+F154+F155,0) -> 0
B151: - od jednostek powiązanych
B152: I. Przychody netto ze sprzedaży produktów
B153: II. Zmiana stanu produktów (zwiększenie - wartość dodatnia, zmniejszenie - wartość ujemna)
B154: III. Koszt wytworzenia produktów na własne potrzeby jednostki
B155: IV. Przychody netto ze sprzedaży towarów i materiałów
B156: B. Koszty działalności operacyjnej | C156: =ROUND(SUM(C157:C165)-C161,0) -> 0 | D156: =ROUND(SUM(D157:D165)-D161,0) -> 0 | E156: =ROUND(SUM(E157:E165)-E161,0) -> 0 | F156: =ROUND(SUM(F157:F165)-F161,0) -> 0
B157: I. Amortyzacja
B158: II. Zużycie materiałów i energii
B159: III. Usługi obce
B160: IV. Podatki i opłaty, w tym
B161: - podatek akcyzowy
B162: V. Wynagrodzenia
B163: VI. Ubezpieczenia społeczne i inne świadczenia
B164: VII. Pozostałe koszty rodzajowe
B165: VIII. Wartość sprzedanych towarów i materiałów
B166: C. Zysk (strata) ze sprzedaży (A-B) | C166: =ROUND(C150-C156,0) -> 0 | D166: =ROUND(D150-D156,0) -> 0 | E166: =ROUND(E150-E156,0) -> 0 | F166: =ROUND(F150-F156,0) -> 0
B167: D. Pozostałe przychody operacyjne | C167: =ROUND(SUM(C168:C170),0) -> 0 | D167: =ROUND(SUM(D168:D170),0) -> 0 | E167: =ROUND(SUM(E168:E170),0) -> 0 | F167: =ROUND(SUM(F168:F170),0) -> 0
B168: I. Zysk ze zbycia niefinansowych aktywów trwałych
B169: II. Dotacje
B170: III. Inne przychody operacyjne
B171: E. Pozostałe koszty operacyjne | C171: =ROUND(SUM(C172:C174),0) -> 0 | D171: =ROUND(SUM(D172:D174),0) -> 0 | E171: =ROUND(SUM(E172:E174),0) -> 0 | F171: =ROUND(SUM(F172:F174),0) -> 0
B172: I. Strata ze zbycia niefinansowych aktywów trwałych
B173: II. Aktualizacja wartości aktywów niefinansowych
B174: III. Inne koszty operacyjne
B175: F. Zysk (strata) z działalności operacyjnej (C+D-E) | C175: =ROUND(C166+C167-C171,0) -> 0 | D175: =ROUND(D166+D167-D171,0) -> 0 | E175: =ROUND(E166+E167-E171,0) -> 0 | F175: =ROUND(F166+F167-F171,0) -> 0
B176: G. Przychody finansowe | C176: =ROUND(C177+C179+C181+C182+C183,0) -> 0 | D176: =ROUND(D177+D179+D181+D182+D183,0) -> 0 | E176: =ROUND(E177+E179+E181+E182+E183,0) -> 0 | F176: =ROUND(F177+F179+F181+F182+F183,0) -> 0
B177: I. Dywidendy i udziały w zyskach, w tym
B178: - od jednostek powiązanych
B179: II. Odsetki, w tym
B180: - od jednostek powiązanych
B181: III. Zysk ze zbycia inwestycji
B182: IV. Aktualizacja wartości inwestycji
B183: V. Inne
B184: H. Koszty finansowe | C184: =ROUND(SUM(C185:C189)-C186,0) -> 0 | D184: =ROUND(SUM(D185:D189)-D186,0) -> 0 | E184: =ROUND(SUM(E185:E189)-E186,0) -> 0 | F184: =ROUND(SUM(F185:F189)-F186,0) -> 0
B185: I. Odsetki, w tym
B186: - od jednostek powiązanych
B187: II. Strata ze zbycia inwestycji
B188: III. Aktualizacja wartości inwestycji
B189: IV. Inne
B190: I. Zysk (strata) z działalności gospodarczej (F+G-H) | C190: =ROUND(C175+C176-C184,0) -> 0 | D190: =ROUND(D175+D176-D184,0) -> 0 | E190: =ROUND(E175+E176-E184,0) -> 0 | F190: =ROUND(F175+F176-F184,0) -> 0
B191: J. Wynik zdarzeń nadzwyczajnych (J.I. - J.II.) | C191: =ROUND(C192-C193,0) -> 0 | D191: =ROUND(D192-D193,0) -> 0 | E191: =ROUND(E192-E193,0) -> 0 | F191: =ROUND(F192-F193,0) -> 0
B192: I. Zyski nadzwyczajne
B193: II. Straty nadzwyczajne
B194: K. Zysk (strata) brutto (I+J) | C194: =ROUND(C190+C191,0) -> 0 | D194: =ROUND(D190+D191,0) -> 0 | E194: =ROUND(E190+E191,0) -> 0 | F194: =ROUND(F190+F191,0) -> 0
B195: L. Podatek dochodowy
B196: M. Pozostałe obowiązkowe zmniejszenie zysku (zwiększenie straty)
B197: N. Zysk (strata) netto (K-L-M) | C197: =ROUND(C194-C195-C196,0) -> 0 | D197: =ROUND(D194-D195-D196,0) -> 0 | E197: =ROUND(E194-E195-E196,0) -> 0 | F197: =ROUND(F194-F195-F196,0) -> 0
C199: =C197=C102 -> TRUE | D199: =D197=D102 -> TRUE | E199: =E197=E102 -> TRUE | F199: =F197=F102 -> TRUE
B201: Komentarz

Sheet Przychody
B2: =Założenia!B2 -> Wstaw nazwę podmiotu oraz tytuł projektu w zakładce Dane Wnioskodawcy
K11: =Założenia!K27 -> 0 | L11: =Założenia!L27 -> 0 | M11: =Założenia!M27 -> 0 | N11: =Założenia!N27 -> 0 | O11: =Założenia!O27 -> 0 | P11: =Założenia!P27 -> 1 | Q11: =Założenia!Q27 -> 2 | R11: =Założenia!R27 -> 3 | S11: =Założenia!S27 -> 4 | T11: =Założenia!T27 -> 5 | U11: =Założenia!U27 -> 6 | V11: =Założenia!V27 -> 7 | W11: =Założenia!W27 -> 8 | X11: =Założenia!X27 -> 9 | Y11: =Założenia!Y27 -> 10 | Z11: =Założenia!Z27 -> 11 | AA11: =Założenia!AA27 -> 12 | AB11: =Założenia!AB27 -> 13 | AC11: =Założenia!AC27 -> 14 | AD11: =Założenia!AD27 -> 15 | AE11: =Założenia!AE27 -> 16
B12: Działalność dotychczasowa (bez Projektu) | G12: =Założenia!G28 -> 2022 | H12: =Założenia!H28 -> 2023 | I12: =Założenia!I28 -> 2024 | J12: =Założenia!J28 -> 2025-09-30 | K12: =LataProjekcji -> 2025 | L12: 2026 | M12: 2027 | N12: 2028 | O12: 2029 | P12: 2030 | Q12: 2031 | R12: 2032 | S12: 2033 | T12: 2034 | U12: 2035 | V12: 2036 | W12: 2037 | X12: 2038 | Y12: 2039 | Z12: 2040 | AA12: 2041 | AB12: 2042 | AC12: 2043 | AD12: 2044 | AE12: 2045
B14: Przychody netto ze sprzedaży produktów Nazwa / Ilość produktów
A15: =Weryfikacja_wypelnienia_Przychody -> 
A16: =Weryfikacja_wypelnienia_Przychody -> 
A17: =Weryfikacja_wypelnienia_Przychody -> 
A18: =Weryfikacja_wypelnienia_Przychody -> 
A19: =Weryfikacja_wypelnienia_Przychody -> 
B20: Cena produktu
A21: =IF(AND(A27="✅",A15="✅"),"✅",IF(AND(A27="",A15=""),"","⛔")) ->  | B21: =IF(ISBLANK(B15),"",B15) ->  | K21: =IFERROR(K27/K15,0) -> 0 | L21: =IFERROR(L27/L15,0) -> 0 | M21: 0 | N21: 0 | O21: 0 | P21: 0 | Q21: 0 | R21: 0 | S21: 0 | T21: 0 | U21: 0 | V21: 0 | W21: 0 | X21: 0 | Y21: 0 | Z21: 0 | AA21: 0 | AB21: 0 | AC21: =IFERROR(AC27/AC15,0) -> 0 | AD21: 0 | AE21: 0
A22: =IF(AND(A28="✅",A16="✅"),"✅",IF(AND(A28="",A16=""),"","⛔")) ->  | B22: =IF(ISBLANK(B16),"",B16) ->  | K22: =IFERROR(K28/K16,0) -> 0 | L22: 0 | M22: 0 | N22: 0 | O22: 0 | P22: 0 | Q22: 0 | R22: 0 | S22: 0 | T22: 0 | U22: 0 | V22: 0 | W22: 0 | X22: 0 | Y22: 0 | Z22: 0 | AA22: 0 | AB22: 0 | AC22: =IFERROR(AC28/AC16,0) -> 0 | AD22: 0 | AE22: 0
B23: =IF(ISBLANK(B17),"",B17) ->  | K23: 0 | L23: 0 | M23: 0 | N23: 0 | O23: 0 | P23: 0 | Q23: 0 | R23: 0 | S23: 0 | T23: 0 | U23: 0 | V23: 0 | W23: 0 | X23: 0 | Y23: 0 | Z23: 0 | AA23: 0 | AB23: 0 | AC23: =IFERROR(AC29/AC17,0) -> 0 | AD23: 0 | AE23: 0
B24: =IF(ISBLANK(B18),"",B18) ->  | K24: 0 | L24: 0 | M24: 0 | N24: 0 | O24: 0 | P24: 0 | Q24: 0 | R24: 0 | S24: 0 | T24: 0 | U24: 0 | V24: 0 | W24: 0 | X24: 0 | Y24: 0 | Z24: 0 | AA24: 0 | AB24: 0 | AC24: =IFERROR(AC30/AC18,0) -> 0 | AD24: 0 | AE24: 0
B25: =IF(ISBLANK(B19),"",B19) ->  | K25: 0 | L25: 0 | M25: 0 | N25: 0 | O25: 0 | P25: 0 | Q25: 0 | R25: 0 | S25: 0 | T25: 0 | U25: 0 | V25: 0 | W25: 0 | X25: 0 | Y25: 0 | Z25: 0 | AA25: 0 | AB25: 0 | AC25: =IFERROR(AC31/AC19,0) -> 0 | AD25: 0 | AE25: 0
B26: Wartość sprzedaży produktów
A27: =IF(OR(A15="✅",A15="⛔"),IF(AND(OR(ISNUMBER(Przychody!K27:AE27)),NOT(ISTEXT(Przychody!K27:AE27))),"✅","⛔"),IF(A15="",IF(AND(ISBLANK(Przychody!K27:AE27)),"","⛔"))) ->  | B27: =IF(ISBLANK(B21),"",B21) -> 
A28: =IF(OR(A16="✅",A16="⛔"),IF(AND(OR(ISNUMBER(Przychody!K28:AE28)),NOT(ISTEXT(Przychody!K28:AE28))),"✅","⛔"),IF(A16="",IF(AND(ISBLANK(Przychody!K28:AE28)),"","⛔"))) ->  | B28: =IF(ISBLANK(B22),"",B22) -> 
A29: =IF(OR(A17="✅",A17="⛔"),IF(AND(OR(ISNUMBER(Przychody!K29:AE29)),NOT(ISTEXT(Przychody!K29:AE29))),"✅","⛔"),IF(A17="",IF(AND(ISBLANK(Przychody!K29:AE29)),"","⛔"))) ->  | B29: =IF(ISBLANK(B23),"",B23) -> 
A30: =IF(OR(A18="✅",A18="⛔"),IF(AND(OR(ISNUMBER(Przychody!K30:AE30)),NOT(ISTEXT(Przychody!K30:AE30))),"✅","⛔"),IF(A18="",IF(AND(ISBLANK(Przychody!K30:AE30)),"","⛔"))) ->  | B30: =IF(ISBLANK(B24),"",B24) -> 
A31: =IF(OR(A19="✅",A19="⛔"),IF(AND(OR(ISNUMBER(Przychody!K31:AE31)),NOT(ISTEXT(Przychody!K31:AE31))),"✅","⛔"),IF(A19="",IF(AND(ISBLANK(Przychody!K31:AE31)),"","⛔"))) ->  | B31: =IF(ISBLANK(B25),"",B25) -> 
B32: Razem Sprzedaż produktów | K32: =IF(LataProjekcji<=Koniec,ROUND(SUM(K27:K31),0),0) -> 0 | L32: 0 | M32: 0 | N32: 0 | O32: 0 | P32: 0 | Q32: 0 | R32: 0 | S32: 0 | T32: 0 | U32: 0 | V32: 0 | W32: 0 | X32: =IF(LataProjekcji<=Koniec,ROUND(SUM(X27:X31),0),0) -> 0 | Y32: 0 | Z32: 0 | AA32: 0 | AB32: 0 | AC32: =IF(LataProjekcji<=Koniec,ROUND(SUM(AC27:AC31),0),0) -> 0 | AD32: 0 | AE32: 0
B35: Zmiana stanu produktów ([+] zwiększenie / [-] zmiejszenie) | K35: =LataProjekcji -> 2025 | L35: 2026 | M35: 2027 | N35: 2028 | O35: 2029 | P35: 2030 | Q35: 2031 | R35: 2032 | S35: 2033 | T35: 2034 | U35: 2035 | V35: 2036 | W35: 2037 | X35: 2038 | Y35: 2039 | Z35: 2040 | AA35: 2041 | AB35: 2042 | AC35: 2043 | AD35: 2044 | AE35: 2045
A36: =Weryfikacja_wypelnienia_Przychody -> 
A37: =Weryfikacja_wypelnienia_Przychody -> 
A38: =Weryfikacja_wypelnienia_Przychody -> 
A39: =Weryfikacja_wypelnienia_Przychody -> 
A40: =Weryfikacja_wypelnienia_Przychody -> 
B41: Razem Zmiana stanu produktów | K41: =IF(LataProjekcji<=Koniec,ROUND(SUM(K36:K40),0),0) -> 0 | L41: 0 | M41: 0 | N41: 0 | O41: 0 | P41: 0 | Q41: 0 | R41: 0 | S41: 0 | T41: 0 | U41: 0 | V41: 0 | W41: 0 | X41: =IF(LataProjekcji<=Koniec,ROUND(SUM(X36:X40),0),0) -> 0 | Y41: 0 | Z41: 0 | AA41: 0 | AB41: 0 | AC41: =IF(LataProjekcji<=Koniec,ROUND(SUM(AC36:AC40),0),0) -> 0 | AD41: 0 | AE41: 0
B44: Koszt wytworzenia produktów na własne potrzeby jednostki | K44: =LataProjekcji -> 2025 | L44: 2026 | M44: 2027 | N44: 2028 | O44: 2029 | P44: 2030 | Q44: 2031 | R44: 2032 | S44: 2033 | T44: 2034 | U44: 2035 | V44: 2036 | W44: 2037 | X44: 2038 | Y44: 2039 | Z44: 2040 | AA44: 2041 | AB44: 2042 | AC44: 2043 | AD44: 2044 | AE44: 2045
A45: =Weryfikacja_wypelnienia_Przychody -> 
A46: =Weryfikacja_wypelnienia_Przychody -> 
A47: =Weryfikacja_wypelnienia_Przychody -> 
A48: =Weryfikacja_wypelnienia_Przychody -> 
A49: =Weryfikacja_wypelnienia_Przychody -> 
B50: Razem Koszt wytworzenia produktów na własne potrzeby jednostki | K50: =IF(LataProjekcji<=Koniec,ROUND(SUM(K45:K49),0),0) -> 0 | L50: 0 | M50: 0 | N50: 0 | O50: 0 | P50: 0 | Q50: 0 | R50: 0 | S50: 0 | T50: 0 | U50: 0 | V50: 0 | W50: 0 | X50: =IF(LataProjekcji<=Koniec,ROUND(SUM(X45:X49),0),0) -> 0 | Y50: 0 | Z50: 0 | AA50: 0 | AB50: 0 | AC50: =IF(LataProjekcji<=Koniec,ROUND(SUM(AC45:AC49),0),0) -> 0 | AD50: 0 | AE50: 0
B53: Przychody ze sprzedaży towarów i materiałów Nazwa / Ilość towaru | K53: =LataProjekcji -> 2025 | L53: 2026 | M53: 2027 | N53: 2028 | O53: 2029 | P53: 2030 | Q53: 2031 | R53: 2032 | S53: 2033 | T53: 2034 | U53: 2035 | V53: 2036 | W53: 2037 | X53: 2038 | Y53: 2039 | Z53: 2040 | AA53: 2041 | AB53: 2042 | AC53: 2043 | AD53: 2044 | AE53: 2045
A54: =Weryfikacja_wypelnienia_Przychody -> 
A55: =Weryfikacja_wypelnienia_Przychody -> 
A56: =Weryfikacja_wypelnienia_Przychody -> 
A57: =Weryfikacja_wypelnienia_Przychody -> 
A58: =Weryfikacja_wypelnienia_Przychody -> 
B59: Cena za towar
A60: =IF(AND(A66="✅",A54="✅"),"✅",IF(AND(A66="",A54=""),"","⛔")) ->  | B60: =IF(ISBLANK(B54),"",B54) ->  | K60: =IFERROR(K66/K54,0) -> 0 | L60: =IFERROR(L66/L54,0) -> 0 | M60: 0 | N60: 0 | O60: 0 | P60: 0 | Q60: 0 | R60: 0 | S60: 0 | T60: 0 | U60: 0 | V60: 0 | W60: 0 | X60: 0 | Y60: 0 | Z60: 0 | AA60: 0 | AB60: 0 | AC60: =IFERROR(AC66/AC54,0) -> 0 | AD60: 0 | AE60: 0
A61: =IF(AND(A67="✅",A55="✅"),"✅",IF(AND(A67="",A55=""),"","⛔")) ->  | B61: =IF(ISBLANK(B55),"",B55) ->  | K61: =IFERROR(K67/K55,0) -> 0 | L61: 0 | M61: 0 | N61: 0 | O61: 0 | P61: 0 | Q61: 0 | R61: 0 | S61: 0 | T61: 0 | U61: 0 | V61: 0 | W61: 0 | X61: 0 | Y61: 0 | Z61: 0 | AA61: 0 | AB61: 0 | AC61: =IFERROR(AC67/AC55,0) -> 0 | AD61: 0 | AE61: 0
B62: =IF(ISBLANK(B56),"",B56) ->  | K62: =IFERROR(K68/K56,0) -> 0 | L62: 0 | M62: 0 | N62: 0 | O62: 0 | P62: 0 | Q62: 0 | R62: 0 | S62: 0 | T62: 0 | U62: 0 | V62: 0 | W62: 0 | X62: 0 | Y62: 0 | Z62: 0 | AA62: 0 | AB62: 0 | AC62: =IFERROR(AC68/AC56,0) -> 0 | AD62: 0 | AE62: 0
B63: =IF(ISBLANK(B57),"",B57) ->  | K63: =IFERROR(K69/K57,0) -> 0 | L63: 0 | M63: 0 | N63: 0 | O63: 0 | P63: 0 | Q63: 0 | R63: 0 | S63: 0 | T63: 0 | U63: 0 | V63: 0 | W63: 0 | X63: 0 | Y63: 0 | Z63: 0 | AA63: 0 | AB63: 0 | AC63: =IFERROR(AC69/AC57,0) -> 0 | AD63: 0 | AE63: 0
B64: =IF(ISBLANK(B58),"",B58) ->  | K64: =IFERROR(K70/K58,0) -> 0 | L64: 0 | M64: 0 | N64: 0 | O64: 0 | P64: 0 | Q64: 0 | R64: 0 | S64: 0 | T64: 0 | U64: 0 | V64: 0 | W64: 0 | X64: 0 | Y64: 0 | Z64: 0 | AA64: 0 | AB64: 0 | AC64: =IFERROR(AC70/AC58,0) -> 0 | AD64: 0 | AE64: 0
B65: Wartość sprzedaży towarów i materiałów
A66: =IF(OR(A54="✅",A54="⛔"),IF(AND(OR(ISNUMBER(Przychody!K66:AE66)),NOT(ISTEXT(Przychody!K66:AE66))),"✅","⛔"),IF(A54="",IF(AND(ISBLANK(Przychody!K66:AE66)),"","⛔"))) ->  | B66: =IF(ISBLANK(B60),"",B60) -> 
A67: =IF(OR(A55="✅",A55="⛔"),IF(AND(OR(ISNUMBER(Przychody!K67:AE67)),NOT(ISTEXT(Przychody!K67:AE67))),"✅","⛔"),IF(A55="",IF(AND(ISBLANK(Przychody!K67:AE67)),"","⛔"))) ->  | B67: =IF(ISBLANK(B61),"",B61) -> 
A68: =IF(OR(A56="✅",A56="⛔"),IF(AND(OR(ISNUMBER(Przychody!K68:AE68)),NOT(ISTEXT(Przychody!K68:AE68))),"✅","⛔"),IF(A56="",IF(AND(ISBLANK(Przychody!K68:AE68)),"","⛔"))) ->  | B68: =IF(ISBLANK(B62),"",B62) -> 
A69: =IF(OR(A57="✅",A57="⛔"),IF(AND(OR(ISNUMBER(Przychody!K69:AE69)),NOT(ISTEXT(Przychody!K69:AE69))),"✅","⛔"),IF(A57="",IF(AND(ISBLANK(Przychody!K69:AE69)),"","⛔"))) ->  | B69: =IF(ISBLANK(B63),"",B63) -> 
A70: =IF(OR(A58="✅",A58="⛔"),IF(AND(OR(ISNUMBER(Przychody!K70:AE70)),NOT(ISTEXT(Przychody!K70:AE70))),"✅","⛔"),IF(A58="",IF(AND(ISBLANK(Przychody!K70:AE70)),"","⛔"))) ->  | B70: =IF(ISBLANK(B64),"",B64) -> 
B71: Razem Sprzedaż towarów i materiałów | K71: =IF(LataProjekcji<=Koniec,ROUND(SUM(K66:K70),0),0) -> 0 | L71: =IF(LataProjekcji<=Koniec,ROUND(SUM(L66:L70),0),0) -> 0 | M71: 0 | N71: 0 | O71: 0 | P71: 0 | Q71: 0 | R71: 0 | S71: 0 | T71: 0 | U71: 0 | V71: 0 | W71: 0 | X71: =IF(LataProjekcji<=Koniec,ROUND(SUM(X66:X70),0),0) -> 0 | Y71: 0 | Z71: 0 | AA71: 0 | AB71: 0 | AC71: =IF(LataProjekcji<=Koniec,ROUND(SUM(AC66:AC70),0),0) -> 0 | AD71: 0 | AE71: 0
B74: Wartość sprzedanych towarów i materiałów (Koszty operacyjne) / Ilość towaru | K74: =LataProjekcji -> 2025 | L74: 2026 | M74: 2027 | N74: 2028 | O74: 2029 | P74: 2030 | Q74: 2031 | R74: 2032 | S74: 2033 | T74: 2034 | U74: 2035 | V74: 2036 | W74: 2037 | X74: 2038 | Y74: 2039 | Z74: 2040 | AA74: 2041 | AB74: 2042 | AC74: 2043 | AD74: 2044 | AE74: 2045
A75: =Weryfikacja_wypelnienia_Przychody -> 
A76: =Weryfikacja_wypelnienia_Przychody -> 
A77: =Weryfikacja_wypelnienia_Przychody -> 
A78: =Weryfikacja_wypelnienia_Przychody -> 
A79: =Weryfikacja_wypelnienia_Przychody -> 
B80: Cena za towar
A81: =IF(AND(A87="✅",A75="✅"),"✅",IF(AND(A87="",A75=""),"","⛔")) ->  | B81: =IF(ISBLANK(B75),"",B75) ->  | K81: =IFERROR(K87/K75,0) -> 0 | L81: =IFERROR(L87/L75,0) -> 0 | M81: 0 | N81: 0 | O81: 0 | P81: 0 | Q81: 0 | R81: 0 | S81: 0 | T81: 0 | U81: 0 | V81: 0 | W81: 0 | X81: 0 | Y81: 0 | Z81: 0 | AA81: 0 | AB81: 0 | AC81: =IFERROR(AC87/AC75,0) -> 0 | AD81: 0 | AE81: 0
A82: =IF(AND(A88="✅",A76="✅"),"✅",IF(AND(A88="",A76=""),"","⛔")) ->  | B82: =IF(ISBLANK(B76),"",B76) ->  | K82: =IFERROR(K88/K76,0) -> 0 | L82: 0 | M82: 0 | N82: 0 | O82: 0 | P82: 0 | Q82: 0 | R82: 0 | S82: 0 | T82: 0 | U82: 0 | V82: 0 | W82: 0 | X82: 0 | Y82: 0 | Z82: 0 | AA82: 0 | AB82: 0 | AC82: =IFERROR(AC88/AC76,0) -> 0 | AD82: 0 | AE82: 0
B83: =IF(ISBLANK(B77),"",B77) ->  | K83: =IFERROR(K89/K77,0) -> 0 | L83: 0 | M83: 0 | N83: 0 | O83: 0 | P83: 0 | Q83: 0 | R83: 0 | S83: 0 | T83: 0 | U83: 0 | V83: 0 | W83: 0 | X83: 0 | Y83: 0 | Z83: 0 | AA83: 0 | AB83: 0 | AC83: =IFERROR(AC89/AC77,0) -> 0 | AD83: 0 | AE83: 0
B84: =IF(ISBLANK(B78),"",B78) ->  | K84: =IFERROR(K90/K78,0) -> 0 | L84: 0 | M84: 0 | N84: 0 | O84: 0 | P84: 0 | Q84: 0 | R84: 0 | S84: 0 | T84: 0 | U84: 0 | V84: 0 | W84: 0 | X84: 0 | Y84: 0 | Z84: 0 | AA84: 0 | AB84: 0 | AC84: =IFERROR(AC90/AC78,0) -> 0 | AD84: 0 | AE84: 0
B85: =IF(ISBLANK(B79),"",B79) ->  | K85: =IFERROR(K91/K79,0) -> 0 | L85: 0 | M85: 0 | N85: 0 | O85: 0 | P85: 0 | Q85: 0 | R85: 0 | S85: 0 | T85: 0 | U85: 0 | V85: 0 | W85: 0 | X85: 0 | Y85: 0 | Z85: 0 | AA85: 0 | AB85: 0 | AC85: =IFERROR(AC91/AC79,0) -> 0 | AD85: 0 | AE85: 0
B86: Wartość w cenie nabycia
A87: =IF(OR(A75="✅",A75="⛔"),IF(AND(OR(ISNUMBER(Przychody!K87:AE87)),NOT(ISTEXT(Przychody!K87:AE87))),"✅","⛔"),IF(A75="",IF(AND(ISBLANK(Przychody!K87:AE87)),"","⛔"))) ->  | B87: =IF(ISBLANK(B81),"",B81) -> 
A88: =IF(OR(A76="✅",A76="⛔"),IF(AND(OR(ISNUMBER(Przychody!K88:AE88)),NOT(ISTEXT(Przychody!K88:AE88))),"✅","⛔"),IF(A76="",IF(AND(ISBLANK(Przychody!K88:AE88)),"","⛔"))) ->  | B88: =IF(ISBLANK(B82),"",B82) -> 
A89: =IF(OR(A77="✅",A77="⛔"),IF(AND(OR(ISNUMBER(Przychody!K89:AE89)),NOT(ISTEXT(Przychody!K89:AE89))),"✅","⛔"),IF(A77="",IF(AND(ISBLANK(Przychody!K89:AE89)),"","⛔"))) ->  | B89: =IF(ISBLANK(B83),"",B83) -> 
A90: =IF(OR(A78="✅",A78="⛔"),IF(AND(OR(ISNUMBER(Przychody!K90:AE90)),NOT(ISTEXT(Przychody!K90:AE90))),"✅","⛔"),IF(A78="",IF(AND(ISBLANK(Przychody!K90:AE90)),"","⛔"))) ->  | B90: =IF(ISBLANK(B84),"",B84) -> 
A91: =IF(OR(A79="✅",A79="⛔"),IF(AND(OR(ISNUMBER(Przychody!K91:AE91)),NOT(ISTEXT(Przychody!K91:AE91))),"✅","⛔"),IF(A79="",IF(AND(ISBLANK(Przychody!K91:AE91)),"","⛔"))) ->  | B91: =IF(ISBLANK(B85),"",B85) -> 
B92: Razem Wartość sprzedanych towarów i materiałów | K92: =IF(LataProjekcji<=Koniec,ROUND(SUM(K87:K91),0),0) -> 0 | L92: 0 | M92: 0 | N92: 0 | O92: 0 | P92: 0 | Q92: 0 | R92: 0 | S92: 0 | T92: 0 | U92: 0 | V92: 0 | W92: 0 | X92: =IF(LataProjekcji<=Koniec,ROUND(SUM(X87:X91),0),0) -> 0 | Y92: 0 | Z92: 0 | AA92: 0 | AB92: 0 | AC92: =IF(LataProjekcji<=Koniec,ROUND(SUM(AC87:AC91),0),0) -> 0 | AD92: 0 | AE92: 0
B95: Pozostałe przychody operacyjne | K95: =LataProjekcji -> 2025 | L95: 2026 | M95: 2027 | N95: 2028 | O95: 2029 | P95: 2030 | Q95: 2031 | R95: 2032 | S95: 2033 | T95: 2034 | U95: 2035 | V95: 2036 | W95: 2037 | X95: 2038 | Y95: 2039 | Z95: 2040 | AA95: 2041 | AB95: 2042 | AC95: 2043 | AD95: 2044 | AE95: 2045
A96: =Weryfikacja_wypelnienia_Przychody -> 
A97: =Weryfikacja_wypelnienia_Przychody -> 
A98: =Weryfikacja_wypelnienia_Przychody -> 
A99: =Weryfikacja_wypelnienia_Przychody -> 
B100: Dotacje z lat poprzednich | K100: =ROUND('Rozliczenie dotacji'!K50,0) -> 0 | L100: =ROUND('Rozliczenie dotacji'!L50,0) -> 0 | M100: =ROUND('Rozliczenie dotacji'!M50,0) -> 0 | N100: =ROUND('Rozliczenie dotacji'!N50,0) -> 0 | O100: =ROUND('Rozliczenie dotacji'!O50,0) -> 0 | P100: =ROUND('Rozliczenie dotacji'!P50,0) -> 0 | Q100: =ROUND('Rozliczenie dotacji'!Q50,0) -> 0 | R100: =ROUND('Rozliczenie dotacji'!R50,0) -> 0 | S100: =ROUND('Rozliczenie dotacji'!S50,0) -> 0 | T100: =ROUND('Rozliczenie dotacji'!T50,0) -> 0 | U100: =ROUND('Rozliczenie dotacji'!U50,0) -> 0 | V100: =ROUND('Rozliczenie dotacji'!V50,0) -> 0 | W100: =ROUND('Rozliczenie dotacji'!W50,0) -> 0 | X100: =ROUND('Rozliczenie dotacji'!X50,0) -> 0 | Y100: =ROUND('Rozliczenie dotacji'!Y50,0) -> 0 | Z100: =ROUND('Rozliczenie dotacji'!Z50,0) -> 0 | AA100: =ROUND('Rozliczenie dotacji'!AA50,0) -> 0 | AB100: =ROUND('Rozliczenie dotacji'!AC50,0) -> 0 | AC100: =ROUND('Rozliczenie dotacji'!AD50,0) -> 0 | AD100: =ROUND('Rozliczenie dotacji'!AE50,0) -> 0 | AE100: =ROUND('Rozliczenie dotacji'!AF50,0) -> 0
B101: Razem Pozostałe przychody operacyjne | K101: =IF(LataProjekcji<=Koniec,ROUND(SUM(K96:K100),0),0) -> 0 | L101: 0 | M101: 0 | N101: 0 | O101: 0 | P101: 0 | Q101: 0 | R101: 0 | S101: 0 | T101: 0 | U101: 0 | V101: 0 | W101: 0 | X101: =IF(LataProjekcji<=Koniec,ROUND(SUM(X96:X100),0),0) -> 0 | Y101: 0 | Z101: 0 | AA101: 0 | AB101: 0 | AC101: =IF(LataProjekcji<=Koniec,ROUND(SUM(AC96:AC100),0),0) -> 0 | AD101: 0 | AE101: 0
B104: Przychody finansowe | K104: =LataProjekcji -> 2025 | L104: 2026 | M104: 2027 | N104: 2028 | O104: 2029 | P104: 2030 | Q104: 2031 | R104: 2032 | S104: 2033 | T104: 2034 | U104: 2035 | V104: 2036 | W104: 2037 | X104: 2038 | Y104: 2039 | Z104: 2040 | AA104: 2041 | AB104: 2042 | AC104: 2043 | AD104: 2044 | AE104: 2045
B105: Przychody z tytułu oprocentowania środków pieniężnych | K105: =ROUND(Finansowanie!K29,0) -> 0 | L105: =ROUND(Finansowanie!L29,0) -> 0 | M105: =ROUND(Finansowanie!M29,0) -> 0 | N105: =ROUND(Finansowanie!N29,0) -> 0 | O105: =ROUND(Finansowanie!O29,0) -> 0 | P105: =ROUND(Finansowanie!P29,0) -> 0 | Q105: =ROUND(Finansowanie!Q29,0) -> 0 | R105: =ROUND(Finansowanie!R29,0) -> 0 | S105: =ROUND(Finansowanie!S29,0) -> 0 | T105: =ROUND(Finansowanie!T29,0) -> 0 | U105: =ROUND(Finansowanie!U29,0) -> 0 | V105: =ROUND(Finansowanie!V29,0) -> 0 | W105: =ROUND(Finansowanie!W29,0) -> 0 | X105: =ROUND(Finansowanie!X29,0) -> 0 | Y105: =ROUND(Finansowanie!Y29,0) -> 0 | Z105: =ROUND(Finansowanie!Z29,0) -> 0 | AA105: =ROUND(Finansowanie!AA29,0) -> 0 | AB105: =ROUND(Finansowanie!AB29,0) -> 0 | AC105: =ROUND(Finansowanie!AC29,0) -> 0 | AD105: =ROUND(Finansowanie!AD29,0) -> 0 | AE105: =ROUND(Finansowanie!AE29,0) -> 0
B106: Przychody z tytułu oprocentowania depozytów bankowych | K106: =ROUND(Finansowanie!K38,2) -> 0 | L106: =ROUND(Finansowanie!L38,2) -> 0 | M106: =ROUND(Finansowanie!M38,2) -> 0 | N106: =ROUND(Finansowanie!N38,2) -> 0 | O106: =ROUND(Finansowanie!O38,2) -> 0 | P106: =ROUND(Finansowanie!P38,2) -> 0 | Q106: =ROUND(Finansowanie!Q38,2) -> 0 | R106: =ROUND(Finansowanie!R38,2) -> 0 | S106: =ROUND(Finansowanie!S38,2) -> 0 | T106: =ROUND(Finansowanie!T38,2) -> 0 | U106: =ROUND(Finansowanie!U38,2) -> 0 | V106: =ROUND(Finansowanie!V38,2) -> 0 | W106: =ROUND(Finansowanie!W38,2) -> 0 | X106: =ROUND(Finansowanie!X38,2) -> 0 | Y106: =ROUND(Finansowanie!Y38,2) -> 0 | Z106: =ROUND(Finansowanie!Z38,2) -> 0 | AA106: =ROUND(Finansowanie!AA38,2) -> 0 | AB106: =ROUND(Finansowanie!AB38,2) -> 0 | AC106: =ROUND(Finansowanie!AC38,2) -> 0 | AD106: =ROUND(Finansowanie!AD38,2) -> 0 | AE106: =ROUND(Finansowanie!AE38,2) -> 0
A107: =Weryfikacja_wypelnienia_Przychody -> 
A108: =Weryfikacja_wypelnienia_Przychody -> 
A109: =Weryfikacja_wypelnienia_Przychody -> 
B110: Razem Przychody finansowe | K110: =IF(LataProjekcji<=Koniec,ROUND(SUM(K105:K109),0),0) -> 0 | L110: 0 | M110: 0 | N110: 0 | O110: 0 | P110: =IF(LataProjekcji<=Koniec,ROUND(SUM(P105:P109),0),0) -> 0 | Q110: 0 | R110: 0 | S110: 0 | T110: 0 | U110: 0 | V110: 0 | W110: 0 | X110: 0 | Y110: 0 | Z110: 0 | AA110: 0 | AB110: 0 | AC110: 0 | AD110: 0 | AE110: 0
B113: Podsumowanie | K113: =LataProjekcji -> 2025 | L113: 2026 | M113: 2027 | N113: 2028 | O113: 2029 | P113: 2030 | Q113: 2031 | R113: 2032 | S113: 2033 | T113: 2034 | U113: 2035 | V113: 2036 | W113: 2037 | X113: 2038 | Y113: 2039 | Z113: 2040 | AA113: 2041 | AB113: 2042 | AC113: 2043 | AD113: 2044 | AE113: 2045
B114: Sprzedaż produktów | K114: =ROUND(K32,0) -> 0 | L114: =ROUND(L32,0) -> 0 | M114: 0 | N114: 0 | O114: 0 | P114: =ROUND(P32,0) -> 0 | Q114: 0 | R114: 0 | S114: 0 | T114: 0 | U114: 0 | V114: 0 | W114: 0 | X114: 0 | Y114: 0 | Z114: 0 | AA114: 0 | AB114: 0 | AC114: 0 | AD114: 0 | AE114: 0
B115: Zmiana stanu produktów ([+] zwiększenie / [-] zmniejszenie) | K115: =ROUND(K41,0) -> 0 | L115: =ROUND(L41,0) -> 0 | M115: 0 | N115: 0 | O115: 0 | P115: =ROUND(P41,0) -> 0 | Q115: 0 | R115: 0 | S115: 0 | T115: 0 | U115: 0 | V115: 0 | W115: 0 | X115: 0 | Y115: 0 | Z115: 0 | AA115: 0 | AB115: 0 | AC115: 0 | AD115: 0 | AE115: 0
B116: Koszt wytworzenia produktów na własne potrzeby jednostki | K116: =ROUND(K50,0) -> 0 | L116: =ROUND(L50,0) -> 0 | M116: 0 | N116: 0 | O116: 0 | P116: =ROUND(P50,0) -> 0 | Q116: 0 | R116: 0 | S116: 0 | T116: 0 | U116: 0 | V116: 0 | W116: 0 | X116: 0 | Y116: 0 | Z116: 0 | AA116: 0 | AB116: 0 | AC116: 0 | AD116: 0 | AE116: 0
B117: Sprzedaż towarów i materiałów | K117: =ROUND(K71,0) -> 0 | L117: =ROUND(L71,0) -> 0 | M117: 0 | N117: 0 | O117: 0 | P117: =ROUND(P71,0) -> 0 | Q117: 0 | R117: 0 | S117: 0 | T117: 0 | U117: 0 | V117: 0 | W117: 0 | X117: 0 | Y117: 0 | Z117: 0 | AA117: 0 | AB117: 0 | AC117: 0 | AD117: 0 | AE117: 0
B118: Przychody netto ze sprzedaży | K118: =ROUND(SUM(K114:K117),0) -> 0 | L118: =ROUND(SUM(L114:L117),0) -> 0 | M118: 0 | N118: 0 | O118: 0 | P118: =ROUND(SUM(P114:P117),0) -> 0 | Q118: 0 | R118: 0 | S118: 0 | T118: 0 | U118: 0 | V118: 0 | W118: 0 | X118: 0 | Y118: 0 | Z118: 0 | AA118: 0 | AB118: 0 | AC118: 0 | AD118: 0 | AE118: 0
B119: Wartość sprzedanych towarów i materiałów (koszty operacyjne) | K119: =ROUND(K92,0) -> 0 | L119: =ROUND(L92,0) -> 0 | M119: 0 | N119: 0 | O119: 0 | P119: =ROUND(P92,0) -> 0 | Q119: 0 | R119: 0 | S119: 0 | T119: 0 | U119: 0 | V119: 0 | W119: 0 | X119: 0 | Y119: 0 | Z119: 0 | AA119: 0 | AB119: 0 | AC119: 0 | AD119: 0 | AE119: 0
B120: Pozostałe przychody operacyjne | K120: =ROUND(K101,0) -> 0 | L120: =ROUND(L101,0) -> 0 | M120: 0 | N120: 0 | O120: 0 | P120: =ROUND(P101,0) -> 0 | Q120: 0 | R120: 0 | S120: 0 | T120: 0 | U120: 0 | V120: 0 | W120: 0 | X120: 0 | Y120: 0 | Z120: 0 | AA120: 0 | AB120: 0 | AC120: 0 | AD120: 0 | AE120: 0
B121: Przychody finansowe | K121: =ROUND(K110,0) -> 0 | L121: =ROUND(L110,0) -> 0 | M121: 0 | N121: 0 | O121: 0 | P121: =ROUND(P110,0) -> 0 | Q121: 0 | R121: 0 | S121: 0 | T121: 0 | U121: 0 | V121: 0 | W121: 0 | X121: 0 | Y121: 0 | Z121: 0 | AA121: 0 | AB121: 0 | AC121: 0 | AD121: 0 | AE121: 0
B124: Projekt | G124: =G12 -> 2022 | H124: =H12 -> 2023 | I124: =I12 -> 2024 | J124: =J12 -> 2025-09-30 | K124: =LataProjekcji -> 2025 | L124: 2026 | M124: 2027 | N124: 2028 | O124: 2029 | P124: 2030 | Q124: 2031 | R124: 2032 | S124: 2033 | T124: 2034 | U124: 2035 | V124: 2036 | W124: 2037 | X124: 2038 | Y124: 2039 | Z124: 2040 | AA124: 2041 | AB124: 2042 | AC124: 2043 | AD124: 2044 | AE124: 2045
B126: Przychody netto ze sprzedaży produktów i usług (Projekt) Nazwa / Ilość
A127: =Weryfikacja_wypelnienia_Przychody_Projekt -> 
A128: =Weryfikacja_wypelnienia_Przychody_Projekt -> 
A129: =Weryfikacja_wypelnienia_Przychody_Projekt -> 
A130: =Weryfikacja_wypelnienia_Przychody_Projekt -> 
A131: =Weryfikacja_wypelnienia_Przychody_Projekt -> 
A132: =Weryfikacja_wypelnienia_Przychody_Projekt -> 
A133: =Weryfikacja_wypelnienia_Przychody_Projekt -> 
A134: =Weryfikacja_wypelnienia_Przychody_Projekt -> 
A135: =Weryfikacja_wypelnienia_Przychody_Projekt -> 
A136: =Weryfikacja_wypelnienia_Przychody_Projekt -> 
B137: Cena produktu
A138: =IF(OR(A127="✅",A127="⛔"),IF(AND(OR(ISNUMBER(Przychody!K138:AE138)),NOT(ISTEXT(Przychody!K138:AE138))),"✅","⛔"),IF(A127="",IF(AND(ISBLANK(Przychody!K138:AE138)),"","⛔"))) ->  | B138: =IF(ISBLANK(B127),"",B127) ->  | C138: =IF(ISBLANK(C127),"",C127) -> 
A139: =IF(OR(A128="✅",A128="⛔"),IF(AND(OR(ISNUMBER(Przychody!K139:AE139)),NOT(ISTEXT(Przychody!K139:AE139))),"✅","⛔"),IF(A128="",IF(AND(ISBLANK(Przychody!K139:AE139)),"","⛔"))) ->  | B139: =IF(ISBLANK(B128),"",B128) ->  | C139: =IF(ISBLANK(C128),"",C128) -> 
A140: =IF(OR(A129="✅",A129="⛔"),IF(AND(OR(ISNUMBER(Przychody!K140:AE140)),NOT(ISTEXT(Przychody!K140:AE140))),"✅","⛔"),IF(A129="",IF(AND(ISBLANK(Przychody!K140:AE140)),"","⛔"))) ->  | B140: =IF(ISBLANK(B129),"",B129) -> 
A141: =IF(OR(A130="✅",A130="⛔"),IF(AND(OR(ISNUMBER(Przychody!K141:AE141)),NOT(ISTEXT(Przychody!K141:AE141))),"✅","⛔"),IF(A130="",IF(AND(ISBLANK(Przychody!K141:AE141)),"","⛔"))) -> 
A142: =IF(OR(A131="✅",A131="⛔"),IF(AND(OR(ISNUMBER(Przychody!K142:AE142)),NOT(ISTEXT(Przychody!K142:AE142))),"✅","⛔"),IF(A131="",IF(AND(ISBLANK(Przychody!K142:AE142)),"","⛔"))) -> 
A143: =IF(OR(A132="✅",A132="⛔"),IF(AND(OR(ISNUMBER(Przychody!K143:AE143)),NOT(ISTEXT(Przychody!K143:AE143))),"✅","⛔"),IF(A132="",IF(AND(ISBLANK(Przychody!K143:AE143)),"","⛔"))) -> 
A144: =IF(OR(A133="✅",A133="⛔"),IF(AND(OR(ISNUMBER(Przychody!K144:AE144)),NOT(ISTEXT(Przychody!K144:AE144))),"✅","⛔"),IF(A133="",IF(AND(ISBLANK(Przychody!K144:AE144)),"","⛔"))) -> 
A145: =IF(OR(A134="✅",A134="⛔"),IF(AND(OR(ISNUMBER(Przychody!K145:AE145)),NOT(ISTEXT(Przychody!K145:AE145))),"✅","⛔"),IF(A134="",IF(AND(ISBLANK(Przychody!K145:AE145)),"","⛔"))) -> 
A146: =IF(OR(A135="✅",A135="⛔"),IF(AND(OR(ISNUMBER(Przychody!K146:AE146)),NOT(ISTEXT(Przychody!K146:AE146))),"✅","⛔"),IF(A135="",IF(AND(ISBLANK(Przychody!K146:AE146)),"","⛔"))) -> 
A147: =IF(OR(A136="✅",A136="⛔"),IF(AND(OR(ISNUMBER(Przychody!K147:AE147)),NOT(ISTEXT(Przychody!K147:AE147))),"✅","⛔"),IF(A136="",IF(AND(ISBLANK(Przychody!K147:AE147)),"","⛔"))) -> 
B148: Wartość sprzedaży produktów
A149: =IF(AND(A127="✅",A138="✅"),"✅",IF(AND(A127="",A138=""),"","⛔")) ->  | B149: =IF(ISBLANK(B138),"",B138) ->  | C149: =IF(ISBLANK(C138),"",C138) ->  | K149: =IFERROR(IF(AND(K$180>=Poczatek,K$180<=Koniec),ROUND(K138*K127,0),0),0) -> 0 | L149: 0 | M149: 0 | N149: 0 | O149: 0 | P149: 0 | Q149: 0 | R149: 0 | S149: 0 | T149: 0 | U149: 0 | V149: 0 | W149: 0 | X149: 0 | Y149: 0 | Z149: 0 | AA149: 0 | AB149: 0 | AC149: =IFERROR(IF(AND(AC$180>=Poczatek,AC$180<=Koniec),ROUND(AC138*AC127,0),0),0) -> 0 | AD149: 0 | AE149: 0
A150: =IF(AND(A128="✅",A139="✅"),"✅",IF(AND(A128="",A139=""),"","⛔")) ->  | B150: =IF(ISBLANK(B139),"",B139) ->  | C150: =IF(ISBLANK(C139),"",C139) ->  | K150: =IFERROR(IF(AND(K$180>=Poczatek,K$180<=Koniec),ROUND(K139*K128,0),0),0) -> 0 | L150: 0 | M150: 0 | N150: 0 | O150: 0 | P150: 0 | Q150: 0 | R150: 0 | S150: 0 | T150: 0 | U150: 0 | V150: 0 | W150: 0 | X150: 0 | Y150: 0 | Z150: 0 | AA150: 0 | AB150: 0 | AC150: =IFERROR(IF(AND(AC$180>=Poczatek,AC$180<=Koniec),ROUND(AC139*AC128,0),0),0) -> 0 | AD150: 0 | AE150: 0
B151: =IF(ISBLANK(B140),"",B140) ->  | C151: =IF(ISBLANK(C140),"",C140) ->  | K151: =IFERROR(IF(AND(K$180>=Poczatek,K$180<=Koniec),ROUND(K140*K129,0),0),0) -> 0 | L151: 0 | M151: 0 | N151: 0 | O151: 0 | P151: 0 | Q151: 0 | R151: 0 | S151: 0 | T151: 0 | U151: 0 | V151: 0 | W151: 0 | X151: 0 | Y151: 0 | Z151: 0 | AA151: 0 | AB151: 0 | AC151: =IFERROR(IF(AND(AC$180>=Poczatek,AC$180<=Koniec),ROUND(AC140*AC129,0),0),0) -> 0 | AD151: 0 | AE151: 0
K152: =IFERROR(IF(AND(K$180>=Poczatek,K$180<=Koniec),ROUND(K141*K130,0),0),0) -> 0 | L152: 0 | M152: 0 | N152: 0 | O152: 0 | P152: 0 | Q152: 0 | R152: 0 | S152: 0 | T152: 0 | U152: 0 | V152: 0 | W152: 0 | X152: 0 | Y152: 0 | Z152: 0 | AA152: 0 | AB152: 0 | AC152: =IFERROR(IF(AND(AC$180>=Poczatek,AC$180<=Koniec),ROUND(AC141*AC130,0),0),0) -> 0 | AD152: 0 | AE152: 0
K153: =IFERROR(IF(AND(K$180>=Poczatek,K$180<=Koniec),ROUND(K142*K131,0),0),0) -> 0 | L153: 0 | M153: 0 | N153: 0 | O153: 0 | P153: 0 | Q153: 0 | R153: 0 | S153: 0 | T153: 0 | U153: 0 | V153: 0 | W153: 0 | X153: 0 | Y153: 0 | Z153: 0 | AA153: 0 | AB153: 0 | AC153: =IFERROR(IF(AND(AC$180>=Poczatek,AC$180<=Koniec),ROUND(AC142*AC131,0),0),0) -> 0 | AD153: 0 | AE153: 0
K154: =IFERROR(IF(AND(K$180>=Poczatek,K$180<=Koniec),ROUND(K143*K132,0),0),0) -> 0 | L154: 0 | M154: 0 | N154: 0 | O154: 0 | P154: 0 | Q154: 0 | R154: 0 | S154: 0 | T154: 0 | U154: 0 | V154: 0 | W154: 0 | X154: 0 | Y154: 0 | Z154: 0 | AA154: 0 | AB154: 0 | AC154: =IFERROR(IF(AND(AC$180>=Poczatek,AC$180<=Koniec),ROUND(AC143*AC132,0),0),0) -> 0 | AD154: 0 | AE154: 0
K155: =IFERROR(IF(AND(K$180>=Poczatek,K$180<=Koniec),ROUND(K144*K133,0),0),0) -> 0 | L155: 0 | M155: 0 | N155: 0 | O155: 0 | P155: 0 | Q155: 0 | R155: 0 | S155: 0 | T155: 0 | U155: 0 | V155: 0 | W155: 0 | X155: 0 | Y155: 0 | Z155: 0 | AA155: 0 | AB155: 0 | AC155: =IFERROR(IF(AND(AC$180>=Poczatek,AC$180<=Koniec),ROUND(AC144*AC133,0),0),0) -> 0 | AD155: 0 | AE155: 0
K156: =IFERROR(IF(AND(K$180>=Poczatek,K$180<=Koniec),ROUND(K145*K134,0),0),0) -> 0 | L156: 0 | M156: 0 | N156: 0 | O156: 0 | P156: 0 | Q156: 0 | R156: 0 | S156: 0 | T156: 0 | U156: 0 | V156: 0 | W156: 0 | X156: 0 | Y156: 0 | Z156: 0 | AA156: 0 | AB156: 0 | AC156: =IFERROR(IF(AND(AC$180>=Poczatek,AC$180<=Koniec),ROUND(AC145*AC134,0),0),0) -> 0 | AD156: 0 | AE156: 0
K157: =IFERROR(IF(AND(K$180>=Poczatek,K$180<=Koniec),ROUND(K146*K135,0),0),0) -> 0 | L157: 0 | M157: 0 | N157: 0 | O157: 0 | P157: 0 | Q157: 0 | R157: 0 | S157: 0 | T157: 0 | U157: 0 | V157: 0 | W157: 0 | X157: 0 | Y157: 0 | Z157: 0 | AA157: 0 | AB157: 0 | AC157: =IFERROR(IF(AND(AC$180>=Poczatek,AC$180<=Koniec),ROUND(AC146*AC135,0),0),0) -> 0 | AD157: 0 | AE157: 0
K158: =IFERROR(IF(AND(K$180>=Poczatek,K$180<=Koniec),ROUND(K147*K136,0),0),0) -> 0 | L158: 0 | M158: 0 | N158: 0 | O158: 0 | P158: 0 | Q158: 0 | R158: 0 | S158: 0 | T158: 0 | U158: 0 | V158: 0 | W158: 0 | X158: 0 | Y158: 0 | Z158: 0 | AA158: 0 | AB158: 0 | AC158: =IFERROR(IF(AND(AC$180>=Poczatek,AC$180<=Koniec),ROUND(AC147*AC136,0),0),0) -> 0 | AD158: 0 | AE158: 0
B159: Razem Sprzedaż produktów (Projekt) | K159: =IF(LataProjekcji<=Koniec,SUM(K149:K158),0) -> 0 | L159: 0 | M159: 0 | N159: 0 | O159: 0 | P159: 0 | Q159: 0 | R159: 0 | S159: 0 | T159: 0 | U159: 0 | V159: 0 | W159: 0 | X159: =IF(LataProjekcji<=Koniec,SUM(X149:X158),0) -> 0 | Y159: 0 | Z159: 0 | AA159: 0 | AB159: 0 | AC159: =IF(LataProjekcji<=Koniec,SUM(AC149:AC158),0) -> 0 | AD159: 0 | AE159: 0
B162: Zmiana stanu produktów ([+] zwiększenie / [-] zmiejszenie) | K162: =LataProjekcji -> 2025 | L162: 2026 | M162: 2027 | N162: 2028 | O162: 2029 | P162: 2030 | Q162: 2031 | R162: 2032 | S162: 2033 | T162: 2034 | U162: 2035 | V162: 2036 | W162: 2037 | X162: 2038 | Y162: 2039 | Z162: 2040 | AA162: 2041 | AB162: 2042 | AC162: 2043 | AD162: 2044 | AE162: 2045
A163: =Weryfikacja_wypelnienia_Przychody_Projekt -> 
A164: =Weryfikacja_wypelnienia_Przychody_Projekt -> 
A165: =Weryfikacja_wypelnienia_Przychody_Projekt -> 
A166: =Weryfikacja_wypelnienia_Przychody_Projekt -> 
A167: =Weryfikacja_wypelnienia_Przychody_Projekt -> 
B168: Razem Zmiana stanu produktów | K168: =IF(LataProjekcji<=Koniec,ROUND(SUM(K163:K167),0),0) -> 0 | L168: 0 | M168: 0 | N168: 0 | O168: 0 | P168: 0 | Q168: 0 | R168: 0 | S168: 0 | T168: 0 | U168: 0 | V168: 0 | W168: 0 | X168: =IF(LataProjekcji<=Koniec,ROUND(SUM(X163:X167),0),0) -> 0 | Y168: 0 | Z168: 0 | AA168: 0 | AB168: 0 | AC168: =IF(LataProjekcji<=Koniec,ROUND(SUM(AC163:AC167),0),0) -> 0 | AD168: 0 | AE168: 0
B171: Koszt wytworzenia produktów na własne potrzeby jednostki | K171: =LataProjekcji -> 2025 | L171: 2026 | M171: 2027 | N171: 2028 | O171: 2029 | P171: 2030 | Q171: 2031 | R171: 2032 | S171: 2033 | T171: 2034 | U171: 2035 | V171: 2036 | W171: 2037 | X171: 2038 | Y171: 2039 | Z171: 2040 | AA171: 2041 | AB171: 2042 | AC171: 2043 | AD171: 2044 | AE171: 2045
A172: =Weryfikacja_wypelnienia_Przychody_Projekt -> 
A173: =Weryfikacja_wypelnienia_Przychody_Projekt -> 
A174: =Weryfikacja_wypelnienia_Przychody_Projekt -> 
A175: =Weryfikacja_wypelnienia_Przychody_Projekt -> 
A176: =Weryfikacja_wypelnienia_Przychody_Projekt -> 
B177: Razem Koszt wytworzenia produktów na własne potrzeby jednostki | K177: =IF(LataProjekcji<=Koniec,ROUND(SUM(K172:K176),0),0) -> 0 | L177: 0 | M177: 0 | N177: 0 | O177: 0 | P177: 0 | Q177: 0 | R177: 0 | S177: 0 | T177: 0 | U177: 0 | V177: 0 | W177: 0 | X177: =IF(LataProjekcji<=Koniec,ROUND(SUM(X172:X176),0),0) -> 0 | Y177: 0 | Z177: 0 | AA177: 0 | AB177: 0 | AC177: =IF(LataProjekcji<=Koniec,ROUND(SUM(AC172:AC176),0),0) -> 0 | AD177: 0 | AE177: 0
B180: Przychody ze sprzedaży towarów i materiałów (Projekt) Nazwa / Ilość | K180: =LataProjekcji -> 2025 | L180: 2026 | M180: 2027 | N180: 2028 | O180: 2029 | P180: 2030 | Q180: 2031 | R180: 2032 | S180: 2033 | T180: 2034 | U180: 2035 | V180: 2036 | W180: 2037 | X180: 2038 | Y180: 2039 | Z180: 2040 | AA180: 2041 | AB180: 2042 | AC180: 2043 | AD180: 2044 | AE180: 2045
A181: =Weryfikacja_wypelnienia_Przychody_Projekt -> 
A182: =Weryfikacja_wypelnienia_Przychody_Projekt -> 
A183: =Weryfikacja_wypelnienia_Przychody_Projekt -> 
A184: =Weryfikacja_wypelnienia_Przychody_Projekt -> 
A185: =Weryfikacja_wypelnienia_Przychody_Projekt -> 
B186: Cena za towar
A187: =IF(OR(A181="✅",A181="⛔"),IF(AND(OR(ISNUMBER(Przychody!K187:AE187)),NOT(ISTEXT(Przychody!K187:AE187))),"✅","⛔"),IF(A181="",IF(AND(ISBLANK(Przychody!K187:AE187)),"","⛔"))) ->  | B187: =IF(ISBLANK(B181),"",B181) -> 
A188: =IF(OR(A182="✅",A182="⛔"),IF(AND(OR(ISNUMBER(Przychody!K188:AE188)),NOT(ISTEXT(Przychody!K188:AE188))),"✅","⛔"),IF(A182="",IF(AND(ISBLANK(Przychody!K188:AE188)),"","⛔"))) -> 
A189: =IF(OR(A183="✅",A183="⛔"),IF(AND(OR(ISNUMBER(Przychody!K189:AE189)),NOT(ISTEXT(Przychody!K189:AE189))),"✅","⛔"),IF(A183="",IF(AND(ISBLANK(Przychody!K189:AE189)),"","⛔"))) -> 
A190: =IF(OR(A184="✅",A184="⛔"),IF(AND(OR(ISNUMBER(Przychody!K190:AE190)),NOT(ISTEXT(Przychody!K190:AE190))),"✅","⛔"),IF(A184="",IF(AND(ISBLANK(Przychody!K190:AE190)),"","⛔"))) -> 
A191: =IF(OR(A185="✅",A185="⛔"),IF(AND(OR(ISNUMBER(Przychody!K191:AE191)),NOT(ISTEXT(Przychody!K191:AE191))),"✅","⛔"),IF(A185="",IF(AND(ISBLANK(Przychody!K191:AE191)),"","⛔"))) -> 
B192: Wartość sprzedaży towarów i materiałów
A193: =IF(AND(A181="✅",A187="✅"),"✅",IF(AND(A181="",A187=""),"","⛔")) ->  | B193: =IF(ISBLANK(B187),"",B187) ->  | K193: =IFERROR(IF(AND(K$180>=Poczatek,K$180<=Koniec),ROUND(K187*K181,0),0),0) -> 0 | L193: 0 | M193: 0 | N193: 0 | O193: 0 | P193: 0 | Q193: 0 | R193: 0 | S193: 0 | T193: 0 | U193: 0 | V193: 0 | W193: 0 | X193: 0 | Y193: 0 | Z193: 0 | AA193: 0 | AB193: 0 | AC193: =IFERROR(IF(AND(AC$180>=Poczatek,AC$180<=Koniec),ROUND(AC187*AC181,0),0),0) -> 0 | AD193: 0 | AE193: 0
A194: =IF(AND(A182="✅",A188="✅"),"✅",IF(AND(A182="",A188=""),"","⛔")) ->  | K194: =IFERROR(IF(AND(K$180>=Poczatek,K$180<=Koniec),ROUND(K188*K182,0),0),0) -> 0 | L194: 0 | M194: 0 | N194: 0 | O194: 0 | P194: 0 | Q194: 0 | R194: 0 | S194: 0 | T194: 0 | U194: 0 | V194: 0 | W194: 0 | X194: 0 | Y194: 0 | Z194: 0 | AA194: 0 | AB194: 0 | AC194: =IFERROR(IF(AND(AC$180>=Poczatek,AC$180<=Koniec),ROUND(AC188*AC182,0),0),0) -> 0 | AD194: 0 | AE194: 0
A195: =IF(AND(A183="✅",A189="✅"),"✅",IF(AND(A183="",A189=""),"","⛔")) ->  | K195: =IFERROR(IF(AND(K$180>=Poczatek,K$180<=Koniec),ROUND(K189*K183,0),0),0) -> 0 | L195: 0 | M195: 0 | N195: 0 | O195: 0 | P195: 0 | Q195: 0 | R195: 0 | S195: 0 | T195: 0 | U195: 0 | V195: 0 | W195: 0 | X195: 0 | Y195: 0 | Z195: 0 | AA195: 0 | AB195: 0 | AC195: =IFERROR(IF(AND(AC$180>=Poczatek,AC$180<=Koniec),ROUND(AC189*AC183,0),0),0) -> 0 | AD195: 0 | AE195: 0
A196: =IF(AND(A184="✅",A190="✅"),"✅",IF(AND(A184="",A190=""),"","⛔")) ->  | K196: =IFERROR(IF(AND(K$180>=Poczatek,K$180<=Koniec),ROUND(K190*K184,0),0),0) -> 0 | L196: 0 | M196: 0 | N196: 0 | O196: 0 | P196: 0 | Q196: 0 | R196: 0 | S196: 0 | T196: 0 | U196: 0 | V196: 0 | W196: 0 | X196: 0 | Y196: 0 | Z196: 0 | AA196: 0 | AB196: 0 | AC196: =IFERROR(IF(AND(AC$180>=Poczatek,AC$180<=Koniec),ROUND(AC190*AC184,0),0),0) -> 0 | AD196: 0 | AE196: 0
A197: =IF(AND(A185="✅",A191="✅"),"✅",IF(AND(A185="",A191=""),"","⛔")) ->  | K197: =IFERROR(IF(AND(K$180>=Poczatek,K$180<=Koniec),ROUND(K191*K185,0),0),0) -> 0 | L197: 0 | M197: 0 | N197: 0 | O197: 0 | P197: 0 | Q197: 0 | R197: 0 | S197: 0 | T197: 0 | U197: 0 | V197: 0 | W197: 0 | X197: 0 | Y197: 0 | Z197: 0 | AA197: 0 | AB197: 0 | AC197: =IFERROR(IF(AND(AC$180>=Poczatek,AC$180<=Koniec),ROUND(AC191*AC185,0),0),0) -> 0 | AD197: 0 | AE197: 0
B198: Razem Sprzedaż towarów i materiałów (Projekt) | K198: =IF(LataProjekcji<=Koniec,SUM(K193:K197),0) -> 0 | L198: 0 | M198: 0 | N198: 0 | O198: 0 | P198: 0 | Q198: 0 | R198: 0 | S198: 0 | T198: 0 | U198: 0 | V198: 0 | W198: 0 | X198: =IF(LataProjekcji<=Koniec,SUM(X193:X197),0) -> 0 | Y198: 0 | Z198: 0 | AA198: 0 | AB198: 0 | AC198: =IF(LataProjekcji<=Koniec,SUM(AC193:AC197),0) -> 0 | AD198: 0 | AE198: 0
B201: Wartość sprzedanych towarów i materiałów (Projekt, Koszty operacyjne) | K201: =LataProjekcji -> 2025 | L201: 2026 | M201: 2027 | N201: 2028 | O201: 2029 | P201: 2030 | Q201: 2031 | R201: 2032 | S201: 2033 | T201: 2034 | U201: 2035 | V201: 2036 | W201: 2037 | X201: 2038 | Y201: 2039 | Z201: 2040 | AA201: 2041 | AB201: 2042 | AC201: 2043 | AD201: 2044 | AE201: 2045
A202: =Weryfikacja_wypelnienia_Przychody_Projekt -> 
A203: =Weryfikacja_wypelnienia_Przychody_Projekt -> 
A204: =Weryfikacja_wypelnienia_Przychody_Projekt -> 
A205: =Weryfikacja_wypelnienia_Przychody_Projekt -> 
A206: =Weryfikacja_wypelnienia_Przychody_Projekt -> 
B207: Cena za towar
A208: =IF(OR(A202="✅",A202="⛔"),IF(AND(OR(ISNUMBER(Przychody!K208:AE208)),NOT(ISTEXT(Przychody!K208:AE208))),"✅","⛔"),IF(A202="",IF(AND(ISBLANK(Przychody!K208:AE208)),"","⛔"))) ->  | B208: =IF(ISBLANK(B202),"",B202) -> 
A209: =IF(OR(A203="✅",A203="⛔"),IF(AND(OR(ISNUMBER(Przychody!K209:AE209)),NOT(ISTEXT(Przychody!K209:AE209))),"✅","⛔"),IF(A203="",IF(AND(ISBLANK(Przychody!K209:AE209)),"","⛔"))) -> 
A210: =IF(OR(A204="✅",A204="⛔"),IF(AND(OR(ISNUMBER(Przychody!K210:AE210)),NOT(ISTEXT(Przychody!K210:AE210))),"✅","⛔"),IF(A204="",IF(AND(ISBLANK(Przychody!K210:AE210)),"","⛔"))) -> 
A211: =IF(OR(A205="✅",A205="⛔"),IF(AND(OR(ISNUMBER(Przychody!K211:AE211)),NOT(ISTEXT(Przychody!K211:AE211))),"✅","⛔"),IF(A205="",IF(AND(ISBLANK(Przychody!K211:AE211)),"","⛔"))) -> 
A212: =IF(OR(A206="✅",A206="⛔"),IF(AND(OR(ISNUMBER(Przychody!K212:AE212)),NOT(ISTEXT(Przychody!K212:AE212))),"✅","⛔"),IF(A206="",IF(AND(ISBLANK(Przychody!K212:AE212)),"","⛔"))) -> 
B213: Wartość w cenie nabycia
A214: =IF(AND(A202="✅",A208="✅"),"✅",IF(AND(A202="",A208=""),"","⛔")) ->  | B214: =IF(ISBLANK(B208),"",B208) ->  | K214: =IFERROR(IF(AND(K$180>=Poczatek,K$180<=Koniec),ROUND(K208*K202,0),0),0) -> 0 | L214: 0 | M214: 0 | N214: 0 | O214: 0 | P214: 0 | Q214: 0 | R214: 0 | S214: 0 | T214: 0 | U214: 0 | V214: 0 | W214: 0 | X214: 0 | Y214: 0 | Z214: 0 | AA214: 0 | AB214: 0 | AC214: =IFERROR(IF(AND(AC$180>=Poczatek,AC$180<=Koniec),ROUND(AC208*AC202,0),0),0) -> 0 | AD214: 0 | AE214: 0
A215: =IF(AND(A203="✅",A209="✅"),"✅",IF(AND(A203="",A209=""),"","⛔")) ->  | K215: =IFERROR(IF(AND(K$180>=Poczatek,K$180<=Koniec),ROUND(K209*K203,0),0),0) -> 0 | L215: 0 | M215: 0 | N215: 0 | O215: 0 | P215: 0 | Q215: 0 | R215: 0 | S215: 0 | T215: 0 | U215: 0 | V215: 0 | W215: 0 | X215: 0 | Y215: 0 | Z215: 0 | AA215: 0 | AB215: 0 | AC215: =IFERROR(IF(AND(AC$180>=Poczatek,AC$180<=Koniec),ROUND(AC209*AC203,0),0),0) -> 0 | AD215: 0 | AE215: 0
A216: =IF(AND(A204="✅",A210="✅"),"✅",IF(AND(A204="",A210=""),"","⛔")) ->  | K216: =IFERROR(IF(AND(K$180>=Poczatek,K$180<=Koniec),ROUND(K210*K204,0),0),0) -> 0 | L216: 0 | M216: 0 | N216: 0 | O216: 0 | P216: 0 | Q216: 0 | R216: 0 | S216: 0 | T216: 0 | U216: 0 | V216: 0 | W216: 0 | X216: 0 | Y216: 0 | Z216: 0 | AA216: 0 | AB216: 0 | AC216: =IFERROR(IF(AND(AC$180>=Poczatek,AC$180<=Koniec),ROUND(AC210*AC204,0),0),0) -> 0 | AD216: 0 | AE216: 0
A217: =IF(AND(A205="✅",A211="✅"),"✅",IF(AND(A205="",A211=""),"","⛔")) ->  | K217: =IFERROR(IF(AND(K$180>=Poczatek,K$180<=Koniec),ROUND(K211*K205,0),0),0) -> 0 | L217: 0 | M217: 0 | N217: 0 | O217: 0 | P217: 0 | Q217: 0 | R217: 0 | S217: 0 | T217: 0 | U217: 0 | V217: 0 | W217: 0 | X217: 0 | Y217: 0 | Z217: 0 | AA217: 0 | AB217: 0 | AC217: =IFERROR(IF(AND(AC$180>=Poczatek,AC$180<=Koniec),ROUND(AC211*AC205,0),0),0) -> 0 | AD217: 0 | AE217: 0
A218: =IF(AND(A206="✅",A212="✅"),"✅",IF(AND(A206="",A212=""),"","⛔")) ->  | K218: =IFERROR(IF(AND(K$180>=Poczatek,K$180<=Koniec),ROUND(K212*K206,0),0),0) -> 0 | L218: 0 | M218: 0 | N218: 0 | O218: 0 | P218: 0 | Q218: 0 | R218: 0 | S218: 0 | T218: 0 | U218: 0 | V218: 0 | W218: 0 | X218: 0 | Y218: 0 | Z218: 0 | AA218: 0 | AB218: 0 | AC218: =IFERROR(IF(AND(AC$180>=Poczatek,AC$180<=Koniec),ROUND(AC212*AC206,0),0),0) -> 0 | AD218: 0 | AE218: 0
B219: Razem Wartość sprzedanych towarów i materiałów (Projekt) | K219: =IF(LataProjekcji<=Koniec,SUM(K214:K218),0) -> 0 | L219: 0 | M219: 0 | N219: 0 | O219: 0 | P219: 0 | Q219: 0 | R219: 0 | S219: 0 | T219: 0 | U219: 0 | V219: 0 | W219: 0 | X219: =IF(LataProjekcji<=Koniec,SUM(X214:X218),0) -> 0 | Y219: 0 | Z219: 0 | AA219: 0 | AB219: 0 | AC219: =IF(LataProjekcji<=Koniec,SUM(AC214:AC218),0) -> 0 | AD219: 0 | AE219: 0
B222: Pozostałe przychody operacyjne (Projekt) | K222: =LataProjekcji -> 2025 | L222: 2026 | M222: 2027 | N222: 2028 | O222: 2029 | P222: 2030 | Q222: 2031 | R222: 2032 | S222: 2033 | T222: 2034 | U222: 2035 | V222: 2036 | W222: 2037 | X222: 2038 | Y222: 2039 | Z222: 2040 | AA222: 2041 | AB222: 2042 | AC222: 2043 | AD222: 2044 | AE222: 2045
A223: =Weryfikacja_wypelnienia_Przychody_Projekt -> 
A224: =Weryfikacja_wypelnienia_Przychody_Projekt -> 
A225: =Weryfikacja_wypelnienia_Przychody_Projekt -> 
A226: =Weryfikacja_wypelnienia_Przychody_Projekt -> 
B227: Dotacje | K227: ='Rozliczenie dotacji'!K286 -> 0 | L227: ='Rozliczenie dotacji'!L286 -> 0 | M227: ='Rozliczenie dotacji'!M286 -> 0 | N227: ='Rozliczenie dotacji'!N286 -> 0 | O227: ='Rozliczenie dotacji'!O286 -> 0 | P227: ='Rozliczenie dotacji'!P286 -> 0 | Q227: ='Rozliczenie dotacji'!Q286 -> 0 | R227: ='Rozliczenie dotacji'!R286 -> 0 | S227: ='Rozliczenie dotacji'!S286 -> 0 | T227: ='Rozliczenie dotacji'!T286 -> 0 | U227: ='Rozliczenie dotacji'!U286 -> 0 | V227: ='Rozliczenie dotacji'!V286 -> 0 | W227: ='Rozliczenie dotacji'!W286 -> 0 | X227: ='Rozliczenie dotacji'!X286 -> 0 | Y227: ='Rozliczenie dotacji'!Y286 -> 0 | Z227: ='Rozliczenie dotacji'!Z286 -> 0 | AA227: ='Rozliczenie dotacji'!AA286 -> 0 | AB227: ='Rozliczenie dotacji'!AC286 -> 0 | AC227: ='Rozliczenie dotacji'!AD286 -> 0 | AD227: ='Rozliczenie dotacji'!AE286 -> 0 | AE227: ='Rozliczenie dotacji'!AF286 -> 0
B228: Razem Pozostałe przychody operacyjne (Projekt) | K228: =IF(AND(LataProjekcji>=Poczatek,LataProjekcji<=Koniec),SUM(K223:K227),0) -> 0 | L228: 0 | M228: 0 | N228: 0 | O228: 0 | P228: 0 | Q228: 0 | R228: 0 | S228: 0 | T228: 0 | U228: 0 | V228: 0 | W228: 0 | X228: =IF(AND(LataProjekcji>=Poczatek,LataProjekcji<=Koniec),SUM(X223:X227),0) -> 0 | Y228: 0 | Z228: 0 | AA228: 0 | AB228: 0 | AC228: =IF(AND(LataProjekcji>=Poczatek,LataProjekcji<=Koniec),SUM(AC223:AC227),0) -> 0 | AD228: 0 | AE228: 0
B231: Przychody finansowe (Projekt) | K231: =LataProjekcji -> 2025 | L231: 2026 | M231: 2027 | N231: 2028 | O231: 2029 | P231: 2030 | Q231: 2031 | R231: 2032 | S231: 2033 | T231: 2034 | U231: 2035 | V231: 2036 | W231: 2037 | X231: 2038 | Y231: 2039 | Z231: 2040 | AA231: 2041 | AB231: 2042 | AC231: 2043 | AD231: 2044 | AE231: 2045
B232: Przychody z tytułu oprocentowania środków pieniężnych | K232: =IFERROR(ROUND(Finansowanie!K93+Finansowanie!K102,0),0) -> 0 | L232: =IFERROR(ROUND(Finansowanie!L93+Finansowanie!L102,0),0) -> 0 | M232: =IFERROR(ROUND(Finansowanie!M93+Finansowanie!M102,0),0) -> 0 | N232: =IFERROR(ROUND(Finansowanie!N93+Finansowanie!N102,0),0) -> 0 | O232: =IFERROR(ROUND(Finansowanie!O93+Finansowanie!O102,0),0) -> 0 | P232: =IFERROR(ROUND(Finansowanie!P93+Finansowanie!P102,0),0) -> 0 | Q232: =IFERROR(ROUND(Finansowanie!Q93+Finansowanie!Q102,0),0) -> 0 | R232: =IFERROR(ROUND(Finansowanie!R93+Finansowanie!R102,0),0) -> 0 | S232: =IFERROR(ROUND(Finansowanie!S93+Finansowanie!S102,0),0) -> 0 | T232: =IFERROR(ROUND(Finansowanie!T93+Finansowanie!T102,0),0) -> 0 | U232: =IFERROR(ROUND(Finansowanie!U93+Finansowanie!U102,0),0) -> 0 | V232: =IFERROR(ROUND(Finansowanie!V93+Finansowanie!V102,0),0) -> 0 | W232: =IFERROR(ROUND(Finansowanie!W93+Finansowanie!W102,0),0) -> 0 | X232: =IFERROR(ROUND(Finansowanie!X93+Finansowanie!X102,0),0) -> 0 | Y232: =IFERROR(ROUND(Finansowanie!Y93+Finansowanie!Y102,0),0) -> 0 | Z232: =IFERROR(ROUND(Finansowanie!Z93+Finansowanie!Z102,0),0) -> 0 | AA232: =IFERROR(ROUND(Finansowanie!AA93+Finansowanie!AA102,0),0) -> 0 | AB232: =IFERROR(ROUND(Finansowanie!AB93+Finansowanie!AB102,0),0) -> 0 | AC232: =IFERROR(ROUND(Finansowanie!AC93+Finansowanie!AC102,0),0) -> 0 | AD232: =IFERROR(ROUND(Finansowanie!AD93+Finansowanie!AD102,0),0) -> 0 | AE232: =IFERROR(ROUND(Finansowanie!AE93+Finansowanie!AE102,0),0) -> 0
A233: =Weryfikacja_wypelnienia_Przychody_Projekt -> 
A234: =Weryfikacja_wypelnienia_Przychody_Projekt -> 
A235: =Weryfikacja_wypelnienia_Przychody_Projekt -> 
A236: =Weryfikacja_wypelnienia_Przychody_Projekt -> 
B237: Razem Przychody finansowe (Projekt) | K237: =IF(LataProjekcji<=Koniec,SUM(K232:K236),0) -> 0 | L237: 0 | M237: 0 | N237: 0 | O237: 0 | P237: 0 | Q237: 0 | R237: 0 | S237: 0 | T237: 0 | U237: 0 | V237: 0 | W237: 0 | X237: =IF(LataProjekcji<=Koniec,SUM(X232:X236),0) -> 0 | Y237: =IF(LataProjekcji<=Koniec,SUM(Y232:Y236),0) -> 0 | Z237: 0 | AA237: 0 | AB237: 0 | AC237: 0 | AD237: 0 | AE237: 0
B240: Podsumowanie (Projekt) | K240: =LataProjekcji -> 2025 | L240: 2026 | M240: 2027 | N240: 2028 | O240: 2029 | P240: 2030 | Q240: 2031 | R240: 2032 | S240: 2033 | T240: 2034 | U240: 2035 | V240: 2036 | W240: 2037 | X240: 2038 | Y240: 2039 | Z240: 2040 | AA240: 2041 | AB240: 2042 | AC240: 2043 | AD240: 2044 | AE240: 2045
B241: Sprzedaż produktów i usług | K241: =IF(AND(LataProjekcji>=Poczatek,LataProjekcji<=Koniec),K159,0) -> 0 | L241: 0 | M241: 0 | N241: 0 | O241: 0 | P241: 0 | Q241: 0 | R241: 0 | S241: 0 | T241: 0 | U241: 0 | V241: 0 | W241: 0 | X241: =IF(AND(LataProjekcji>=Poczatek,LataProjekcji<=Koniec),X159,0) -> 0 | Y241: =IF(AND(LataProjekcji>=Poczatek,LataProjekcji<=Koniec),Y159,0) -> 0 | Z241: 0 | AA241: 0 | AB241: 0 | AC241: 0 | AD241: 0 | AE241: 0
... 9 more rows

Sheet Koszty operacyjne
B2: =Założenia!B2 -> Wstaw nazwę podmiotu oraz tytuł projektu w zakładce Dane Wnioskodawcy
J11: =Założenia!K27 -> 0 | K11: =Założenia!K27 -> 0 | L11: =Założenia!L27 -> 0 | M11: =Założenia!M27 -> 0 | N11: =Założenia!N27 -> 0 | O11: =Założenia!O27 -> 0 | P11: =Założenia!P27 -> 1 | Q11: =Założenia!Q27 -> 2 | R11: =Założenia!R27 -> 3 | S11: =Założenia!S27 -> 4 | T11: =Założenia!T27 -> 5 | U11: =Założenia!U27 -> 6 | V11: =Założenia!V27 -> 7 | W11: =Założenia!W27 -> 8 | X11: =Założenia!X27 -> 9 | Y11: =Założenia!Y27 -> 10 | Z11: =Założenia!Z27 -> 11 | AA11: =Założenia!AA27 -> 12 | AB11: =Założenia!AB27 -> 13 | AC11: =Założenia!AC27 -> 14 | AD11: =Założenia!AD27 -> 15 | AE11: =Założenia!AE27 -> 16
B12: Działalność dotychczasowa (bez Projektu) | F12: =Założenia!G28 -> 2022 | G12: =Założenia!H28 -> 2023 | H12: =Założenia!I28 -> 2024 | I12: =Założenia!J28 -> 2025-09-30 | J12: =LataProjekcji -> 45930 | K12: 2025 | L12: 2026 | M12: 2027 | N12: 2028 | O12: 2029 | P12: 2030 | Q12: 2031 | R12: 2032 | S12: 2033 | T12: 2034 | U12: 2035 | V12: 2036 | W12: 2037 | X12: 2038 | Y12: 2039 | Z12: 2040 | AA12: 2041 | AB12: 2042 | AC12: 2043 | AD12: 2044 | AE12: 2045
B14: Zużycie materiałów i eneregii
A15: =Weryfikacja_wypelnienia_KO -> 
A16: =Weryfikacja_wypelnienia_KO -> 
A17: =Weryfikacja_wypelnienia_KO -> 
A18: =Weryfikacja_wypelnienia_KO -> 
A19: =Weryfikacja_wypelnienia_KO -> 
B20: Razem Zużycie materiałów i energii | J20: =IF(LataProjekcji<=Koniec,ROUND(SUM(J15:J19),0),0) -> 0 | K20: 0 | L20: 0 | M20: 0 | N20: 0 | O20: 0 | P20: 0 | Q20: 0 | R20: 0 | S20: 0 | T20: 0 | U20: =IF(LataProjekcji<=Koniec,ROUND(SUM(U15:U19),0),0) -> 0 | V20: 0 | W20: 0 | X20: =IF(LataProjekcji<=Koniec,ROUND(SUM(X15:X19),0),0) -> 0 | Y20: 0 | Z20: 0 | AA20: 0 | AB20: =IF(LataProjekcji<=Koniec,ROUND(SUM(AB15:AB19),0),0) -> 0 | AC20: 0 | AD20: 0 | AE20: 0
B23: Usługi obce | J23: =LataProjekcji -> 45930 | K23: 2025 | L23: 2026 | M23: 2027 | N23: 2028 | O23: 2029 | P23: 2030 | Q23: 2031 | R23: 2032 | S23: 2033 | T23: 2034 | U23: 2035 | V23: 2036 | W23: 2037 | X23: 2038 | Y23: 2039 | Z23: 2040 | AA23: 2041 | AB23: 2042 | AC23: 2043 | AD23: 2044 | AE23: 2045
A24: =Weryfikacja_wypelnienia_KO -> 
A25: =Weryfikacja_wypelnienia_KO -> 
A26: =Weryfikacja_wypelnienia_KO -> 
A27: =Weryfikacja_wypelnienia_KO -> 
A28: =Weryfikacja_wypelnienia_KO -> 
B29: Razem Usługi obce | J29: =IF(LataProjekcji<=Koniec,ROUND(SUM(J24:J28),0),0) -> 0 | K29: 0 | L29: 0 | M29: 0 | N29: 0 | O29: 0 | P29: 0 | Q29: 0 | R29: 0 | S29: 0 | T29: 0 | U29: =IF(LataProjekcji<=Koniec,ROUND(SUM(U24:U28),0),0) -> 0 | V29: 0 | W29: 0 | X29: =IF(LataProjekcji<=Koniec,ROUND(SUM(X24:X28),0),0) -> 0 | Y29: 0 | Z29: 0 | AA29: 0 | AB29: =IF(LataProjekcji<=Koniec,ROUND(SUM(AB24:AB28),0),0) -> 0 | AC29: 0 | AD29: 0 | AE29: 0
B32: Podatki i opłaty | J32: =LataProjekcji -> 45930 | K32: 2025 | L32: 2026 | M32: 2027 | N32: 2028 | O32: 2029 | P32: 2030 | Q32: 2031 | R32: 2032 | S32: 2033 | T32: 2034 | U32: 2035 | V32: 2036 | W32: 2037 | X32: 2038 | Y32: 2039 | Z32: 2040 | AA32: 2041 | AB32: 2042 | AC32: 2043 | AD32: 2044 | AE32: 2045
A33: =Weryfikacja_wypelnienia_KO -> 
A34: =Weryfikacja_wypelnienia_KO -> 
A35: =Weryfikacja_wypelnienia_KO -> 
A36: =Weryfikacja_wypelnienia_KO -> 
A37: =Weryfikacja_wypelnienia_KO -> 
B38: Razem Podatki i opłaty | J38: =IF(LataProjekcji<=Koniec,ROUND(SUM(J33:J37),0),0) -> 0 | K38: 0 | L38: 0 | M38: 0 | N38: 0 | O38: 0 | P38: 0 | Q38: 0 | R38: 0 | S38: 0 | T38: 0 | U38: =IF(LataProjekcji<=Koniec,ROUND(SUM(U33:U37),0),0) -> 0 | V38: 0 | W38: 0 | X38: =IF(LataProjekcji<=Koniec,ROUND(SUM(X33:X37),0),0) -> 0 | Y38: 0 | Z38: 0 | AA38: 0 | AB38: =IF(LataProjekcji<=Koniec,ROUND(SUM(AB33:AB37),0),0) -> 0 | AC38: 0 | AD38: 0 | AE38: 0
B41: Wynagrodzenia (brutto)
B42: Stanowisko / Grupa Średnie miesięczne wynagrodzenie brutto | J42: =LataProjekcji -> 45930 | K42: 2025 | L42: 2026 | M42: 2027 | N42: 2028 | O42: 2029 | P42: 2030 | Q42: 2031 | R42: 2032 | S42: 2033 | T42: 2034 | U42: 2035 | V42: 2036 | W42: 2037 | X42: 2038 | Y42: 2039 | Z42: 2040 | AA42: 2041 | AB42: 2042 | AC42: 2043 | AD42: 2044 | AE42: 2045
A43: =Weryfikacja_wypelnienia_KO -> 
A44: =Weryfikacja_wypelnienia_KO -> 
A45: =Weryfikacja_wypelnienia_KO -> 
A46: =Weryfikacja_wypelnienia_KO -> 
A47: =Weryfikacja_wypelnienia_KO -> 
B48: Liczba etatów na danym stanowisku / w danej grupie
A49: =IF(OR(A43="✅",A43="⛔"),IF(AND(OR(ISNUMBER('Koszty operacyjne'!J49:AE49)),NOT(ISTEXT('Koszty operacyjne'!J49:AE49))),"✅","⛔"),IF(A43="",IF(AND(ISBLANK('Koszty operacyjne'!J49:AE49)),"","⛔"))) ->  | B49: =IF(ISBLANK(B43),"",B43) -> 
A50: =IF(OR(A44="✅",A44="⛔"),IF(AND(OR(ISNUMBER('Koszty operacyjne'!J50:AE50)),NOT(ISTEXT('Koszty operacyjne'!J50:AE50))),"✅","⛔"),IF(A44="",IF(AND(ISBLANK('Koszty operacyjne'!J50:AE50)),"","⛔"))) ->  | B50: =IF(ISBLANK(B44),"",B44) -> 
A51: =IF(OR(A45="✅",A45="⛔"),IF(AND(OR(ISNUMBER('Koszty operacyjne'!J51:AE51)),NOT(ISTEXT('Koszty operacyjne'!J51:AE51))),"✅","⛔"),IF(A45="",IF(AND(ISBLANK('Koszty operacyjne'!J51:AE51)),"","⛔"))) ->  | B51: =IF(ISBLANK(B45),"",B45) -> 
A52: =IF(OR(A46="✅",A46="⛔"),IF(AND(OR(ISNUMBER('Koszty operacyjne'!J52:AE52)),NOT(ISTEXT('Koszty operacyjne'!J52:AE52))),"✅","⛔"),IF(A46="",IF(AND(ISBLANK('Koszty operacyjne'!J52:AE52)),"","⛔"))) ->  | B52: =IF(ISBLANK(B46),"",B46) -> 
A53: =IF(OR(A47="✅",A47="⛔"),IF(AND(OR(ISNUMBER('Koszty operacyjne'!J53:AE53)),NOT(ISTEXT('Koszty operacyjne'!J53:AE53))),"✅","⛔"),IF(A47="",IF(AND(ISBLANK('Koszty operacyjne'!J53:AE53)),"","⛔"))) ->  | B53: =IF(ISBLANK(B47),"",B47) -> 
B54: Koszty rocznych wynagrodzeń na danym stanowisku / w danej grupie
A55: =IF(AND(A43="✅",A49="✅"),"✅",IF(AND(A43="",A49=""),"","⛔")) ->  | B55: =IF(ISBLANK(B49),"",B49) ->  | J55: =IFERROR(ROUND(J49*J43*12,0),0) -> 0 | K55: =IFERROR(ROUND(K49*K43*12,0),0) -> 0 | L55: 0 | M55: 0 | N55: 0 | O55: 0 | P55: 0 | Q55: 0 | R55: 0 | S55: 0 | T55: 0 | U55: =IFERROR(ROUND(U49*U43*12,0),0) -> 0 | V55: 0 | W55: 0 | X55: =IFERROR(ROUND(X49*X43*12,0),0) -> 0 | Y55: 0 | Z55: 0 | AA55: 0 | AB55: =IFERROR(ROUND(AB49*AB43*12,0),0) -> 0 | AC55: 0 | AD55: 0 | AE55: 0
A56: =IF(AND(A44="✅",A50="✅"),"✅",IF(AND(A44="",A50=""),"","⛔")) ->  | B56: =IF(ISBLANK(B50),"",B50) ->  | J56: =IFERROR(ROUND(J50*J44*12,0),0) -> 0 | K56: 0 | L56: 0 | M56: 0 | N56: 0 | O56: 0 | P56: 0 | Q56: 0 | R56: 0 | S56: 0 | T56: 0 | U56: 0 | V56: 0 | W56: 0 | X56: =IFERROR(ROUND(X50*X44*12,0),0) -> 0 | Y56: 0 | Z56: 0 | AA56: 0 | AB56: =IFERROR(ROUND(AB50*AB44*12,0),0) -> 0 | AC56: 0 | AD56: 0 | AE56: 0
A57: =IF(AND(A45="✅",A51="✅"),"✅",IF(AND(A45="",A51=""),"","⛔")) ->  | B57: =IF(ISBLANK(B51),"",B51) ->  | J57: =IFERROR(ROUND(J51*J45*12,0),0) -> 0 | K57: 0 | L57: 0 | M57: 0 | N57: 0 | O57: 0 | P57: 0 | Q57: 0 | R57: 0 | S57: 0 | T57: 0 | U57: 0 | V57: 0 | W57: 0 | X57: =IFERROR(ROUND(X51*X45*12,0),0) -> 0 | Y57: 0 | Z57: 0 | AA57: 0 | AB57: =IFERROR(ROUND(AB51*AB45*12,0),0) -> 0 | AC57: 0 | AD57: 0 | AE57: 0
A58: =IF(AND(A46="✅",A52="✅"),"✅",IF(AND(A46="",A52=""),"","⛔")) ->  | B58: =IF(ISBLANK(B52),"",B52) ->  | J58: =IFERROR(ROUND(J52*J46*12,0),0) -> 0 | K58: 0 | L58: 0 | M58: 0 | N58: 0 | O58: 0 | P58: 0 | Q58: 0 | R58: 0 | S58: 0 | T58: 0 | U58: 0 | V58: 0 | W58: 0 | X58: =IFERROR(ROUND(X52*X46*12,0),0) -> 0 | Y58: 0 | Z58: 0 | AA58: 0 | AB58: =IFERROR(ROUND(AB52*AB46*12,0),0) -> 0 | AC58: 0 | AD58: 0 | AE58: 0
A59: =IF(AND(A47="✅",A53="✅"),"✅",IF(AND(A47="",A53=""),"","⛔")) ->  | B59: =IF(ISBLANK(B53),"",B53) ->  | J59: =IFERROR(ROUND(J53*J47*12,0),0) -> 0 | K59: 0 | L59: 0 | M59: 0 | N59: 0 | O59: 0 | P59: 0 | Q59: 0 | R59: 0 | S59: 0 | T59: 0 | U59: 0 | V59: 0 | W59: 0 | X59: =IFERROR(ROUND(X53*X47*12,0),0) -> 0 | Y59: 0 | Z59: 0 | AA59: 0 | AB59: =IFERROR(ROUND(AB53*AB47*12,0),0) -> 0 | AC59: 0 | AD59: 0 | AE59: 0
B60: Razem Wynagrodzenia | J60: =IF(LataProjekcji<=Koniec,ROUND(SUM(J55:J59),0),0) -> 0 | K60: 0 | L60: 0 | M60: 0 | N60: 0 | O60: 0 | P60: 0 | Q60: 0 | R60: 0 | S60: 0 | T60: 0 | U60: =IF(LataProjekcji<=Koniec,ROUND(SUM(U55:U59),0),0) -> 0 | V60: 0 | W60: 0 | X60: =IF(LataProjekcji<=Koniec,ROUND(SUM(X55:X59),0),0) -> 0 | Y60: 0 | Z60: 0 | AA60: 0 | AB60: =IF(LataProjekcji<=Koniec,ROUND(SUM(AB55:AB59),0),0) -> 0 | AC60: 0 | AD60: 0 | AE60: 0
B63: Ubezpieczenia społeczne i inne świadczenia | J63: =LataProjekcji -> 45930 | K63: 2025 | L63: 2026 | M63: 2027 | N63: 2028 | O63: 2029 | P63: 2030 | Q63: 2031 | R63: 2032 | S63: 2033 | T63: 2034 | U63: 2035 | V63: 2036 | W63: 2037 | X63: 2038 | Y63: 2039 | Z63: 2040 | AA63: 2041 | AB63: 2042 | AC63: 2043 | AD63: 2044 | AE63: 2045
B64: Stanowisko / Grupa
A65: =A55 ->  | B65: =IF(ISBLANK(B43),"",B43) -> 
A66: =A56 ->  | B66: =IF(ISBLANK(B44),"",B44) -> 
A67: =A57 ->  | B67: =IF(ISBLANK(B45),"",B45) -> 
A68: =A58 ->  | B68: =IF(ISBLANK(B46),"",B46) -> 
A69: =A59 ->  | B69: =IF(ISBLANK(B47),"",B47) -> 
B70: Razem Ubezpieczenia społeczne i inne świadczenia | J70: =IF(LataProjekcji<=Koniec,ROUND(SUM(J65:J69),0),0) -> 0 | K70: 0 | L70: 0 | M70: 0 | N70: 0 | O70: 0 | P70: 0 | Q70: 0 | R70: 0 | S70: 0 | T70: 0 | U70: =IF(LataProjekcji<=Koniec,ROUND(SUM(U65:U69),0),0) -> 0 | V70: 0 | W70: 0 | X70: =IF(LataProjekcji<=Koniec,ROUND(SUM(X65:X69),0),0) -> 0 | Y70: 0 | Z70: 0 | AA70: 0 | AB70: =IF(LataProjekcji<=Koniec,ROUND(SUM(AB65:AB69),0),0) -> 0 | AC70: 0 | AD70: 0 | AE70: 0
B73: Pozostałe koszty rodzajowe | J73: =LataProjekcji -> 45930 | K73: 2025 | L73: 2026 | M73: 2027 | N73: 2028 | O73: 2029 | P73: 2030 | Q73: 2031 | R73: 2032 | S73: 2033 | T73: 2034 | U73: 2035 | V73: 2036 | W73: 2037 | X73: 2038 | Y73: 2039 | Z73: 2040 | AA73: 2041 | AB73: 2042 | AC73: 2043 | AD73: 2044 | AE73: 2045
A74: =Weryfikacja_wypelnienia_KO -> 
A75: =Weryfikacja_wypelnienia_KO -> 
A76: =Weryfikacja_wypelnienia_KO -> 
A77: =Weryfikacja_wypelnienia_KO -> 
A78: =Weryfikacja_wypelnienia_KO -> 
B79: Razem Pozostałe koszty | J79: =IF(LataProjekcji<=Koniec,ROUND(SUM(J74:J78),0),0) -> 0 | K79: 0 | L79: 0 | M79: 0 | N79: 0 | O79: 0 | P79: 0 | Q79: 0 | R79: 0 | S79: 0 | T79: 0 | U79: =IF(LataProjekcji<=Koniec,ROUND(SUM(U74:U78),0),0) -> 0 | V79: 0 | W79: 0 | X79: =IF(LataProjekcji<=Koniec,ROUND(SUM(X74:X78),0),0) -> 0 | Y79: 0 | Z79: 0 | AA79: 0 | AB79: =IF(LataProjekcji<=Koniec,ROUND(SUM(AB74:AB78),0),0) -> 0 | AC79: 0 | AD79: 0 | AE79: 0
B82: Pozostałe koszty operacyjne | J82: =LataProjekcji -> 45930 | K82: 2025 | L82: 2026 | M82: 2027 | N82: 2028 | O82: 2029 | P82: 2030 | Q82: 2031 | R82: 2032 | S82: 2033 | T82: 2034 | U82: 2035 | V82: 2036 | W82: 2037 | X82: 2038 | Y82: 2039 | Z82: 2040 | AA82: 2041 | AB82: 2042 | AC82: 2043 | AD82: 2044 | AE82: 2045
A83: =Weryfikacja_wypelnienia_KO -> 
A84: =Weryfikacja_wypelnienia_KO -> 
A85: =Weryfikacja_wypelnienia_KO -> 
A86: =Weryfikacja_wypelnienia_KO -> 
A87: =Weryfikacja_wypelnienia_KO -> 
B88: Razem Pozostałe koszty operacyjne | J88: =IF(LataProjekcji<=Koniec,ROUND(SUM(J83:J87),0),0) -> 0 | K88: 0 | L88: 0 | M88: 0 | N88: 0 | O88: 0 | P88: 0 | Q88: 0 | R88: 0 | S88: 0 | T88: 0 | U88: =IF(LataProjekcji<=Koniec,ROUND(SUM(U83:U87),0),0) -> 0 | V88: 0 | W88: 0 | X88: =IF(LataProjekcji<=Koniec,ROUND(SUM(X83:X87),0),0) -> 0 | Y88: 0 | Z88: 0 | AA88: 0 | AB88: =IF(LataProjekcji<=Koniec,ROUND(SUM(AB83:AB87),0),0) -> 0 | AC88: 0 | AD88: 0 | AE88: 0
B91: Koszty finansowe | J91: =LataProjekcji -> 45930 | K91: 2025 | L91: 2026 | M91: 2027 | N91: 2028 | O91: 2029 | P91: 2030 | Q91: 2031 | R91: 2032 | S91: 2033 | T91: 2034 | U91: 2035 | V91: 2036 | W91: 2037 | X91: 2038 | Y91: 2039 | Z91: 2040 | AA91: 2041 | AB91: 2042 | AC91: 2043 | AD91: 2044 | AE91: 2045
B92: Koszty z tytułu oprocentowania kredytów i pożyczek | J92: =ROUND(Finansowanie!K48+Finansowanie!K58+Finansowanie!K67,0) -> 0 | K92: =ROUND(Finansowanie!L48+Finansowanie!L58+Finansowanie!L67,0) -> 0 | L92: =ROUND(Finansowanie!M48+Finansowanie!M58+Finansowanie!M67,0) -> 0 | M92: =ROUND(Finansowanie!N48+Finansowanie!N58+Finansowanie!N67,0) -> 0 | N92: =ROUND(Finansowanie!O48+Finansowanie!O58+Finansowanie!O67,0) -> 0 | O92: =ROUND(Finansowanie!P48+Finansowanie!P58+Finansowanie!P67,0) -> 0 | P92: =ROUND(Finansowanie!Q48+Finansowanie!Q58+Finansowanie!Q67,0) -> 0 | Q92: =ROUND(Finansowanie!R48+Finansowanie!R58+Finansowanie!R67,0) -> 0 | R92: =ROUND(Finansowanie!S48+Finansowanie!S58+Finansowanie!S67,0) -> 0 | S92: =ROUND(Finansowanie!T48+Finansowanie!T58+Finansowanie!T67,0) -> 0 | T92: =ROUND(Finansowanie!U48+Finansowanie!U58+Finansowanie!U67,0) -> 0 | U92: =ROUND(Finansowanie!V48+Finansowanie!V58+Finansowanie!V67,0) -> 0 | V92: =ROUND(Finansowanie!W48+Finansowanie!W58+Finansowanie!W67,0) -> 0 | W92: =ROUND(Finansowanie!X48+Finansowanie!X58+Finansowanie!X67,0) -> 0 | X92: =ROUND(Finansowanie!Y48+Finansowanie!Y58+Finansowanie!Y67,0) -> 0 | Y92: =ROUND(Finansowanie!AD48+Finansowanie!AD58+Finansowanie!AD67,0) -> 0 | Z92: =ROUND(Finansowanie!AE48+Finansowanie!AE58+Finansowanie!AE67,0) -> 0 | AA92: =ROUND(Finansowanie!AF48+Finansowanie!AF58+Finansowanie!AF67,0) -> 0 | AB92: =ROUND(Finansowanie!AG48+Finansowanie!AG58+Finansowanie!AG67,0) -> 0 | AC92: =ROUND(Finansowanie!AH48+Finansowanie!AH58+Finansowanie!AH67,0) -> 0 | AD92: =ROUND(Finansowanie!AI48+Finansowanie!AI58+Finansowanie!AI67,0) -> 0 | AE92: =ROUND(Finansowanie!AJ48+Finansowanie!AJ58+Finansowanie!AJ67,0) -> 0
A93: =Weryfikacja_wypelnienia_KO -> 
A94: =Weryfikacja_wypelnienia_KO -> 
A95: =Weryfikacja_wypelnienia_KO -> 
A96: =Weryfikacja_wypelnienia_KO -> 
B97: Razem Koszty finansowe | J97: =IF(LataProjekcji<=Koniec,ROUND(SUM(J92:J96),0),0) -> 0 | K97: 0 | L97: 0 | M97: 0 | N97: 0 | O97: 0 | P97: 0 | Q97: 0 | R97: 0 | S97: 0 | T97: 0 | U97: =IF(LataProjekcji<=Koniec,ROUND(SUM(U92:U96),0),0) -> 0 | V97: 0 | W97: 0 | X97: =IF(LataProjekcji<=Koniec,ROUND(SUM(X92:X96),0),0) -> 0 | Y97: 0 | Z97: 0 | AA97: 0 | AB97: =IF(LataProjekcji<=Koniec,ROUND(SUM(AB92:AB96),0),0) -> 0 | AC97: 0 | AD97: 0 | AE97: 0
B100: Koszty dotychczasowej działalności operacyjnej | J100: =LataProjekcji -> 45930 | K100: 2025 | L100: 2026 | M100: 2027 | N100: 2028 | O100: 2029 | P100: 2030 | Q100: 2031 | R100: 2032 | S100: 2033 | T100: 2034 | U100: 2035 | V100: 2036 | W100: 2037 | X100: 2038 | Y100: 2039 | Z100: 2040 | AA100: 2041 | AB100: 2042 | AC100: 2043 | AD100: 2044 | AE100: 2045
B101: Amortyzacja | J101: =ROUND('Środki trwałe'!K91,0) -> 0 | K101: =ROUND('Środki trwałe'!L91,0) -> 0 | L101: =ROUND('Środki trwałe'!M91,0) -> 0 | M101: =ROUND('Środki trwałe'!N91,0) -> 0 | N101: =ROUND('Środki trwałe'!O91,0) -> 0 | O101: =ROUND('Środki trwałe'!P91,0) -> 0 | P101: =ROUND('Środki trwałe'!Q91,0) -> 0 | Q101: =ROUND('Środki trwałe'!R91,0) -> 0 | R101: =ROUND('Środki trwałe'!S91,0) -> 0 | S101: =ROUND('Środki trwałe'!T91,0) -> 0 | T101: =ROUND('Środki trwałe'!U91,0) -> 0 | U101: =ROUND('Środki trwałe'!V91,0) -> 0 | V101: =ROUND('Środki trwałe'!W91,0) -> 0 | W101: =ROUND('Środki trwałe'!X91,0) -> 0 | X101: =ROUND('Środki trwałe'!Y91,0) -> 0 | Y101: =ROUND('Środki trwałe'!AD91,0) -> 0 | Z101: =ROUND('Środki trwałe'!AE91,0) -> 0 | AA101: =ROUND('Środki trwałe'!AF91,0) -> 0 | AB101: =ROUND('Środki trwałe'!AG91,0) -> 0 | AC101: =ROUND('Środki trwałe'!AH91,0) -> 0 | AD101: =ROUND('Środki trwałe'!AI91,0) -> 0 | AE101: =ROUND('Środki trwałe'!AJ91,0) -> 0
B102: Zużycie materiałów i energii | J102: =ROUND(J20,0) -> 0 | K102: =ROUND(K20,0) -> 0 | L102: 0 | M102: 0 | N102: 0 | O102: 0 | P102: 0 | Q102: 0 | R102: 0 | S102: 0 | T102: 0 | U102: =ROUND(U20,0) -> 0 | V102: =ROUND(V20,0) -> 0 | W102: =ROUND(W20,0) -> 0 | X102: =ROUND(X20,0) -> 0 | Y102: 0 | Z102: 0 | AA102: 0 | AB102: =ROUND(AB20,0) -> 0 | AC102: 0 | AD102: 0 | AE102: 0
B103: Usługi obce | J103: =ROUND(J29,0) -> 0 | K103: =ROUND(K29,0) -> 0 | L103: 0 | M103: 0 | N103: 0 | O103: 0 | P103: 0 | Q103: 0 | R103: 0 | S103: 0 | T103: 0 | U103: =ROUND(U29,0) -> 0 | V103: =ROUND(V29,0) -> 0 | W103: =ROUND(W29,0) -> 0 | X103: =ROUND(X29,0) -> 0 | Y103: 0 | Z103: 0 | AA103: 0 | AB103: =ROUND(AB29,0) -> 0 | AC103: 0 | AD103: 0 | AE103: 0
B104: Podatki i opłaty | J104: =ROUND(J38,0) -> 0 | K104: =ROUND(K38,0) -> 0 | L104: 0 | M104: 0 | N104: 0 | O104: 0 | P104: 0 | Q104: 0 | R104: 0 | S104: 0 | T104: 0 | U104: =ROUND(U38,0) -> 0 | V104: =ROUND(V38,0) -> 0 | W104: =ROUND(W38,0) -> 0 | X104: =ROUND(X38,0) -> 0 | Y104: 0 | Z104: 0 | AA104: 0 | AB104: =ROUND(AB38,0) -> 0 | AC104: 0 | AD104: 0 | AE104: 0
B105: Wynagrodzenia | J105: =ROUND(J60,0) -> 0 | K105: =ROUND(K60,0) -> 0 | L105: 0 | M105: 0 | N105: 0 | O105: 0 | P105: 0 | Q105: 0 | R105: 0 | S105: 0 | T105: 0 | U105: =ROUND(U60,0) -> 0 | V105: =ROUND(V60,0) -> 0 | W105: =ROUND(W60,0) -> 0 | X105: =ROUND(X60,0) -> 0 | Y105: 0 | Z105: 0 | AA105: 0 | AB105: =ROUND(AB60,0) -> 0 | AC105: 0 | AD105: 0 | AE105: 0
B106: Ubezpieczenia społeczne i inne świadczenia | J106: =ROUND(J70,0) -> 0 | K106: =ROUND(K70,0) -> 0 | L106: 0 | M106: 0 | N106: 0 | O106: 0 | P106: 0 | Q106: 0 | R106: 0 | S106: 0 | T106: 0 | U106: =ROUND(U70,0) -> 0 | V106: =ROUND(V70,0) -> 0 | W106: =ROUND(W70,0) -> 0 | X106: =ROUND(X70,0) -> 0 | Y106: 0 | Z106: 0 | AA106: 0 | AB106: =ROUND(AB70,0) -> 0 | AC106: 0 | AD106: 0 | AE106: 0
B107: Pozostałe koszty rodzajowe | J107: =ROUND(J79,0) -> 0 | K107: =ROUND(K79,0) -> 0 | L107: 0 | M107: 0 | N107: 0 | O107: 0 | P107: 0 | Q107: 0 | R107: 0 | S107: 0 | T107: 0 | U107: =ROUND(U79,0) -> 0 | V107: =ROUND(V79,0) -> 0 | W107: =ROUND(W79,0) -> 0 | X107: =ROUND(X79,0) -> 0 | Y107: 0 | Z107: 0 | AA107: 0 | AB107: =ROUND(AB79,0) -> 0 | AC107: 0 | AD107: 0 | AE107: 0
B108: Wartość sprzedanych towarów i materiałów | J108: =ROUND(Przychody!K92,0) -> 0 | K108: =ROUND(Przychody!L92,0) -> 0 | L108: =ROUND(Przychody!M92,0) -> 0 | M108: =ROUND(Przychody!N92,0) -> 0 | N108: =ROUND(Przychody!O92,0) -> 0 | O108: =ROUND(Przychody!P92,0) -> 0 | P108: =ROUND(Przychody!Q92,0) -> 0 | Q108: =ROUND(Przychody!R92,0) -> 0 | R108: =ROUND(Przychody!S92,0) -> 0 | S108: =ROUND(Przychody!T92,0) -> 0 | T108: =ROUND(Przychody!U92,0) -> 0 | U108: =ROUND(Przychody!V92,0) -> 0 | V108: =ROUND(Przychody!W92,0) -> 0 | W108: =ROUND(Przychody!X92,0) -> 0 | X108: =ROUND(Przychody!Y92,0) -> 0 | Y108: =ROUND(Przychody!Z92,0) -> 0 | Z108: =ROUND(Przychody!AA92,0) -> 0 | AA108: =ROUND(Przychody!AB92,0) -> 0 | AB108: =ROUND(Przychody!AC92,0) -> 0 | AC108: =ROUND(Przychody!AD92,0) -> 0 | AD108: =ROUND(Przychody!AE92,0) -> 0 | AE108: =ROUND(Przychody!AF92,0) -> 0
B109: Razem | J109: =ROUND(SUM(J101:J108),0) -> 0 | K109: =ROUND(SUM(K101:K108),0) -> 0 | L109: 0 | M109: 0 | N109: 0 | O109: 0 | P109: 0 | Q109: 0 | R109: 0 | S109: 0 | T109: 0 | U109: =ROUND(SUM(U101:U108),0) -> 0 | V109: =ROUND(SUM(V101:V108),0) -> 0 | W109: =ROUND(SUM(W101:W108),0) -> 0 | X109: =ROUND(SUM(X101:X108),0) -> 0 | Y109: 0 | Z109: 0 | AA109: 0 | AB109: =ROUND(SUM(AB101:AB108),0) -> 0 | AC109: 0 | AD109: 0 | AE109: 0
B110: Pozostałe koszty operacyjne | J110: =ROUND(J88,0) -> 0 | K110: =ROUND(K88,0) -> 0 | L110: 0 | M110: 0 | N110: 0 | O110: 0 | P110: 0 | Q110: 0 | R110: 0 | S110: 0 | T110: 0 | U110: =ROUND(U88,0) -> 0 | V110: =ROUND(V88,0) -> 0 | W110: =ROUND(W88,0) -> 0 | X110: =ROUND(X88,0) -> 0 | Y110: 0 | Z110: 0 | AA110: 0 | AB110: =ROUND(AB88,0) -> 0 | AC110: 0 | AD110: 0 | AE110: 0
B111: Koszty finansowe | J111: =ROUND(J97,0) -> 0 | K111: =ROUND(K97,0) -> 0 | L111: 0 | M111: 0 | N111: 0 | O111: 0 | P111: 0 | Q111: 0 | R111: 0 | S111: 0 | T111: 0 | U111: =ROUND(U97,0) -> 0 | V111: =ROUND(V97,0) -> 0 | W111: =ROUND(W97,0) -> 0 | X111: =ROUND(X97,0) -> 0 | Y111: 0 | Z111: 0 | AA111: 0 | AB111: =ROUND(AB97,0) -> 0 | AC111: 0 | AD111: 0 | AE111: 0
B114: Projekt | C114: Kwalifikowalne | D114: Koszty B+R | F114: =F12 -> 2022 | G114: =G12 -> 2023 | H114: =H12 -> 2024 | I114: =I12 -> 2025-09-30 | J114: =LataProjekcji -> 45930 | K114: 2025 | L114: 2026 | M114: 2027 | N114: 2028 | O114: 2029 | P114: 2030 | Q114: 2031 | R114: 2032 | S114: 2033 | T114: 2034 | U114: 2035 | V114: 2036 | W114: 2037 | X114: 2038 | Y114: 2039 | Z114: 2040 | AA114: 2041 | AB114: 2042 | AC114: 2043 | AD114: 2044 | AE114: 2045
B116: Zużycie materiałów i eneregii (Projekt) | C116: =C$114 -> Kwalifikowalne | D116: Koszty B+R | F116: 2022 | G116: 2023 | H116: 2024 | I116: 45930 | J116: 45930 | K116: 2025 | L116: 2026 | M116: 2027 | N116: 2028 | O116: 2029 | P116: 2030 | Q116: 2031 | R116: 2032 | S116: 2033 | T116: 2034 | U116: 2035 | V116: 2036 | W116: 2037 | X116: 2038 | Y116: 2039 | Z116: 2040 | AA116: 2041 | AB116: 2042 | AC116: 2043 | AD116: 2044 | AE116: 2045
A117: =Weryfikacja_wypelnienia_KO_Projekt -> 
A118: =Weryfikacja_wypelnienia_KO_Projekt -> 
A119: =Weryfikacja_wypelnienia_KO_Projekt -> 
A120: =Weryfikacja_wypelnienia_KO_Projekt -> 
A121: =Weryfikacja_wypelnienia_KO_Projekt -> 
A122: =Weryfikacja_wypelnienia_KO_Projekt -> 
A123: =Weryfikacja_wypelnienia_KO_Projekt -> 
A124: =Weryfikacja_wypelnienia_KO_Projekt -> 
A125: =Weryfikacja_wypelnienia_KO_Projekt -> 
A126: =Weryfikacja_wypelnienia_KO_Projekt -> 
A127: =Weryfikacja_wypelnienia_KO_Projekt -> 
A128: =Weryfikacja_wypelnienia_KO_Projekt -> 
A129: =Weryfikacja_wypelnienia_KO_Projekt -> 
A130: =Weryfikacja_wypelnienia_KO_Projekt -> 
A131: =Weryfikacja_wypelnienia_KO_Projekt -> 
A132: =Weryfikacja_wypelnienia_KO_Projekt -> 
A133: =Weryfikacja_wypelnienia_KO_Projekt -> 
A134: =Weryfikacja_wypelnienia_KO_Projekt -> 
A135: =Weryfikacja_wypelnienia_KO_Projekt -> 
A136: =Weryfikacja_wypelnienia_KO_Projekt -> 
B137: Razem Zużycie materiałów i energii (Projekt) | J137: =IF(AND(LataProjekcji>=Poczatek,LataProjekcji<=Koniec),ROUND(SUM(J117:J136),0),0) -> 0 | K137: 0 | L137: 0 | M137: 0 | N137: 0 | O137: 0 | P137: 0 | Q137: 0 | R137: 0 | S137: 0 | T137: 0 | U137: 0 | V137: 0 | W137: 0 | X137: =IF(AND(LataProjekcji>=Poczatek,LataProjekcji<=Koniec),ROUND(SUM(X117:X136),0),0) -> 0 | Y137: 0 | Z137: 0 | AA137: 0 | AB137: =IF(AND(LataProjekcji>=Poczatek,LataProjekcji<=Koniec),ROUND(SUM(AB117:AB136),0),0) -> 0 | AC137: 0 | AD137: 0 | AE137: 0
B138: Poziom dofinansowania (w %) | J138: w przypadku gdy te koszty są finansowane z dotacji
B139: =IF(ISBLANK(B117),"",B117) ->  | C139: =IF(ISBLANK(C117),"",C117) -> 
B158: =IF(ISBLANK(B136),"",B136) -> 
B161: Usługi obce (Projekt) | C161: =C$114 -> Kwalifikowalne | D161: Koszty B+R | F161: 2022 | G161: 2023 | H161: 2024 | I161: 45930 | J161: 45930 | K161: 2025 | L161: 2026 | M161: 2027 | N161: 2028 | O161: 2029 | P161: 2030 | Q161: 2031 | R161: 2032 | S161: 2033 | T161: 2034 | U161: 2035 | V161: 2036 | W161: 2037 | X161: 2038 | Y161: 2039 | Z161: 2040 | AA161: 2041 | AB161: 2042 | AC161: 2043 | AD161: 2044 | AE161: 2045
A162: =Weryfikacja_wypelnienia_KO_Projekt -> 
A163: =Weryfikacja_wypelnienia_KO_Projekt -> 
A164: =Weryfikacja_wypelnienia_KO_Projekt -> 
A165: =Weryfikacja_wypelnienia_KO_Projekt -> 
A166: =Weryfikacja_wypelnienia_KO_Projekt -> 
A167: =Weryfikacja_wypelnienia_KO_Projekt -> 
A168: =Weryfikacja_wypelnienia_KO_Projekt -> 
A169: =Weryfikacja_wypelnienia_KO_Projekt -> 
A170: =Weryfikacja_wypelnienia_KO_Projekt -> 
A171: =Weryfikacja_wypelnienia_KO_Projekt -> 
A172: =Weryfikacja_wypelnienia_KO_Projekt -> 
A173: =Weryfikacja_wypelnienia_KO_Projekt -> 
A174: =Weryfikacja_wypelnienia_KO_Projekt -> 
A175: =Weryfikacja_wypelnienia_KO_Projekt -> 
A176: =Weryfikacja_wypelnienia_KO_Projekt -> 
A177: =Weryfikacja_wypelnienia_KO_Projekt -> 
A178: =Weryfikacja_wypelnienia_KO_Projekt -> 
A179: =Weryfikacja_wypelnienia_KO_Projekt -> 
A180: =Weryfikacja_wypelnienia_KO_Projekt -> 
A181: =Weryfikacja_wypelnienia_KO_Projekt -> 
B182: Razem Usługi obce (Projekt) | J182: =IF(LataProjekcji<=Koniec,ROUND(SUM(J162:J181),0),0) -> 0 | K182: 0 | L182: 0 | M182: 0 | N182: 0 | O182: 0 | P182: 0 | Q182: 0 | R182: 0 | S182: 0 | T182: 0 | U182: 0 | V182: 0 | W182: 0 | X182: =IF(LataProjekcji<=Koniec,ROUND(SUM(X162:X181),0),0) -> 0 | Y182: 0 | Z182: 0 | AA182: 0 | AB182: =IF(LataProjekcji<=Koniec,ROUND(SUM(AB162:AB181),0),0) -> 0 | AC182: 0 | AD182: 0 | AE182: 0
B183: Poziom dofinansowania (w %) | J183: w przypadku gdy te koszty są finansowane z dotacji
B184: =IF(ISBLANK(B162),"",B162) ->  | C184: =IF(ISBLANK(C162),"",C162) -> 
B191: =IF(ISBLANK(B169),"",B169) -> 
B206: Podatki i opłaty (Projekt) | C206: =C$114 -> Kwalifikowalne | D206: Koszty B+R | F206: 2022 | G206: 2023 | H206: 2024 | I206: 45930 | J206: 45930 | K206: 2025 | L206: 2026 | M206: 2027 | N206: 2028 | O206: 2029 | P206: 2030 | Q206: 2031 | R206: 2032 | S206: 2033 | T206: 2034 | U206: 2035 | V206: 2036 | W206: 2037 | X206: 2038 | Y206: 2039 | Z206: 2040 | AA206: 2041 | AB206: 2042 | AC206: 2043 | AD206: 2044 | AE206: 2045
A207: =Weryfikacja_wypelnienia_KO_Projekt -> 
A208: =Weryfikacja_wypelnienia_KO_Projekt -> 
A209: =Weryfikacja_wypelnienia_KO_Projekt -> 
A210: =Weryfikacja_wypelnienia_KO_Projekt -> 
A211: =Weryfikacja_wypelnienia_KO_Projekt -> 
B212: Razem Podatki i opłaty (Projekt) | J212: =IF(LataProjekcji<=Koniec,ROUND(SUM(J207:J211),0),0) -> 0 | K212: 0 | L212: 0 | M212: 0 | N212: 0 | O212: 0 | P212: 0 | Q212: 0 | R212: 0 | S212: 0 | T212: 0 | U212: 0 | V212: 0 | W212: 0 | X212: =IF(LataProjekcji<=Koniec,ROUND(SUM(X207:X211),0),0) -> 0 | Y212: 0 | Z212: 0 | AA212: 0 | AB212: =IF(LataProjekcji<=Koniec,ROUND(SUM(AB207:AB211),0),0) -> 0 | AC212: 0 | AD212: 0 | AE212: 0
B213: Poziom dofinansowania (w %) | J213: w przypadku gdy te koszty są finansowane z dotacji
B214: =IF(ISBLANK(B207),"",B207) -> 
B221: Wynagrodzenia (brutto) (Projekt) | C221: =C$114 -> Kwalifikowalne | D221: Koszty B+R | F221: 2022 | G221: 2023 | H221: 2024 | I221: 45930 | J221: 45930 | K221: 2025 | L221: 2026 | M221: 2027 | N221: 2028 | O221: 2029 | P221: 2030 | Q221: 2031 | R221: 2032 | S221: 2033 | T221: 2034 | U221: 2035 | V221: 2036 | W221: 2037 | X221: 2038 | Y221: 2039 | Z221: 2040 | AA221: 2041 | AB221: 2042 | AC221: 2043 | AD221: 2044 | AE221: 2045
B222: Stanowisko / Grupa Średnie miesięczne wynagrodzenie brutto
A223: =Weryfikacja_wypelnienia_KO_Projekt -> 
A224: =Weryfikacja_wypelnienia_KO_Projekt -> 
A225: =Weryfikacja_wypelnienia_KO_Projekt -> 
A226: =Weryfikacja_wypelnienia_KO_Projekt -> 
A227: =Weryfikacja_wypelnienia_KO_Projekt -> 
A228: =Weryfikacja_wypelnienia_KO_Projekt -> 
A229: =Weryfikacja_wypelnienia_KO_Projekt -> 
A230: =Weryfikacja_wypelnienia_KO_Projekt -> 
A231: =Weryfikacja_wypelnienia_KO_Projekt -> 
A232: =Weryfikacja_wypelnienia_KO_Projekt -> 
A233: =Weryfikacja_wypelnienia_KO_Projekt -> 
A234: =Weryfikacja_wypelnienia_KO_Projekt -> 
A235: =Weryfikacja_wypelnienia_KO_Projekt -> 
A236: =Weryfikacja_wypelnienia_KO_Projekt -> 
A237: =Weryfikacja_wypelnienia_KO_Projekt -> 
A238: =Weryfikacja_wypelnienia_KO_Projekt -> 
A239: =Weryfikacja_wypelnienia_KO_Projekt -> 
A240: =Weryfikacja_wypelnienia_KO_Projekt -> 
A241: =Weryfikacja_wypelnienia_KO_Projekt -> 
A242: =Weryfikacja_wypelnienia_KO_Projekt -> 
A243: =Weryfikacja_wypelnienia_KO_Projekt -> 
A244: =Weryfikacja_wypelnienia_KO_Projekt -> 
A245: =Weryfikacja_wypelnienia_KO_Projekt -> 
A246: =Weryfikacja_wypelnienia_KO_Projekt -> 
A247: =Weryfikacja_wypelnienia_KO_Projekt -> 
A248: =Weryfikacja_wypelnienia_KO_Projekt -> 
A249: =Weryfikacja_wypelnienia_KO_Projekt -> 
A250: =Weryfikacja_wypelnienia_KO_Projekt -> 
A251: =Weryfikacja_wypelnienia_KO_Projekt -> 
A252: =Weryfikacja_wypelnienia_KO_Projekt -> 
A253: =Weryfikacja_wypelnienia_KO_Projekt -> 
A254: =Weryfikacja_wypelnienia_KO_Projekt -> 
A255: =Weryfikacja_wypelnienia_KO_Projekt -> 
A256: =Weryfikacja_wypelnienia_KO_Projekt -> 
A257: =Weryfikacja_wypelnienia_KO_Projekt -> 
A258: =Weryfikacja_wypelnienia_KO_Projekt -> 
A259: =Weryfikacja_wypelnienia_KO_Projekt -> 
A260: =Weryfikacja_wypelnienia_KO_Projekt -> 
A261: =Weryfikacja_wypelnienia_KO_Projekt -> 
A262: =Weryfikacja_wypelnienia_KO_Projekt -> 
B264: Liczba etatów na danym stanowisku / w danej grupie | C264: =C$114 -> Kwalifikowalne | D264: Koszty B+R | F264: 2022 | G264: 2023 | H264: 2024 | I264: 45930 | J264: 45930 | K264: 2025 | L264: 2026 | M264: 2027 | N264: 2028 | O264: 2029 | P264: 2030 | Q264: 2031 | R264: 2032 | S264: 2033 | T264: 2034 | U264: 2035 | V264: 2036 | W264: 2037 | X264: 2038 | Y264: 2039 | Z264: 2040 | AA264: 2041 | AB264: 2042 | AC264: 2043 | AD264: 2044 | AE264: 2045
A265: =IF(OR(A223="✅",A223="⛔"),IF(AND(OR(ISNUMBER('Koszty operacyjne'!J265:AE265)),NOT(ISTEXT('Koszty operacyjne'!J265:AE265))),"✅","⛔"),IF(A223="",IF(AND(ISBLANK('Koszty operacyjne'!J265:AE265)),"","⛔"))) ->  | B265: =IF(ISBLANK(B223),"",B223) -> 
A266: =IF(OR(A224="✅",A224="⛔"),IF(AND(OR(ISNUMBER('Koszty operacyjne'!J266:AE266)),NOT(ISTEXT('Koszty operacyjne'!J266:AE266))),"✅","⛔"),IF(A224="",IF(AND(ISBLANK('Koszty operacyjne'!J266:AE266)),"","⛔"))) -> 
A267: =IF(OR(A225="✅",A225="⛔"),IF(AND(OR(ISNUMBER('Koszty operacyjne'!J267:AE267)),NOT(ISTEXT('Koszty operacyjne'!J267:AE267))),"✅","⛔"),IF(A225="",IF(AND(ISBLANK('Koszty operacyjne'!J267:AE267)),"","⛔"))) -> 
A268: =IF(OR(A226="✅",A226="⛔"),IF(AND(OR(ISNUMBER('Koszty operacyjne'!J268:AE268)),NOT(ISTEXT('Koszty operacyjne'!J268:AE268))),"✅","⛔"),IF(A226="",IF(AND(ISBLANK('Koszty operacyjne'!J268:AE268)),"","⛔"))) -> 
A269: =IF(OR(A227="✅",A227="⛔"),IF(AND(OR(ISNUMBER('Koszty operacyjne'!J269:AE269)),NOT(ISTEXT('Koszty operacyjne'!J269:AE269))),"✅","⛔"),IF(A227="",IF(AND(ISBLANK('Koszty operacyjne'!J269:AE269)),"","⛔"))) -> 
A270: =IF(OR(A228="✅",A228="⛔"),IF(AND(OR(ISNUMBER('Koszty operacyjne'!J270:AE270)),NOT(ISTEXT('Koszty operacyjne'!J270:AE270))),"✅","⛔"),IF(A228="",IF(AND(ISBLANK('Koszty operacyjne'!J270:AE270)),"","⛔"))) -> 
A271: =IF(OR(A229="✅",A229="⛔"),IF(AND(OR(ISNUMBER('Koszty operacyjne'!J271:AE271)),NOT(ISTEXT('Koszty operacyjne'!J271:AE271))),"✅","⛔"),IF(A229="",IF(AND(ISBLANK('Koszty operacyjne'!J271:AE271)),"","⛔"))) -> 
A272: =IF(OR(A230="✅",A230="⛔"),IF(AND(OR(ISNUMBER('Koszty operacyjne'!J272:AE272)),NOT(ISTEXT('Koszty operacyjne'!J272:AE272))),"✅","⛔"),IF(A230="",IF(AND(ISBLANK('Koszty operacyjne'!J272:AE272)),"","⛔"))) -> 
A273: =IF(OR(A231="✅",A231="⛔"),IF(AND(OR(ISNUMBER('Koszty operacyjne'!J273:AE273)),NOT(ISTEXT('Koszty operacyjne'!J273:AE273))),"✅","⛔"),IF(A231="",IF(AND(ISBLANK('Koszty operacyjne'!J273:AE273)),"","⛔"))) -> 
A274: =IF(OR(A232="✅",A232="⛔"),IF(AND(OR(ISNUMBER('Koszty operacyjne'!J274:AE274)),NOT(ISTEXT('Koszty operacyjne'!J274:AE274))),"✅","⛔"),IF(A232="",IF(AND(ISBLANK('Koszty operacyjne'!J274:AE274)),"","⛔"))) -> 
A275: =IF(OR(A233="✅",A233="⛔"),IF(AND(OR(ISNUMBER('Koszty operacyjne'!J275:AE275)),NOT(ISTEXT('Koszty operacyjne'!J275:AE275))),"✅","⛔"),IF(A233="",IF(AND(ISBLANK('Koszty operacyjne'!J275:AE275)),"","⛔"))) -> 
A276: =IF(OR(A234="✅",A234="⛔"),IF(AND(OR(ISNUMBER('Koszty operacyjne'!J276:AE276)),NOT(ISTEXT('Koszty operacyjne'!J276:AE276))),"✅","⛔"),IF(A234="",IF(AND(ISBLANK('Koszty operacyjne'!J276:AE276)),"","⛔"))) -> 
... 1322 more rows

Sheet Środki trwałe
B2: =Założenia!B2 -> Wstaw nazwę podmiotu oraz tytuł projektu w zakładce Dane Wnioskodawcy
K11: =Założenia!K27 -> 0 | L11: =Założenia!L27 -> 0 | M11: =Założenia!M27 -> 0 | N11: =Założenia!N27 -> 0 | O11: =Założenia!O27 -> 0 | P11: =Założenia!P27 -> 1 | Q11: =Założenia!Q27 -> 2 | R11: =Założenia!R27 -> 3 | S11: =Założenia!S27 -> 4 | T11: =Założenia!T27 -> 5 | U11: =Założenia!U27 -> 6 | V11: =Założenia!V27 -> 7 | W11: =Założenia!W27 -> 8 | X11: =Założenia!X27 -> 9 | Y11: =Założenia!Y27 -> 10 | Z11: =Założenia!Z27 -> 11 | AA11: =Założenia!AA27 -> 12 | AB11: =Założenia!AB27 -> 13 | AC11: =Założenia!AC27 -> 14 | AD11: =Założenia!AD27 -> 15 | AE11: =Założenia!AE27 -> 16
B12: Działalność dotychczasowa (bez Projektu) | D12: =Założenia!I28 -> 2024 | J12: =Założenia!J28 -> 2025-09-30 | K12: =Założenia!K28 -> 2025 | L12: =Założenia!L28 -> 2026 | M12: =Założenia!M28 -> 2027 | N12: =Założenia!N28 -> 2028 | O12: =Założenia!O28 -> 2029 | P12: =Założenia!P28 -> 2030 | Q12: =Założenia!Q28 -> 2031 | R12: =Założenia!R28 -> 2032 | S12: =Założenia!S28 -> 2033 | T12: =Założenia!T28 -> 2034 | U12: =Założenia!U28 -> 2035 | V12: =Założenia!V28 -> 2036 | W12: =Założenia!W28 -> 2037 | X12: =Założenia!X28 -> 2038 | Y12: =Założenia!Y28 -> 2039 | Z12: =Założenia!Z28 -> 2040 | AA12: =Założenia!AA28 -> 2041 | AB12: =Założenia!AB28 -> 2042 | AC12: =Założenia!AC28 -> 2043 | AD12: =Założenia!AD28 -> 2044 | AE12: =Założenia!AE28 -> 2045
B14: koszty zakończonych prac rozwojowych
B15: - wartość netto | D15: ='Sprawozdania finansowe'!E15 -> 0 | J15: =ROUND(E2300,0) -> 0
B16: - stopa amortyzacji | D16: =am_prace_rozwojowe -> 0
B17: - amortyzacja [kalkulacja z modelu] | K17: =IF(AND(LataProjekcji<=Koniec,$C$2255=1),IFERROR(ROUND(MIN($D16*$J15,$J15),0),0),0) -> 0 | L17: =IF(AND(LataProjekcji<=Koniec,$C$2255=1),IFERROR(ROUND(MIN($D16*$J15,$J15-K19),0),0),0) -> 0 | M17: 0 | N17: 0 | O17: 0 | P17: 0 | Q17: 0 | R17: 0 | S17: 0 | T17: 0 | U17: 0 | V17: 0 | W17: 0 | X17: =IF(AND(LataProjekcji<=Koniec,$C$2255=1),IFERROR(ROUND(MIN($D16*$J15,$J15-W19),0),0),0) -> 0 | Y17: 0 | Z17: 0 | AA17: 0 | AB17: =IF(AND(LataProjekcji<=Koniec,$C$2255=1),IFERROR(ROUND(MIN($D16*$J15,$J15-AA19),0),0),0) -> 0 | AC17: =IF(AND(LataProjekcji<=Koniec,$C$2255=1),IFERROR(ROUND(MIN($D16*$J15,$J15-AB19),0),0),0) -> 0 | AD17: =IF(AND(LataProjekcji<=Koniec,$C$2255=1),IFERROR(ROUND(MIN($D16*$J15,$J15-AC19),0),0),0) -> 0 | AE17: =IF(AND(LataProjekcji<=Koniec,$C$2255=1),IFERROR(ROUND(MIN($D16*$J15,$J15-AD19),0),0),0) -> 0
B18: - amortyzacja [kalkulacja własna]
B19: - umorzenie | K19: =IF(LataProjekcji<=Koniec,ROUND(K2267,0),0) -> 0 | L19: 0 | M19: 0 | N19: 0 | O19: 0 | P19: 0 | Q19: 0 | R19: 0 | S19: 0 | T19: =IF(LataProjekcji<=Koniec,ROUND(T2267,0),0) -> 0 | U19: 0 | V19: 0 | W19: 0 | X19: =IF(LataProjekcji<=Koniec,ROUND(X2267,0),0) -> 0 | Y19: 0 | Z19: 0 | AA19: 0 | AB19: =IF(LataProjekcji<=Koniec,ROUND(AB2267,0),0) -> 0 | AC19: 0 | AD19: 0 | AE19: 0
B20: - wartość księgowa netto | K20: =IF(LataProjekcji<=Koniec,ROUND(K2279,0),0) -> 0 | L20: 0 | M20: 0 | N20: 0 | O20: 0 | P20: 0 | Q20: 0 | R20: 0 | S20: 0 | T20: 0 | U20: 0 | V20: 0 | W20: 0 | X20: =IF(LataProjekcji<=Koniec,ROUND(X2279,0),0) -> 0 | Y20: 0 | Z20: 0 | AA20: 0 | AB20: =IF(LataProjekcji<=Koniec,ROUND(AB2279,0),0) -> 0 | AC20: 0 | AD20: 0 | AE20: 0
B22: wartość firmy | K22: =LataProjekcji -> 2025 | L22: 2026 | M22: 2027 | N22: 2028 | O22: 2029 | P22: 2030 | Q22: 2031 | R22: 2032 | S22: 2033 | T22: 2034 | U22: 2035 | V22: 2036 | W22: 2037 | X22: 2038 | Y22: 2039 | Z22: 2040 | AA22: 2041 | AB22: 2042 | AC22: 2043 | AD22: 2044 | AE22: 2045
B23: - wartość netto | D23: ='Sprawozdania finansowe'!E16 -> 0 | J23: =ROUND(E2301,0) -> 0
B24: - stopa amortyzacji | D24: =am_wartosc_firmy -> 0
B25: - amortyzacja [kalkulacja z modelu] | K25: =IF(AND(LataProjekcji<=Koniec,$C$2256=1),IFERROR(ROUND(MIN($D24*$J23,$J23),0),0),0) -> 0 | L25: =IF(AND(LataProjekcji<=Koniec,$C$2256=1),IFERROR(ROUND(MIN($D24*$J23,$J23-K27),0),0),0) -> 0 | M25: 0 | N25: 0 | O25: 0 | P25: 0 | Q25: 0 | R25: 0 | S25: 0 | T25: 0 | U25: 0 | V25: 0 | W25: 0 | X25: =IF(AND(LataProjekcji<=Koniec,$C$2256=1),IFERROR(ROUND(MIN($D24*$J23,$J23-W27),0),0),0) -> 0 | Y25: 0 | Z25: 0 | AA25: 0 | AB25: =IF(AND(LataProjekcji<=Koniec,$C$2256=1),IFERROR(ROUND(MIN($D24*$J23,$J23-AA27),0),0),0) -> 0 | AC25: =IF(AND(LataProjekcji<=Koniec,$C$2256=1),IFERROR(ROUND(MIN($D24*$J23,$J23-AB27),0),0),0) -> 0 | AD25: =IF(AND(LataProjekcji<=Koniec,$C$2256=1),IFERROR(ROUND(MIN($D24*$J23,$J23-AC27),0),0),0) -> 0 | AE25: =IF(AND(LataProjekcji<=Koniec,$C$2256=1),IFERROR(ROUND(MIN($D24*$J23,$J23-AD27),0),0),0) -> 0
B26: - amortyzacja [kalkulacja własna]
B27: - umorzenie | K27: =IF(LataProjekcji<=Koniec,ROUND(K2268,0),0) -> 0 | L27: 0 | M27: 0 | N27: 0 | O27: 0 | P27: 0 | Q27: 0 | R27: 0 | S27: 0 | T27: 0 | U27: 0 | V27: 0 | W27: 0 | X27: 0 | Y27: 0 | Z27: =IF(LataProjekcji<=Koniec,ROUND(Z2268,0),0) -> 0 | AA27: 0 | AB27: =IF(LataProjekcji<=Koniec,ROUND(AB2268,0),0) -> 0 | AC27: 0 | AD27: 0 | AE27: 0
B28: - wartość księgowa netto | K28: =IF(LataProjekcji<=Koniec,ROUND(K2280,0),0) -> 0 | L28: 0 | M28: 0 | N28: 0 | O28: 0 | P28: 0 | Q28: 0 | R28: 0 | S28: 0 | T28: 0 | U28: 0 | V28: 0 | W28: 0 | X28: =IF(LataProjekcji<=Koniec,ROUND(X2280,0),0) -> 0 | Y28: 0 | Z28: 0 | AA28: 0 | AB28: =IF(LataProjekcji<=Koniec,ROUND(AB2280,0),0) -> 0 | AC28: 0 | AD28: 0 | AE28: 0
B30: inne wartości niematerialne i prawne | K30: =LataProjekcji -> 2025 | L30: 2026 | M30: 2027 | N30: 2028 | O30: 2029 | P30: 2030 | Q30: 2031 | R30: 2032 | S30: 2033 | T30: 2034 | U30: 2035 | V30: 2036 | W30: 2037 | X30: 2038 | Y30: 2039 | Z30: 2040 | AA30: 2041 | AB30: 2042 | AC30: 2043 | AD30: 2044 | AE30: 2045
B31: - wartość netto | D31: ='Sprawozdania finansowe'!E17 -> 0 | J31: =ROUND(E2302,0) -> 0
B32: - stopa amortyzacji | D32: =am_wnip -> 0
B33: - amortyzacja [kalkulacja z modelu] | K33: =IF(AND(LataProjekcji<=Koniec,$C$2257=1),IFERROR(ROUND(MIN($D32*$J31,$J31),0),0),0) -> 0 | L33: =IF(AND(LataProjekcji<=Koniec,$C$2257=1),IFERROR(ROUND(MIN($D32*$J31,$J31-K35),0),0),0) -> 0 | M33: 0 | N33: 0 | O33: 0 | P33: 0 | Q33: 0 | R33: 0 | S33: 0 | T33: 0 | U33: 0 | V33: 0 | W33: 0 | X33: =IF(AND(LataProjekcji<=Koniec,$C$2257=1),IFERROR(ROUND(MIN($D32*$J31,$J31-W35),0),0),0) -> 0 | Y33: 0 | Z33: 0 | AA33: 0 | AB33: =IF(AND(LataProjekcji<=Koniec,$C$2257=1),IFERROR(ROUND(MIN($D32*$J31,$J31-AA35),0),0),0) -> 0 | AC33: =IF(AND(LataProjekcji<=Koniec,$C$2257=1),IFERROR(ROUND(MIN($D32*$J31,$J31-AB35),0),0),0) -> 0 | AD33: =IF(AND(LataProjekcji<=Koniec,$C$2257=1),IFERROR(ROUND(MIN($D32*$J31,$J31-AC35),0),0),0) -> 0 | AE33: =IF(AND(LataProjekcji<=Koniec,$C$2257=1),IFERROR(ROUND(MIN($D32*$J31,$J31-AD35),0),0),0) -> 0
B34: - amortyzacja [kalkulacja własna]
B35: - umorzenie | K35: =IF(LataProjekcji<=Koniec,ROUND(K2269,0),0) -> 0 | L35: 0 | M35: 0 | N35: 0 | O35: 0 | P35: 0 | Q35: 0 | R35: 0 | S35: 0 | T35: 0 | U35: 0 | V35: 0 | W35: 0 | X35: =IF(LataProjekcji<=Koniec,ROUND(X2269,0),0) -> 0 | Y35: 0 | Z35: 0 | AA35: 0 | AB35: =IF(LataProjekcji<=Koniec,ROUND(AB2269,0),0) -> 0 | AC35: 0 | AD35: 0 | AE35: 0
B36: - wartość księgowa netto | K36: =IF(LataProjekcji<=Koniec,ROUND(K2281,0),0) -> 0 | L36: 0 | M36: 0 | N36: 0 | O36: 0 | P36: 0 | Q36: 0 | R36: 0 | S36: 0 | T36: 0 | U36: 0 | V36: 0 | W36: 0 | X36: =IF(LataProjekcji<=Koniec,ROUND(X2281,0),0) -> 0 | Y36: 0 | Z36: 0 | AA36: 0 | AB36: =IF(LataProjekcji<=Koniec,ROUND(AB2281,0),0) -> 0 | AC36: 0 | AD36: 0 | AE36: 0
B38: grunty | K38: =LataProjekcji -> 2025 | L38: 2026 | M38: 2027 | N38: 2028 | O38: 2029 | P38: 2030 | Q38: 2031 | R38: 2032 | S38: 2033 | T38: 2034 | U38: 2035 | V38: 2036 | W38: 2037 | X38: 2038 | Y38: 2039 | Z38: 2040 | AA38: 2041 | AB38: 2042 | AC38: 2043 | AD38: 2044 | AE38: 2045
B39: - wartość netto | D39: ='Sprawozdania finansowe'!E21 -> 0 | J39: =ROUND(E2303,0) -> 0
B40: - stopa amortyzacji | D40: =am_grunty -> 0
B41: - amortyzacja [kalkulacja z modelu] | K41: =IF(AND(LataProjekcji<=Koniec,$C$2258=1),IFERROR(ROUND(MIN($D40*$J39,$J39),0),0),0) -> 0 | L41: =IF(AND(LataProjekcji<=Koniec,$C$2258=1),IFERROR(ROUND(MIN($D40*$J39,$J39-K43),0),0),0) -> 0 | M41: 0 | N41: 0 | O41: 0 | P41: 0 | Q41: 0 | R41: 0 | S41: 0 | T41: 0 | U41: 0 | V41: 0 | W41: 0 | X41: =IF(AND(LataProjekcji<=Koniec,$C$2258=1),IFERROR(ROUND(MIN($D40*$J39,$J39-W43),0),0),0) -> 0 | Y41: 0 | Z41: 0 | AA41: 0 | AB41: =IF(AND(LataProjekcji<=Koniec,$C$2258=1),IFERROR(ROUND(MIN($D40*$J39,$J39-AA43),0),0),0) -> 0 | AC41: =IF(AND(LataProjekcji<=Koniec,$C$2258=1),IFERROR(ROUND(MIN($D40*$J39,$J39-AB43),0),0),0) -> 0 | AD41: =IF(AND(LataProjekcji<=Koniec,$C$2258=1),IFERROR(ROUND(MIN($D40*$J39,$J39-AC43),0),0),0) -> 0 | AE41: =IF(AND(LataProjekcji<=Koniec,$C$2258=1),IFERROR(ROUND(MIN($D40*$J39,$J39-AD43),0),0),0) -> 0
B42: - amortyzacja [kalkulacja własna]
B43: - umorzenie | K43: =IF(LataProjekcji<=Koniec,ROUND(K2270,0),0) -> 0 | L43: 0 | M43: 0 | N43: 0 | O43: 0 | P43: 0 | Q43: 0 | R43: 0 | S43: 0 | T43: 0 | U43: 0 | V43: 0 | W43: 0 | X43: =IF(LataProjekcji<=Koniec,ROUND(X2270,0),0) -> 0 | Y43: 0 | Z43: 0 | AA43: 0 | AB43: =IF(LataProjekcji<=Koniec,ROUND(AB2270,0),0) -> 0 | AC43: 0 | AD43: 0 | AE43: 0
B44: - wartość księgowa netto | K44: =IF(LataProjekcji<=Koniec,ROUND(K2282,0),0) -> 0 | L44: 0 | M44: 0 | N44: 0 | O44: 0 | P44: 0 | Q44: 0 | R44: 0 | S44: 0 | T44: 0 | U44: 0 | V44: 0 | W44: 0 | X44: =IF(LataProjekcji<=Koniec,ROUND(X2282,0),0) -> 0 | Y44: 0 | Z44: 0 | AA44: 0 | AB44: =IF(LataProjekcji<=Koniec,ROUND(AB2282,0),0) -> 0 | AC44: 0 | AD44: 0 | AE44: 0
B46: budynki i budowle | K46: =LataProjekcji -> 2025 | L46: 2026 | M46: 2027 | N46: 2028 | O46: 2029 | P46: 2030 | Q46: 2031 | R46: 2032 | S46: 2033 | T46: 2034 | U46: 2035 | V46: 2036 | W46: 2037 | X46: 2038 | Y46: 2039 | Z46: 2040 | AA46: 2041 | AB46: 2042 | AC46: 2043 | AD46: 2044 | AE46: 2045
B47: - wartość netto | D47: ='Sprawozdania finansowe'!E22 -> 0 | J47: =ROUND(E2304,0) -> 0
B48: - stopa amortyzacji | D48: =am_budynki -> 0
B49: - amortyzacja [kalkulacja z modelu] | K49: =IF(AND(LataProjekcji<=Koniec,$C$2259=1),IFERROR(ROUND(MIN($D48*$J47,$J47),0),0),0) -> 0 | L49: =IF(AND(LataProjekcji<=Koniec,$C$2259=1),IFERROR(ROUND(MIN($D48*$J47,$J47-K51),0),0),0) -> 0 | M49: 0 | N49: 0 | O49: 0 | P49: 0 | Q49: 0 | R49: 0 | S49: 0 | T49: 0 | U49: 0 | V49: 0 | W49: 0 | X49: =IF(AND(LataProjekcji<=Koniec,$C$2259=1),IFERROR(ROUND(MIN($D48*$J47,$J47-W51),0),0),0) -> 0 | Y49: 0 | Z49: 0 | AA49: 0 | AB49: =IF(AND(LataProjekcji<=Koniec,$C$2259=1),IFERROR(ROUND(MIN($D48*$J47,$J47-AA51),0),0),0) -> 0 | AC49: =IF(AND(LataProjekcji<=Koniec,$C$2259=1),IFERROR(ROUND(MIN($D48*$J47,$J47-AB51),0),0),0) -> 0 | AD49: =IF(AND(LataProjekcji<=Koniec,$C$2259=1),IFERROR(ROUND(MIN($D48*$J47,$J47-AC51),0),0),0) -> 0 | AE49: =IF(AND(LataProjekcji<=Koniec,$C$2259=1),IFERROR(ROUND(MIN($D48*$J47,$J47-AD51),0),0),0) -> 0
B50: - amortyzacja [kalkulacja własna]
B51: - umorzenie | K51: =IF(LataProjekcji<=Koniec,ROUND(K2271,0),0) -> 0 | L51: 0 | M51: 0 | N51: 0 | O51: 0 | P51: 0 | Q51: 0 | R51: 0 | S51: 0 | T51: 0 | U51: 0 | V51: 0 | W51: 0 | X51: =IF(LataProjekcji<=Koniec,ROUND(X2271,0),0) -> 0 | Y51: 0 | Z51: 0 | AA51: 0 | AB51: =IF(LataProjekcji<=Koniec,ROUND(AB2271,0),0) -> 0 | AC51: 0 | AD51: 0 | AE51: 0
B52: - wartość księgowa netto | K52: =IF(LataProjekcji<=Koniec,ROUND(K2283,0),0) -> 0 | L52: 0 | M52: 0 | N52: 0 | O52: 0 | P52: 0 | Q52: 0 | R52: 0 | S52: 0 | T52: 0 | U52: 0 | V52: 0 | W52: 0 | X52: =IF(LataProjekcji<=Koniec,ROUND(X2283,0),0) -> 0 | Y52: 0 | Z52: 0 | AA52: 0 | AB52: =IF(LataProjekcji<=Koniec,ROUND(AB2283,0),0) -> 0 | AC52: 0 | AD52: 0 | AE52: 0
B54: urządzenia techniczne i maszyny | K54: =LataProjekcji -> 2025 | L54: 2026 | M54: 2027 | N54: 2028 | O54: 2029 | P54: 2030 | Q54: 2031 | R54: 2032 | S54: 2033 | T54: 2034 | U54: 2035 | V54: 2036 | W54: 2037 | X54: 2038 | Y54: 2039 | Z54: 2040 | AA54: 2041 | AB54: 2042 | AC54: 2043 | AD54: 2044 | AE54: 2045
B55: - wartość netto | D55: ='Sprawozdania finansowe'!E23 -> 0 | J55: =ROUND(E2305,0) -> 0
B56: - stopa amortyzacji | D56: =am_maszyny -> 0
B57: - amortyzacja [kalkulacja z modelu] | K57: =IF(AND(LataProjekcji<=Koniec,$C$2260=1),IFERROR(ROUND(MIN($D56*$J55,$J55),0),0),0) -> 0 | L57: =IF(AND(LataProjekcji<=Koniec,$C$2260=1),IFERROR(ROUND(MIN($D56*$J55,$J55-K59),0),0),0) -> 0 | M57: 0 | N57: 0 | O57: 0 | P57: 0 | Q57: 0 | R57: 0 | S57: 0 | T57: 0 | U57: 0 | V57: 0 | W57: 0 | X57: =IF(AND(LataProjekcji<=Koniec,$C$2260=1),IFERROR(ROUND(MIN($D56*$J55,$J55-W59),0),0),0) -> 0 | Y57: 0 | Z57: 0 | AA57: 0 | AB57: =IF(AND(LataProjekcji<=Koniec,$C$2260=1),IFERROR(ROUND(MIN($D56*$J55,$J55-AA59),0),0),0) -> 0 | AC57: =IF(AND(LataProjekcji<=Koniec,$C$2260=1),IFERROR(ROUND(MIN($D56*$J55,$J55-AB59),0),0),0) -> 0 | AD57: =IF(AND(LataProjekcji<=Koniec,$C$2260=1),IFERROR(ROUND(MIN($D56*$J55,$J55-AC59),0),0),0) -> 0 | AE57: =IF(AND(LataProjekcji<=Koniec,$C$2260=1),IFERROR(ROUND(MIN($D56*$J55,$J55-AD59),0),0),0) -> 0
B58: - amortyzacja [kalkulacja własna]
B59: - umorzenie | K59: =IF(LataProjekcji<=Koniec,ROUND(K2272,0),0) -> 0 | L59: 0 | M59: 0 | N59: 0 | O59: 0 | P59: 0 | Q59: 0 | R59: 0 | S59: 0 | T59: 0 | U59: 0 | V59: 0 | W59: 0 | X59: =IF(LataProjekcji<=Koniec,ROUND(X2272,0),0) -> 0 | Y59: 0 | Z59: 0 | AA59: 0 | AB59: =IF(LataProjekcji<=Koniec,ROUND(AB2272,0),0) -> 0 | AC59: 0 | AD59: 0 | AE59: 0
B60: - wartość księgowa netto | K60: =IF(LataProjekcji<=Koniec,ROUND(K2284,0),0) -> 0 | L60: 0 | M60: 0 | N60: 0 | O60: 0 | P60: 0 | Q60: 0 | R60: 0 | S60: 0 | T60: 0 | U60: 0 | V60: 0 | W60: 0 | X60: =IF(LataProjekcji<=Koniec,ROUND(X2284,0),0) -> 0 | Y60: 0 | Z60: 0 | AA60: 0 | AB60: =IF(LataProjekcji<=Koniec,ROUND(AB2284,0),0) -> 0 | AC60: 0 | AD60: 0 | AE60: 0
B62: środki transportu | K62: =LataProjekcji -> 2025 | L62: 2026 | M62: 2027 | N62: 2028 | O62: 2029 | P62: 2030 | Q62: 2031 | R62: 2032 | S62: 2033 | T62: 2034 | U62: 2035 | V62: 2036 | W62: 2037 | X62: 2038 | Y62: 2039 | Z62: 2040 | AA62: 2041 | AB62: 2042 | AC62: 2043 | AD62: 2044 | AE62: 2045
B63: - wartość netto | D63: ='Sprawozdania finansowe'!E24 -> 0 | J63: =ROUND(E2306,0) -> 0
B64: - stopa amortyzacji | D64: =am_transport -> 0
B65: - amortyzacja [kalkulacja z modelu] | K65: =IF(AND(LataProjekcji<=Koniec,$C$2261=1),IFERROR(ROUND(MIN($D64*$J63,$J63),0),0),0) -> 0 | L65: =IF(AND(LataProjekcji<=Koniec,$C$2261=1),IFERROR(ROUND(MIN($D64*$J63,$J63-K67),0),0),0) -> 0 | M65: 0 | N65: 0 | O65: 0 | P65: 0 | Q65: 0 | R65: 0 | S65: 0 | T65: 0 | U65: 0 | V65: 0 | W65: 0 | X65: =IF(AND(LataProjekcji<=Koniec,$C$2261=1),IFERROR(ROUND(MIN($D64*$J63,$J63-W67),0),0),0) -> 0 | Y65: 0 | Z65: 0 | AA65: 0 | AB65: =IF(AND(LataProjekcji<=Koniec,$C$2261=1),IFERROR(ROUND(MIN($D64*$J63,$J63-AA67),0),0),0) -> 0 | AC65: =IF(AND(LataProjekcji<=Koniec,$C$2261=1),IFERROR(ROUND(MIN($D64*$J63,$J63-AB67),0),0),0) -> 0 | AD65: =IF(AND(LataProjekcji<=Koniec,$C$2261=1),IFERROR(ROUND(MIN($D64*$J63,$J63-AC67),0),0),0) -> 0 | AE65: =IF(AND(LataProjekcji<=Koniec,$C$2261=1),IFERROR(ROUND(MIN($D64*$J63,$J63-AD67),0),0),0) -> 0
B66: - amortyzacja [kalkulacja własna]
B67: - umorzenie | K67: =IF(LataProjekcji<=Koniec,ROUND(K2273,0),0) -> 0 | L67: 0 | M67: 0 | N67: 0 | O67: 0 | P67: 0 | Q67: 0 | R67: 0 | S67: 0 | T67: 0 | U67: 0 | V67: 0 | W67: 0 | X67: =IF(LataProjekcji<=Koniec,ROUND(X2273,0),0) -> 0 | Y67: 0 | Z67: 0 | AA67: 0 | AB67: =IF(LataProjekcji<=Koniec,ROUND(AB2273,0),0) -> 0 | AC67: 0 | AD67: 0 | AE67: 0
B68: - wartość księgowa netto | K68: =IF(LataProjekcji<=Koniec,ROUND(K2285,0),0) -> 0 | L68: 0 | M68: 0 | N68: 0 | O68: 0 | P68: 0 | Q68: 0 | R68: 0 | S68: 0 | T68: 0 | U68: 0 | V68: 0 | W68: 0 | X68: =IF(LataProjekcji<=Koniec,ROUND(X2285,0),0) -> 0 | Y68: 0 | Z68: 0 | AA68: 0 | AB68: =IF(LataProjekcji<=Koniec,ROUND(AB2285,0),0) -> 0 | AC68: 0 | AD68: 0 | AE68: 0
B70: inne środki trwałe | K70: =LataProjekcji -> 2025 | L70: 2026 | M70: 2027 | N70: 2028 | O70: 2029 | P70: 2030 | Q70: 2031 | R70: 2032 | S70: 2033 | T70: 2034 | U70: 2035 | V70: 2036 | W70: 2037 | X70: 2038 | Y70: 2039 | Z70: 2040 | AA70: 2041 | AB70: 2042 | AC70: 2043 | AD70: 2044 | AE70: 2045
B71: - wartość netto | D71: ='Sprawozdania finansowe'!E25 -> 0 | J71: =ROUND(E2307,0) -> 0
B72: - stopa amortyzacji | D72: =am_inneST -> 0
B73: - amortyzacja [kalkulacja z modelu] | K73: =IF(AND(LataProjekcji<=Koniec,$C$2262=1),IFERROR(ROUND(MIN($D72*$J71,$J71),0),0),0) -> 0 | L73: =IF(AND(LataProjekcji<=Koniec,$C$2262=1),IFERROR(ROUND(MIN($D72*$J71,$J71-K75),0),0),0) -> 0 | M73: 0 | N73: 0 | O73: 0 | P73: 0 | Q73: 0 | R73: 0 | S73: 0 | T73: 0 | U73: 0 | V73: 0 | W73: 0 | X73: =IF(AND(LataProjekcji<=Koniec,$C$2262=1),IFERROR(ROUND(MIN($D72*$J71,$J71-W75),0),0),0) -> 0 | Y73: 0 | Z73: 0 | AA73: 0 | AB73: =IF(AND(LataProjekcji<=Koniec,$C$2262=1),IFERROR(ROUND(MIN($D72*$J71,$J71-AA75),0),0),0) -> 0 | AC73: =IF(AND(LataProjekcji<=Koniec,$C$2262=1),IFERROR(ROUND(MIN($D72*$J71,$J71-AB75),0),0),0) -> 0 | AD73: =IF(AND(LataProjekcji<=Koniec,$C$2262=1),IFERROR(ROUND(MIN($D72*$J71,$J71-AC75),0),0),0) -> 0 | AE73: =IF(AND(LataProjekcji<=Koniec,$C$2262=1),IFERROR(ROUND(MIN($D72*$J71,$J71-AD75),0),0),0) -> 0
B74: - amortyzacja [kalkulacja własna]
B75: - umorzenie | K75: =IF(LataProjekcji<=Koniec,ROUND(K2274,0),0) -> 0 | L75: 0 | M75: 0 | N75: 0 | O75: 0 | P75: 0 | Q75: 0 | R75: 0 | S75: 0 | T75: 0 | U75: 0 | V75: 0 | W75: 0 | X75: =IF(LataProjekcji<=Koniec,ROUND(X2274,0),0) -> 0 | Y75: 0 | Z75: 0 | AA75: 0 | AB75: =IF(LataProjekcji<=Koniec,ROUND(AB2274,0),0) -> 0 | AC75: 0 | AD75: 0 | AE75: 0
B76: - wartość księgowa netto | K76: =IF(LataProjekcji<=Koniec,ROUND(K2286,0),0) -> 0 | L76: 0 | M76: 0 | N76: 0 | O76: 0 | P76: 0 | Q76: 0 | R76: 0 | S76: 0 | T76: 0 | U76: 0 | V76: 0 | W76: 0 | X76: =IF(LataProjekcji<=Koniec,ROUND(X2286,0),0) -> 0 | Y76: 0 | Z76: 0 | AA76: 0 | AB76: =IF(LataProjekcji<=Koniec,ROUND(AB2286,0),0) -> 0 | AC76: 0 | AD76: 0 | AE76: 0
B79: Wartość księgowa netto | K79: =LataProjekcji -> 2025 | L79: 2026 | M79: 2027 | N79: 2028 | O79: 2029 | P79: 2030 | Q79: 2031 | R79: 2032 | S79: 2033 | T79: 2034 | U79: 2035 | V79: 2036 | W79: 2037 | X79: 2038 | Y79: 2039 | Z79: 2040 | AA79: 2041 | AB79: 2042 | AC79: 2043 | AD79: 2044 | AE79: 2045
B80: Wartości niematerialne i prawne | K80: =ROUND(SUM(K81:K83),0) -> 0 | L80: =ROUND(SUM(L81:L83),0) -> 0 | M80: 0 | N80: 0 | O80: 0 | P80: 0 | Q80: 0 | R80: 0 | S80: 0 | T80: 0 | U80: 0 | V80: 0 | W80: 0 | X80: =ROUND(SUM(X81:X83),0) -> 0 | Y80: =ROUND(SUM(Y81:Y83),0) -> 0 | Z80: =ROUND(SUM(Z81:Z83),0) -> 0 | AA80: 0 | AB80: =ROUND(SUM(AB81:AB83),0) -> 0 | AC80: 0 | AD80: 0 | AE80: 0
B81: a) koszty zakończonych prac rozwojowych | K81: =ROUND(K20,0) -> 0 | L81: =ROUND(L20,0) -> 0 | M81: 0 | N81: 0 | O81: 0 | P81: 0 | Q81: 0 | R81: 0 | S81: 0 | T81: 0 | U81: 0 | V81: 0 | W81: 0 | X81: =ROUND(X20,0) -> 0 | Y81: =ROUND(Y20,0) -> 0 | Z81: =ROUND(Z20,0) -> 0 | AA81: 0 | AB81: =ROUND(AB20,0) -> 0 | AC81: 0 | AD81: 0 | AE81: 0
B82: b) wartość firmy | K82: =ROUND(K28,0) -> 0 | L82: =ROUND(L28,0) -> 0 | M82: 0 | N82: 0 | O82: 0 | P82: 0 | Q82: 0 | R82: 0 | S82: 0 | T82: 0 | U82: 0 | V82: 0 | W82: 0 | X82: =ROUND(X28,0) -> 0 | Y82: =ROUND(Y28,0) -> 0 | Z82: =ROUND(Z28,0) -> 0 | AA82: 0 | AB82: =ROUND(AB28,0) -> 0 | AC82: 0 | AD82: 0 | AE82: 0
B83: c) inne wartości niematerialne i prawne | K83: =ROUND(K36,0) -> 0 | L83: =ROUND(L36,0) -> 0 | M83: 0 | N83: 0 | O83: 0 | P83: 0 | Q83: 0 | R83: 0 | S83: 0 | T83: 0 | U83: 0 | V83: 0 | W83: 0 | X83: =ROUND(X36,0) -> 0 | Y83: =ROUND(Y36,0) -> 0 | Z83: =ROUND(Z36,0) -> 0 | AA83: 0 | AB83: =ROUND(AB36,0) -> 0 | AC83: 0 | AD83: 0 | AE83: 0
B84: Środki trwałe | K84: =ROUND(SUM(K85:K89),0) -> 0 | L84: =ROUND(SUM(L85:L89),0) -> 0 | M84: 0 | N84: 0 | O84: 0 | P84: 0 | Q84: 0 | R84: 0 | S84: 0 | T84: 0 | U84: 0 | V84: 0 | W84: 0 | X84: =ROUND(SUM(X85:X89),0) -> 0 | Y84: =ROUND(SUM(Y85:Y89),0) -> 0 | Z84: =ROUND(SUM(Z85:Z89),0) -> 0 | AA84: 0 | AB84: =ROUND(SUM(AB85:AB89),0) -> 0 | AC84: 0 | AD84: 0 | AE84: 0
B85: a) grunty | K85: =ROUND(K44,0) -> 0 | L85: =ROUND(L44,0) -> 0 | M85: 0 | N85: 0 | O85: 0 | P85: 0 | Q85: 0 | R85: 0 | S85: 0 | T85: 0 | U85: 0 | V85: 0 | W85: 0 | X85: =ROUND(X44,0) -> 0 | Y85: =ROUND(Y44,0) -> 0 | Z85: =ROUND(Z44,0) -> 0 | AA85: 0 | AB85: =ROUND(AB44,0) -> 0 | AC85: 0 | AD85: 0 | AE85: 0
B86: b) budynki i budowle | K86: =ROUND(K52,0) -> 0 | L86: =ROUND(L52,0) -> 0 | M86: 0 | N86: 0 | O86: 0 | P86: 0 | Q86: 0 | R86: 0 | S86: 0 | T86: 0 | U86: 0 | V86: 0 | W86: 0 | X86: =ROUND(X52,0) -> 0 | Y86: =ROUND(Y52,0) -> 0 | Z86: =ROUND(Z52,0) -> 0 | AA86: 0 | AB86: =ROUND(AB52,0) -> 0 | AC86: 0 | AD86: 0 | AE86: 0
B87: c) urządzenia techniczne i maszyny | K87: =ROUND(K60,0) -> 0 | L87: =ROUND(L60,0) -> 0 | M87: 0 | N87: 0 | O87: 0 | P87: 0 | Q87: 0 | R87: 0 | S87: 0 | T87: 0 | U87: 0 | V87: 0 | W87: 0 | X87: =ROUND(X60,0) -> 0 | Y87: =ROUND(Y60,0) -> 0 | Z87: =ROUND(Z60,0) -> 0 | AA87: 0 | AB87: =ROUND(AB60,0) -> 0 | AC87: 0 | AD87: 0 | AE87: 0
B88: d) środki transportu | K88: =ROUND(K68,0) -> 0 | L88: =ROUND(L68,0) -> 0 | M88: 0 | N88: 0 | O88: 0 | P88: 0 | Q88: 0 | R88: 0 | S88: 0 | T88: 0 | U88: 0 | V88: 0 | W88: 0 | X88: =ROUND(X68,0) -> 0 | Y88: =ROUND(Y68,0) -> 0 | Z88: =ROUND(Z68,0) -> 0 | AA88: 0 | AB88: =ROUND(AB68,0) -> 0 | AC88: 0 | AD88: 0 | AE88: 0
B89: e) inne środki trwałe | K89: =ROUND(K76,0) -> 0 | L89: =ROUND(L76,0) -> 0 | M89: 0 | N89: 0 | O89: 0 | P89: 0 | Q89: 0 | R89: 0 | S89: 0 | T89: 0 | U89: 0 | V89: 0 | W89: 0 | X89: =ROUND(X76,0) -> 0 | Y89: =ROUND(Y76,0) -> 0 | Z89: =ROUND(Z76,0) -> 0 | AA89: 0 | AB89: =ROUND(AB76,0) -> 0 | AC89: 0 | AD89: 0 | AE89: 0
B91: Amortyzacja (Rachunek zysków i strat) | K91: =IF(LataProjekcji<=Koniec,ROUND(K2263,0),0) -> 0 | L91: 0 | M91: 0 | N91: 0 | O91: 0 | P91: 0 | Q91: 0 | R91: 0 | S91: 0 | T91: 0 | U91: 0 | V91: 0 | W91: 0 | X91: =IF(LataProjekcji<=Koniec,ROUND(X2263,0),0) -> 0 | Y91: 0 | Z91: 0 | AA91: 0 | AB91: =IF(LataProjekcji<=Koniec,ROUND(AB2263,0),0) -> 0 | AC91: 0 | AD91: 0 | AE91: 0
B95: zakup środków trwałych z dotychczasowej działalności / przyjęcie środków trwałych w budowie do bilansu | C95: kategoria | D95: wartość netto | E95: rok i miesiąc przyjęcia | F95: kwalifikacja ŚT | J95: kontrolka | K95: =LataProjekcji -> 2025 | L95: 2026 | M95: 2027 | N95: 2028 | O95: 2029 | P95: 2030 | Q95: 2031 | R95: 2032 | S95: 2033 | T95: 2034 | U95: 2035 | V95: 2036 | W95: 2037 | X95: 2038 | Y95: 2039 | Z95: 2040 | AA95: 2041 | AB95: 2042 | AC95: 2043 | AD95: 2044 | AE95: 2045
J96: =IF(SUMPRODUCT(ISBLANK(B96:F96)*1)=5,"wstaw dane",IF(AND(SUMPRODUCT(ISBLANK(B96:F96)*1)>0,SUMPRODUCT(ISBLANK(B96:F96)*1)<5),"uzupełnij dane","ok")) -> wstaw dane | K96: =ROUND(IF(AND(YEAR($E96)=LataProjekcji,$D96>0,$J96="ok"),$D96,0),0) -> 0 | L96: 0 | M96: 0 | N96: 0 | O96: 0 | P96: 0 | Q96: 0 | R96: 0 | S96: 0 | T96: 0 | U96: 0 | V96: 0 | W96: 0 | X96: =ROUND(IF(AND(YEAR($E96)=LataProjekcji,$D96>0,$J96="ok"),$D96,0),0) -> 0 | Y96: 0 | Z96: 0 | AA96: 0 | AB96: 0 | AC96: 0 | AD96: 0 | AE96: 0
J97: =IF(SUMPRODUCT(ISBLANK(B97:F97)*1)=5,"wstaw dane",IF(AND(SUMPRODUCT(ISBLANK(B97:F97)*1)>0,SUMPRODUCT(ISBLANK(B97:F97)*1)<5),"uzupełnij dane","ok")) -> wstaw dane | K97: 0 | L97: 0 | M97: 0 | N97: 0 | O97: 0 | P97: 0 | Q97: 0 | R97: 0 | S97: 0 | T97: 0 | U97: 0 | V97: 0 | W97: 0 | X97: 0 | Y97: 0 | Z97: 0 | AA97: 0 | AB97: 0 | AC97: 0 | AD97: 0 | AE97: 0
J98: =IF(SUMPRODUCT(ISBLANK(B98:F98)*1)=5,"wstaw dane",IF(AND(SUMPRODUCT(ISBLANK(B98:F98)*1)>0,SUMPRODUCT(ISBLANK(B98:F98)*1)<5),"uzupełnij dane","ok")) -> wstaw dane | K98: 0 | L98: 0 | M98: 0 | N98: 0 | O98: 0 | P98: 0 | Q98: 0 | R98: 0 | S98: 0 | T98: 0 | U98: 0 | V98: 0 | W98: 0 | X98: 0 | Y98: 0 | Z98: 0 | AA98: 0 | AB98: 0 | AC98: 0 | AD98: 0 | AE98: 0
J99: =IF(SUMPRODUCT(ISBLANK(B99:F99)*1)=5,"wstaw dane",IF(AND(SUMPRODUCT(ISBLANK(B99:F99)*1)>0,SUMPRODUCT(ISBLANK(B99:F99)*1)<5),"uzupełnij dane","ok")) -> wstaw dane | K99: 0 | L99: 0 | M99: 0 | N99: 0 | O99: 0 | P99: 0 | Q99: 0 | R99: 0 | S99: 0 | T99: 0 | U99: 0 | V99: 0 | W99: 0 | X99: 0 | Y99: 0 | Z99: 0 | AA99: 0 | AB99: 0 | AC99: 0 | AD99: 0 | AE99: 0
J100: =IF(SUMPRODUCT(ISBLANK(B100:F100)*1)=5,"wstaw dane",IF(AND(SUMPRODUCT(ISBLANK(B100:F100)*1)>0,SUMPRODUCT(ISBLANK(B100:F100)*1)<5),"uzupełnij dane","ok")) -> wstaw dane | K100: 0 | L100: 0 | M100: 0 | N100: 0 | O100: 0 | P100: 0 | Q100: 0 | R100: 0 | S100: 0 | T100: 0 | U100: 0 | V100: 0 | W100: 0 | X100: 0 | Y100: 0 | Z100: 0 | AA100: 0 | AB100: 0 | AC100: 0 | AD100: 0 | AE100: 0
J101: =IF(SUMPRODUCT(ISBLANK(B101:F101)*1)=5,"wstaw dane",IF(AND(SUMPRODUCT(ISBLANK(B101:F101)*1)>0,SUMPRODUCT(ISBLANK(B101:F101)*1)<5),"uzupełnij dane","ok")) -> wstaw dane | K101: 0 | L101: 0 | M101: 0 | N101: 0 | O101: 0 | P101: 0 | Q101: 0 | R101: 0 | S101: 0 | T101: 0 | U101: 0 | V101: 0 | W101: 0 | X101: 0 | Y101: 0 | Z101: 0 | AA101: 0 | AB101: 0 | AC101: 0 | AD101: 0 | AE101: 0
J102: =IF(SUMPRODUCT(ISBLANK(B102:F102)*1)=5,"wstaw dane",IF(AND(SUMPRODUCT(ISBLANK(B102:F102)*1)>0,SUMPRODUCT(ISBLANK(B102:F102)*1)<5),"uzupełnij dane","ok")) -> wstaw dane | K102: 0 | L102: 0 | M102: 0 | N102: 0 | O102: 0 | P102: 0 | Q102: 0 | R102: 0 | S102: 0 | T102: 0 | U102: 0 | V102: 0 | W102: 0 | X102: 0 | Y102: 0 | Z102: 0 | AA102: 0 | AB102: 0 | AC102: 0 | AD102: 0 | AE102: 0
J103: =IF(SUMPRODUCT(ISBLANK(B103:F103)*1)=5,"wstaw dane",IF(AND(SUMPRODUCT(ISBLANK(B103:F103)*1)>0,SUMPRODUCT(ISBLANK(B103:F103)*1)<5),"uzupełnij dane","ok")) -> wstaw dane | K103: 0 | L103: 0 | M103: 0 | N103: 0 | O103: 0 | P103: 0 | Q103: 0 | R103: 0 | S103: 0 | T103: 0 | U103: 0 | V103: 0 | W103: 0 | X103: 0 | Y103: 0 | Z103: 0 | AA103: 0 | AB103: 0 | AC103: 0 | AD103: 0 | AE103: 0
J104: =IF(SUMPRODUCT(ISBLANK(B104:F104)*1)=5,"wstaw dane",IF(AND(SUMPRODUCT(ISBLANK(B104:F104)*1)>0,SUMPRODUCT(ISBLANK(B104:F104)*1)<5),"uzupełnij dane","ok")) -> wstaw dane | K104: 0 | L104: 0 | M104: 0 | N104: 0 | O104: 0 | P104: 0 | Q104: 0 | R104: 0 | S104: 0 | T104: 0 | U104: 0 | V104: 0 | W104: 0 | X104: 0 | Y104: 0 | Z104: 0 | AA104: 0 | AB104: 0 | AC104: 0 | AD104: 0 | AE104: 0
J105: =IF(SUMPRODUCT(ISBLANK(B105:F105)*1)=5,"wstaw dane",IF(AND(SUMPRODUCT(ISBLANK(B105:F105)*1)>0,SUMPRODUCT(ISBLANK(B105:F105)*1)<5),"uzupełnij dane","ok")) -> wstaw dane | K105: 0 | L105: 0 | M105: 0 | N105: 0 | O105: 0 | P105: 0 | Q105: 0 | R105: 0 | S105: 0 | T105: 0 | U105: 0 | V105: 0 | W105: 0 | X105: 0 | Y105: 0 | Z105: 0 | AA105: 0 | AB105: 0 | AC105: 0 | AD105: 0 | AE105: 0
J106: =IF(SUMPRODUCT(ISBLANK(B106:F106)*1)=5,"wstaw dane",IF(AND(SUMPRODUCT(ISBLANK(B106:F106)*1)>0,SUMPRODUCT(ISBLANK(B106:F106)*1)<5),"uzupełnij dane","ok")) -> wstaw dane | K106: =ROUND(IF(AND(YEAR($E106)=LataProjekcji,$D106>0,$J106="ok"),$D106,0),0) -> 0 | L106: 0 | M106: 0 | N106: 0 | O106: 0 | P106: 0 | Q106: 0 | R106: 0 | S106: 0 | T106: 0 | U106: 0 | V106: 0 | W106: 0 | X106: 0 | Y106: 0 | Z106: 0 | AA106: 0 | AB106: 0 | AC106: 0 | AD106: 0 | AE106: 0
J107: =IF(SUMPRODUCT(ISBLANK(B107:F107)*1)=5,"wstaw dane",IF(AND(SUMPRODUCT(ISBLANK(B107:F107)*1)>0,SUMPRODUCT(ISBLANK(B107:F107)*1)<5),"uzupełnij dane","ok")) -> wstaw dane | K107: 0 | L107: 0 | M107: 0 | N107: 0 | O107: 0 | P107: 0 | Q107: 0 | R107: 0 | S107: 0 | T107: 0 | U107: 0 | V107: 0 | W107: 0 | X107: 0 | Y107: 0 | Z107: 0 | AA107: 0 | AB107: 0 | AC107: 0 | AD107: 0 | AE107: 0
J108: =IF(SUMPRODUCT(ISBLANK(B108:F108)*1)=5,"wstaw dane",IF(AND(SUMPRODUCT(ISBLANK(B108:F108)*1)>0,SUMPRODUCT(ISBLANK(B108:F108)*1)<5),"uzupełnij dane","ok")) -> wstaw dane | K108: 0 | L108: 0 | M108: 0 | N108: 0 | O108: 0 | P108: 0 | Q108: 0 | R108: 0 | S108: 0 | T108: 0 | U108: 0 | V108: 0 | W108: 0 | X108: 0 | Y108: 0 | Z108: 0 | AA108: 0 | AB108: 0 | AC108: 0 | AD108: 0 | AE108: 0
J109: =IF(SUMPRODUCT(ISBLANK(B109:F109)*1)=5,"wstaw dane",IF(AND(SUMPRODUCT(ISBLANK(B109:F109)*1)>0,SUMPRODUCT(ISBLANK(B109:F109)*1)<5),"uzupełnij dane","ok")) -> wstaw dane | K109: 0 | L109: 0 | M109: 0 | N109: 0 | O109: 0 | P109: 0 | Q109: 0 | R109: 0 | S109: 0 | T109: 0 | U109: 0 | V109: 0 | W109: 0 | X109: 0 | Y109: 0 | Z109: 0 | AA109: 0 | AB109: 0 | AC109: 0 | AD109: 0 | AE109: 0
J110: =IF(SUMPRODUCT(ISBLANK(B110:F110)*1)=5,"wstaw dane",IF(AND(SUMPRODUCT(ISBLANK(B110:F110)*1)>0,SUMPRODUCT(ISBLANK(B110:F110)*1)<5),"uzupełnij dane","ok")) -> wstaw dane | K110: 0 | L110: 0 | M110: 0 | N110: 0 | O110: 0 | P110: 0 | Q110: 0 | R110: 0 | S110: 0 | T110: 0 | U110: 0 | V110: 0 | W110: 0 | X110: 0 | Y110: 0 | Z110: 0 | AA110: 0 | AB110: 0 | AC110: 0 | AD110: 0 | AE110: 0
J111: =IF(SUMPRODUCT(ISBLANK(B111:F111)*1)=5,"wstaw dane",IF(AND(SUMPRODUCT(ISBLANK(B111:F111)*1)>0,SUMPRODUCT(ISBLANK(B111:F111)*1)<5),"uzupełnij dane","ok")) -> wstaw dane | K111: 0 | L111: 0 | M111: 0 | N111: 0 | O111: 0 | P111: 0 | Q111: 0 | R111: 0 | S111: 0 | T111: 0 | U111: 0 | V111: 0 | W111: 0 | X111: 0 | Y111: 0 | Z111: 0 | AA111: 0 | AB111: 0 | AC111: 0 | AD111: 0 | AE111: 0
J112: =IF(SUMPRODUCT(ISBLANK(B112:F112)*1)=5,"wstaw dane",IF(AND(SUMPRODUCT(ISBLANK(B112:F112)*1)>0,SUMPRODUCT(ISBLANK(B112:F112)*1)<5),"uzupełnij dane","ok")) -> wstaw dane | K112: 0 | L112: 0 | M112: 0 | N112: 0 | O112: 0 | P112: 0 | Q112: 0 | R112: 0 | S112: 0 | T112: 0 | U112: 0 | V112: 0 | W112: 0 | X112: =ROUND(IF(AND(YEAR($E112)=LataProjekcji,$D112>0,$J112="ok"),$D112,0),0) -> 0 | Y112: 0 | Z112: 0 | AA112: 0 | AB112: 0 | AC112: 0 | AD112: 0 | AE112: 0
J113: =IF(SUMPRODUCT(ISBLANK(B113:F113)*1)=5,"wstaw dane",IF(AND(SUMPRODUCT(ISBLANK(B113:F113)*1)>0,SUMPRODUCT(ISBLANK(B113:F113)*1)<5),"uzupełnij dane","ok")) -> wstaw dane | K113: =ROUND(IF(AND(YEAR($E113)=LataProjekcji,$D113>0,$J113="ok"),$D113,0),0) -> 0 | L113: =ROUND(IF(AND(YEAR($E113)=LataProjekcji,$D113>0,$J113="ok"),$D113,0),0) -> 0 | M113: =ROUND(IF(AND(YEAR($E113)=LataProjekcji,$D113>0,$J113="ok"),$D113,0),0) -> 0 | N113: =ROUND(IF(AND(YEAR($E113)=LataProjekcji,$D113>0,$J113="ok"),$D113,0),0) -> 0 | O113: 0 | P113: 0 | Q113: 0 | R113: 0 | S113: 0 | T113: 0 | U113: 0 | V113: 0 | W113: 0 | X113: 0 | Y113: 0 | Z113: 0 | AA113: 0 | AB113: 0 | AC113: 0 | AD113: 0 | AE113: 0
J114: =IF(SUMPRODUCT(ISBLANK(B114:F114)*1)=5,"wstaw dane",IF(AND(SUMPRODUCT(ISBLANK(B114:F114)*1)>0,SUMPRODUCT(ISBLANK(B114:F114)*1)<5),"uzupełnij dane","ok")) -> wstaw dane | K114: 0 | L114: 0 | M114: 0 | N114: 0 | O114: 0 | P114: 0 | Q114: 0 | R114: 0 | S114: 0 | T114: 0 | U114: 0 | V114: 0 | W114: 0 | X114: 0 | Y114: 0 | Z114: 0 | AA114: 0 | AB114: 0 | AC114: 0 | AD114: 0 | AE114: 0
J115: =IF(SUMPRODUCT(ISBLANK(B115:F115)*1)=5,"wstaw dane",IF(AND(SUMPRODUCT(ISBLANK(B115:F115)*1)>0,SUMPRODUCT(ISBLANK(B115:F115)*1)<5),"uzupełnij dane","ok")) -> wstaw dane | K115: 0 | L115: 0 | M115: 0 | N115: 0 | O115: 0 | P115: 0 | Q115: 0 | R115: 0 | S115: 0 | T115: 0 | U115: 0 | V115: 0 | W115: 0 | X115: 0 | Y115: 0 | Z115: 0 | AA115: 0 | AB115: 0 | AC115: 0 | AD115: 0 | AE115: 0
J116: =IF(SUMPRODUCT(ISBLANK(B116:F116)*1)=5,"wstaw dane",IF(AND(SUMPRODUCT(ISBLANK(B116:F116)*1)>0,SUMPRODUCT(ISBLANK(B116:F116)*1)<5),"uzupełnij dane","ok")) -> wstaw dane | K116: 0 | L116: 0 | M116: 0 | N116: 0 | O116: 0 | P116: 0 | Q116: 0 | R116: 0 | S116: 0 | T116: 0 | U116: 0 | V116: 0 | W116: 0 | X116: 0 | Y116: 0 | Z116: 0 | AA116: 0 | AB116: 0 | AC116: 0 | AD116: 0 | AE116: 0
J117: =IF(SUMPRODUCT(ISBLANK(B117:F117)*1)=5,"wstaw dane",IF(AND(SUMPRODUCT(ISBLANK(B117:F117)*1)>0,SUMPRODUCT(ISBLANK(B117:F117)*1)<5),"uzupełnij dane","ok")) -> wstaw dane | K117: 0 | L117: 0 | M117: 0 | N117: 0 | O117: 0 | P117: 0 | Q117: 0 | R117: 0 | S117: 0 | T117: 0 | U117: 0 | V117: 0 | W117: 0 | X117: 0 | Y117: 0 | Z117: 0 | AA117: 0 | AB117: 0 | AC117: 0 | AD117: 0 | AE117: 0
J118: =IF(SUMPRODUCT(ISBLANK(B118:F118)*1)=5,"wstaw dane",IF(AND(SUMPRODUCT(ISBLANK(B118:F118)*1)>0,SUMPRODUCT(ISBLANK(B118:F118)*1)<5),"uzupełnij dane","ok")) -> wstaw dane | K118: 0 | L118: 0 | M118: 0 | N118: 0 | O118: 0 | P118: 0 | Q118: 0 | R118: 0 | S118: 0 | T118: 0 | U118: 0 | V118: 0 | W118: 0 | X118: 0 | Y118: 0 | Z118: 0 | AA118: 0 | AB118: 0 | AC118: 0 | AD118: 0 | AE118: 0
J119: =IF(SUMPRODUCT(ISBLANK(B119:F119)*1)=5,"wstaw dane",IF(AND(SUMPRODUCT(ISBLANK(B119:F119)*1)>0,SUMPRODUCT(ISBLANK(B119:F119)*1)<5),"uzupełnij dane","ok")) -> wstaw dane | K119: 0 | L119: 0 | M119: 0 | N119: 0 | O119: 0 | P119: 0 | Q119: 0 | R119: 0 | S119: 0 | T119: 0 | U119: 0 | V119: 0 | W119: 0 | X119: 0 | Y119: 0 | Z119: 0 | AA119: 0 | AB119: 0 | AC119: 0 | AD119: 0 | AE119: 0
J120: =IF(SUMPRODUCT(ISBLANK(B120:F120)*1)=5,"wstaw dane",IF(AND(SUMPRODUCT(ISBLANK(B120:F120)*1)>0,SUMPRODUCT(ISBLANK(B120:F120)*1)<5),"uzupełnij dane","ok")) -> wstaw dane | K120: 0 | L120: 0 | M120: 0 | N120: 0 | O120: 0 | P120: 0 | Q120: 0 | R120: 0 | S120: 0 | T120: 0 | U120: 0 | V120: 0 | W120: 0 | X120: 0 | Y120: 0 | Z120: 0 | AA120: 0 | AB120: 0 | AC120: 0 | AD120: 0 | AE120: 0
J121: =IF(SUMPRODUCT(ISBLANK(B121:F121)*1)=5,"wstaw dane",IF(AND(SUMPRODUCT(ISBLANK(B121:F121)*1)>0,SUMPRODUCT(ISBLANK(B121:F121)*1)<5),"uzupełnij dane","ok")) -> wstaw dane | K121: 0 | L121: 0 | M121: 0 | N121: 0 | O121: 0 | P121: 0 | Q121: 0 | R121: 0 | S121: 0 | T121: 0 | U121: 0 | V121: 0 | W121: 0 | X121: 0 | Y121: 0 | Z121: 0 | AA121: 0 | AB121: 0 | AC121: 0 | AD121: 0 | AE121: 0
J122: =IF(SUMPRODUCT(ISBLANK(B122:F122)*1)=5,"wstaw dane",IF(AND(SUMPRODUCT(ISBLANK(B122:F122)*1)>0,SUMPRODUCT(ISBLANK(B122:F122)*1)<5),"uzupełnij dane","ok")) -> wstaw dane | K122: 0 | L122: 0 | M122: 0 | N122: 0 | O122: 0 | P122: 0 | Q122: 0 | R122: 0 | S122: 0 | T122: 0 | U122: 0 | V122: 0 | W122: 0 | X122: 0 | Y122: 0 | Z122: 0 | AA122: 0 | AB122: 0 | AC122: 0 | AD122: 0 | AE122: 0
J123: =IF(SUMPRODUCT(ISBLANK(B123:F123)*1)=5,"wstaw dane",IF(AND(SUMPRODUCT(ISBLANK(B123:F123)*1)>0,SUMPRODUCT(ISBLANK(B123:F123)*1)<5),"uzupełnij dane","ok")) -> wstaw dane | K123: 0 | L123: 0 | M123: 0 | N123: 0 | O123: 0 | P123: 0 | Q123: 0 | R123: 0 | S123: 0 | T123: 0 | U123: 0 | V123: 0 | W123: 0 | X123: 0 | Y123: 0 | Z123: 0 | AA123: 0 | AB123: 0 | AC123: 0 | AD123: 0 | AE123: 0
J124: =IF(SUMPRODUCT(ISBLANK(B124:F124)*1)=5,"wstaw dane",IF(AND(SUMPRODUCT(ISBLANK(B124:F124)*1)>0,SUMPRODUCT(ISBLANK(B124:F124)*1)<5),"uzupełnij dane","ok")) -> wstaw dane | K124: 0 | L124: 0 | M124: 0 | N124: 0 | O124: 0 | P124: 0 | Q124: 0 | R124: 0 | S124: 0 | T124: 0 | U124: 0 | V124: 0 | W124: 0 | X124: 0 | Y124: 0 | Z124: 0 | AA124: 0 | AB124: 0 | AC124: 0 | AD124: 0 | AE124: 0
J125: =IF(SUMPRODUCT(ISBLANK(B125:F125)*1)=5,"wstaw dane",IF(AND(SUMPRODUCT(ISBLANK(B125:F125)*1)>0,SUMPRODUCT(ISBLANK(B125:F125)*1)<5),"uzupełnij dane","ok")) -> wstaw dane | K125: 0 | L125: 0 | M125: 0 | N125: 0 | O125: 0 | P125: 0 | Q125: 0 | R125: 0 | S125: 0 | T125: 0 | U125: 0 | V125: 0 | W125: 0 | X125: 0 | Y125: 0 | Z125: 0 | AA125: 0 | AB125: 0 | AC125: 0 | AD125: 0 | AE125: 0
J126: =IF(SUMPRODUCT(ISBLANK(B126:F126)*1)=5,"wstaw dane",IF(AND(SUMPRODUCT(ISBLANK(B126:F126)*1)>0,SUMPRODUCT(ISBLANK(B126:F126)*1)<5),"uzupełnij dane","ok")) -> wstaw dane | K126: 0 | L126: 0 | M126: 0 | N126: 0 | O126: 0 | P126: 0 | Q126: 0 | R126: 0 | S126: 0 | T126: 0 | U126: 0 | V126: 0 | W126: 0 | X126: 0 | Y126: 0 | Z126: 0 | AA126: 0 | AB126: 0 | AC126: 0 | AD126: 0 | AE126: 0
J127: =IF(SUMPRODUCT(ISBLANK(B127:F127)*1)=5,"wstaw dane",IF(AND(SUMPRODUCT(ISBLANK(B127:F127)*1)>0,SUMPRODUCT(ISBLANK(B127:F127)*1)<5),"uzupełnij dane","ok")) -> wstaw dane | K127: 0 | L127: 0 | M127: 0 | N127: 0 | O127: 0 | P127: 0 | Q127: 0 | R127: 0 | S127: 0 | T127: 0 | U127: 0 | V127: 0 | W127: 0 | X127: 0 | Y127: 0 | Z127: 0 | AA127: 0 | AB127: 0 | AC127: 0 | AD127: 0 | AE127: 0
J128: =IF(SUMPRODUCT(ISBLANK(B128:F128)*1)=5,"wstaw dane",IF(AND(SUMPRODUCT(ISBLANK(B128:F128)*1)>0,SUMPRODUCT(ISBLANK(B128:F128)*1)<5),"uzupełnij dane","ok")) -> wstaw dane | K128: 0 | L128: 0 | M128: 0 | N128: 0 | O128: 0 | P128: 0 | Q128: 0 | R128: 0 | S128: 0 | T128: 0 | U128: 0 | V128: 0 | W128: 0 | X128: =ROUND(IF(AND(YEAR($E128)=LataProjekcji,$D128>0,$J128="ok"),$D128,0),0) -> 0 | Y128: 0 | Z128: 0 | AA128: 0 | AB128: 0 | AC128: 0 | AD128: 0 | AE128: 0
J129: =IF(SUMPRODUCT(ISBLANK(B129:F129)*1)=5,"wstaw dane",IF(AND(SUMPRODUCT(ISBLANK(B129:F129)*1)>0,SUMPRODUCT(ISBLANK(B129:F129)*1)<5),"uzupełnij dane","ok")) -> wstaw dane | K129: 0 | L129: 0 | M129: 0 | N129: 0 | O129: 0 | P129: 0 | Q129: 0 | R129: 0 | S129: 0 | T129: 0 | U129: 0 | V129: 0 | W129: 0 | X129: 0 | Y129: 0 | Z129: 0 | AA129: 0 | AB129: 0 | AC129: 0 | AD129: 0 | AE129: 0
J130: =IF(SUMPRODUCT(ISBLANK(B130:F130)*1)=5,"wstaw dane",IF(AND(SUMPRODUCT(ISBLANK(B130:F130)*1)>0,SUMPRODUCT(ISBLANK(B130:F130)*1)<5),"uzupełnij dane","ok")) -> wstaw dane | K130: 0 | L130: 0 | M130: 0 | N130: 0 | O130: 0 | P130: 0 | Q130: 0 | R130: 0 | S130: 0 | T130: 0 | U130: 0 | V130: 0 | W130: 0 | X130: 0 | Y130: 0 | Z130: 0 | AA130: 0 | AB130: 0 | AC130: 0 | AD130: 0 | AE130: 0
J131: =IF(SUMPRODUCT(ISBLANK(B131:F131)*1)=5,"wstaw dane",IF(AND(SUMPRODUCT(ISBLANK(B131:F131)*1)>0,SUMPRODUCT(ISBLANK(B131:F131)*1)<5),"uzupełnij dane","ok")) -> wstaw dane | K131: 0 | L131: 0 | M131: 0 | N131: 0 | O131: 0 | P131: 0 | Q131: =ROUND(IF(AND(YEAR($E131)=LataProjekcji,$D131>0,$J131="ok"),$D131,0),0) -> 0 | R131: 0 | S131: 0 | T131: 0 | U131: 0 | V131: 0 | W131: 0 | X131: 0 | Y131: 0 | Z131: 0 | AA131: 0 | AB131: 0 | AC131: 0 | AD131: 0 | AE131: 0
J132: =IF(SUMPRODUCT(ISBLANK(B132:F132)*1)=5,"wstaw dane",IF(AND(SUMPRODUCT(ISBLANK(B132:F132)*1)>0,SUMPRODUCT(ISBLANK(B132:F132)*1)<5),"uzupełnij dane","ok")) -> wstaw dane | K132: 0 | L132: 0 | M132: 0 | N132: 0 | O132: 0 | P132: 0 | Q132: 0 | R132: 0 | S132: 0 | T132: 0 | U132: 0 | V132: 0 | W132: 0 | X132: 0 | Y132: 0 | Z132: 0 | AA132: 0 | AB132: 0 | AC132: 0 | AD132: 0 | AE132: 0
J133: =IF(SUMPRODUCT(ISBLANK(B133:F133)*1)=5,"wstaw dane",IF(AND(SUMPRODUCT(ISBLANK(B133:F133)*1)>0,SUMPRODUCT(ISBLANK(B133:F133)*1)<5),"uzupełnij dane","ok")) -> wstaw dane | K133: 0 | L133: 0 | M133: 0 | N133: 0 | O133: 0 | P133: 0 | Q133: 0 | R133: 0 | S133: 0 | T133: 0 | U133: 0 | V133: 0 | W133: 0 | X133: 0 | Y133: 0 | Z133: 0 | AA133: 0 | AB133: 0 | AC133: 0 | AD133: 0 | AE133: 0
J134: =IF(SUMPRODUCT(ISBLANK(B134:F134)*1)=5,"wstaw dane",IF(AND(SUMPRODUCT(ISBLANK(B134:F134)*1)>0,SUMPRODUCT(ISBLANK(B134:F134)*1)<5),"uzupełnij dane","ok")) -> wstaw dane | K134: 0 | L134: 0 | M134: 0 | N134: 0 | O134: 0 | P134: 0 | Q134: 0 | R134: 0 | S134: 0 | T134: 0 | U134: 0 | V134: 0 | W134: 0 | X134: 0 | Y134: 0 | Z134: 0 | AA134: 0 | AB134: 0 | AC134: 0 | AD134: 0 | AE134: 0
J135: =IF(SUMPRODUCT(ISBLANK(B135:F135)*1)=5,"wstaw dane",IF(AND(SUMPRODUCT(ISBLANK(B135:F135)*1)>0,SUMPRODUCT(ISBLANK(B135:F135)*1)<5),"uzupełnij dane","ok")) -> wstaw dane | K135: =ROUND(IF(AND(YEAR($E135)=LataProjekcji,$D135>0,$J135="ok"),$D135,0),0) -> 0 | L135: 0 | M135: 0 | N135: 0 | O135: 0 | P135: 0 | Q135: 0 | R135: 0 | S135: 0 | T135: 0 | U135: 0 | V135: 0 | W135: 0 | X135: 0 | Y135: 0 | Z135: 0 | AA135: 0 | AB135: 0 | AC135: 0 | AD135: 0 | AE135: 0
B136: Razem | D136: =SUM(D96:D135) -> 0 | K136: =ROUND(SUM(K96:K135),0) -> 0 | L136: =ROUND(SUM(L96:L135),0) -> 0 | M136: 0 | N136: 0 | O136: 0 | P136: 0 | Q136: 0 | R136: 0 | S136: 0 | T136: 0 | U136: 0 | V136: 0 | W136: 0 | X136: =ROUND(SUM(X96:X135),0) -> 0 | Y136: =ROUND(SUM(Y96:Y135),0) -> 0 | Z136: =ROUND(SUM(Z96:Z135),0) -> 0 | AA136: 0 | AB136: =ROUND(SUM(AB96:AB135),0) -> 0 | AC136: 0 | AD136: 0 | AE136: 0
B137: - amortyzacja | K137: =ROUND(IF(K$12<=Koniec,(K880+K886+K892+K898+K904+K910+K916+K922+K928+K934+K940+K946+K952+K958+K964+K970+K976+K982+K988+K994+K1000+K1006+K1012+K1018+K1024+K1030+K1036+K1042+K1048+K1054+K1060+K1066+K1072+K1078+K1084+K1090+K1096+K1102+K1108+K1114),0),0) -> 0 | L137: 0 | M137: 0 | N137: 0 | O137: 0 | P137: 0 | Q137: 0 | R137: 0 | S137: 0 | T137: 0 | U137: 0 | V137: 0 | W137: 0 | X137: =ROUND(IF(X$12<=Koniec,(X880+X886+X892+X898+X904+X910+X916+X922+X928+X934+X940+X946+X952+X958+X964+X970+X976+X982+X988+X994+X1000+X1006+X1012+X1018+X1024+X1030+X1036+X1042+X1048+X1054+X1060+X1066+X1072+X1078+X1084+X1090+X1096+X1102+X1108+X1114),0),0) -> 0 | Y137: 0 | Z137: =ROUND(IF(Z$12<=Koniec,(Z880+Z886+Z892+Z898+Z904+Z910+Z916+Z922+Z928+Z934+Z940+Z946+Z952+Z958+Z964+Z970+Z976+Z982+Z988+Z994+Z1000+Z1006+Z1012+Z1018+Z1024+Z1030+Z1036+Z1042+Z1048+Z1054+Z1060+Z1066+Z1072+Z1078+Z1084+Z1090+Z1096+Z1102+Z1108+Z1114),0),0) -> 0 | AA137: 0 | AB137: =ROUND(IF(AB$12<=Koniec,(AB880+AB886+AB892+AB898+AB904+AB910+AB916+AB922+AB928+AB934+AB940+AB946+AB952+AB958+AB964+AB970+AB976+AB982+AB988+AB994+AB1000+AB1006+AB1012+AB1018+AB1024+AB1030+AB1036+AB1042+AB1048+AB1054+AB1060+AB1066+AB1072+AB1078+AB1084+AB1090+AB1096+AB1102+AB1108+AB1114),0),0) -> 0 | AC137: 0 | AD137: 0 | AE137: 0
B138: - umorzenie | K138: =ROUND(IF(K$12<=Koniec,(K881+K887+K893+K899+K905+K911+K917+K923+K929+K935+K941+K947+K953+K959+K965+K971+K977+K983+K989+K995+K1001+K1007+K1013+K1019+K1025+K1031+K1037+K1043+K1049+K1055+K1061+K1067+K1073+K1079+K1085+K1091+K1097+K1103+K1109+K1115),0),0) -> 0 | L138: 0 | M138: 0 | N138: 0 | O138: 0 | P138: 0 | Q138: 0 | R138: 0 | S138: 0 | T138: 0 | U138: 0 | V138: 0 | W138: 0 | X138: 0 | Y138: 0 | Z138: =ROUND(IF(Z$12<=Koniec,(Z881+Z887+Z893+Z899+Z905+Z911+Z917+Z923+Z929+Z935+Z941+Z947+Z953+Z959+Z965+Z971+Z977+Z983+Z989+Z995+Z1001+Z1007+Z1013+Z1019+Z1025+Z1031+Z1037+Z1043+Z1049+Z1055+Z1061+Z1067+Z1073+Z1079+Z1085+Z1091+Z1097+Z1103+Z1109+Z1115),0),0) -> 0 | AA138: 0 | AB138: =ROUND(IF(AB$12<=Koniec,(AB881+AB887+AB893+AB899+AB905+AB911+AB917+AB923+AB929+AB935+AB941+AB947+AB953+AB959+AB965+AB971+AB977+AB983+AB989+AB995+AB1001+AB1007+AB1013+AB1019+AB1025+AB1031+AB1037+AB1043+AB1049+AB1055+AB1061+AB1067+AB1073+AB1079+AB1085+AB1091+AB1097+AB1103+AB1109+AB1115),0),0) -> 0 | AC138: 0 | AD138: 0 | AE138: 0
B139: - wartość księgowa netto | K139: =ROUND(IF(K$12<=Koniec,(K882+K888+K894+K900+K906+K912+K918+K924+K930+K936+K942+K948+K954+K960+K966+K972+K978+K984+K990+K996+K1002+K1008+K1014+K1020+K1026+K1032+K1038+K1044+K1050+K1056+K1062+K1068+K1074+K1080+K1086+K1092+K1098+K1104+K1110+K1116),0),0) -> 0 | L139: 0 | M139: 0 | N139: 0 | O139: 0 | P139: 0 | Q139: 0 | R139: 0 | S139: 0 | T139: 0 | U139: 0 | V139: 0 | W139: 0 | X139: 0 | Y139: 0 | Z139: =ROUND(IF(Z$12<=Koniec,(Z882+Z888+Z894+Z900+Z906+Z912+Z918+Z924+Z930+Z936+Z942+Z948+Z954+Z960+Z966+Z972+Z978+Z984+Z990+Z996+Z1002+Z1008+Z1014+Z1020+Z1026+Z1032+Z1038+Z1044+Z1050+Z1056+Z1062+Z1068+Z1074+Z1080+Z1086+Z1092+Z1098+Z1104+Z1110+Z1116),0),0) -> 0 | AA139: 0 | AB139: =ROUND(IF(AB$12<=Koniec,(AB882+AB888+AB894+AB900+AB906+AB912+AB918+AB924+AB930+AB936+AB942+AB948+AB954+AB960+AB966+AB972+AB978+AB984+AB990+AB996+AB1002+AB1008+AB1014+AB1020+AB1026+AB1032+AB1038+AB1044+AB1050+AB1056+AB1062+AB1068+AB1074+AB1080+AB1086+AB1092+AB1098+AB1104+AB1110+AB1116),0),0) -> 0 | AC139: 0 | AD139: 0 | AE139: 0
B141: środki trwałe w budowie oraz zaliczki na środki trwałe w budowie oraz zaliczki na wartości niematerialne i prawne | J141: =Rok_n -> 2025-09-30 | K141: =LataProjekcji -> 2025 | L141: 2026 | M141: 2027 | N141: 2028 | O141: 2029 | P141: 2030 | Q141: 2031 | R141: 2032 | S141: 2033 | T141: 2034 | U141: 2035 | V141: 2036 | W141: 2037 | X141: 2038 | Y141: 2039 | Z141: 2040 | AA141: 2041 | AB141: 2042 | AC141: 2043 | AD141: 2044 | AE141: 2045
B142: zaliczki na wartości niematerialne i prawne
B143: stan z ostatniego sprawozdania | J143: =IF(ISBLANK(DaneBiezace),ROUND('Sprawozdania finansowe'!E18,0),ROUND('Sprawozdania finansowe'!F18,0)) -> 0
B144: przyjęcie wartości niematerialnych i prawnych | K144: =ROUND(SUMIFS(K$96:K$135,$C$96:$C$135,$C$159,$F$96:$F$135,przeniesiony)+SUMIFS(K$96:K$135,$C$96:$C$135,$C$160,$F$96:$F$135,przeniesiony)+SUMIFS(K$96:K$135,$C$96:$C$135,$C$161,$F$96:$F$135,przeniesiony),0) -> 0 | L144: 0 | M144: 0 | N144: 0 | O144: 0 | P144: 0 | Q144: 0 | R144: 0 | S144: 0 | T144: 0 | U144: 0 | V144: 0 | W144: 0 | X144: 0 | Y144: 0 | Z144: 0 | AA144: 0 | AB144: 0 | AC144: 0 | AD144: 0 | AE144: 0
B145: nowe zaliczki na wartości niematerialne i prawne
B146: saldo zaliczek na wartości niematerialne i prawne | K146: =IF(LataProjekcji<=Koniec,ROUND(J143-K144+K145,0),0) -> 0 | L146: =IF(LataProjekcji<=Koniec,ROUND(K146-L144+L145,0),0) -> 0 | M146: 0 | N146: 0 | O146: 0 | P146: 0 | Q146: 0 | R146: 0 | S146: 0 | T146: 0 | U146: 0 | V146: 0 | W146: 0 | X146: =IF(LataProjekcji<=Koniec,ROUND(W146-X144+X145,0),0) -> 0 | Y146: 0 | Z146: 0 | AA146: 0 | AB146: =IF(LataProjekcji<=Koniec,ROUND(AA146-AB144+AB145,0),0) -> 0 | AC146: =IF(LataProjekcji<=Koniec,ROUND(AB146-AC144+AC145,0),0) -> 0 | AD146: =IF(LataProjekcji<=Koniec,ROUND(AC146-AD144+AD145,0),0) -> 0 | AE146: =IF(LataProjekcji<=Koniec,ROUND(AD146-AE144+AE145,0),0) -> 0
B148: zaliczki na… i środki trwałe w budowie inne niż WNiP
B149: stan z ostatniego sprawozdania | J149: =IF(ISBLANK(DaneBiezace),ROUND('Sprawozdania finansowe'!E26+'Sprawozdania finansowe'!E27,0),ROUND('Sprawozdania finansowe'!F26+'Sprawozdania finansowe'!F27,0)) -> 0
B150: przyjęcie środków trwałych | K150: =ROUND(SUMIFS(K$96:K$135,$C$96:$C$135,$C$164,$F$96:$F$135,przeniesiony)+SUMIFS(K$96:K$135,$C$96:$C$135,$C$165,$F$96:$F$135,przeniesiony)+SUMIFS(K$96:K$135,$C$96:$C$135,$C$166,$F$96:$F$135,przeniesiony)+SUMIFS(K$96:K$135,$C$96:$C$135,$C$167,$F$96:$F$135,przeniesiony)+SUMIFS(K$96:K$135,$C$96:$C$135,$C$168,$F$96:$F$135,przeniesiony),0) -> 0 | L150: 0 | M150: 0 | N150: 0 | O150: 0 | P150: 0 | Q150: 0 | R150: 0 | S150: 0 | T150: 0 | U150: 0 | V150: 0 | W150: 0 | X150: 0 | Y150: 0 | Z150: 0 | AA150: 0 | AB150: 0 | AC150: 0 | AD150: 0 | AE150: 0
B151: nowe środki trwałe w budowie
B152: saldo środków trwałych w budowie | K152: =IF(LataProjekcji<=Koniec,ROUND(J149-K150+K151,0),0) -> 0 | L152: =IF(LataProjekcji<=Koniec,ROUND(K152-L150+L151,0),0) -> 0 | M152: 0 | N152: 0 | O152: 0 | P152: 0 | Q152: 0 | R152: 0 | S152: 0 | T152: 0 | U152: 0 | V152: 0 | W152: 0 | X152: =IF(LataProjekcji<=Koniec,ROUND(W152-X150+X151,0),0) -> 0 | Y152: 0 | Z152: 0 | AA152: 0 | AB152: =IF(LataProjekcji<=Koniec,ROUND(AA152-AB150+AB151,0),0) -> 0 | AC152: =IF(LataProjekcji<=Koniec,ROUND(AB152-AC150+AC151,0),0) -> 0 | AD152: =IF(LataProjekcji<=Koniec,ROUND(AC152-AD150+AD151,0),0) -> 0 | AE152: =IF(LataProjekcji<=Koniec,ROUND(AD152-AE150+AE151,0),0) -> 0
B157: Wartość księgowa netto - środki trwałe w budowie | K157: =LataProjekcji -> 2025 | L157: 2026 | M157: 2027 | N157: 2028 | O157: 2029 | P157: 2030 | Q157: 2031 | R157: 2032 | S157: 2033 | T157: 2034 | U157: 2035 | V157: 2036 | W157: 2037 | X157: 2038 | Y157: 2039 | Z157: 2040 | AA157: 2041 | AB157: 2042 | AC157: 2043 | AD157: 2044 | AE157: 2045
B158: Wartości niematerialne i prawne | K158: =ROUND(SUM(K159:K162),0) -> 0 | L158: =ROUND(SUM(L159:L162),0) -> 0 | M158: 0 | N158: 0 | O158: 0 | P158: 0 | Q158: 0 | R158: 0 | S158: 0 | T158: 0 | U158: 0 | V158: 0 | W158: 0 | X158: =ROUND(SUM(X159:X162),0) -> 0 | Y158: =ROUND(SUM(Y159:Y162),0) -> 0 | Z158: =ROUND(SUM(Z159:Z162),0) -> 0 | AA158: 0 | AB158: =ROUND(SUM(AB159:AB162),0) -> 0 | AC158: 0 | AD158: 0 | AE158: 0
B159: a) koszty zakończonych prac rozwojowych | C159: koszty zakończonych prac rozwojowych | K159: =ROUND(SUMIF($J$882:$J$1116,$C159,K$882:K$1116),0) -> 0 | L159: 0 | M159: 0 | N159: 0 | O159: 0 | P159: 0 | Q159: 0 | R159: 0 | S159: 0 | T159: 0 | U159: =ROUND(SUMIF($J$882:$J$1116,$C159,U$882:U$1116),0) -> 0 | V159: 0 | W159: 0 | X159: 0 | Y159: 0 | Z159: 0 | AA159: 0 | AB159: 0 | AC159: 0 | AD159: 0 | AE159: 0
B160: b) wartość firmy | C160: wartość firmy | K160: 0 | L160: 0 | M160: 0 | N160: 0 | O160: 0 | P160: 0 | Q160: 0 | R160: 0 | S160: 0 | T160: 0 | U160: 0 | V160: 0 | W160: 0 | X160: 0 | Y160: 0 | Z160: 0 | AA160: 0 | AB160: 0 | AC160: 0 | AD160: 0 | AE160: 0
B161: c) inne wartości niematerialne i prawne | C161: inne wartości niematerialne i prawne | K161: 0 | L161: 0 | M161: 0 | N161: 0 | O161: 0 | P161: 0 | Q161: 0 | R161: 0 | S161: 0 | T161: 0 | U161: 0 | V161: 0 | W161: 0 | X161: 0 | Y161: 0 | Z161: 0 | AA161: 0 | AB161: 0 | AC161: 0 | AD161: 0 | AE161: 0
B162: d) zaliczki na wartości niematerialne i prawne | J162: =ROUND(J143,0) -> 0 | K162: =ROUND(K146,0) -> 0 | L162: =ROUND(L146,0) -> 0 | M162: 0 | N162: 0 | O162: 0 | P162: 0 | Q162: 0 | R162: 0 | S162: 0 | T162: 0 | U162: 0 | V162: 0 | W162: 0 | X162: =ROUND(X146,0) -> 0 | Y162: =ROUND(Y146,0) -> 0 | Z162: =ROUND(Z146,0) -> 0 | AA162: 0 | AB162: =ROUND(AB146,0) -> 0 | AC162: 0 | AD162: 0 | AE162: 0
B163: Środki trwałe | K163: =ROUND(SUM(K164:K169),0) -> 0 | L163: =ROUND(SUM(L164:L169),0) -> 0 | M163: 0 | N163: 0 | O163: 0 | P163: 0 | Q163: 0 | R163: 0 | S163: 0 | T163: 0 | U163: 0 | V163: 0 | W163: 0 | X163: =ROUND(SUM(X164:X169),0) -> 0 | Y163: =ROUND(SUM(Y164:Y169),0) -> 0 | Z163: =ROUND(SUM(Z164:Z169),0) -> 0 | AA163: 0 | AB163: =ROUND(SUM(AB164:AB169),0) -> 0 | AC163: 0 | AD163: 0 | AE163: 0
B164: a) grunty | C164: grunty | K164: =ROUND(SUMIF($J$882:$J$1116,$C164,K$882:K$1116),0) -> 0 | L164: 0 | M164: 0 | N164: 0 | O164: 0 | P164: 0 | Q164: 0 | R164: 0 | S164: 0 | T164: 0 | U164: =ROUND(SUMIF($J$882:$J$1116,$C164,U$882:U$1116),0) -> 0 | V164: 0 | W164: 0 | X164: 0 | Y164: 0 | Z164: 0 | AA164: 0 | AB164: 0 | AC164: 0 | AD164: 0 | AE164: 0
B165: b) budynki i budowle | C165: budynki i budowle | K165: 0 | L165: 0 | M165: 0 | N165: 0 | O165: 0 | P165: 0 | Q165: 0 | R165: 0 | S165: 0 | T165: 0 | U165: 0 | V165: 0 | W165: 0 | X165: 0 | Y165: 0 | Z165: 0 | AA165: 0 | AB165: 0 | AC165: 0 | AD165: 0 | AE165: 0
B166: c) urządzenia techniczne i maszyny | C166: urządzenia techniczne i maszyny | K166: 0 | L166: 0 | M166: 0 | N166: 0 | O166: 0 | P166: 0 | Q166: 0 | R166: 0 | S166: 0 | T166: 0 | U166: 0 | V166: 0 | W166: 0 | X166: 0 | Y166: 0 | Z166: 0 | AA166: 0 | AB166: 0 | AC166: 0 | AD166: 0 | AE166: 0
B167: d) środki transportu | C167: środki transportu | K167: 0 | L167: 0 | M167: 0 | N167: 0 | O167: 0 | P167: 0 | Q167: 0 | R167: 0 | S167: 0 | T167: 0 | U167: 0 | V167: 0 | W167: 0 | X167: 0 | Y167: 0 | Z167: 0 | AA167: 0 | AB167: 0 | AC167: 0 | AD167: 0 | AE167: 0
B168: e) inne środki trwałe | C168: inne środki trwałe | K168: 0 | L168: 0 | M168: 0 | N168: 0 | O168: 0 | P168: 0 | Q168: 0 | R168: 0 | S168: 0 | T168: 0 | U168: 0 | V168: 0 | W168: 0 | X168: 0 | Y168: 0 | Z168: 0 | AA168: 0 | AB168: 0 | AC168: 0 | AD168: 0 | AE168: 0
B169: Środki trwałe w budowie | J169: =ROUND(J149,0) -> 0 | K169: =ROUND(K152,0) -> 0 | L169: =ROUND(L152,0) -> 0 | M169: 0 | N169: 0 | O169: 0 | P169: 0 | Q169: 0 | R169: 0 | S169: 0 | T169: 0 | U169: 0 | V169: 0 | W169: 0 | X169: =ROUND(X152,0) -> 0 | Y169: =ROUND(Y152,0) -> 0 | Z169: =ROUND(Z152,0) -> 0 | AA169: 0 | AB169: =ROUND(AB152,0) -> 0 | AC169: 0 | AD169: 0 | AE169: 0
B171: Amortyzacja (Rachunek zysków i strat) | K171: =ROUND(K137,0) -> 0 | L171: =ROUND(L137,0) -> 0 | M171: 0 | N171: 0 | O171: 0 | P171: 0 | Q171: 0 | R171: 0 | S171: 0 | T171: 0 | U171: 0 | V171: 0 | W171: 0 | X171: =ROUND(X137,0) -> 0 | Y171: =ROUND(Y137,0) -> 0 | Z171: =ROUND(Z137,0) -> 0 | AA171: 0 | AB171: =ROUND(AB137,0) -> 0 | AC171: 0 | AD171: 0 | AE171: 0
B174: Wartość księgowa netto - przenoszona do Arkusza "Ocena kondycji finansowej" | K174: =LataProjekcji -> 2025 | L174: 2026 | M174: 2027 | N174: 2028 | O174: 2029 | P174: 2030 | Q174: 2031 | R174: 2032 | S174: 2033 | T174: 2034 | U174: 2035 | V174: 2036 | W174: 2037 | X174: 2038 | Y174: 2039 | Z174: 2040 | AA174: 2041 | AB174: 2042 | AC174: 2043 | AD174: 2044 | AE174: 2045
B175: Wartości niematerialne i prawne | K175: =ROUND(SUM(K176:K178),0) -> 0 | L175: =ROUND(SUM(L176:L178),0) -> 0 | M175: 0 | N175: 0 | O175: 0 | P175: 0 | Q175: 0 | R175: 0 | S175: 0 | T175: 0 | U175: 0 | V175: 0 | W175: 0 | X175: =ROUND(SUM(X176:X178),0) -> 0 | Y175: =ROUND(SUM(Y176:Y178),0) -> 0 | Z175: =ROUND(SUM(Z176:Z178),0) -> 0 | AA175: 0 | AB175: =ROUND(SUM(AB176:AB178),0) -> 0 | AC175: 0 | AD175: 0 | AE175: 0
B176: a) koszty zakończonych prac rozwojowych | K176: =ROUND(K159+K81,0) -> 0 | L176: =ROUND(L159+L81,0) -> 0 | M176: 0 | N176: 0 | O176: 0 | P176: 0 | Q176: 0 | R176: 0 | S176: 0 | T176: 0 | U176: 0 | V176: 0 | W176: 0 | X176: =ROUND(X159+X81,0) -> 0 | Y176: 0 | Z176: =ROUND(Z159+Z81,0) -> 0 | AA176: 0 | AB176: =ROUND(AB159+AB81,0) -> 0 | AC176: 0 | AD176: 0 | AE176: 0
B177: b) wartość firmy | K177: =ROUND(K160+K82,0) -> 0 | L177: =ROUND(L160+L82,0) -> 0 | M177: 0 | N177: 0 | O177: 0 | P177: 0 | Q177: 0 | R177: 0 | S177: 0 | T177: 0 | U177: 0 | V177: 0 | W177: 0 | X177: 0 | Y177: 0 | Z177: =ROUND(Z160+Z82,0) -> 0 | AA177: 0 | AB177: =ROUND(AB160+AB82,0) -> 0 | AC177: 0 | AD177: 0 | AE177: 0
B178: c) inne wartości niematerialne i prawne | K178: =ROUND(K161+K83,0) -> 0 | L178: =ROUND(L161+L83,0) -> 0 | M178: 0 | N178: 0 | O178: 0 | P178: 0 | Q178: 0 | R178: 0 | S178: 0 | T178: 0 | U178: 0 | V178: 0 | W178: 0 | X178: 0 | Y178: 0 | Z178: =ROUND(Z161+Z83,0) -> 0 | AA178: 0 | AB178: =ROUND(AB161+AB83,0) -> 0 | AC178: 0 | AD178: 0 | AE178: 0
B179: d) zaliczki na wartości niematerialne i prawne | K179: =ROUND(K162,0) -> 0 | L179: =ROUND(L162,0) -> 0 | M179: 0 | N179: 0 | O179: 0 | P179: 0 | Q179: 0 | R179: 0 | S179: 0 | T179: 0 | U179: 0 | V179: 0 | W179: 0 | X179: =ROUND(X162,0) -> 0 | Y179: =ROUND(Y162,0) -> 0 | Z179: =ROUND(Z162,0) -> 0 | AA179: 0 | AB179: =ROUND(AB162,0) -> 0 | AC179: 0 | AD179: 0 | AE179: 0
B180: Środki trwałe | K180: =ROUND(SUM(K181:K186),0) -> 0 | L180: =ROUND(SUM(L181:L186),0) -> 0 | M180: 0 | N180: 0 | O180: 0 | P180: 0 | Q180: 0 | R180: 0 | S180: 0 | T180: 0 | U180: 0 | V180: 0 | W180: 0 | X180: =ROUND(SUM(X181:X186),0) -> 0 | Y180: =ROUND(SUM(Y181:Y186),0) -> 0 | Z180: =ROUND(SUM(Z181:Z186),0) -> 0 | AA180: 0 | AB180: =ROUND(SUM(AB181:AB186),0) -> 0 | AC180: 0 | AD180: 0 | AE180: 0
B181: a) grunty | K181: =ROUND(K164+K85,0) -> 0 | L181: =ROUND(L164+L85,0) -> 0 | M181: 0 | N181: 0 | O181: 0 | P181: 0 | Q181: 0 | R181: 0 | S181: 0 | T181: 0 | U181: 0 | V181: 0 | W181: 0 | X181: =ROUND(X164+X85,0) -> 0 | Y181: 0 | Z181: =ROUND(Z164+Z85,0) -> 0 | AA181: 0 | AB181: =ROUND(AB164+AB85,0) -> 0 | AC181: 0 | AD181: 0 | AE181: 0
B182: b) budynki i budowle | K182: =ROUND(K165+K86,0) -> 0 | L182: =ROUND(L165+L86,0) -> 0 | M182: 0 | N182: 0 | O182: 0 | P182: 0 | Q182: 0 | R182: 0 | S182: 0 | T182: 0 | U182: 0 | V182: 0 | W182: 0 | X182: 0 | Y182: 0 | Z182: =ROUND(Z165+Z86,0) -> 0 | AA182: 0 | AB182: =ROUND(AB165+AB86,0) -> 0 | AC182: 0 | AD182: 0 | AE182: 0
B183: c) urządzenia techniczne i maszyny | K183: =ROUND(K166+K87,0) -> 0 | L183: =ROUND(L166+L87,0) -> 0 | M183: 0 | N183: 0 | O183: 0 | P183: 0 | Q183: 0 | R183: 0 | S183: 0 | T183: 0 | U183: 0 | V183: 0 | W183: 0 | X183: 0 | Y183: 0 | Z183: =ROUND(Z166+Z87,0) -> 0 | AA183: 0 | AB183: =ROUND(AB166+AB87,0) -> 0 | AC183: 0 | AD183: 0 | AE183: 0
B184: d) środki transportu | K184: =ROUND(K167+K88,0) -> 0 | L184: =ROUND(L167+L88,0) -> 0 | M184: 0 | N184: 0 | O184: 0 | P184: 0 | Q184: 0 | R184: 0 | S184: 0 | T184: 0 | U184: 0 | V184: 0 | W184: 0 | X184: 0 | Y184: 0 | Z184: =ROUND(Z167+Z88,0) -> 0 | AA184: 0 | AB184: =ROUND(AB167+AB88,0) -> 0 | AC184: 0 | AD184: 0 | AE184: 0
B185: e) inne środki trwałe | K185: =ROUND(K168+K89,0) -> 0 | L185: =ROUND(L168+L89,0) -> 0 | M185: 0 | N185: 0 | O185: 0 | P185: 0 | Q185: 0 | R185: 0 | S185: 0 | T185: 0 | U185: 0 | V185: 0 | W185: 0 | X185: 0 | Y185: 0 | Z185: =ROUND(Z168+Z89,0) -> 0 | AA185: 0 | AB185: =ROUND(AB168+AB89,0) -> 0 | AC185: 0 | AD185: 0 | AE185: 0
B186: Środki trwałe w budowie | K186: =ROUND(K169,0) -> 0 | L186: =ROUND(L169,0) -> 0 | M186: 0 | N186: 0 | O186: 0 | P186: 0 | Q186: 0 | R186: 0 | S186: 0 | T186: 0 | U186: 0 | V186: 0 | W186: 0 | X186: =ROUND(X169,0) -> 0 | Y186: =ROUND(Y169,0) -> 0 | Z186: =ROUND(Z169,0) -> 0 | AA186: 0 | AB186: =ROUND(AB169,0) -> 0 | AC186: 0 | AD186: 0 | AE186: 0
B188: Amortyzacja (Rachunek zysków i strat) | K188: =ROUND(K171+K91,0) -> 0 | L188: =ROUND(L171+L91,0) -> 0 | M188: 0 | N188: 0 | O188: 0 | P188: 0 | Q188: 0 | R188: 0 | S188: 0 | T188: 0 | U188: 0 | V188: 0 | W188: 0 | X188: =ROUND(X171+X91,0) -> 0 | Y188: =ROUND(Y171+Y91,0) -> 0 | Z188: =ROUND(Z171+Z91,0) -> 0 | AA188: 0 | AB188: =ROUND(AB171+AB91,0) -> 0 | AC188: 0 | AD188: 0 | AE188: 0
B192: Projekt | K192: =K12 -> 2025 | L192: 2026 | M192: 2027 | N192: 2028 | O192: 2029 | P192: 2030 | Q192: 2031 | R192: 2032 | S192: 2033 | T192: 2034 | U192: 2035 | V192: 2036 | W192: 2037 | X192: =X12 -> 2038 | Y192: =Y12 -> 2039 | Z192: =Z12 -> 2040 | AA192: 2041 | AB192: =AB12 -> 2042 | AC192: 2043 | AD192: 2044 | AE192: 2045
B194: koszty zakończonych prac rozwojowych | D194: wartość netto | E194: rok i miesiąc zakończenia | F194: Kwalifikowalne | G194: Dofinansowanie amortyzacji | H194: dofinansowanie % | I194: dofinansowanie PLN | J194: kontrolka
B195: koszty zakończonych prac rozwojowych | D195: =MAX('Koszty operacyjne'!J937:AE937)-MAX('Koszty operacyjne'!J1178:AE1178) -> 0 | E195: =IFERROR(IF(Modul_badawczo_rozwojowy=tak,Wdrozenie_KoniecPR,IF(Modul_badawczo_rozwojowy=nie,DATE(Koniec_Projekt,Założenia!$D$18,1),"")),"") -> 2028-12-31 | F195: tak | G195: nie | H195: ='Rozliczenie dotacji'!E62 -> 0 | I195: =IF(AND(F195="tak",G195="tak"),SUM(K1129:AE1129),IF(AND(F195="tak",G195="nie",ISNUMBER(H195)),'Rozliczenie dotacji'!F62,0)) -> 0 | K195: =IFERROR(ROUND(IF(AND(YEAR($E195)=LataProjekcji,$D195>0),$D195,0),0),0) -> 0 | L195: 0 | M195: 0 | N195: 0 | O195: 0 | P195: 0 | Q195: 0 | R195: 0 | S195: 0 | T195: 0 | U195: 0 | V195: 0 | W195: 0 | X195: =IFERROR(ROUND(IF(AND(YEAR($E195)=LataProjekcji,$D195>0),$D195,0),0),0) -> 0 | Y195: 0 | Z195: 0 | AA195: 0 | AB195: 0 | AC195: 0 | AD195: 0 | AE195: 0
B196: koszty zakończonych prac rozwojowych | D196: =MAX('Koszty operacyjne'!J1178:AE1178) -> 0 | E196: =IFERROR(IF(Modul_badawczo_rozwojowy=tak,Wdrozenie_KoniecPR,IF(Modul_badawczo_rozwojowy=nie,DATE(Koniec_Projekt,Założenia!$D$18,1),"")),"") -> 2028-12-31 | F196: nie | G196: nie | H196: 0 | I196: =IF(AND(F196="tak",G196="tak"),SUM(K1136:AE1136),IF(AND(F196="tak",G196="nie",ISNUMBER(H196)),'Rozliczenie dotacji'!F6,0)) -> 0 | J196: =IF(OR(AND(ISNUMBER(D196),ISBLANK(E196)),AND(ISNUMBER(E196),ISBLANK(D196))),"uzupełnij dane","") ->  | K196: 0 | L196: 0 | M196: 0 | N196: 0 | O196: 0 | P196: 0 | Q196: 0 | R196: 0 | S196: 0 | T196: 0 | U196: 0 | V196: 0 | W196: 0 | X196: 0 | Y196: 0 | Z196: 0 | AA196: 0 | AB196: 0 | AC196: 0 | AD196: 0 | AE196: 0
I197: =IF(AND(F197="tak",G197="tak"),SUM(K1143:AE1143),IF(AND(F197="tak",G197="nie",ISNUMBER(H197)),'Rozliczenie dotacji'!F64,0)) -> 0 | J197: =IF(SUMPRODUCT(ISBLANK(D197:G197)*1)=4,"wstaw dane",IF(AND(SUMPRODUCT(ISBLANK(D197:G197)*1)>0,SUMPRODUCT(ISBLANK(D197:G197)*1)<4),"uzupełnij dane",IF(OR(AND(F197=nie,ISNUMBER(H197)=TRUE),AND(F197=tak,G197=tak,ISNUMBER(H197)=TRUE)),"usuń % dotacji",IF(AND(F197=nie,G197=tak),"popraw dane",IF(AND(F197=tak,G197=nie,ISBLANK(H197)=TRUE),"wstaw % dotacji","ok"))))) -> wstaw dane | K197: 0 | L197: 0 | M197: 0 | N197: 0 | O197: 0 | P197: 0 | Q197: 0 | R197: 0 | S197: 0 | T197: 0 | U197: 0 | V197: 0 | W197: 0 | X197: 0 | Y197: 0 | Z197: 0 | AA197: 0 | AB197: 0 | AC197: 0 | AD197: 0 | AE197: 0
I198: =IF(AND(F198="tak",G198="tak"),SUM(K1150:AE1150),IF(AND(F198="tak",G198="nie",ISNUMBER(H198)),'Rozliczenie dotacji'!F65,0)) -> 0 | J198: =IF(SUMPRODUCT(ISBLANK(D198:G198)*1)=4,"wstaw dane",IF(AND(SUMPRODUCT(ISBLANK(D198:G198)*1)>0,SUMPRODUCT(ISBLANK(D198:G198)*1)<4),"uzupełnij dane",IF(OR(AND(F198=nie,ISNUMBER(H198)=TRUE),AND(F198=tak,G198=tak,ISNUMBER(H198)=TRUE)),"usuń % dotacji",IF(AND(F198=nie,G198=tak),"popraw dane",IF(AND(F198=tak,G198=nie,ISBLANK(H198)=TRUE),"wstaw % dotacji","ok"))))) -> wstaw dane | K198: 0 | L198: 0 | M198: 0 | N198: 0 | O198: 0 | P198: 0 | Q198: 0 | R198: 0 | S198: 0 | T198: 0 | U198: 0 | V198: 0 | W198: 0 | X198: 0 | Y198: 0 | Z198: 0 | AA198: 0 | AB198: 0 | AC198: 0 | AD198: 0 | AE198: 0
I199: =IF(AND(F199="tak",G199="tak"),SUM(K1157:AE1157),IF(AND(F199="tak",G199="nie",ISNUMBER(H199)),'Rozliczenie dotacji'!F66,0)) -> 0 | J199: =IF(SUMPRODUCT(ISBLANK(D199:G199)*1)=4,"wstaw dane",IF(AND(SUMPRODUCT(ISBLANK(D199:G199)*1)>0,SUMPRODUCT(ISBLANK(D199:G199)*1)<4),"uzupełnij dane",IF(OR(AND(F199=nie,ISNUMBER(H199)=TRUE),AND(F199=tak,G199=tak,ISNUMBER(H199)=TRUE)),"usuń % dotacji",IF(AND(F199=nie,G199=tak),"popraw dane",IF(AND(F199=tak,G199=nie,ISBLANK(H199)=TRUE),"wstaw % dotacji","ok"))))) -> wstaw dane | K199: 0 | L199: 0 | M199: 0 | N199: 0 | O199: 0 | P199: 0 | Q199: 0 | R199: 0 | S199: 0 | T199: 0 | U199: 0 | V199: 0 | W199: 0 | X199: 0 | Y199: 0 | Z199: 0 | AA199: 0 | AB199: 0 | AC199: 0 | AD199: 0 | AE199: 0
I200: =IF(AND(F200="tak",G200="tak"),SUM(K1164:AE1164),IF(AND(F200="tak",G200="nie",ISNUMBER(H200)),'Rozliczenie dotacji'!F67,0)) -> 0 | J200: =IF(SUMPRODUCT(ISBLANK(D200:G200)*1)=4,"wstaw dane",IF(AND(SUMPRODUCT(ISBLANK(D200:G200)*1)>0,SUMPRODUCT(ISBLANK(D200:G200)*1)<4),"uzupełnij dane",IF(OR(AND(F200=nie,ISNUMBER(H200)=TRUE),AND(F200=tak,G200=tak,ISNUMBER(H200)=TRUE)),"usuń % dotacji",IF(AND(F200=nie,G200=tak),"popraw dane",IF(AND(F200=tak,G200=nie,ISBLANK(H200)=TRUE),"wstaw % dotacji","ok"))))) -> wstaw dane | K200: 0 | L200: 0 | M200: 0 | N200: 0 | O200: 0 | P200: 0 | Q200: 0 | R200: 0 | S200: 0 | T200: 0 | U200: 0 | V200: 0 | W200: 0 | X200: 0 | Y200: 0 | Z200: 0 | AA200: 0 | AB200: 0 | AC200: 0 | AD200: 0 | AE200: 0
I201: =IF(AND(F201="tak",G201="tak"),SUM(K1171:AE1171),IF(AND(F201="tak",G201="nie",ISNUMBER(H201)),'Rozliczenie dotacji'!F68,0)) -> 0 | J201: =IF(SUMPRODUCT(ISBLANK(D201:G201)*1)=4,"wstaw dane",IF(AND(SUMPRODUCT(ISBLANK(D201:G201)*1)>0,SUMPRODUCT(ISBLANK(D201:G201)*1)<4),"uzupełnij dane",IF(OR(AND(F201=nie,ISNUMBER(H201)=TRUE),AND(F201=tak,G201=tak,ISNUMBER(H201)=TRUE)),"usuń % dotacji",IF(AND(F201=nie,G201=tak),"popraw dane",IF(AND(F201=tak,G201=nie,ISBLANK(H201)=TRUE),"wstaw % dotacji","ok"))))) -> wstaw dane | K201: 0 | L201: 0 | M201: 0 | N201: 0 | O201: 0 | P201: 0 | Q201: 0 | R201: 0 | S201: 0 | T201: 0 | U201: 0 | V201: 0 | W201: 0 | X201: 0 | Y201: 0 | Z201: 0 | AA201: 0 | AB201: 0 | AC201: 0 | AD201: 0 | AE201: 0
I202: =IF(AND(F202="tak",G202="tak"),SUM(K1178:AE1178),IF(AND(F202="tak",G202="nie",ISNUMBER(H202)),'Rozliczenie dotacji'!F69,0)) -> 0 | J202: =IF(SUMPRODUCT(ISBLANK(D202:G202)*1)=4,"wstaw dane",IF(AND(SUMPRODUCT(ISBLANK(D202:G202)*1)>0,SUMPRODUCT(ISBLANK(D202:G202)*1)<4),"uzupełnij dane",IF(OR(AND(F202=nie,ISNUMBER(H202)=TRUE),AND(F202=tak,G202=tak,ISNUMBER(H202)=TRUE)),"usuń % dotacji",IF(AND(F202=nie,G202=tak),"popraw dane",IF(AND(F202=tak,G202=nie,ISBLANK(H202)=TRUE),"wstaw % dotacji","ok"))))) -> wstaw dane | K202: 0 | L202: 0 | M202: 0 | N202: 0 | O202: 0 | P202: 0 | Q202: 0 | R202: 0 | S202: 0 | T202: 0 | U202: 0 | V202: 0 | W202: 0 | X202: 0 | Y202: 0 | Z202: 0 | AA202: 0 | AB202: 0 | AC202: 0 | AD202: 0 | AE202: 0
I203: =IF(AND(F203="tak",G203="tak"),SUM(K1185:AE1185),IF(AND(F203="tak",G203="nie",ISNUMBER(H203)),'Rozliczenie dotacji'!F70,0)) -> 0 | J203: =IF(SUMPRODUCT(ISBLANK(D203:G203)*1)=4,"wstaw dane",IF(AND(SUMPRODUCT(ISBLANK(D203:G203)*1)>0,SUMPRODUCT(ISBLANK(D203:G203)*1)<4),"uzupełnij dane",IF(OR(AND(F203=nie,ISNUMBER(H203)=TRUE),AND(F203=tak,G203=tak,ISNUMBER(H203)=TRUE)),"usuń % dotacji",IF(AND(F203=nie,G203=tak),"popraw dane",IF(AND(F203=tak,G203=nie,ISBLANK(H203)=TRUE),"wstaw % dotacji","ok"))))) -> wstaw dane | K203: 0 | L203: 0 | M203: 0 | N203: 0 | O203: 0 | P203: 0 | Q203: 0 | R203: 0 | S203: 0 | T203: 0 | U203: 0 | V203: 0 | W203: 0 | X203: 0 | Y203: 0 | Z203: 0 | AA203: 0 | AB203: 0 | AC203: 0 | AD203: 0 | AE203: 0
I204: =IF(AND(F204="tak",G204="tak"),SUM(K1192:AE1192),IF(AND(F204="tak",G204="nie",ISNUMBER(H204)),'Rozliczenie dotacji'!F71,0)) -> 0 | J204: =IF(SUMPRODUCT(ISBLANK(D204:G204)*1)=4,"wstaw dane",IF(AND(SUMPRODUCT(ISBLANK(D204:G204)*1)>0,SUMPRODUCT(ISBLANK(D204:G204)*1)<4),"uzupełnij dane",IF(OR(AND(F204=nie,ISNUMBER(H204)=TRUE),AND(F204=tak,G204=tak,ISNUMBER(H204)=TRUE)),"usuń % dotacji",IF(AND(F204=nie,G204=tak),"popraw dane",IF(AND(F204=tak,G204=nie,ISBLANK(H204)=TRUE),"wstaw % dotacji","ok"))))) -> wstaw dane | K204: 0 | L204: 0 | M204: 0 | N204: 0 | O204: 0 | P204: 0 | Q204: 0 | R204: 0 | S204: 0 | T204: 0 | U204: 0 | V204: 0 | W204: 0 | X204: 0 | Y204: 0 | Z204: 0 | AA204: 0 | AB204: 0 | AC204: 0 | AD204: 0 | AE204: 0
I205: =IF(AND(F205="tak",G205="tak"),SUM(K1199:AE1199),IF(AND(F205="tak",G205="nie",ISNUMBER(H205)),'Rozliczenie dotacji'!F72,0)) -> 0 | J205: =IF(SUMPRODUCT(ISBLANK(D205:G205)*1)=4,"wstaw dane",IF(AND(SUMPRODUCT(ISBLANK(D205:G205)*1)>0,SUMPRODUCT(ISBLANK(D205:G205)*1)<4),"uzupełnij dane",IF(OR(AND(F205=nie,ISNUMBER(H205)=TRUE),AND(F205=tak,G205=tak,ISNUMBER(H205)=TRUE)),"usuń % dotacji",IF(AND(F205=nie,G205=tak),"popraw dane",IF(AND(F205=tak,G205=nie,ISBLANK(H205)=TRUE),"wstaw % dotacji","ok"))))) -> wstaw dane | K205: 0 | L205: 0 | M205: 0 | N205: 0 | O205: 0 | P205: 0 | Q205: 0 | R205: 0 | S205: 0 | T205: 0 | U205: 0 | V205: 0 | W205: 0 | X205: 0 | Y205: 0 | Z205: 0 | AA205: 0 | AB205: 0 | AC205: 0 | AD205: 0 | AE205: 0
I206: =IF(AND(F206="tak",G206="tak"),SUM(K1206:AE1206),IF(AND(F206="tak",G206="nie",ISNUMBER(H206)),'Rozliczenie dotacji'!F73,0)) -> 0 | J206: =IF(SUMPRODUCT(ISBLANK(D206:G206)*1)=4,"wstaw dane",IF(AND(SUMPRODUCT(ISBLANK(D206:G206)*1)>0,SUMPRODUCT(ISBLANK(D206:G206)*1)<4),"uzupełnij dane",IF(OR(AND(F206=nie,ISNUMBER(H206)=TRUE),AND(F206=tak,G206=tak,ISNUMBER(H206)=TRUE)),"usuń % dotacji",IF(AND(F206=nie,G206=tak),"popraw dane",IF(AND(F206=tak,G206=nie,ISBLANK(H206)=TRUE),"wstaw % dotacji","ok"))))) -> wstaw dane | K206: 0 | L206: 0 | M206: 0 | N206: 0 | O206: 0 | P206: 0 | Q206: 0 | R206: 0 | S206: 0 | T206: 0 | U206: 0 | V206: 0 | W206: 0 | X206: 0 | Y206: 0 | Z206: 0 | AA206: 0 | AB206: 0 | AC206: 0 | AD206: 0 | AE206: 0
I207: =IF(AND(F207="tak",G207="tak"),SUM(K1213:AE1213),IF(AND(F207="tak",G207="nie",ISNUMBER(H207)),'Rozliczenie dotacji'!F74,0)) -> 0 | J207: =IF(SUMPRODUCT(ISBLANK(D207:G207)*1)=4,"wstaw dane",IF(AND(SUMPRODUCT(ISBLANK(D207:G207)*1)>0,SUMPRODUCT(ISBLANK(D207:G207)*1)<4),"uzupełnij dane",IF(OR(AND(F207=nie,ISNUMBER(H207)=TRUE),AND(F207=tak,G207=tak,ISNUMBER(H207)=TRUE)),"usuń % dotacji",IF(AND(F207=nie,G207=tak),"popraw dane",IF(AND(F207=tak,G207=nie,ISBLANK(H207)=TRUE),"wstaw % dotacji","ok"))))) -> wstaw dane | K207: 0 | L207: 0 | M207: 0 | N207: 0 | O207: 0 | P207: 0 | Q207: 0 | R207: 0 | S207: 0 | T207: 0 | U207: 0 | V207: 0 | W207: 0 | X207: 0 | Y207: 0 | Z207: 0 | AA207: 0 | AB207: 0 | AC207: 0 | AD207: 0 | AE207: 0
I208: =IF(AND(F208="tak",G208="tak"),SUM(K1220:AE1220),IF(AND(F208="tak",G208="nie",ISNUMBER(H208)),'Rozliczenie dotacji'!F75,0)) -> 0 | J208: =IF(SUMPRODUCT(ISBLANK(D208:G208)*1)=4,"wstaw dane",IF(AND(SUMPRODUCT(ISBLANK(D208:G208)*1)>0,SUMPRODUCT(ISBLANK(D208:G208)*1)<4),"uzupełnij dane",IF(OR(AND(F208=nie,ISNUMBER(H208)=TRUE),AND(F208=tak,G208=tak,ISNUMBER(H208)=TRUE)),"usuń % dotacji",IF(AND(F208=nie,G208=tak),"popraw dane",IF(AND(F208=tak,G208=nie,ISBLANK(H208)=TRUE),"wstaw % dotacji","ok"))))) -> wstaw dane | K208: 0 | L208: 0 | M208: 0 | N208: 0 | O208: 0 | P208: 0 | Q208: 0 | R208: 0 | S208: 0 | T208: 0 | U208: 0 | V208: 0 | W208: 0 | X208: 0 | Y208: 0 | Z208: 0 | AA208: 0 | AB208: 0 | AC208: 0 | AD208: 0 | AE208: 0
I209: =IF(AND(F209="tak",G209="tak"),SUM(K1227:AE1227),IF(AND(F209="tak",G209="nie",ISNUMBER(H209)),'Rozliczenie dotacji'!F76,0)) -> 0 | J209: =IF(SUMPRODUCT(ISBLANK(D209:G209)*1)=4,"wstaw dane",IF(AND(SUMPRODUCT(ISBLANK(D209:G209)*1)>0,SUMPRODUCT(ISBLANK(D209:G209)*1)<4),"uzupełnij dane",IF(OR(AND(F209=nie,ISNUMBER(H209)=TRUE),AND(F209=tak,G209=tak,ISNUMBER(H209)=TRUE)),"usuń % dotacji",IF(AND(F209=nie,G209=tak),"popraw dane",IF(AND(F209=tak,G209=nie,ISBLANK(H209)=TRUE),"wstaw % dotacji","ok"))))) -> wstaw dane | K209: 0 | L209: 0 | M209: 0 | N209: 0 | O209: 0 | P209: 0 | Q209: 0 | R209: 0 | S209: 0 | T209: 0 | U209: 0 | V209: 0 | W209: 0 | X209: 0 | Y209: 0 | Z209: 0 | AA209: 0 | AB209: 0 | AC209: 0 | AD209: 0 | AE209: 0
I210: =IF(AND(F210="tak",G210="tak"),SUM(K1234:AE1234),IF(AND(F210="tak",G210="nie",ISNUMBER(H210)),'Rozliczenie dotacji'!F77,0)) -> 0 | J210: =IF(SUMPRODUCT(ISBLANK(D210:G210)*1)=4,"wstaw dane",IF(AND(SUMPRODUCT(ISBLANK(D210:G210)*1)>0,SUMPRODUCT(ISBLANK(D210:G210)*1)<4),"uzupełnij dane",IF(OR(AND(F210=nie,ISNUMBER(H210)=TRUE),AND(F210=tak,G210=tak,ISNUMBER(H210)=TRUE)),"usuń % dotacji",IF(AND(F210=nie,G210=tak),"popraw dane",IF(AND(F210=tak,G210=nie,ISBLANK(H210)=TRUE),"wstaw % dotacji","ok"))))) -> wstaw dane | K210: 0 | L210: 0 | M210: 0 | N210: 0 | O210: 0 | P210: 0 | Q210: 0 | R210: 0 | S210: 0 | T210: 0 | U210: 0 | V210: 0 | W210: 0 | X210: 0 | Y210: 0 | Z210: 0 | AA210: 0 | AB210: 0 | AC210: 0 | AD210: 0 | AE210: 0
I211: =IF(AND(F211="tak",G211="tak"),SUM(K1241:AE1241),IF(AND(F211="tak",G211="nie",ISNUMBER(H211)),'Rozliczenie dotacji'!F78,0)) -> 0 | J211: =IF(SUMPRODUCT(ISBLANK(D211:G211)*1)=4,"wstaw dane",IF(AND(SUMPRODUCT(ISBLANK(D211:G211)*1)>0,SUMPRODUCT(ISBLANK(D211:G211)*1)<4),"uzupełnij dane",IF(OR(AND(F211=nie,ISNUMBER(H211)=TRUE),AND(F211=tak,G211=tak,ISNUMBER(H211)=TRUE)),"usuń % dotacji",IF(AND(F211=nie,G211=tak),"popraw dane",IF(AND(F211=tak,G211=nie,ISBLANK(H211)=TRUE),"wstaw % dotacji","ok"))))) -> wstaw dane | K211: 0 | L211: 0 | M211: 0 | N211: 0 | O211: 0 | P211: 0 | Q211: 0 | R211: 0 | S211: 0 | T211: 0 | U211: 0 | V211: 0 | W211: 0 | X211: =IFERROR(ROUND(IF(AND(YEAR($E211)=LataProjekcji,$D211>0),$D211,0),0),0) -> 0 | Y211: 0 | Z211: 0 | AA211: 0 | AB211: 0 | AC211: 0 | AD211: 0 | AE211: 0
I212: =IF(AND(F212="tak",G212="tak"),SUM(K1248:AE1248),IF(AND(F212="tak",G212="nie",ISNUMBER(H212)),'Rozliczenie dotacji'!F79,0)) -> 0 | J212: =IF(SUMPRODUCT(ISBLANK(D212:G212)*1)=4,"wstaw dane",IF(AND(SUMPRODUCT(ISBLANK(D212:G212)*1)>0,SUMPRODUCT(ISBLANK(D212:G212)*1)<4),"uzupełnij dane",IF(OR(AND(F212=nie,ISNUMBER(H212)=TRUE),AND(F212=tak,G212=tak,ISNUMBER(H212)=TRUE)),"usuń % dotacji",IF(AND(F212=nie,G212=tak),"popraw dane",IF(AND(F212=tak,G212=nie,ISBLANK(H212)=TRUE),"wstaw % dotacji","ok"))))) -> wstaw dane | K212: 0 | L212: 0 | M212: 0 | N212: =IFERROR(ROUND(IF(AND(YEAR($E212)=LataProjekcji,$D212>0),$D212,0),0),0) -> 0 | O212: 0 | P212: 0 | Q212: 0 | R212: 0 | S212: 0 | T212: 0 | U212: 0 | V212: 0 | W212: 0 | X212: 0 | Y212: 0 | Z212: 0 | AA212: 0 | AB212: 0 | AC212: 0 | AD212: 0 | AE212: 0
I213: =IF(AND(F213="tak",G213="tak"),SUM(K1255:AE1255),IF(AND(F213="tak",G213="nie",ISNUMBER(H213)),'Rozliczenie dotacji'!F80,0)) -> 0 | J213: =IF(SUMPRODUCT(ISBLANK(D213:G213)*1)=4,"wstaw dane",IF(AND(SUMPRODUCT(ISBLANK(D213:G213)*1)>0,SUMPRODUCT(ISBLANK(D213:G213)*1)<4),"uzupełnij dane",IF(OR(AND(F213=nie,ISNUMBER(H213)=TRUE),AND(F213=tak,G213=tak,ISNUMBER(H213)=TRUE)),"usuń % dotacji",IF(AND(F213=nie,G213=tak),"popraw dane",IF(AND(F213=tak,G213=nie,ISBLANK(H213)=TRUE),"wstaw % dotacji","ok"))))) -> wstaw dane | K213: 0 | L213: 0 | M213: 0 | N213: 0 | O213: 0 | P213: 0 | Q213: 0 | R213: 0 | S213: 0 | T213: 0 | U213: 0 | V213: 0 | W213: 0 | X213: 0 | Y213: 0 | Z213: 0 | AA213: 0 | AB213: 0 | AC213: 0 | AD213: 0 | AE213: 0
I214: =IF(AND(F214="tak",G214="tak"),SUM(K1262:AE1262),IF(AND(F214="tak",G214="nie",ISNUMBER(H214)),'Rozliczenie dotacji'!F81,0)) -> 0 | J214: =IF(SUMPRODUCT(ISBLANK(D214:G214)*1)=4,"wstaw dane",IF(AND(SUMPRODUCT(ISBLANK(D214:G214)*1)>0,SUMPRODUCT(ISBLANK(D214:G214)*1)<4),"uzupełnij dane",IF(OR(AND(F214=nie,ISNUMBER(H214)=TRUE),AND(F214=tak,G214=tak,ISNUMBER(H214)=TRUE)),"usuń % dotacji",IF(AND(F214=nie,G214=tak),"popraw dane",IF(AND(F214=tak,G214=nie,ISBLANK(H214)=TRUE),"wstaw % dotacji","ok"))))) -> wstaw dane | K214: 0 | L214: 0 | M214: 0 | N214: 0 | O214: 0 | P214: 0 | Q214: 0 | R214: 0 | S214: 0 | T214: 0 | U214: 0 | V214: 0 | W214: 0 | X214: 0 | Y214: 0 | Z214: 0 | AA214: 0 | AB214: 0 | AC214: 0 | AD214: 0 | AE214: 0
I215: =IF(AND(F215="tak",G215="tak"),SUM(K1269:AE1269),IF(AND(F215="tak",G215="nie",ISNUMBER(H215)),'Rozliczenie dotacji'!F82,0)) -> 0 | J215: =IF(SUMPRODUCT(ISBLANK(D215:G215)*1)=4,"wstaw dane",IF(AND(SUMPRODUCT(ISBLANK(D215:G215)*1)>0,SUMPRODUCT(ISBLANK(D215:G215)*1)<4),"uzupełnij dane",IF(OR(AND(F215=nie,ISNUMBER(H215)=TRUE),AND(F215=tak,G215=tak,ISNUMBER(H215)=TRUE)),"usuń % dotacji",IF(AND(F215=nie,G215=tak),"popraw dane",IF(AND(F215=tak,G215=nie,ISBLANK(H215)=TRUE),"wstaw % dotacji","ok"))))) -> wstaw dane | K215: 0 | L215: 0 | M215: 0 | N215: 0 | O215: 0 | P215: 0 | Q215: 0 | R215: 0 | S215: 0 | T215: 0 | U215: 0 | V215: 0 | W215: 0 | X215: 0 | Y215: 0 | Z215: 0 | AA215: 0 | AB215: 0 | AC215: 0 | AD215: 0 | AE215: 0
I216: =IF(AND(F216="tak",G216="tak"),SUM(K1276:AE1276),IF(AND(F216="tak",G216="nie",ISNUMBER(H216)),'Rozliczenie dotacji'!F83,0)) -> 0 | J216: =IF(SUMPRODUCT(ISBLANK(D216:G216)*1)=4,"wstaw dane",IF(AND(SUMPRODUCT(ISBLANK(D216:G216)*1)>0,SUMPRODUCT(ISBLANK(D216:G216)*1)<4),"uzupełnij dane",IF(OR(AND(F216=nie,ISNUMBER(H216)=TRUE),AND(F216=tak,G216=tak,ISNUMBER(H216)=TRUE)),"usuń % dotacji",IF(AND(F216=nie,G216=tak),"popraw dane",IF(AND(F216=tak,G216=nie,ISBLANK(H216)=TRUE),"wstaw % dotacji","ok"))))) -> wstaw dane | K216: 0 | L216: 0 | M216: 0 | N216: 0 | O216: 0 | P216: 0 | Q216: 0 | R216: 0 | S216: 0 | T216: 0 | U216: 0 | V216: 0 | W216: 0 | X216: =IFERROR(ROUND(IF(AND(YEAR($E216)=LataProjekcji,$D216>0),$D216,0),0),0) -> 0 | Y216: =IFERROR(ROUND(IF(AND(YEAR($E216)=LataProjekcji,$D216>0),$D216,0),0),0) -> 0 | Z216: 0 | AA216: 0 | AB216: 0 | AC216: 0 | AD216: 0 | AE216: 0
B217: Razem | D217: =SUM(D195:D216) -> 0 | I217: =SUM(I195:I216) -> 0 | K217: =SUM(K195:K216) -> 0 | L217: 0 | M217: 0 | N217: 0 | O217: 0 | P217: 0 | Q217: 0 | R217: 0 | S217: 0 | T217: 0 | U217: 0 | V217: 0 | W217: 0 | X217: =SUM(X195:X216) -> 0 | Y217: =SUM(Y195:Y216) -> 0 | Z217: =SUM(Z195:Z216) -> 0 | AA217: 0 | AB217: =SUM(AB195:AB216) -> 0 | AC217: 0 | AD217: 0 | AE217: 0
B218: - amortyzacja | K218: =IF(LataProjekcji<=Koniec,ROUND(K1126+K1133+K1140+K1147+K1273+K1154+K1161+K1168+K1175+K1182+K1189+K1196+K1203+K1210+K1217+K1224+K1231+K1238+K1245+K1252+K1259+K1266,0),0) -> 0 | L218: 0 | M218: =IF(LataProjekcji<=Koniec,ROUND(M1126+M1133+M1140+M1147+M1273+M1154+M1161+M1168+M1175+M1182+M1189+M1196+M1203+M1210+M1217+M1224+M1231+M1238+M1245+M1252+M1259+M1266,0),0) -> 0 | N218: 0 | O218: 0 | P218: 0 | Q218: 0 | R218: 0 | S218: 0 | T218: 0 | U218: 0 | V218: 0 | W218: 0 | X218: =IF(LataProjekcji<=Koniec,ROUND(X1126+X1133+X1140+X1147+X1273+X1154+X1161+X1168+X1175+X1182+X1189+X1196+X1203+X1210+X1217+X1224+X1231+X1238+X1245+X1252+X1259+X1266,0),0) -> 0 | Y218: 0 | Z218: =IF(LataProjekcji<=Koniec,ROUND(Z1126+Z1133+Z1140+Z1147+Z1273+Z1154+Z1161+Z1168+Z1175+Z1182+Z1189+Z1196+Z1203+Z1210+Z1217+Z1224+Z1231+Z1238+Z1245+Z1252+Z1259+Z1266,0),0) -> 0 | AA218: 0 | AB218: =IF(LataProjekcji<=Koniec,ROUND(AB1126+AB1133+AB1140+AB1147+AB1273+AB1154+AB1161+AB1168+AB1175+AB1182+AB1189+AB1196+AB1203+AB1210+AB1217+AB1224+AB1231+AB1238+AB1245+AB1252+AB1259+AB1266,0),0) -> 0 | AC218: 0 | AD218: 0 | AE218: 0
B219: - umorzenie | K219: =IF(LataProjekcji<=Koniec,ROUND(K1127+K1134+K1141+K1148+K1274+K1155+K1162+K1169+K1176+K1183+K1190+K1197+K1204+K1211+K1218+K1225+K1232+K1239+K1246+K1253+K1260+K1267,0),0) -> 0 | L219: 0 | M219: 0 | N219: 0 | O219: 0 | P219: 0 | Q219: 0 | R219: 0 | S219: 0 | T219: 0 | U219: 0 | V219: 0 | W219: 0 | X219: 0 | Y219: 0 | Z219: =IF(LataProjekcji<=Koniec,ROUND(Z1127+Z1134+Z1141+Z1148+Z1274+Z1155+Z1162+Z1169+Z1176+Z1183+Z1190+Z1197+Z1204+Z1211+Z1218+Z1225+Z1232+Z1239+Z1246+Z1253+Z1260+Z1267,0),0) -> 0 | AA219: 0 | AB219: =IF(LataProjekcji<=Koniec,ROUND(AB1127+AB1134+AB1141+AB1148+AB1274+AB1155+AB1162+AB1169+AB1176+AB1183+AB1190+AB1197+AB1204+AB1211+AB1218+AB1225+AB1232+AB1239+AB1246+AB1253+AB1260+AB1267,0),0) -> 0 | AC219: 0 | AD219: 0 | AE219: 0
B220: - wartość księgowa netto | K220: =IF(LataProjekcji<=Koniec,ROUND(K1128+K1135+K1142+K1149+K1275+K1156+K1163+K1170+K1177+K1184+K1191+K1198+K1205+K1212+K1219+K1226+K1233+K1240+K1247+K1254+K1261+K1268,0),0) -> 0 | L220: 0 | M220: 0 | N220: 0 | O220: 0 | P220: 0 | Q220: 0 | R220: 0 | S220: 0 | T220: 0 | U220: 0 | V220: 0 | W220: 0 | X220: 0 | Y220: 0 | Z220: =IF(LataProjekcji<=Koniec,ROUND(Z1128+Z1135+Z1142+Z1149+Z1275+Z1156+Z1163+Z1170+Z1177+Z1184+Z1191+Z1198+Z1205+Z1212+Z1219+Z1226+Z1233+Z1240+Z1247+Z1254+Z1261+Z1268,0),0) -> 0 | AA220: 0 | AB220: =IF(LataProjekcji<=Koniec,ROUND(AB1128+AB1135+AB1142+AB1149+AB1275+AB1156+AB1163+AB1170+AB1177+AB1184+AB1191+AB1198+AB1205+AB1212+AB1219+AB1226+AB1233+AB1240+AB1247+AB1254+AB1261+AB1268,0),0) -> 0 | AC220: 0 | AD220: 0 | AE220: 0
B222: Poziom dofinansowania amortyzacji (w %), tabelę należy wypełnić w przypadku wnioskowania o dotację do amortyzacji, tj. w przypadku gdy amortyzacja jest kosztem kwalifikowalnym
B223: =IF(ISBLANK(B197),"",B197) ->  | J223: =IF(J197="wstaw dane","",IF(OR(ISBLANK(F197)=TRUE,ISBLANK(G197)=TRUE),"uzupełnij dane",IF(OR((AND(F197="nie",SUMPRODUCT(ISNUMBER(K223:AE223)*1)>0)),AND(F197=tak,G197=nie,SUMPRODUCT(ISNUMBER(K223:AE223)*1)>0)),"usuń % dotacji",IF(AND(F197=tak,G197=tak,SUMPRODUCT(ISNUMBER(K223:AE223)*1)=0),"wstaw % dotacji","ok")))) -> 
J224: =IF(J198="wstaw dane","",IF(OR(ISBLANK(F198)=TRUE,ISBLANK(G198)=TRUE),"uzupełnij dane",IF(OR((AND(F198="nie",SUMPRODUCT(ISNUMBER(K224:AE224)*1)>0)),AND(F198=tak,G198=nie,SUMPRODUCT(ISNUMBER(K224:AE224)*1)>0)),"usuń % dotacji",IF(AND(F198=tak,G198=tak,SUMPRODUCT(ISNUMBER(K224:AE224)*1)=0),"wstaw % dotacji","ok")))) -> 
J225: =IF(J199="wstaw dane","",IF(OR(ISBLANK(F199)=TRUE,ISBLANK(G199)=TRUE),"uzupełnij dane",IF(OR((AND(F199="nie",SUMPRODUCT(ISNUMBER(K225:AE225)*1)>0)),AND(F199=tak,G199=nie,SUMPRODUCT(ISNUMBER(K225:AE225)*1)>0)),"usuń % dotacji",IF(AND(F199=tak,G199=tak,SUMPRODUCT(ISNUMBER(K225:AE225)*1)=0),"wstaw % dotacji","ok")))) -> 
J226: =IF(J200="wstaw dane","",IF(OR(ISBLANK(F200)=TRUE,ISBLANK(G200)=TRUE),"uzupełnij dane",IF(OR((AND(F200="nie",SUMPRODUCT(ISNUMBER(K226:AE226)*1)>0)),AND(F200=tak,G200=nie,SUMPRODUCT(ISNUMBER(K226:AE226)*1)>0)),"usuń % dotacji",IF(AND(F200=tak,G200=tak,SUMPRODUCT(ISNUMBER(K226:AE226)*1)=0),"wstaw % dotacji","ok")))) -> 
J227: =IF(J201="wstaw dane","",IF(OR(ISBLANK(F201)=TRUE,ISBLANK(G201)=TRUE),"uzupełnij dane",IF(OR((AND(F201="nie",SUMPRODUCT(ISNUMBER(K227:AE227)*1)>0)),AND(F201=tak,G201=nie,SUMPRODUCT(ISNUMBER(K227:AE227)*1)>0)),"usuń % dotacji",IF(AND(F201=tak,G201=tak,SUMPRODUCT(ISNUMBER(K227:AE227)*1)=0),"wstaw % dotacji","ok")))) -> 
J228: =IF(J202="wstaw dane","",IF(OR(ISBLANK(F202)=TRUE,ISBLANK(G202)=TRUE),"uzupełnij dane",IF(OR((AND(F202="nie",SUMPRODUCT(ISNUMBER(K228:AE228)*1)>0)),AND(F202=tak,G202=nie,SUMPRODUCT(ISNUMBER(K228:AE228)*1)>0)),"usuń % dotacji",IF(AND(F202=tak,G202=tak,SUMPRODUCT(ISNUMBER(K228:AE228)*1)=0),"wstaw % dotacji","ok")))) -> 
J229: =IF(J203="wstaw dane","",IF(OR(ISBLANK(F203)=TRUE,ISBLANK(G203)=TRUE),"uzupełnij dane",IF(OR((AND(F203="nie",SUMPRODUCT(ISNUMBER(K229:AE229)*1)>0)),AND(F203=tak,G203=nie,SUMPRODUCT(ISNUMBER(K229:AE229)*1)>0)),"usuń % dotacji",IF(AND(F203=tak,G203=tak,SUMPRODUCT(ISNUMBER(K229:AE229)*1)=0),"wstaw % dotacji","ok")))) -> 
J230: =IF(J204="wstaw dane","",IF(OR(ISBLANK(F204)=TRUE,ISBLANK(G204)=TRUE),"uzupełnij dane",IF(OR((AND(F204="nie",SUMPRODUCT(ISNUMBER(K230:AE230)*1)>0)),AND(F204=tak,G204=nie,SUMPRODUCT(ISNUMBER(K230:AE230)*1)>0)),"usuń % dotacji",IF(AND(F204=tak,G204=tak,SUMPRODUCT(ISNUMBER(K230:AE230)*1)=0),"wstaw % dotacji","ok")))) -> 
J231: =IF(J205="wstaw dane","",IF(OR(ISBLANK(F205)=TRUE,ISBLANK(G205)=TRUE),"uzupełnij dane",IF(OR((AND(F205="nie",SUMPRODUCT(ISNUMBER(K231:AE231)*1)>0)),AND(F205=tak,G205=nie,SUMPRODUCT(ISNUMBER(K231:AE231)*1)>0)),"usuń % dotacji",IF(AND(F205=tak,G205=tak,SUMPRODUCT(ISNUMBER(K231:AE231)*1)=0),"wstaw % dotacji","ok")))) -> 
J232: =IF(J206="wstaw dane","",IF(OR(ISBLANK(F206)=TRUE,ISBLANK(G206)=TRUE),"uzupełnij dane",IF(OR((AND(F206="nie",SUMPRODUCT(ISNUMBER(K232:AE232)*1)>0)),AND(F206=tak,G206=nie,SUMPRODUCT(ISNUMBER(K232:AE232)*1)>0)),"usuń % dotacji",IF(AND(F206=tak,G206=tak,SUMPRODUCT(ISNUMBER(K232:AE232)*1)=0),"wstaw % dotacji","ok")))) -> 
J233: =IF(J207="wstaw dane","",IF(OR(ISBLANK(F207)=TRUE,ISBLANK(G207)=TRUE),"uzupełnij dane",IF(OR((AND(F207="nie",SUMPRODUCT(ISNUMBER(K233:AE233)*1)>0)),AND(F207=tak,G207=nie,SUMPRODUCT(ISNUMBER(K233:AE233)*1)>0)),"usuń % dotacji",IF(AND(F207=tak,G207=tak,SUMPRODUCT(ISNUMBER(K233:AE233)*1)=0),"wstaw % dotacji","ok")))) -> 
J234: =IF(J208="wstaw dane","",IF(OR(ISBLANK(F208)=TRUE,ISBLANK(G208)=TRUE),"uzupełnij dane",IF(OR((AND(F208="nie",SUMPRODUCT(ISNUMBER(K234:AE234)*1)>0)),AND(F208=tak,G208=nie,SUMPRODUCT(ISNUMBER(K234:AE234)*1)>0)),"usuń % dotacji",IF(AND(F208=tak,G208=tak,SUMPRODUCT(ISNUMBER(K234:AE234)*1)=0),"wstaw % dotacji","ok")))) -> 
J235: =IF(J209="wstaw dane","",IF(OR(ISBLANK(F209)=TRUE,ISBLANK(G209)=TRUE),"uzupełnij dane",IF(OR((AND(F209="nie",SUMPRODUCT(ISNUMBER(K235:AE235)*1)>0)),AND(F209=tak,G209=nie,SUMPRODUCT(ISNUMBER(K235:AE235)*1)>0)),"usuń % dotacji",IF(AND(F209=tak,G209=tak,SUMPRODUCT(ISNUMBER(K235:AE235)*1)=0),"wstaw % dotacji","ok")))) -> 
J236: =IF(J210="wstaw dane","",IF(OR(ISBLANK(F210)=TRUE,ISBLANK(G210)=TRUE),"uzupełnij dane",IF(OR((AND(F210="nie",SUMPRODUCT(ISNUMBER(K236:AE236)*1)>0)),AND(F210=tak,G210=nie,SUMPRODUCT(ISNUMBER(K236:AE236)*1)>0)),"usuń % dotacji",IF(AND(F210=tak,G210=tak,SUMPRODUCT(ISNUMBER(K236:AE236)*1)=0),"wstaw % dotacji","ok")))) -> 
J237: =IF(J211="wstaw dane","",IF(OR(ISBLANK(F211)=TRUE,ISBLANK(G211)=TRUE),"uzupełnij dane",IF(OR((AND(F211="nie",SUMPRODUCT(ISNUMBER(K237:AE237)*1)>0)),AND(F211=tak,G211=nie,SUMPRODUCT(ISNUMBER(K237:AE237)*1)>0)),"usuń % dotacji",IF(AND(F211=tak,G211=tak,SUMPRODUCT(ISNUMBER(K237:AE237)*1)=0),"wstaw % dotacji","ok")))) -> 
J238: =IF(J212="wstaw dane","",IF(OR(ISBLANK(F212)=TRUE,ISBLANK(G212)=TRUE),"uzupełnij dane",IF(OR((AND(F212="nie",SUMPRODUCT(ISNUMBER(K238:AE238)*1)>0)),AND(F212=tak,G212=nie,SUMPRODUCT(ISNUMBER(K238:AE238)*1)>0)),"usuń % dotacji",IF(AND(F212=tak,G212=tak,SUMPRODUCT(ISNUMBER(K238:AE238)*1)=0),"wstaw % dotacji","ok")))) -> 
... 2647 more rows

Sheet Rozliczenie dotacji
B2: =Założenia!B2 -> Wstaw nazwę podmiotu oraz tytuł projektu w zakładce Dane Wnioskodawcy
K11: =Założenia!K27 -> 0 | L11: =Założenia!L27 -> 0 | M11: =Założenia!M27 -> 0 | N11: =Założenia!N27 -> 0 | O11: =Założenia!O27 -> 0 | P11: =Założenia!P27 -> 1 | Q11: =Założenia!Q27 -> 2 | R11: =Założenia!R27 -> 3 | S11: =Założenia!S27 -> 4 | T11: =Założenia!T27 -> 5 | U11: =Założenia!U27 -> 6 | V11: =Założenia!V27 -> 7 | W11: =Założenia!W27 -> 8 | X11: =Założenia!X27 -> 9 | Y11: =Założenia!Y27 -> 10 | Z11: =Założenia!Z27 -> 11 | AA11: =Założenia!AA27 -> 12 | AB11: =Założenia!AB27 -> 13 | AC11: =Założenia!AC27 -> 14 | AD11: =Założenia!AD27 -> 15 | AE11: =Założenia!AE27 -> 16
B12: Działalność dotychczasowa (bez Projektu) | J12: =Założenia!J28 -> 2025-09-30 | K12: =Założenia!K28 -> 2025 | L12: =Założenia!L28 -> 2026 | M12: =Założenia!M28 -> 2027 | N12: =Założenia!N28 -> 2028 | O12: =Założenia!O28 -> 2029 | P12: =Założenia!P28 -> 2030 | Q12: =Założenia!Q28 -> 2031 | R12: =Założenia!R28 -> 2032 | S12: =Założenia!S28 -> 2033 | T12: =Założenia!T28 -> 2034 | U12: =Założenia!U28 -> 2035 | V12: =Założenia!V28 -> 2036 | W12: =Założenia!W28 -> 2037 | X12: =Założenia!X28 -> 2038 | Y12: =Założenia!Y28 -> 2039 | Z12: =Założenia!Z28 -> 2040 | AA12: =Założenia!AA28 -> 2041 | AB12: =Założenia!AB28 -> 2042 | AC12: =Założenia!AC28 -> 2043 | AD12: =Założenia!AD28 -> 2044 | AE12: =Założenia!AE28 -> 2045
F14: dane za ostatni okres: | J14: w tym otrzymane dotacje:
B15: Rozliczenia międzyokresowe bierne (pasywa) | F15: =IF(ISBLANK(DaneBiezace),ROUND('Sprawozdania finansowe'!E141,0),ROUND('Sprawozdania finansowe'!F141,0)) -> 0
B17: Rozterminowanie dotacji otrzymanych w latach poprzednich
B23: Razem | K23: =ROUND(SUM(K18:K22),0) -> 0 | L23: =ROUND(SUM(L18:L22),0) -> 0 | M23: 0 | N23: 0 | O23: 0 | P23: 0 | Q23: 0 | R23: 0 | S23: 0 | T23: 0 | U23: 0 | V23: 0 | W23: 0 | X23: =ROUND(SUM(X18:X22),0) -> 0 | Y23: =ROUND(SUM(Y18:Y22),0) -> 0 | Z23: 0 | AA23: 0 | AB23: =ROUND(SUM(AB18:AB22),0) -> 0 | AC23: 0 | AD23: 0 | AE23: 0
B25: Rozliczenia międzyokresowe bierne (pasywa) - dotacje otrzymane w latach poprzednich | K25: =ROUND(J15-K23,0) -> 0 | L25: =ROUND(K25-L23,0) -> 0 | M25: 0 | N25: 0 | O25: 0 | P25: 0 | Q25: 0 | R25: 0 | S25: 0 | T25: 0 | U25: 0 | V25: 0 | W25: 0 | X25: =ROUND(W25-X23,0) -> 0 | Y25: =ROUND(X25-Y23,0) -> 0 | Z25: 0 | AA25: 0 | AB25: =ROUND(AA25-AB23,0) -> 0 | AC25: =ROUND(AB25-AC23,0) -> 0 | AD25: =ROUND(AC25-AD23,0) -> 0 | AE25: =ROUND(AD25-AE23,0) -> 0
B27: Dotacje otrzymane w latach objętych prognozą
B33: Razem | K33: =ROUND(SUM(K28:K32),0) -> 0 | L33: =ROUND(SUM(L28:L32),0) -> 0 | M33: 0 | N33: 0 | O33: 0 | P33: 0 | Q33: 0 | R33: 0 | S33: 0 | T33: 0 | U33: 0 | V33: 0 | W33: 0 | X33: =ROUND(SUM(X28:X32),0) -> 0 | Y33: =ROUND(SUM(Y28:Y32),0) -> 0 | Z33: 0 | AA33: 0 | AB33: =ROUND(SUM(AB28:AB32),0) -> 0 | AC33: 0 | AD33: 0 | AE33: 0
B34: Razem narastajaco | K34: =K33 -> 0 | L34: =K34+L33 -> 0 | M34: =L34+M33 -> 0 | N34: 0 | O34: 0 | P34: 0 | Q34: 0 | R34: 0 | S34: 0 | T34: 0 | U34: 0 | V34: 0 | W34: 0 | X34: =W34+X33 -> 0 | Y34: =X34+Y33 -> 0 | Z34: 0 | AA34: 0 | AB34: =AA34+AB33 -> 0 | AC34: =AB34+AC33 -> 0 | AD34: =AC34+AD33 -> 0 | AE34: =AD34+AE33 -> 0
B35: Pozostaje do rozliczenia | K35: =K45 -> 0 | L35: =L45 -> 0 | M35: 0 | N35: 0 | O35: 0 | P35: 0 | Q35: 0 | R35: 0 | S35: 0 | T35: 0 | U35: 0 | V35: 0 | W35: 0 | X35: =X45 -> 0 | Y35: =Y45 -> 0 | Z35: 0 | AA35: 0 | AB35: =AB45 -> 0 | AC35: 0 | AD35: 0 | AE35: 0
B37: Rozterminowanie dotacji otrzymanych w latach objętych prognozą
B38: =IF(ISBLANK(B28),"",B28) -> 
B39: =IF(ISBLANK(B29),"",B29) -> 
B40: =IF(ISBLANK(B30),"",B30) -> 
B41: =IF(ISBLANK(B31),"",B31) -> 
B42: =IF(ISBLANK(B32),"",B32) -> 
B43: Razem (do Pozostałych przychodów operacyjnych) | K43: =ROUND(SUM(K38:K42),0) -> 0 | L43: =ROUND(SUM(L38:L42),0) -> 0 | M43: 0 | N43: 0 | O43: 0 | P43: 0 | Q43: 0 | R43: 0 | S43: 0 | T43: 0 | U43: 0 | V43: 0 | W43: 0 | X43: =ROUND(SUM(X38:X42),0) -> 0 | Y43: =ROUND(SUM(Y38:Y42),0) -> 0 | Z43: 0 | AA43: 0 | AB43: =ROUND(SUM(AB38:AB42),0) -> 0 | AC43: 0 | AD43: 0 | AE43: 0
B44: Razem narastajaco | K44: =K43 -> 0 | L44: =K44+L43 -> 0 | M44: 0 | N44: 0 | O44: 0 | P44: 0 | Q44: 0 | R44: 0 | S44: 0 | T44: 0 | U44: 0 | V44: 0 | W44: 0 | X44: 0 | Y44: =X44+Y43 -> 0 | Z44: =Y44+Z43 -> 0 | AA44: =Z44+AA43 -> 0 | AB44: =AA44+AB43 -> 0 | AC44: =AB44+AC43 -> 0 | AD44: =AC44+AD43 -> 0 | AE44: =AD44+AE43 -> 0
B45: Pozostaje do rozliczenia | K45: =K34-K44 -> 0 | L45: =L34-L44 -> 0 | M45: =M34-M44 -> 0 | N45: 0 | O45: 0 | P45: 0 | Q45: 0 | R45: 0 | S45: 0 | T45: 0 | U45: 0 | V45: 0 | W45: 0 | X45: =X34-X44 -> 0 | Y45: =Y34-Y44 -> 0 | Z45: 0 | AA45: 0 | AB45: =AB34-AB44 -> 0 | AC45: 0 | AD45: 0 | AE45: 0
B47: Pozostałe przychody operacyjne - dotacje | K47: =K12 -> 2025 | L47: 2026 | M47: 2027 | N47: 2028 | O47: 2029 | P47: 2030 | Q47: 2031 | R47: 2032 | S47: 2033 | T47: 2034 | U47: 2035 | V47: 2036 | W47: 2037 | X47: =X12 -> 2038 | Y47: =Y12 -> 2039 | Z47: 2040 | AA47: 2041 | AB47: =AB12 -> 2042 | AC47: 2043 | AD47: 2044 | AE47: 2045
B48: - otrzymane w latach poprzednich | K48: =K23 -> 0 | L48: 0 | M48: 0 | N48: 0 | O48: 0 | P48: 0 | Q48: 0 | R48: 0 | S48: 0 | T48: 0 | U48: 0 | V48: 0 | W48: 0 | X48: =X23 -> 0 | Y48: =Y23 -> 0 | Z48: 0 | AA48: 0 | AB48: =AB23 -> 0 | AC48: 0 | AD48: 0 | AE48: 0
B49: - otrzymane w latach objętych prognozą | K49: =K43 -> 0 | L49: =L43 -> 0 | M49: 0 | N49: 0 | O49: 0 | P49: 0 | Q49: 0 | R49: 0 | S49: 0 | T49: 0 | U49: 0 | V49: 0 | W49: 0 | X49: =X43 -> 0 | Y49: =Y43 -> 0 | Z49: 0 | AA49: 0 | AB49: =AB43 -> 0 | AC49: 0 | AD49: 0 | AE49: 0
B50: Razem | K50: =SUM(K48:K49) -> 0 | L50: =SUM(L48:L49) -> 0 | M50: 0 | N50: 0 | O50: 0 | P50: 0 | Q50: 0 | R50: 0 | S50: 0 | T50: 0 | U50: 0 | V50: 0 | W50: 0 | X50: =SUM(X48:X49) -> 0 | Y50: =SUM(Y48:Y49) -> 0 | Z50: 0 | AA50: 0 | AB50: =SUM(AB48:AB49) -> 0 | AC50: 0 | AD50: 0 | AE50: 0
B53: Rozliczenia międzyokresowe bierne (pasywa) | K53: =K12 -> 2025 | L53: 2026 | M53: 2027 | N53: 2028 | O53: 2029 | P53: 2030 | Q53: 2031 | R53: 2032 | S53: 2033 | T53: 2034 | U53: 2035 | V53: 2036 | W53: 2037 | X53: =X12 -> 2038 | Y53: =Y12 -> 2039 | Z53: 2040 | AA53: 2041 | AB53: =AB12 -> 2042 | AC53: 2043 | AD53: 2044 | AE53: 2045
B54: - otrzymane w latach poprzednich | K54: =K25 -> 0 | L54: 0 | M54: 0 | N54: 0 | O54: 0 | P54: 0 | Q54: 0 | R54: 0 | S54: 0 | T54: 0 | U54: 0 | V54: 0 | W54: 0 | X54: =X25 -> 0 | Y54: =Y25 -> 0 | Z54: 0 | AA54: 0 | AB54: =AB25 -> 0 | AC54: 0 | AD54: 0 | AE54: 0
B55: - otrzymane w latach objętych prognozą | K55: =K34-K44 -> 0 | L55: =L34-L44 -> 0 | M55: 0 | N55: 0 | O55: 0 | P55: 0 | Q55: 0 | R55: 0 | S55: 0 | T55: 0 | U55: 0 | V55: 0 | W55: 0 | X55: =X34-X44 -> 0 | Y55: =Y34-Y44 -> 0 | Z55: 0 | AA55: 0 | AB55: =AB34-AB44 -> 0 | AC55: 0 | AD55: 0 | AE55: 0
B56: Razem | K56: =K54+K55 -> 0 | L56: =L54+L55 -> 0 | M56: 0 | N56: 0 | O56: 0 | P56: 0 | Q56: 0 | R56: 0 | S56: 0 | T56: 0 | U56: 0 | V56: 0 | W56: 0 | X56: =X54+X55 -> 0 | Y56: =Y54+Y55 -> 0 | Z56: 0 | AA56: 0 | AB56: =AB54+AB55 -> 0 | AC56: 0 | AD56: 0 | AE56: 0
B59: Projekt | K59: =K12 -> 2025 | L59: 2026 | M59: 2027 | N59: 2028 | O59: 2029 | P59: 2030 | Q59: 2031 | R59: 2032 | S59: 2033 | T59: 2034 | U59: 2035 | V59: 2036 | W59: 2037 | X59: =X12 -> 2038 | Y59: =Y12 -> 2039 | Z59: 2040 | AA59: 2041 | AB59: =AB12 -> 2042 | AC59: 2043 | AD59: 2044 | AE59: 2045
B61: koszty zakończonych prac rozwojowych | C61: wartość netto | D61: rok i miesiąc zakończenia | E61: dofinansowanie % | F61: dofinansowanie PLN | G61: dotacja do amortyzacji
B62: =IF(ISBLANK('Środki trwałe'!B195),"",'Środki trwałe'!B195) -> koszty zakończonych prac rozwojowych | C62: =IF(ISBLANK('Środki trwałe'!D195),"",'Środki trwałe'!D195) -> 0 | D62: =IF(ISBLANK('Środki trwałe'!E195),"",'Środki trwałe'!E195) -> 2028-12-31 | E62: =IFERROR(ROUND(F62/C62,3),0) -> 0 | F62: =MAX('Koszty operacyjne'!J1412:AE1412) -> 0 | J62: ='Środki trwałe'!C195 -> 0 | K62: =IFERROR(ROUND(IF(AND(YEAR($D62)=LataProjekcji,$F62>0),$F62,0),0),0) -> 0 | L62: 0 | M62: 0 | N62: 0 | O62: 0 | P62: 0 | Q62: 0 | R62: 0 | S62: 0 | T62: 0 | U62: 0 | V62: 0 | W62: 0 | X62: =IFERROR(ROUND(IF(AND(YEAR($D62)=LataProjekcji,$F62>0),$F62,0),0),0) -> 0 | Y62: 0 | Z62: 0 | AA62: 0 | AB62: 0 | AC62: 0 | AD62: 0 | AE62: 0
B63: =IF(ISBLANK('Środki trwałe'!B196),"",'Środki trwałe'!B196) -> koszty zakończonych prac rozwojowych | C63: =IF(ISBLANK('Środki trwałe'!D196),"",'Środki trwałe'!D196) -> 0 | D63: =IF(ISBLANK('Środki trwałe'!E196),"",'Środki trwałe'!E196) -> 2028-12-31 | E63: =IF(AND('Środki trwałe'!F1125="tak",'Środki trwałe'!G1125="nie"),'Środki trwałe'!H1125,0) -> 0 | F63: =IFERROR(IF(E63=0,0,ROUND(E63*C63,0)),0) -> 0 | J63: ='Środki trwałe'!C196 -> 0 | K63: 0 | L63: 0 | M63: 0 | N63: 0 | O63: 0 | P63: 0 | Q63: 0 | R63: 0 | S63: 0 | T63: 0 | U63: 0 | V63: 0 | W63: 0 | X63: 0 | Y63: 0 | Z63: 0 | AA63: 0 | AB63: 0 | AC63: 0 | AD63: 0 | AE63: 0
B64: =IF(ISBLANK('Środki trwałe'!B197),"",'Środki trwałe'!B197) ->  | C64: =IF(ISBLANK('Środki trwałe'!D197),"",'Środki trwałe'!D197) ->  | D64: =IF(ISBLANK('Środki trwałe'!E197),"",'Środki trwałe'!E197) ->  | E64: =IF(AND('Środki trwałe'!F197="tak",'Środki trwałe'!G197="nie"),'Środki trwałe'!H197,0) -> 0 | F64: =IFERROR(IF(E64=0,0,ROUND(E64*C64,0)),0) -> 0 | G64: =IF(AND('Środki trwałe'!F197="tak",'Środki trwałe'!G197="tak"),'Środki trwałe'!I197,0) -> 0 | J64: =IF(ISBLANK('Środki trwałe'!C197),"",'Środki trwałe'!C197) ->  | K64: 0 | L64: 0 | M64: 0 | N64: 0 | O64: 0 | P64: 0 | Q64: 0 | R64: 0 | S64: 0 | T64: 0 | U64: 0 | V64: 0 | W64: 0 | X64: 0 | Y64: 0 | Z64: 0 | AA64: 0 | AB64: 0 | AC64: 0 | AD64: 0 | AE64: 0
B65: =IF(ISBLANK('Środki trwałe'!B198),"",'Środki trwałe'!B198) ->  | C65: =IF(ISBLANK('Środki trwałe'!D198),"",'Środki trwałe'!D198) ->  | D65: =IF(ISBLANK('Środki trwałe'!E198),"",'Środki trwałe'!E198) ->  | E65: =IF(AND('Środki trwałe'!F198="tak",'Środki trwałe'!G198="nie"),'Środki trwałe'!H198,0) -> 0 | F65: =IFERROR(IF(E65=0,0,ROUND(E65*C65,0)),0) -> 0 | G65: =IF(AND('Środki trwałe'!F198="tak",'Środki trwałe'!G198="tak"),'Środki trwałe'!I198,0) -> 0 | J65: =IF(ISBLANK('Środki trwałe'!C198),"",'Środki trwałe'!C198) ->  | K65: 0 | L65: 0 | M65: 0 | N65: 0 | O65: 0 | P65: 0 | Q65: 0 | R65: 0 | S65: 0 | T65: 0 | U65: 0 | V65: 0 | W65: 0 | X65: 0 | Y65: 0 | Z65: 0 | AA65: 0 | AB65: 0 | AC65: 0 | AD65: 0 | AE65: 0
B66: =IF(ISBLANK('Środki trwałe'!B199),"",'Środki trwałe'!B199) ->  | C66: =IF(ISBLANK('Środki trwałe'!D199),"",'Środki trwałe'!D199) ->  | D66: =IF(ISBLANK('Środki trwałe'!E199),"",'Środki trwałe'!E199) ->  | E66: =IF(AND('Środki trwałe'!F199="tak",'Środki trwałe'!G199="nie"),'Środki trwałe'!H199,0) -> 0 | F66: 0 | G66: =IF(AND('Środki trwałe'!F199="tak",'Środki trwałe'!G199="tak"),'Środki trwałe'!I199,0) -> 0 | J66: =IF(ISBLANK('Środki trwałe'!C199),"",'Środki trwałe'!C199) ->  | K66: 0 | L66: 0 | M66: 0 | N66: 0 | O66: 0 | P66: 0 | Q66: 0 | R66: 0 | S66: 0 | T66: 0 | U66: 0 | V66: 0 | W66: 0 | X66: 0 | Y66: 0 | Z66: 0 | AA66: 0 | AB66: 0 | AC66: 0 | AD66: 0 | AE66: 0
B67: =IF(ISBLANK('Środki trwałe'!B200),"",'Środki trwałe'!B200) ->  | C67: =IF(ISBLANK('Środki trwałe'!D200),"",'Środki trwałe'!D200) ->  | D67: =IF(ISBLANK('Środki trwałe'!E200),"",'Środki trwałe'!E200) ->  | E67: =IF(AND('Środki trwałe'!F200="tak",'Środki trwałe'!G200="nie"),'Środki trwałe'!H200,0) -> 0 | F67: 0 | G67: =IF(AND('Środki trwałe'!F200="tak",'Środki trwałe'!G200="tak"),'Środki trwałe'!I200,0) -> 0 | J67: =IF(ISBLANK('Środki trwałe'!C200),"",'Środki trwałe'!C200) ->  | K67: 0 | L67: 0 | M67: 0 | N67: 0 | O67: 0 | P67: 0 | Q67: 0 | R67: 0 | S67: 0 | T67: 0 | U67: 0 | V67: 0 | W67: 0 | X67: 0 | Y67: 0 | Z67: 0 | AA67: 0 | AB67: 0 | AC67: 0 | AD67: 0 | AE67: 0
B68: =IF(ISBLANK('Środki trwałe'!B201),"",'Środki trwałe'!B201) ->  | C68: =IF(ISBLANK('Środki trwałe'!D201),"",'Środki trwałe'!D201) ->  | D68: =IF(ISBLANK('Środki trwałe'!E201),"",'Środki trwałe'!E201) ->  | E68: =IF(AND('Środki trwałe'!F201="tak",'Środki trwałe'!G201="nie"),'Środki trwałe'!H201,0) -> 0 | F68: 0 | G68: =IF(AND('Środki trwałe'!F201="tak",'Środki trwałe'!G201="tak"),'Środki trwałe'!I201,0) -> 0 | J68: =IF(ISBLANK('Środki trwałe'!C201),"",'Środki trwałe'!C201) ->  | K68: 0 | L68: 0 | M68: 0 | N68: 0 | O68: 0 | P68: 0 | Q68: 0 | R68: 0 | S68: 0 | T68: 0 | U68: 0 | V68: 0 | W68: 0 | X68: 0 | Y68: 0 | Z68: 0 | AA68: 0 | AB68: 0 | AC68: 0 | AD68: 0 | AE68: 0
B69: =IF(ISBLANK('Środki trwałe'!B202),"",'Środki trwałe'!B202) ->  | C69: =IF(ISBLANK('Środki trwałe'!D202),"",'Środki trwałe'!D202) ->  | D69: =IF(ISBLANK('Środki trwałe'!E202),"",'Środki trwałe'!E202) ->  | E69: =IF(AND('Środki trwałe'!F202="tak",'Środki trwałe'!G202="nie"),'Środki trwałe'!H202,0) -> 0 | F69: 0 | G69: =IF(AND('Środki trwałe'!F202="tak",'Środki trwałe'!G202="tak"),'Środki trwałe'!I202,0) -> 0 | J69: =IF(ISBLANK('Środki trwałe'!C202),"",'Środki trwałe'!C202) ->  | K69: 0 | L69: 0 | M69: 0 | N69: 0 | O69: 0 | P69: 0 | Q69: 0 | R69: 0 | S69: 0 | T69: 0 | U69: 0 | V69: 0 | W69: 0 | X69: 0 | Y69: 0 | Z69: 0 | AA69: 0 | AB69: 0 | AC69: 0 | AD69: 0 | AE69: 0
B70: =IF(ISBLANK('Środki trwałe'!B203),"",'Środki trwałe'!B203) ->  | C70: =IF(ISBLANK('Środki trwałe'!D203),"",'Środki trwałe'!D203) ->  | D70: =IF(ISBLANK('Środki trwałe'!E203),"",'Środki trwałe'!E203) ->  | E70: =IF(AND('Środki trwałe'!F203="tak",'Środki trwałe'!G203="nie"),'Środki trwałe'!H203,0) -> 0 | F70: 0 | G70: =IF(AND('Środki trwałe'!F203="tak",'Środki trwałe'!G203="tak"),'Środki trwałe'!I203,0) -> 0 | J70: =IF(ISBLANK('Środki trwałe'!C203),"",'Środki trwałe'!C203) ->  | K70: 0 | L70: 0 | M70: 0 | N70: 0 | O70: 0 | P70: 0 | Q70: 0 | R70: 0 | S70: 0 | T70: 0 | U70: 0 | V70: 0 | W70: 0 | X70: 0 | Y70: 0 | Z70: 0 | AA70: 0 | AB70: 0 | AC70: 0 | AD70: 0 | AE70: 0
B71: =IF(ISBLANK('Środki trwałe'!B204),"",'Środki trwałe'!B204) ->  | C71: =IF(ISBLANK('Środki trwałe'!D204),"",'Środki trwałe'!D204) ->  | D71: =IF(ISBLANK('Środki trwałe'!E204),"",'Środki trwałe'!E204) ->  | E71: =IF(AND('Środki trwałe'!F204="tak",'Środki trwałe'!G204="nie"),'Środki trwałe'!H204,0) -> 0 | F71: 0 | G71: =IF(AND('Środki trwałe'!F204="tak",'Środki trwałe'!G204="tak"),'Środki trwałe'!I204,0) -> 0 | J71: =IF(ISBLANK('Środki trwałe'!C204),"",'Środki trwałe'!C204) ->  | K71: 0 | L71: 0 | M71: 0 | N71: 0 | O71: 0 | P71: 0 | Q71: 0 | R71: 0 | S71: 0 | T71: 0 | U71: 0 | V71: 0 | W71: 0 | X71: 0 | Y71: 0 | Z71: 0 | AA71: 0 | AB71: 0 | AC71: 0 | AD71: 0 | AE71: 0
B72: =IF(ISBLANK('Środki trwałe'!B205),"",'Środki trwałe'!B205) ->  | C72: =IF(ISBLANK('Środki trwałe'!D205),"",'Środki trwałe'!D205) ->  | D72: =IF(ISBLANK('Środki trwałe'!E205),"",'Środki trwałe'!E205) ->  | E72: =IF(AND('Środki trwałe'!F205="tak",'Środki trwałe'!G205="nie"),'Środki trwałe'!H205,0) -> 0 | F72: 0 | G72: =IF(AND('Środki trwałe'!F205="tak",'Środki trwałe'!G205="tak"),'Środki trwałe'!I205,0) -> 0 | J72: =IF(ISBLANK('Środki trwałe'!C205),"",'Środki trwałe'!C205) ->  | K72: 0 | L72: 0 | M72: 0 | N72: 0 | O72: 0 | P72: 0 | Q72: 0 | R72: 0 | S72: 0 | T72: 0 | U72: 0 | V72: 0 | W72: 0 | X72: 0 | Y72: 0 | Z72: 0 | AA72: 0 | AB72: 0 | AC72: 0 | AD72: 0 | AE72: 0
B73: =IF(ISBLANK('Środki trwałe'!B206),"",'Środki trwałe'!B206) ->  | C73: =IF(ISBLANK('Środki trwałe'!D206),"",'Środki trwałe'!D206) ->  | D73: =IF(ISBLANK('Środki trwałe'!E206),"",'Środki trwałe'!E206) ->  | E73: =IF(AND('Środki trwałe'!F206="tak",'Środki trwałe'!G206="nie"),'Środki trwałe'!H206,0) -> 0 | F73: 0 | G73: =IF(AND('Środki trwałe'!F206="tak",'Środki trwałe'!G206="tak"),'Środki trwałe'!I206,0) -> 0 | J73: =IF(ISBLANK('Środki trwałe'!C206),"",'Środki trwałe'!C206) ->  | K73: 0 | L73: 0 | M73: 0 | N73: 0 | O73: 0 | P73: 0 | Q73: 0 | R73: 0 | S73: 0 | T73: 0 | U73: 0 | V73: 0 | W73: 0 | X73: 0 | Y73: 0 | Z73: 0 | AA73: 0 | AB73: 0 | AC73: 0 | AD73: 0 | AE73: 0
B74: =IF(ISBLANK('Środki trwałe'!B207),"",'Środki trwałe'!B207) ->  | C74: =IF(ISBLANK('Środki trwałe'!D207),"",'Środki trwałe'!D207) ->  | D74: =IF(ISBLANK('Środki trwałe'!E207),"",'Środki trwałe'!E207) ->  | E74: =IF(AND('Środki trwałe'!F207="tak",'Środki trwałe'!G207="nie"),'Środki trwałe'!H207,0) -> 0 | F74: 0 | G74: =IF(AND('Środki trwałe'!F207="tak",'Środki trwałe'!G207="tak"),'Środki trwałe'!I207,0) -> 0 | J74: =IF(ISBLANK('Środki trwałe'!C207),"",'Środki trwałe'!C207) ->  | K74: 0 | L74: 0 | M74: 0 | N74: 0 | O74: 0 | P74: 0 | Q74: 0 | R74: 0 | S74: 0 | T74: 0 | U74: 0 | V74: 0 | W74: 0 | X74: 0 | Y74: 0 | Z74: 0 | AA74: 0 | AB74: 0 | AC74: 0 | AD74: 0 | AE74: 0
B75: =IF(ISBLANK('Środki trwałe'!B208),"",'Środki trwałe'!B208) ->  | C75: =IF(ISBLANK('Środki trwałe'!D208),"",'Środki trwałe'!D208) ->  | D75: =IF(ISBLANK('Środki trwałe'!E208),"",'Środki trwałe'!E208) ->  | E75: =IF(AND('Środki trwałe'!F208="tak",'Środki trwałe'!G208="nie"),'Środki trwałe'!H208,0) -> 0 | F75: 0 | G75: =IF(AND('Środki trwałe'!F208="tak",'Środki trwałe'!G208="tak"),'Środki trwałe'!I208,0) -> 0 | J75: =IF(ISBLANK('Środki trwałe'!C208),"",'Środki trwałe'!C208) ->  | K75: 0 | L75: 0 | M75: 0 | N75: 0 | O75: 0 | P75: 0 | Q75: 0 | R75: 0 | S75: 0 | T75: 0 | U75: 0 | V75: 0 | W75: 0 | X75: 0 | Y75: 0 | Z75: 0 | AA75: 0 | AB75: 0 | AC75: 0 | AD75: 0 | AE75: 0
B76: =IF(ISBLANK('Środki trwałe'!B209),"",'Środki trwałe'!B209) ->  | C76: =IF(ISBLANK('Środki trwałe'!D209),"",'Środki trwałe'!D209) ->  | D76: =IF(ISBLANK('Środki trwałe'!E209),"",'Środki trwałe'!E209) ->  | E76: =IF(AND('Środki trwałe'!F209="tak",'Środki trwałe'!G209="nie"),'Środki trwałe'!H209,0) -> 0 | F76: 0 | G76: =IF(AND('Środki trwałe'!F209="tak",'Środki trwałe'!G209="tak"),'Środki trwałe'!I209,0) -> 0 | J76: =IF(ISBLANK('Środki trwałe'!C209),"",'Środki trwałe'!C209) ->  | K76: 0 | L76: 0 | M76: 0 | N76: 0 | O76: 0 | P76: 0 | Q76: 0 | R76: 0 | S76: 0 | T76: 0 | U76: 0 | V76: 0 | W76: 0 | X76: 0 | Y76: 0 | Z76: 0 | AA76: 0 | AB76: 0 | AC76: 0 | AD76: 0 | AE76: 0
B77: =IF(ISBLANK('Środki trwałe'!B210),"",'Środki trwałe'!B210) ->  | C77: =IF(ISBLANK('Środki trwałe'!D210),"",'Środki trwałe'!D210) ->  | D77: =IF(ISBLANK('Środki trwałe'!E210),"",'Środki trwałe'!E210) ->  | E77: =IF(AND('Środki trwałe'!F210="tak",'Środki trwałe'!G210="nie"),'Środki trwałe'!H210,0) -> 0 | F77: 0 | G77: =IF(AND('Środki trwałe'!F210="tak",'Środki trwałe'!G210="tak"),'Środki trwałe'!I210,0) -> 0 | J77: =IF(ISBLANK('Środki trwałe'!C210),"",'Środki trwałe'!C210) ->  | K77: 0 | L77: 0 | M77: 0 | N77: 0 | O77: 0 | P77: 0 | Q77: 0 | R77: 0 | S77: 0 | T77: 0 | U77: 0 | V77: 0 | W77: 0 | X77: 0 | Y77: 0 | Z77: 0 | AA77: 0 | AB77: 0 | AC77: 0 | AD77: 0 | AE77: 0
B78: =IF(ISBLANK('Środki trwałe'!B211),"",'Środki trwałe'!B211) ->  | C78: =IF(ISBLANK('Środki trwałe'!D211),"",'Środki trwałe'!D211) ->  | D78: =IF(ISBLANK('Środki trwałe'!E211),"",'Środki trwałe'!E211) ->  | E78: =IF(AND('Środki trwałe'!F211="tak",'Środki trwałe'!G211="nie"),'Środki trwałe'!H211,0) -> 0 | F78: 0 | G78: =IF(AND('Środki trwałe'!F211="tak",'Środki trwałe'!G211="tak"),'Środki trwałe'!I211,0) -> 0 | J78: =IF(ISBLANK('Środki trwałe'!C211),"",'Środki trwałe'!C211) ->  | K78: 0 | L78: 0 | M78: 0 | N78: 0 | O78: 0 | P78: 0 | Q78: 0 | R78: 0 | S78: 0 | T78: 0 | U78: 0 | V78: 0 | W78: 0 | X78: =IFERROR(ROUND(IF(AND(YEAR($D78)=LataProjekcji,$F78>0),$F78,0),0),0) -> 0 | Y78: 0 | Z78: 0 | AA78: 0 | AB78: 0 | AC78: 0 | AD78: 0 | AE78: 0
B79: =IF(ISBLANK('Środki trwałe'!B212),"",'Środki trwałe'!B212) ->  | C79: =IF(ISBLANK('Środki trwałe'!D212),"",'Środki trwałe'!D212) ->  | D79: =IF(ISBLANK('Środki trwałe'!E212),"",'Środki trwałe'!E212) ->  | E79: =IF(AND('Środki trwałe'!F212="tak",'Środki trwałe'!G212="nie"),'Środki trwałe'!H212,0) -> 0 | F79: 0 | G79: =IF(AND('Środki trwałe'!F212="tak",'Środki trwałe'!G212="tak"),'Środki trwałe'!I212,0) -> 0 | J79: =IF(ISBLANK('Środki trwałe'!C212),"",'Środki trwałe'!C212) ->  | K79: 0 | L79: 0 | M79: 0 | N79: =IFERROR(ROUND(IF(AND(YEAR($D79)=LataProjekcji,$F79>0),$F79,0),0),0) -> 0 | O79: 0 | P79: 0 | Q79: 0 | R79: 0 | S79: 0 | T79: 0 | U79: 0 | V79: 0 | W79: 0 | X79: 0 | Y79: 0 | Z79: 0 | AA79: 0 | AB79: 0 | AC79: 0 | AD79: 0 | AE79: 0
B80: =IF(ISBLANK('Środki trwałe'!B213),"",'Środki trwałe'!B213) ->  | C80: =IF(ISBLANK('Środki trwałe'!D213),"",'Środki trwałe'!D213) ->  | D80: =IF(ISBLANK('Środki trwałe'!E213),"",'Środki trwałe'!E213) ->  | E80: =IF(AND('Środki trwałe'!F213="tak",'Środki trwałe'!G213="nie"),'Środki trwałe'!H213,0) -> 0 | F80: 0 | G80: =IF(AND('Środki trwałe'!F213="tak",'Środki trwałe'!G213="tak"),'Środki trwałe'!I213,0) -> 0 | J80: =IF(ISBLANK('Środki trwałe'!C213),"",'Środki trwałe'!C213) ->  | K80: 0 | L80: 0 | M80: 0 | N80: 0 | O80: 0 | P80: 0 | Q80: 0 | R80: 0 | S80: 0 | T80: 0 | U80: 0 | V80: 0 | W80: 0 | X80: 0 | Y80: 0 | Z80: 0 | AA80: 0 | AB80: 0 | AC80: 0 | AD80: 0 | AE80: 0
B81: =IF(ISBLANK('Środki trwałe'!B214),"",'Środki trwałe'!B214) ->  | C81: =IF(ISBLANK('Środki trwałe'!D214),"",'Środki trwałe'!D214) ->  | D81: =IF(ISBLANK('Środki trwałe'!E214),"",'Środki trwałe'!E214) ->  | E81: =IF(AND('Środki trwałe'!F214="tak",'Środki trwałe'!G214="nie"),'Środki trwałe'!H214,0) -> 0 | F81: 0 | G81: =IF(AND('Środki trwałe'!F214="tak",'Środki trwałe'!G214="tak"),'Środki trwałe'!I214,0) -> 0 | J81: =IF(ISBLANK('Środki trwałe'!C214),"",'Środki trwałe'!C214) ->  | K81: 0 | L81: 0 | M81: 0 | N81: 0 | O81: 0 | P81: 0 | Q81: 0 | R81: 0 | S81: 0 | T81: 0 | U81: 0 | V81: 0 | W81: 0 | X81: 0 | Y81: 0 | Z81: 0 | AA81: 0 | AB81: 0 | AC81: 0 | AD81: 0 | AE81: 0
B82: =IF(ISBLANK('Środki trwałe'!B215),"",'Środki trwałe'!B215) ->  | C82: =IF(ISBLANK('Środki trwałe'!D215),"",'Środki trwałe'!D215) ->  | D82: =IF(ISBLANK('Środki trwałe'!E215),"",'Środki trwałe'!E215) ->  | E82: =IF(AND('Środki trwałe'!F215="tak",'Środki trwałe'!G215="nie"),'Środki trwałe'!H215,0) -> 0 | F82: 0 | G82: =IF(AND('Środki trwałe'!F215="tak",'Środki trwałe'!G215="tak"),'Środki trwałe'!I215,0) -> 0 | J82: =IF(ISBLANK('Środki trwałe'!C215),"",'Środki trwałe'!C215) ->  | K82: 0 | L82: 0 | M82: 0 | N82: 0 | O82: 0 | P82: 0 | Q82: 0 | R82: 0 | S82: 0 | T82: 0 | U82: 0 | V82: 0 | W82: 0 | X82: 0 | Y82: 0 | Z82: 0 | AA82: 0 | AB82: 0 | AC82: 0 | AD82: 0 | AE82: 0
B83: =IF(ISBLANK('Środki trwałe'!B216),"",'Środki trwałe'!B216) ->  | C83: =IF(ISBLANK('Środki trwałe'!D216),"",'Środki trwałe'!D216) ->  | D83: =IF(ISBLANK('Środki trwałe'!E216),"",'Środki trwałe'!E216) ->  | E83: =IF(AND('Środki trwałe'!F216="tak",'Środki trwałe'!G216="nie"),'Środki trwałe'!H216,0) -> 0 | F83: 0 | G83: =IF(AND('Środki trwałe'!F216="tak",'Środki trwałe'!G216="tak"),'Środki trwałe'!I216,0) -> 0 | J83: =IF(ISBLANK('Środki trwałe'!C216),"",'Środki trwałe'!C216) ->  | K83: 0 | L83: 0 | M83: 0 | N83: 0 | O83: 0 | P83: 0 | Q83: 0 | R83: 0 | S83: 0 | T83: 0 | U83: 0 | V83: 0 | W83: 0 | X83: =IFERROR(ROUND(IF(AND(YEAR($D83)=LataProjekcji,$F83>0),$F83,0),0),0) -> 0 | Y83: 0 | Z83: 0 | AA83: 0 | AB83: 0 | AC83: 0 | AD83: 0 | AE83: 0
B84: Razem | C84: =SUM(C62:C83) -> 0 | F84: =SUM(F62:F83) -> 0 | K84: =ROUND(SUM(K62:K83),0) -> 0 | L84: =ROUND(SUM(L62:L83),0) -> 0 | M84: 0 | N84: 0 | O84: 0 | P84: 0 | Q84: 0 | R84: 0 | S84: 0 | T84: 0 | U84: 0 | V84: 0 | W84: 0 | X84: =ROUND(SUM(X62:X83),0) -> 0 | Y84: =ROUND(SUM(Y62:Y83),0) -> 0 | Z84: 0 | AA84: 0 | AB84: =ROUND(SUM(AB62:AB83),0) -> 0 | AC84: 0 | AD84: 0 | AE84: 0
B85: - dotacja w okresie (pozostałe przychody) | K85: =IF(LataProjekcji<=Koniec,ROUND(K354+K361+K368+K375+K501+K382+K389+K396+K403+K410+K417+K424+K431+K438+K445+K452+K459+K466+K473+K480+K487+K494,0),0) -> 0 | L85: 0 | M85: 0 | N85: 0 | O85: 0 | P85: 0 | Q85: 0 | R85: 0 | S85: 0 | T85: 0 | U85: 0 | V85: 0 | W85: 0 | X85: =IF(LataProjekcji<=Koniec,ROUND(X354+X361+X368+X375+X501+X382+X389+X396+X403+X410+X417+X424+X431+X438+X445+X452+X459+X466+X473+X480+X487+X494,0),0) -> 0 | Y85: =IF(LataProjekcji<=Koniec,ROUND(Y354+Y361+Y368+Y375+Y501+Y382+Y389+Y396+Y403+Y410+Y417+Y424+Y431+Y438+Y445+Y452+Y459+Y466+Y473+Y480+Y487+Y494,0),0) -> 0 | Z85: 0 | AA85: 0 | AB85: =IF(LataProjekcji<=Koniec,ROUND(AB354+AB361+AB368+AB375+AB501+AB382+AB389+AB396+AB403+AB410+AB417+AB424+AB431+AB438+AB445+AB452+AB459+AB466+AB473+AB480+AB487+AB494,0),0) -> 0 | AC85: 0 | AD85: 0 | AE85: 0
B86: - dotacja narastająco | K86: =IF(LataProjekcji<=Koniec,ROUND(K355+K362+K369+K376+K502+K383+K390+K397+K404+K411+K418+K425+K432+K439+K446+K453+K460+K467+K474+K481+K488+K495,0),0) -> 0 | L86: 0 | M86: 0 | N86: 0 | O86: 0 | P86: 0 | Q86: 0 | R86: 0 | S86: 0 | T86: 0 | U86: 0 | V86: 0 | W86: 0 | X86: =IF(LataProjekcji<=Koniec,ROUND(X355+X362+X369+X376+X502+X383+X390+X397+X404+X411+X418+X425+X432+X439+X446+X453+X460+X467+X474+X481+X488+X495,0),0) -> 0 | Y86: =IF(LataProjekcji<=Koniec,ROUND(Y355+Y362+Y369+Y376+Y502+Y383+Y390+Y397+Y404+Y411+Y418+Y425+Y432+Y439+Y446+Y453+Y460+Y467+Y474+Y481+Y488+Y495,0),0) -> 0 | Z86: 0 | AA86: 0 | AB86: =IF(LataProjekcji<=Koniec,ROUND(AB355+AB362+AB369+AB376+AB502+AB383+AB390+AB397+AB404+AB411+AB418+AB425+AB432+AB439+AB446+AB453+AB460+AB467+AB474+AB481+AB488+AB495,0),0) -> 0 | AC86: 0 | AD86: 0 | AE86: 0
B87: - dotacja do amortyzacji | K87: ='Środki trwałe'!K265 -> 0 | L87: ='Środki trwałe'!L265 -> 0 | M87: ='Środki trwałe'!M265 -> 0 | N87: ='Środki trwałe'!N265 -> 0 | O87: ='Środki trwałe'!O265 -> 0 | P87: ='Środki trwałe'!P265 -> 0 | Q87: ='Środki trwałe'!Q265 -> 0 | R87: ='Środki trwałe'!R265 -> 0 | S87: ='Środki trwałe'!S265 -> 0 | T87: ='Środki trwałe'!T265 -> 0 | U87: ='Środki trwałe'!U265 -> 0 | V87: ='Środki trwałe'!V265 -> 0 | W87: ='Środki trwałe'!W265 -> 0 | X87: ='Środki trwałe'!X265 -> 0 | Y87: ='Środki trwałe'!Y265 -> 0 | Z87: ='Środki trwałe'!Z265 -> 0 | AA87: ='Środki trwałe'!AA265 -> 0 | AB87: ='Środki trwałe'!AB265 -> 0 | AC87: ='Środki trwałe'!AC265 -> 0 | AD87: ='Środki trwałe'!AD265 -> 0 | AE87: ='Środki trwałe'!AE265 -> 0
B88: - rozliczenia międzyokresowe bierne | K88: =IF(LataProjekcji<=Koniec,ROUND(K356+K363+K370+K377+K503+K384+K391+K398+K405+K412+K419+K426+K433+K440+K447+K454+K461+K468+K475+K482+K489+K496,0),0) -> 0 | L88: 0 | M88: 0 | N88: 0 | O88: 0 | P88: 0 | Q88: 0 | R88: 0 | S88: 0 | T88: 0 | U88: 0 | V88: 0 | W88: 0 | X88: =IF(LataProjekcji<=Koniec,ROUND(X356+X363+X370+X377+X503+X384+X391+X398+X405+X412+X419+X426+X433+X440+X447+X454+X461+X468+X475+X482+X489+X496,0),0) -> 0 | Y88: 0 | Z88: 0 | AA88: 0 | AB88: =IF(LataProjekcji<=Koniec,ROUND(AB356+AB363+AB370+AB377+AB503+AB384+AB391+AB398+AB405+AB412+AB419+AB426+AB433+AB440+AB447+AB454+AB461+AB468+AB475+AB482+AB489+AB496,0),0) -> 0 | AC88: 0 | AD88: 0 | AE88: 0
B91: inne wartości niematerialne i prawne | C91: wartość netto | D91: rok i miesiąc zakupu | E91: dofinansowanie % | F91: dofinansowanie PLN | G91: dotacja do amortyzacji | K91: =LataProjekcji -> 2025 | L91: 2026 | M91: 2027 | N91: 2028 | O91: 2029 | P91: 2030 | Q91: 2031 | R91: 2032 | S91: 2033 | T91: 2034 | U91: 2035 | V91: 2036 | W91: 2037 | X91: 2038 | Y91: 2039 | Z91: 2040 | AA91: 2041 | AB91: 2042 | AC91: 2043 | AD91: 2044 | AE91: 2045
B92: =IF(ISBLANK('Środki trwałe'!B269),"",'Środki trwałe'!B269) ->  | C92: =IF(ISBLANK('Środki trwałe'!D269),"",'Środki trwałe'!D269) ->  | D92: =IF(ISBLANK('Środki trwałe'!E269),"",'Środki trwałe'!E269) ->  | E92: =IF(AND('Środki trwałe'!F269="tak",'Środki trwałe'!G269="nie"),'Środki trwałe'!H269,0) -> 0 | F92: =IFERROR(IF(E92=0,0,ROUND(E92*C92,0)),0) -> 0 | G92: =IF(AND('Środki trwałe'!F269="tak",'Środki trwałe'!G269="tak"),'Środki trwałe'!I269,0) -> 0 | J92: =IF(ISBLANK('Środki trwałe'!C269),"",'Środki trwałe'!C269) ->  | K92: =IFERROR(ROUND(IF(AND(YEAR($D92)=LataProjekcji,$F92>0),$F92,0),0),0) -> 0 | L92: 0 | M92: 0 | N92: 0 | O92: 0 | P92: 0 | Q92: 0 | R92: 0 | S92: 0 | T92: 0 | U92: 0 | V92: 0 | W92: 0 | X92: 0 | Y92: 0 | Z92: 0 | AA92: 0 | AB92: 0 | AC92: 0 | AD92: 0 | AE92: 0
B93: =IF(ISBLANK('Środki trwałe'!B270),"",'Środki trwałe'!B270) ->  | C93: =IF(ISBLANK('Środki trwałe'!D270),"",'Środki trwałe'!D270) ->  | D93: =IF(ISBLANK('Środki trwałe'!E270),"",'Środki trwałe'!E270) ->  | E93: =IF(AND('Środki trwałe'!F270="tak",'Środki trwałe'!G270="nie"),'Środki trwałe'!H270,0) -> 0 | F93: =IFERROR(IF(E93=0,0,ROUND(E93*C93,0)),0) -> 0 | G93: =IF(AND('Środki trwałe'!F270="tak",'Środki trwałe'!G270="tak"),'Środki trwałe'!I270,0) -> 0 | J93: =IF(ISBLANK('Środki trwałe'!C270),"",'Środki trwałe'!C270) ->  | K93: 0 | L93: 0 | M93: 0 | N93: 0 | O93: 0 | P93: 0 | Q93: 0 | R93: 0 | S93: 0 | T93: 0 | U93: 0 | V93: 0 | W93: 0 | X93: 0 | Y93: 0 | Z93: 0 | AA93: 0 | AB93: 0 | AC93: 0 | AD93: 0 | AE93: 0
B94: =IF(ISBLANK('Środki trwałe'!B271),"",'Środki trwałe'!B271) ->  | C94: =IF(ISBLANK('Środki trwałe'!D271),"",'Środki trwałe'!D271) ->  | D94: =IF(ISBLANK('Środki trwałe'!E271),"",'Środki trwałe'!E271) ->  | E94: =IF(AND('Środki trwałe'!F271="tak",'Środki trwałe'!G271="nie"),'Środki trwałe'!H271,0) -> 0 | F94: =IFERROR(IF(E94=0,0,ROUND(E94*C94,0)),0) -> 0 | G94: =IF(AND('Środki trwałe'!F271="tak",'Środki trwałe'!G271="tak"),'Środki trwałe'!I271,0) -> 0 | J94: =IF(ISBLANK('Środki trwałe'!C271),"",'Środki trwałe'!C271) ->  | K94: 0 | L94: 0 | M94: 0 | N94: 0 | O94: 0 | P94: 0 | Q94: 0 | R94: 0 | S94: 0 | T94: 0 | U94: 0 | V94: 0 | W94: 0 | X94: 0 | Y94: 0 | Z94: 0 | AA94: 0 | AB94: 0 | AC94: 0 | AD94: 0 | AE94: 0
B95: =IF(ISBLANK('Środki trwałe'!B272),"",'Środki trwałe'!B272) ->  | C95: =IF(ISBLANK('Środki trwałe'!D272),"",'Środki trwałe'!D272) ->  | D95: =IF(ISBLANK('Środki trwałe'!E272),"",'Środki trwałe'!E272) ->  | E95: =IF(AND('Środki trwałe'!F272="tak",'Środki trwałe'!G272="nie"),'Środki trwałe'!H272,0) -> 0 | F95: =IFERROR(IF(E95=0,0,ROUND(E95*C95,0)),0) -> 0 | G95: =IF(AND('Środki trwałe'!F272="tak",'Środki trwałe'!G272="tak"),'Środki trwałe'!I272,0) -> 0 | J95: =IF(ISBLANK('Środki trwałe'!C272),"",'Środki trwałe'!C272) ->  | K95: 0 | L95: 0 | M95: 0 | N95: 0 | O95: 0 | P95: 0 | Q95: 0 | R95: 0 | S95: 0 | T95: 0 | U95: 0 | V95: 0 | W95: 0 | X95: 0 | Y95: =IFERROR(ROUND(IF(AND(YEAR($D95)=LataProjekcji,$F95>0),$F95,0),0),0) -> 0 | Z95: 0 | AA95: 0 | AB95: 0 | AC95: 0 | AD95: 0 | AE95: 0
B96: =IF(ISBLANK('Środki trwałe'!B273),"",'Środki trwałe'!B273) ->  | C96: =IF(ISBLANK('Środki trwałe'!D273),"",'Środki trwałe'!D273) ->  | D96: =IF(ISBLANK('Środki trwałe'!E273),"",'Środki trwałe'!E273) ->  | E96: =IF(AND('Środki trwałe'!F273="tak",'Środki trwałe'!G273="nie"),'Środki trwałe'!H273,0) -> 0 | F96: 0 | G96: =IF(AND('Środki trwałe'!F273="tak",'Środki trwałe'!G273="tak"),'Środki trwałe'!I273,0) -> 0 | J96: =IF(ISBLANK('Środki trwałe'!C273),"",'Środki trwałe'!C273) ->  | K96: 0 | L96: 0 | M96: 0 | N96: 0 | O96: 0 | P96: 0 | Q96: 0 | R96: 0 | S96: 0 | T96: 0 | U96: 0 | V96: 0 | W96: 0 | X96: 0 | Y96: 0 | Z96: 0 | AA96: 0 | AB96: 0 | AC96: 0 | AD96: 0 | AE96: 0
B97: =IF(ISBLANK('Środki trwałe'!B274),"",'Środki trwałe'!B274) ->  | C97: =IF(ISBLANK('Środki trwałe'!D274),"",'Środki trwałe'!D274) ->  | D97: =IF(ISBLANK('Środki trwałe'!E274),"",'Środki trwałe'!E274) ->  | E97: =IF(AND('Środki trwałe'!F274="tak",'Środki trwałe'!G274="nie"),'Środki trwałe'!H274,0) -> 0 | F97: 0 | G97: =IF(AND('Środki trwałe'!F274="tak",'Środki trwałe'!G274="tak"),'Środki trwałe'!I274,0) -> 0 | J97: =IF(ISBLANK('Środki trwałe'!C274),"",'Środki trwałe'!C274) ->  | K97: 0 | L97: 0 | M97: 0 | N97: 0 | O97: 0 | P97: 0 | Q97: 0 | R97: 0 | S97: 0 | T97: 0 | U97: 0 | V97: 0 | W97: 0 | X97: 0 | Y97: 0 | Z97: 0 | AA97: 0 | AB97: 0 | AC97: 0 | AD97: 0 | AE97: 0
B98: =IF(ISBLANK('Środki trwałe'!B275),"",'Środki trwałe'!B275) ->  | C98: =IF(ISBLANK('Środki trwałe'!D275),"",'Środki trwałe'!D275) ->  | D98: =IF(ISBLANK('Środki trwałe'!E275),"",'Środki trwałe'!E275) ->  | E98: =IF(AND('Środki trwałe'!F275="tak",'Środki trwałe'!G275="nie"),'Środki trwałe'!H275,0) -> 0 | F98: 0 | G98: =IF(AND('Środki trwałe'!F275="tak",'Środki trwałe'!G275="tak"),'Środki trwałe'!I275,0) -> 0 | J98: =IF(ISBLANK('Środki trwałe'!C275),"",'Środki trwałe'!C275) ->  | K98: 0 | L98: 0 | M98: 0 | N98: 0 | O98: 0 | P98: 0 | Q98: 0 | R98: 0 | S98: 0 | T98: 0 | U98: 0 | V98: 0 | W98: 0 | X98: 0 | Y98: 0 | Z98: 0 | AA98: 0 | AB98: 0 | AC98: 0 | AD98: 0 | AE98: 0
B99: =IF(ISBLANK('Środki trwałe'!B276),"",'Środki trwałe'!B276) ->  | C99: =IF(ISBLANK('Środki trwałe'!D276),"",'Środki trwałe'!D276) ->  | D99: =IF(ISBLANK('Środki trwałe'!E276),"",'Środki trwałe'!E276) ->  | E99: =IF(AND('Środki trwałe'!F276="tak",'Środki trwałe'!G276="nie"),'Środki trwałe'!H276,0) -> 0 | F99: 0 | G99: =IF(AND('Środki trwałe'!F276="tak",'Środki trwałe'!G276="tak"),'Środki trwałe'!I276,0) -> 0 | J99: =IF(ISBLANK('Środki trwałe'!C276),"",'Środki trwałe'!C276) ->  | K99: 0 | L99: 0 | M99: 0 | N99: 0 | O99: 0 | P99: 0 | Q99: 0 | R99: 0 | S99: 0 | T99: 0 | U99: 0 | V99: 0 | W99: 0 | X99: 0 | Y99: 0 | Z99: 0 | AA99: 0 | AB99: 0 | AC99: 0 | AD99: 0 | AE99: 0
B100: =IF(ISBLANK('Środki trwałe'!B277),"",'Środki trwałe'!B277) ->  | C100: =IF(ISBLANK('Środki trwałe'!D277),"",'Środki trwałe'!D277) ->  | D100: =IF(ISBLANK('Środki trwałe'!E277),"",'Środki trwałe'!E277) ->  | E100: =IF(AND('Środki trwałe'!F277="tak",'Środki trwałe'!G277="nie"),'Środki trwałe'!H277,0) -> 0 | F100: 0 | G100: =IF(AND('Środki trwałe'!F277="tak",'Środki trwałe'!G277="tak"),'Środki trwałe'!I277,0) -> 0 | J100: =IF(ISBLANK('Środki trwałe'!C277),"",'Środki trwałe'!C277) ->  | K100: 0 | L100: 0 | M100: 0 | N100: 0 | O100: 0 | P100: 0 | Q100: 0 | R100: 0 | S100: 0 | T100: 0 | U100: 0 | V100: 0 | W100: 0 | X100: 0 | Y100: 0 | Z100: 0 | AA100: 0 | AB100: 0 | AC100: 0 | AD100: 0 | AE100: 0
B101: =IF(ISBLANK('Środki trwałe'!B278),"",'Środki trwałe'!B278) ->  | C101: =IF(ISBLANK('Środki trwałe'!D278),"",'Środki trwałe'!D278) ->  | D101: =IF(ISBLANK('Środki trwałe'!E278),"",'Środki trwałe'!E278) ->  | E101: =IF(AND('Środki trwałe'!F278="tak",'Środki trwałe'!G278="nie"),'Środki trwałe'!H278,0) -> 0 | F101: 0 | G101: =IF(AND('Środki trwałe'!F278="tak",'Środki trwałe'!G278="tak"),'Środki trwałe'!I278,0) -> 0 | J101: =IF(ISBLANK('Środki trwałe'!C278),"",'Środki trwałe'!C278) ->  | K101: 0 | L101: 0 | M101: 0 | N101: 0 | O101: 0 | P101: 0 | Q101: 0 | R101: 0 | S101: 0 | T101: 0 | U101: 0 | V101: 0 | W101: 0 | X101: 0 | Y101: 0 | Z101: 0 | AA101: 0 | AB101: 0 | AC101: 0 | AD101: 0 | AE101: 0
B102: =IF(ISBLANK('Środki trwałe'!B279),"",'Środki trwałe'!B279) ->  | C102: =IF(ISBLANK('Środki trwałe'!D279),"",'Środki trwałe'!D279) ->  | D102: =IF(ISBLANK('Środki trwałe'!E279),"",'Środki trwałe'!E279) ->  | E102: =IF(AND('Środki trwałe'!F279="tak",'Środki trwałe'!G279="nie"),'Środki trwałe'!H279,0) -> 0 | F102: 0 | G102: =IF(AND('Środki trwałe'!F279="tak",'Środki trwałe'!G279="tak"),'Środki trwałe'!I279,0) -> 0 | J102: =IF(ISBLANK('Środki trwałe'!C279),"",'Środki trwałe'!C279) ->  | K102: 0 | L102: 0 | M102: 0 | N102: 0 | O102: 0 | P102: 0 | Q102: 0 | R102: 0 | S102: 0 | T102: 0 | U102: 0 | V102: 0 | W102: 0 | X102: 0 | Y102: 0 | Z102: 0 | AA102: 0 | AB102: 0 | AC102: 0 | AD102: 0 | AE102: 0
B103: =IF(ISBLANK('Środki trwałe'!B280),"",'Środki trwałe'!B280) ->  | C103: =IF(ISBLANK('Środki trwałe'!D280),"",'Środki trwałe'!D280) ->  | D103: =IF(ISBLANK('Środki trwałe'!E280),"",'Środki trwałe'!E280) ->  | E103: =IF(AND('Środki trwałe'!F280="tak",'Środki trwałe'!G280="nie"),'Środki trwałe'!H280,0) -> 0 | F103: 0 | G103: =IF(AND('Środki trwałe'!F280="tak",'Środki trwałe'!G280="tak"),'Środki trwałe'!I280,0) -> 0 | J103: =IF(ISBLANK('Środki trwałe'!C280),"",'Środki trwałe'!C280) ->  | K103: 0 | L103: 0 | M103: 0 | N103: 0 | O103: 0 | P103: 0 | Q103: 0 | R103: 0 | S103: 0 | T103: 0 | U103: 0 | V103: 0 | W103: 0 | X103: 0 | Y103: 0 | Z103: 0 | AA103: 0 | AB103: 0 | AC103: 0 | AD103: 0 | AE103: 0
B104: =IF(ISBLANK('Środki trwałe'!B281),"",'Środki trwałe'!B281) ->  | C104: =IF(ISBLANK('Środki trwałe'!D281),"",'Środki trwałe'!D281) ->  | D104: =IF(ISBLANK('Środki trwałe'!E281),"",'Środki trwałe'!E281) ->  | E104: =IF(AND('Środki trwałe'!F281="tak",'Środki trwałe'!G281="nie"),'Środki trwałe'!H281,0) -> 0 | F104: 0 | G104: =IF(AND('Środki trwałe'!F281="tak",'Środki trwałe'!G281="tak"),'Środki trwałe'!I281,0) -> 0 | J104: =IF(ISBLANK('Środki trwałe'!C281),"",'Środki trwałe'!C281) ->  | K104: 0 | L104: 0 | M104: 0 | N104: 0 | O104: 0 | P104: 0 | Q104: 0 | R104: 0 | S104: 0 | T104: 0 | U104: 0 | V104: 0 | W104: 0 | X104: 0 | Y104: 0 | Z104: 0 | AA104: 0 | AB104: 0 | AC104: 0 | AD104: 0 | AE104: 0
B105: =IF(ISBLANK('Środki trwałe'!B282),"",'Środki trwałe'!B282) ->  | C105: =IF(ISBLANK('Środki trwałe'!D282),"",'Środki trwałe'!D282) ->  | D105: =IF(ISBLANK('Środki trwałe'!E282),"",'Środki trwałe'!E282) ->  | E105: =IF(AND('Środki trwałe'!F282="tak",'Środki trwałe'!G282="nie"),'Środki trwałe'!H282,0) -> 0 | F105: 0 | G105: =IF(AND('Środki trwałe'!F282="tak",'Środki trwałe'!G282="tak"),'Środki trwałe'!I282,0) -> 0 | J105: =IF(ISBLANK('Środki trwałe'!C282),"",'Środki trwałe'!C282) ->  | K105: 0 | L105: 0 | M105: 0 | N105: 0 | O105: 0 | P105: 0 | Q105: 0 | R105: 0 | S105: 0 | T105: 0 | U105: 0 | V105: 0 | W105: 0 | X105: 0 | Y105: 0 | Z105: 0 | AA105: 0 | AB105: 0 | AC105: 0 | AD105: 0 | AE105: 0
B106: =IF(ISBLANK('Środki trwałe'!B283),"",'Środki trwałe'!B283) ->  | C106: =IF(ISBLANK('Środki trwałe'!D283),"",'Środki trwałe'!D283) ->  | D106: =IF(ISBLANK('Środki trwałe'!E283),"",'Środki trwałe'!E283) ->  | E106: =IF(AND('Środki trwałe'!F283="tak",'Środki trwałe'!G283="nie"),'Środki trwałe'!H283,0) -> 0 | F106: =IFERROR(IF(E106=0,0,ROUND(E106*C106,0)),0) -> 0 | G106: =IF(AND('Środki trwałe'!F283="tak",'Środki trwałe'!G283="tak"),'Środki trwałe'!I283,0) -> 0 | J106: =IF(ISBLANK('Środki trwałe'!C283),"",'Środki trwałe'!C283) ->  | K106: 0 | L106: 0 | M106: 0 | N106: 0 | O106: 0 | P106: 0 | Q106: 0 | R106: 0 | S106: 0 | T106: 0 | U106: 0 | V106: 0 | W106: 0 | X106: 0 | Y106: 0 | Z106: 0 | AA106: 0 | AB106: 0 | AC106: 0 | AD106: 0 | AE106: 0
B107: Razem | C107: =SUM(C92:C106) -> 0 | F107: =SUM(F92:F106) -> 0 | G107: =SUM(G92:G106) -> 0 | K107: =ROUND(SUM(K92:K106),0) -> 0 | L107: 0 | M107: 0 | N107: 0 | O107: 0 | P107: 0 | Q107: 0 | R107: 0 | S107: 0 | T107: 0 | U107: 0 | V107: 0 | W107: 0 | X107: =ROUND(SUM(X92:X106),0) -> 0 | Y107: =ROUND(SUM(Y92:Y106),0) -> 0 | Z107: 0 | AA107: 0 | AB107: =ROUND(SUM(AB92:AB106),0) -> 0 | AC107: 0 | AD107: 0 | AE107: 0
B108: - dotacja w okresie (pozostałe przychody) | K108: =ROUND(K511+K518+K525+K532+K609+K602+K595+K588+K581+K574+K567+K560+K553+K546+K539,0) -> 0 | L108: =ROUND(L511+L518+L525+L532+L609+L602+L595+L588+L581+L574+L567+L560+L553+L546+L539,0) -> 0 | M108: 0 | N108: 0 | O108: 0 | P108: 0 | Q108: 0 | R108: 0 | S108: 0 | T108: 0 | U108: 0 | V108: 0 | W108: 0 | X108: =ROUND(X511+X518+X525+X532+X609+X602+X595+X588+X581+X574+X567+X560+X553+X546+X539,0) -> 0 | Y108: =ROUND(Y511+Y518+Y525+Y532+Y609+Y602+Y595+Y588+Y581+Y574+Y567+Y560+Y553+Y546+Y539,0) -> 0 | Z108: 0 | AA108: 0 | AB108: =ROUND(AB511+AB518+AB525+AB532+AB609+AB602+AB595+AB588+AB581+AB574+AB567+AB560+AB553+AB546+AB539,0) -> 0 | AC108: 0 | AD108: 0 | AE108: 0
B109: - dotacja narastająco | K109: =ROUND(K512+K519+K526+K533+K610+K603+K596+K589+K582+K575+K568+K561+K554+K547+K540,0) -> 0 | L109: 0 | M109: 0 | N109: 0 | O109: 0 | P109: 0 | Q109: 0 | R109: 0 | S109: 0 | T109: 0 | U109: 0 | V109: 0 | W109: 0 | X109: =ROUND(X512+X519+X526+X533+X610+X603+X596+X589+X582+X575+X568+X561+X554+X547+X540,0) -> 0 | Y109: =ROUND(Y512+Y519+Y526+Y533+Y610+Y603+Y596+Y589+Y582+Y575+Y568+Y561+Y554+Y547+Y540,0) -> 0 | Z109: 0 | AA109: 0 | AB109: =ROUND(AB512+AB519+AB526+AB533+AB610+AB603+AB596+AB589+AB582+AB575+AB568+AB561+AB554+AB547+AB540,0) -> 0 | AC109: 0 | AD109: 0 | AE109: 0
B110: - dotacja do amortyzacji | K110: ='Środki trwałe'!K322 -> 0 | L110: ='Środki trwałe'!L322 -> 0 | M110: ='Środki trwałe'!M322 -> 0 | N110: ='Środki trwałe'!N322 -> 0 | O110: ='Środki trwałe'!O322 -> 0 | P110: ='Środki trwałe'!P322 -> 0 | Q110: ='Środki trwałe'!Q322 -> 0 | R110: ='Środki trwałe'!R322 -> 0 | S110: ='Środki trwałe'!S322 -> 0 | T110: ='Środki trwałe'!T322 -> 0 | U110: ='Środki trwałe'!U322 -> 0 | V110: ='Środki trwałe'!V322 -> 0 | W110: ='Środki trwałe'!W322 -> 0 | X110: ='Środki trwałe'!X322 -> 0 | Y110: ='Środki trwałe'!Y322 -> 0 | Z110: ='Środki trwałe'!Z322 -> 0 | AA110: ='Środki trwałe'!AA322 -> 0 | AB110: ='Środki trwałe'!AB322 -> 0 | AC110: ='Środki trwałe'!AC322 -> 0 | AD110: ='Środki trwałe'!AD322 -> 0 | AE110: ='Środki trwałe'!AE322 -> 0
B111: - rozliczenia międzyokresowe bierne | K111: =ROUND(K513+K520+K527+K534+K611+K541+K548+K555+K562+K569+K576+K583+K590+K597+K604,0) -> 0 | L111: 0 | M111: 0 | N111: 0 | O111: 0 | P111: 0 | Q111: 0 | R111: 0 | S111: 0 | T111: 0 | U111: 0 | V111: 0 | W111: 0 | X111: =ROUND(X513+X520+X527+X534+X611+X541+X548+X555+X562+X569+X576+X583+X590+X597+X604,0) -> 0 | Y111: =ROUND(Y513+Y520+Y527+Y534+Y611+Y541+Y548+Y555+Y562+Y569+Y576+Y583+Y590+Y597+Y604,0) -> 0 | Z111: 0 | AA111: 0 | AB111: =ROUND(AB513+AB520+AB527+AB534+AB611+AB541+AB548+AB555+AB562+AB569+AB576+AB583+AB590+AB597+AB604,0) -> 0 | AC111: 0 | AD111: 0 | AE111: 0
B114: grunty | C114: wartość netto | D114: rok i miesiąc zakupu | E114: dofinansowanie % | F114: dofinansowanie PLN | G114: dotacja do amortyzacji | K114: =LataProjekcji -> 2025 | L114: 2026 | M114: 2027 | N114: 2028 | O114: 2029 | P114: 2030 | Q114: 2031 | R114: 2032 | S114: 2033 | T114: 2034 | U114: 2035 | V114: 2036 | W114: 2037 | X114: 2038 | Y114: 2039 | Z114: 2040 | AA114: 2041 | AB114: 2042 | AC114: 2043 | AD114: 2044 | AE114: 2045
B115: =IF(ISBLANK('Środki trwałe'!B326),"",'Środki trwałe'!B326) ->  | C115: =IF(ISBLANK('Środki trwałe'!D326),"",'Środki trwałe'!D326) ->  | D115: =IF(ISBLANK('Środki trwałe'!E326),"",'Środki trwałe'!E326) ->  | E115: =IF(AND('Środki trwałe'!F326="tak",'Środki trwałe'!G326="nie"),'Środki trwałe'!H326,0) -> 0 | F115: =IFERROR(IF(E115=0,0,ROUND(E115*C115,0)),0) -> 0 | G115: =IF(AND('Środki trwałe'!F326="tak",'Środki trwałe'!G326="tak"),'Środki trwałe'!I326,0) -> 0 | J115: =IF(ISBLANK('Środki trwałe'!C326),"",'Środki trwałe'!C326) ->  | K115: =IFERROR(ROUND(IF(AND(YEAR($D115)=LataProjekcji,$F115>0),$F115,0),0),0) -> 0 | L115: 0 | M115: 0 | N115: 0 | O115: 0 | P115: 0 | Q115: 0 | R115: 0 | S115: 0 | T115: 0 | U115: 0 | V115: 0 | W115: 0 | X115: 0 | Y115: 0 | Z115: 0 | AA115: 0 | AB115: 0 | AC115: 0 | AD115: 0 | AE115: 0
B116: =IF(ISBLANK('Środki trwałe'!B327),"",'Środki trwałe'!B327) ->  | C116: =IF(ISBLANK('Środki trwałe'!D327),"",'Środki trwałe'!D327) ->  | D116: =IF(ISBLANK('Środki trwałe'!E327),"",'Środki trwałe'!E327) ->  | E116: =IF(AND('Środki trwałe'!F327="tak",'Środki trwałe'!G327="nie"),'Środki trwałe'!H327,0) -> 0 | F116: =IFERROR(IF(E116=0,0,ROUND(E116*C116,0)),0) -> 0 | G116: =IF(AND('Środki trwałe'!F327="tak",'Środki trwałe'!G327="tak"),'Środki trwałe'!I327,0) -> 0 | J116: =IF(ISBLANK('Środki trwałe'!C327),"",'Środki trwałe'!C327) ->  | K116: 0 | L116: 0 | M116: 0 | N116: 0 | O116: 0 | P116: 0 | Q116: 0 | R116: 0 | S116: 0 | T116: 0 | U116: 0 | V116: 0 | W116: 0 | X116: 0 | Y116: 0 | Z116: 0 | AA116: 0 | AB116: 0 | AC116: 0 | AD116: 0 | AE116: 0
B117: =IF(ISBLANK('Środki trwałe'!B328),"",'Środki trwałe'!B328) ->  | C117: =IF(ISBLANK('Środki trwałe'!D328),"",'Środki trwałe'!D328) ->  | D117: =IF(ISBLANK('Środki trwałe'!E328),"",'Środki trwałe'!E328) ->  | E117: =IF(AND('Środki trwałe'!F328="tak",'Środki trwałe'!G328="nie"),'Środki trwałe'!H328,0) -> 0 | F117: =IFERROR(IF(E117=0,0,ROUND(E117*C117,0)),0) -> 0 | G117: =IF(AND('Środki trwałe'!F328="tak",'Środki trwałe'!G328="tak"),'Środki trwałe'!I328,0) -> 0 | J117: =IF(ISBLANK('Środki trwałe'!C328),"",'Środki trwałe'!C328) ->  | K117: 0 | L117: 0 | M117: 0 | N117: 0 | O117: 0 | P117: 0 | Q117: 0 | R117: 0 | S117: 0 | T117: 0 | U117: 0 | V117: 0 | W117: 0 | X117: 0 | Y117: 0 | Z117: 0 | AA117: 0 | AB117: 0 | AC117: 0 | AD117: 0 | AE117: 0
B118: =IF(ISBLANK('Środki trwałe'!B329),"",'Środki trwałe'!B329) ->  | C118: =IF(ISBLANK('Środki trwałe'!D329),"",'Środki trwałe'!D329) ->  | D118: =IF(ISBLANK('Środki trwałe'!E329),"",'Środki trwałe'!E329) ->  | E118: =IF(AND('Środki trwałe'!F329="tak",'Środki trwałe'!G329="nie"),'Środki trwałe'!H329,0) -> 0 | F118: =IFERROR(IF(E118=0,0,ROUND(E118*C118,0)),0) -> 0 | G118: =IF(AND('Środki trwałe'!F329="tak",'Środki trwałe'!G329="tak"),'Środki trwałe'!I329,0) -> 0 | J118: =IF(ISBLANK('Środki trwałe'!C329),"",'Środki trwałe'!C329) ->  | K118: 0 | L118: 0 | M118: 0 | N118: 0 | O118: 0 | P118: 0 | Q118: 0 | R118: 0 | S118: 0 | T118: 0 | U118: 0 | V118: 0 | W118: 0 | X118: 0 | Y118: 0 | Z118: 0 | AA118: 0 | AB118: 0 | AC118: 0 | AD118: 0 | AE118: 0
B119: =IF(ISBLANK('Środki trwałe'!B330),"",'Środki trwałe'!B330) ->  | C119: =IF(ISBLANK('Środki trwałe'!D330),"",'Środki trwałe'!D330) ->  | D119: =IF(ISBLANK('Środki trwałe'!E330),"",'Środki trwałe'!E330) ->  | E119: =IF(AND('Środki trwałe'!F330="tak",'Środki trwałe'!G330="nie"),'Środki trwałe'!H330,0) -> 0 | F119: =IFERROR(IF(E119=0,0,ROUND(E119*C119,0)),0) -> 0 | G119: =IF(AND('Środki trwałe'!F330="tak",'Środki trwałe'!G330="tak"),'Środki trwałe'!I330,0) -> 0 | J119: =IF(ISBLANK('Środki trwałe'!C330),"",'Środki trwałe'!C330) ->  | K119: 0 | L119: 0 | M119: 0 | N119: 0 | O119: 0 | P119: 0 | Q119: 0 | R119: 0 | S119: 0 | T119: 0 | U119: 0 | V119: 0 | W119: 0 | X119: 0 | Y119: 0 | Z119: 0 | AA119: 0 | AB119: 0 | AC119: 0 | AD119: 0 | AE119: 0
B120: Razem | C120: =SUM(C115:C119) -> 0 | F120: =SUM(F115:F119) -> 0 | G120: =SUM(G115:G119) -> 0 | K120: =ROUND(SUM(K115:K119),0) -> 0 | L120: 0 | M120: 0 | N120: 0 | O120: 0 | P120: 0 | Q120: 0 | R120: 0 | S120: 0 | T120: 0 | U120: 0 | V120: 0 | W120: 0 | X120: =ROUND(SUM(X115:X119),0) -> 0 | Y120: =ROUND(SUM(Y115:Y119),0) -> 0 | Z120: 0 | AA120: 0 | AB120: =ROUND(SUM(AB115:AB119),0) -> 0 | AC120: 0 | AD120: 0 | AE120: 0
B121: - dotacja w okresie (pozostałe przychody) | K121: =ROUND(K619+K626+K633+K640+K647,0) -> 0 | L121: 0 | M121: 0 | N121: 0 | O121: 0 | P121: 0 | Q121: 0 | R121: 0 | S121: 0 | T121: 0 | U121: 0 | V121: 0 | W121: 0 | X121: =ROUND(X619+X626+X633+X640+X647,0) -> 0 | Y121: =ROUND(Y619+Y626+Y633+Y640+Y647,0) -> 0 | Z121: 0 | AA121: 0 | AB121: =ROUND(AB619+AB626+AB633+AB640+AB647,0) -> 0 | AC121: 0 | AD121: 0 | AE121: 0
B122: - dotacja narastająco | K122: =ROUND(K620+K627+K634+K641+K648,0) -> 0 | L122: 0 | M122: 0 | N122: 0 | O122: 0 | P122: 0 | Q122: 0 | R122: 0 | S122: 0 | T122: 0 | U122: 0 | V122: 0 | W122: 0 | X122: =ROUND(X620+X627+X634+X641+X648,0) -> 0 | Y122: =ROUND(Y620+Y627+Y634+Y641+Y648,0) -> 0 | Z122: 0 | AA122: 0 | AB122: =ROUND(AB620+AB627+AB634+AB641+AB648,0) -> 0 | AC122: 0 | AD122: 0 | AE122: 0
B123: - dotacja do amortyzacji | K123: ='Środki trwałe'!K349 -> 0 | L123: ='Środki trwałe'!L349 -> 0 | M123: ='Środki trwałe'!M349 -> 0 | N123: ='Środki trwałe'!N349 -> 0 | O123: ='Środki trwałe'!O349 -> 0 | P123: ='Środki trwałe'!P349 -> 0 | Q123: ='Środki trwałe'!Q349 -> 0 | R123: ='Środki trwałe'!R349 -> 0 | S123: ='Środki trwałe'!S349 -> 0 | T123: ='Środki trwałe'!T349 -> 0 | U123: ='Środki trwałe'!U349 -> 0 | V123: ='Środki trwałe'!V349 -> 0 | W123: ='Środki trwałe'!W349 -> 0 | X123: ='Środki trwałe'!X349 -> 0 | Y123: ='Środki trwałe'!Y349 -> 0 | Z123: ='Środki trwałe'!Z349 -> 0 | AA123: ='Środki trwałe'!AA349 -> 0 | AB123: ='Środki trwałe'!AB349 -> 0 | AC123: ='Środki trwałe'!AC349 -> 0 | AD123: ='Środki trwałe'!AD349 -> 0 | AE123: ='Środki trwałe'!AE349 -> 0
B124: - rozliczenia międzyokresowe bierne | K124: =ROUND(K621+K628+K635+K642+K649,0) -> 0 | L124: 0 | M124: 0 | N124: 0 | O124: 0 | P124: 0 | Q124: 0 | R124: 0 | S124: 0 | T124: 0 | U124: 0 | V124: 0 | W124: 0 | X124: =ROUND(X621+X628+X635+X642+X649,0) -> 0 | Y124: =ROUND(Y621+Y628+Y635+Y642+Y649,0) -> 0 | Z124: 0 | AA124: 0 | AB124: =ROUND(AB621+AB628+AB635+AB642+AB649,0) -> 0 | AC124: 0 | AD124: 0 | AE124: 0
B127: budynki i budowle | C127: wartość netto | D127: rok i miesiąc zakupu | E127: dofinansowanie % | F127: dofinansowanie PLN | G127: dotacja do amortyzacji | K127: =LataProjekcji -> 2025 | L127: 2026 | M127: 2027 | N127: 2028 | O127: 2029 | P127: 2030 | Q127: 2031 | R127: 2032 | S127: 2033 | T127: 2034 | U127: 2035 | V127: 2036 | W127: 2037 | X127: 2038 | Y127: 2039 | Z127: 2040 | AA127: 2041 | AB127: 2042 | AC127: 2043 | AD127: 2044 | AE127: 2045
B128: =IF(ISBLANK('Środki trwałe'!B353),"",'Środki trwałe'!B353) ->  | C128: =IF(ISBLANK('Środki trwałe'!D353),"",'Środki trwałe'!D353) ->  | D128: =IF(ISBLANK('Środki trwałe'!E353),"",'Środki trwałe'!E353) ->  | E128: =IF(AND('Środki trwałe'!F353="tak",'Środki trwałe'!G353="nie"),'Środki trwałe'!H353,0) -> 0 | F128: =IFERROR(IF(E128=0,0,ROUND(E128*C128,0)),0) -> 0 | G128: =IF(AND('Środki trwałe'!F353="tak",'Środki trwałe'!G353="tak"),'Środki trwałe'!I353,0) -> 0 | J128: =IF(ISBLANK('Środki trwałe'!C353),"",'Środki trwałe'!C353) ->  | K128: =IFERROR(ROUND(IF(AND(YEAR($D128)=LataProjekcji,$F128>0),$F128,0),0),0) -> 0 | L128: 0 | M128: 0 | N128: 0 | O128: 0 | P128: 0 | Q128: 0 | R128: 0 | S128: 0 | T128: 0 | U128: 0 | V128: 0 | W128: 0 | X128: 0 | Y128: 0 | Z128: 0 | AA128: 0 | AB128: 0 | AC128: 0 | AD128: 0 | AE128: 0
B129: =IF(ISBLANK('Środki trwałe'!B354),"",'Środki trwałe'!B354) ->  | C129: =IF(ISBLANK('Środki trwałe'!D354),"",'Środki trwałe'!D354) ->  | D129: =IF(ISBLANK('Środki trwałe'!E354),"",'Środki trwałe'!E354) ->  | E129: =IF(AND('Środki trwałe'!F354="tak",'Środki trwałe'!G354="nie"),'Środki trwałe'!H354,0) -> 0 | F129: =IFERROR(IF(E129=0,0,ROUND(E129*C129,0)),0) -> 0 | G129: =IF(AND('Środki trwałe'!F354="tak",'Środki trwałe'!G354="tak"),'Środki trwałe'!I354,0) -> 0 | J129: =IF(ISBLANK('Środki trwałe'!C354),"",'Środki trwałe'!C354) ->  | K129: 0 | L129: 0 | M129: 0 | N129: 0 | O129: 0 | P129: 0 | Q129: 0 | R129: 0 | S129: 0 | T129: 0 | U129: 0 | V129: 0 | W129: 0 | X129: 0 | Y129: 0 | Z129: 0 | AA129: 0 | AB129: 0 | AC129: 0 | AD129: 0 | AE129: 0
B130: =IF(ISBLANK('Środki trwałe'!B355),"",'Środki trwałe'!B355) ->  | C130: =IF(ISBLANK('Środki trwałe'!D355),"",'Środki trwałe'!D355) ->  | D130: =IF(ISBLANK('Środki trwałe'!E355),"",'Środki trwałe'!E355) ->  | E130: =IF(AND('Środki trwałe'!F355="tak",'Środki trwałe'!G355="nie"),'Środki trwałe'!H355,0) -> 0 | F130: =IFERROR(IF(E130=0,0,ROUND(E130*C130,0)),0) -> 0 | G130: =IF(AND('Środki trwałe'!F355="tak",'Środki trwałe'!G355="tak"),'Środki trwałe'!I355,0) -> 0 | J130: =IF(ISBLANK('Środki trwałe'!C355),"",'Środki trwałe'!C355) ->  | K130: 0 | L130: 0 | M130: 0 | N130: 0 | O130: 0 | P130: 0 | Q130: 0 | R130: 0 | S130: 0 | T130: 0 | U130: 0 | V130: 0 | W130: 0 | X130: 0 | Y130: 0 | Z130: 0 | AA130: 0 | AB130: 0 | AC130: 0 | AD130: 0 | AE130: 0
B131: =IF(ISBLANK('Środki trwałe'!B356),"",'Środki trwałe'!B356) ->  | C131: =IF(ISBLANK('Środki trwałe'!D356),"",'Środki trwałe'!D356) ->  | D131: =IF(ISBLANK('Środki trwałe'!E356),"",'Środki trwałe'!E356) ->  | E131: =IF(AND('Środki trwałe'!F356="tak",'Środki trwałe'!G356="nie"),'Środki trwałe'!H356,0) -> 0 | F131: =IFERROR(IF(E131=0,0,ROUND(E131*C131,0)),0) -> 0 | G131: =IF(AND('Środki trwałe'!F356="tak",'Środki trwałe'!G356="tak"),'Środki trwałe'!I356,0) -> 0 | J131: =IF(ISBLANK('Środki trwałe'!C356),"",'Środki trwałe'!C356) ->  | K131: 0 | L131: 0 | M131: 0 | N131: 0 | O131: 0 | P131: 0 | Q131: 0 | R131: 0 | S131: 0 | T131: 0 | U131: 0 | V131: 0 | W131: 0 | X131: 0 | Y131: =IFERROR(ROUND(IF(AND(YEAR($D131)=LataProjekcji,$F131>0),$F131,0),0),0) -> 0 | Z131: 0 | AA131: 0 | AB131: 0 | AC131: 0 | AD131: 0 | AE131: 0
B132: =IF(ISBLANK('Środki trwałe'!B357),"",'Środki trwałe'!B357) ->  | C132: =IF(ISBLANK('Środki trwałe'!D357),"",'Środki trwałe'!D357) ->  | D132: =IF(ISBLANK('Środki trwałe'!E357),"",'Środki trwałe'!E357) ->  | E132: =IF(AND('Środki trwałe'!F357="tak",'Środki trwałe'!G357="nie"),'Środki trwałe'!H357,0) -> 0 | F132: 0 | G132: =IF(AND('Środki trwałe'!F357="tak",'Środki trwałe'!G357="tak"),'Środki trwałe'!I357,0) -> 0 | J132: =IF(ISBLANK('Środki trwałe'!C357),"",'Środki trwałe'!C357) ->  | K132: 0 | L132: 0 | M132: 0 | N132: 0 | O132: 0 | P132: 0 | Q132: 0 | R132: 0 | S132: 0 | T132: 0 | U132: 0 | V132: 0 | W132: 0 | X132: 0 | Y132: 0 | Z132: 0 | AA132: 0 | AB132: 0 | AC132: 0 | AD132: 0 | AE132: 0
B133: =IF(ISBLANK('Środki trwałe'!B358),"",'Środki trwałe'!B358) ->  | C133: =IF(ISBLANK('Środki trwałe'!D358),"",'Środki trwałe'!D358) ->  | D133: =IF(ISBLANK('Środki trwałe'!E358),"",'Środki trwałe'!E358) ->  | E133: =IF(AND('Środki trwałe'!F358="tak",'Środki trwałe'!G358="nie"),'Środki trwałe'!H358,0) -> 0 | F133: 0 | G133: =IF(AND('Środki trwałe'!F358="tak",'Środki trwałe'!G358="tak"),'Środki trwałe'!I358,0) -> 0 | J133: =IF(ISBLANK('Środki trwałe'!C358),"",'Środki trwałe'!C358) ->  | K133: 0 | L133: 0 | M133: 0 | N133: 0 | O133: 0 | P133: 0 | Q133: 0 | R133: 0 | S133: 0 | T133: 0 | U133: 0 | V133: 0 | W133: 0 | X133: 0 | Y133: 0 | Z133: 0 | AA133: 0 | AB133: 0 | AC133: 0 | AD133: 0 | AE133: 0
B134: =IF(ISBLANK('Środki trwałe'!B359),"",'Środki trwałe'!B359) ->  | C134: =IF(ISBLANK('Środki trwałe'!D359),"",'Środki trwałe'!D359) ->  | D134: =IF(ISBLANK('Środki trwałe'!E359),"",'Środki trwałe'!E359) ->  | E134: =IF(AND('Środki trwałe'!F359="tak",'Środki trwałe'!G359="nie"),'Środki trwałe'!H359,0) -> 0 | F134: 0 | G134: =IF(AND('Środki trwałe'!F359="tak",'Środki trwałe'!G359="tak"),'Środki trwałe'!I359,0) -> 0 | J134: =IF(ISBLANK('Środki trwałe'!C359),"",'Środki trwałe'!C359) ->  | K134: 0 | L134: 0 | M134: 0 | N134: 0 | O134: 0 | P134: 0 | Q134: 0 | R134: 0 | S134: 0 | T134: 0 | U134: 0 | V134: 0 | W134: 0 | X134: 0 | Y134: 0 | Z134: 0 | AA134: 0 | AB134: 0 | AC134: 0 | AD134: 0 | AE134: 0
B135: =IF(ISBLANK('Środki trwałe'!B360),"",'Środki trwałe'!B360) ->  | C135: =IF(ISBLANK('Środki trwałe'!D360),"",'Środki trwałe'!D360) ->  | D135: =IF(ISBLANK('Środki trwałe'!E360),"",'Środki trwałe'!E360) ->  | E135: =IF(AND('Środki trwałe'!F360="tak",'Środki trwałe'!G360="nie"),'Środki trwałe'!H360,0) -> 0 | F135: 0 | G135: =IF(AND('Środki trwałe'!F360="tak",'Środki trwałe'!G360="tak"),'Środki trwałe'!I360,0) -> 0 | J135: =IF(ISBLANK('Środki trwałe'!C360),"",'Środki trwałe'!C360) ->  | K135: 0 | L135: 0 | M135: 0 | N135: 0 | O135: 0 | P135: 0 | Q135: 0 | R135: 0 | S135: 0 | T135: 0 | U135: 0 | V135: 0 | W135: 0 | X135: 0 | Y135: 0 | Z135: 0 | AA135: 0 | AB135: 0 | AC135: 0 | AD135: 0 | AE135: 0
B136: =IF(ISBLANK('Środki trwałe'!B361),"",'Środki trwałe'!B361) ->  | C136: =IF(ISBLANK('Środki trwałe'!D361),"",'Środki trwałe'!D361) ->  | D136: =IF(ISBLANK('Środki trwałe'!E361),"",'Środki trwałe'!E361) ->  | E136: =IF(AND('Środki trwałe'!F361="tak",'Środki trwałe'!G361="nie"),'Środki trwałe'!H361,0) -> 0 | F136: 0 | G136: =IF(AND('Środki trwałe'!F361="tak",'Środki trwałe'!G361="tak"),'Środki trwałe'!I361,0) -> 0 | J136: =IF(ISBLANK('Środki trwałe'!C361),"",'Środki trwałe'!C361) ->  | K136: 0 | L136: 0 | M136: 0 | N136: 0 | O136: 0 | P136: 0 | Q136: 0 | R136: 0 | S136: 0 | T136: 0 | U136: 0 | V136: 0 | W136: 0 | X136: 0 | Y136: 0 | Z136: 0 | AA136: 0 | AB136: 0 | AC136: 0 | AD136: 0 | AE136: 0
B137: =IF(ISBLANK('Środki trwałe'!B362),"",'Środki trwałe'!B362) ->  | C137: =IF(ISBLANK('Środki trwałe'!D362),"",'Środki trwałe'!D362) ->  | D137: =IF(ISBLANK('Środki trwałe'!E362),"",'Środki trwałe'!E362) ->  | E137: =IF(AND('Środki trwałe'!F362="tak",'Środki trwałe'!G362="nie"),'Środki trwałe'!H362,0) -> 0 | F137: 0 | G137: =IF(AND('Środki trwałe'!F362="tak",'Środki trwałe'!G362="tak"),'Środki trwałe'!I362,0) -> 0 | J137: =IF(ISBLANK('Środki trwałe'!C362),"",'Środki trwałe'!C362) ->  | K137: 0 | L137: 0 | M137: 0 | N137: 0 | O137: 0 | P137: 0 | Q137: 0 | R137: 0 | S137: 0 | T137: 0 | U137: 0 | V137: 0 | W137: 0 | X137: 0 | Y137: 0 | Z137: 0 | AA137: 0 | AB137: 0 | AC137: 0 | AD137: 0 | AE137: 0
B138: =IF(ISBLANK('Środki trwałe'!B363),"",'Środki trwałe'!B363) ->  | C138: =IF(ISBLANK('Środki trwałe'!D363),"",'Środki trwałe'!D363) -> 0 | D138: =IF(ISBLANK('Środki trwałe'!E363),"",'Środki trwałe'!E363) ->  | E138: =IF(AND('Środki trwałe'!F363="tak",'Środki trwałe'!G363="nie"),'Środki trwałe'!H363,0) -> 0 | F138: =IFERROR(IF(E138=0,0,ROUND(E138*C138,0)),0) -> 0 | G138: =IF(AND('Środki trwałe'!F363="tak",'Środki trwałe'!G363="tak"),'Środki trwałe'!I363,0) -> 0 | J138: =IF(ISBLANK('Środki trwałe'!C363),"",'Środki trwałe'!C363) ->  | K138: 0 | L138: 0 | M138: 0 | N138: 0 | O138: 0 | P138: 0 | Q138: 0 | R138: 0 | S138: 0 | T138: 0 | U138: 0 | V138: 0 | W138: 0 | X138: 0 | Y138: 0 | Z138: 0 | AA138: 0 | AB138: 0 | AC138: 0 | AD138: 0 | AE138: 0
B139: =IF(ISBLANK('Środki trwałe'!B364),"",'Środki trwałe'!B364) ->  | C139: =IF(ISBLANK('Środki trwałe'!D364),"",'Środki trwałe'!D364) -> 0 | D139: =IF(ISBLANK('Środki trwałe'!E364),"",'Środki trwałe'!E364) ->  | E139: =IF(AND('Środki trwałe'!F364="tak",'Środki trwałe'!G364="nie"),'Środki trwałe'!H364,0) -> 0 | F139: =IFERROR(IF(E139=0,0,ROUND(E139*C139,0)),0) -> 0 | G139: =IF(AND('Środki trwałe'!F364="tak",'Środki trwałe'!G364="tak"),'Środki trwałe'!I364,0) -> 0 | J139: =IF(ISBLANK('Środki trwałe'!C364),"",'Środki trwałe'!C364) ->  | K139: 0 | L139: 0 | M139: 0 | N139: 0 | O139: 0 | P139: 0 | Q139: 0 | R139: 0 | S139: 0 | T139: 0 | U139: 0 | V139: 0 | W139: 0 | X139: 0 | Y139: 0 | Z139: 0 | AA139: 0 | AB139: 0 | AC139: 0 | AD139: 0 | AE139: 0
B140: =IF(ISBLANK('Środki trwałe'!B365),"",'Środki trwałe'!B365) ->  | C140: =IF(ISBLANK('Środki trwałe'!D365),"",'Środki trwałe'!D365) -> 0 | D140: =IF(ISBLANK('Środki trwałe'!E365),"",'Środki trwałe'!E365) ->  | E140: =IF(AND('Środki trwałe'!F365="tak",'Środki trwałe'!G365="nie"),'Środki trwałe'!H365,0) -> 0 | F140: =IFERROR(IF(E140=0,0,ROUND(E140*C140,0)),0) -> 0 | G140: =IF(AND('Środki trwałe'!F365="tak",'Środki trwałe'!G365="tak"),'Środki trwałe'!I365,0) -> 0 | J140: =IF(ISBLANK('Środki trwałe'!C365),"",'Środki trwałe'!C365) ->  | K140: 0 | L140: 0 | M140: 0 | N140: 0 | O140: 0 | P140: 0 | Q140: 0 | R140: 0 | S140: 0 | T140: 0 | U140: 0 | V140: 0 | W140: 0 | X140: 0 | Y140: 0 | Z140: 0 | AA140: 0 | AB140: 0 | AC140: 0 | AD140: 0 | AE140: 0
B141: =IF(ISBLANK('Środki trwałe'!B366),"",'Środki trwałe'!B366) ->  | C141: =IF(ISBLANK('Środki trwałe'!D366),"",'Środki trwałe'!D366) -> 0 | D141: =IF(ISBLANK('Środki trwałe'!E366),"",'Środki trwałe'!E366) ->  | E141: =IF(AND('Środki trwałe'!F366="tak",'Środki trwałe'!G366="nie"),'Środki trwałe'!H366,0) -> 0 | F141: =IFERROR(IF(E141=0,0,ROUND(E141*C141,0)),0) -> 0 | G141: =IF(AND('Środki trwałe'!F366="tak",'Środki trwałe'!G366="tak"),'Środki trwałe'!I366,0) -> 0 | J141: =IF(ISBLANK('Środki trwałe'!C366),"",'Środki trwałe'!C366) ->  | K141: 0 | L141: 0 | M141: 0 | N141: 0 | O141: 0 | P141: 0 | Q141: 0 | R141: 0 | S141: 0 | T141: 0 | U141: 0 | V141: 0 | W141: 0 | X141: 0 | Y141: 0 | Z141: 0 | AA141: 0 | AB141: 0 | AC141: 0 | AD141: 0 | AE141: 0
B142: =IF(ISBLANK('Środki trwałe'!B367),"",'Środki trwałe'!B367) ->  | C142: =IF(ISBLANK('Środki trwałe'!D367),"",'Środki trwałe'!D367) -> 0 | D142: =IF(ISBLANK('Środki trwałe'!E367),"",'Środki trwałe'!E367) ->  | E142: =IF(AND('Środki trwałe'!F367="tak",'Środki trwałe'!G367="nie"),'Środki trwałe'!H367,0) -> 0 | F142: =IFERROR(IF(E142=0,0,ROUND(E142*C142,0)),0) -> 0 | G142: =IF(AND('Środki trwałe'!F367="tak",'Środki trwałe'!G367="tak"),'Środki trwałe'!I367,0) -> 0 | J142: =IF(ISBLANK('Środki trwałe'!C367),"",'Środki trwałe'!C367) ->  | K142: 0 | L142: 0 | M142: 0 | N142: 0 | O142: 0 | P142: 0 | Q142: 0 | R142: 0 | S142: 0 | T142: 0 | U142: 0 | V142: 0 | W142: 0 | X142: 0 | Y142: 0 | Z142: 0 | AA142: 0 | AB142: 0 | AC142: 0 | AD142: 0 | AE142: 0
B143: Razem | C143: =SUM(C128:C142) -> 0 | F143: =ROUND(SUM(F128:F142),0) -> 0 | G143: =ROUND(SUM(G128:G142),0) -> 0 | K143: =ROUND(SUM(K128:K142),0) -> 0 | L143: =ROUND(SUM(L128:L142),0) -> 0 | M143: 0 | N143: 0 | O143: 0 | P143: 0 | Q143: 0 | R143: 0 | S143: 0 | T143: 0 | U143: 0 | V143: 0 | W143: 0 | X143: =ROUND(SUM(X128:X142),0) -> 0 | Y143: =ROUND(SUM(Y128:Y142),0) -> 0 | Z143: 0 | AA143: 0 | AB143: =ROUND(SUM(AB128:AB142),0) -> 0 | AC143: 0 | AD143: 0 | AE143: 0
B144: - dotacja w okresie (pozostałe przychody) | K144: =ROUND(K657+K664+K671+K678+K720+K727+K734+K741+K748+K755+K685+K692+K699+K706+K713,0) -> 0 | L144: 0 | M144: 0 | N144: 0 | O144: 0 | P144: 0 | Q144: 0 | R144: 0 | S144: 0 | T144: 0 | U144: 0 | V144: 0 | W144: 0 | X144: =ROUND(X657+X664+X671+X678+X720+X727+X734+X741+X748+X755+X685+X692+X699+X706+X713,0) -> 0 | Y144: =ROUND(Y657+Y664+Y671+Y678+Y720+Y727+Y734+Y741+Y748+Y755+Y685+Y692+Y699+Y706+Y713,0) -> 0 | Z144: 0 | AA144: 0 | AB144: =ROUND(AB657+AB664+AB671+AB678+AB720+AB727+AB734+AB741+AB748+AB755+AB685+AB692+AB699+AB706+AB713,0) -> 0 | AC144: 0 | AD144: 0 | AE144: 0
B145: - dotacja narastająco | K145: =ROUND(K658+K665+K672+K679+K721+K728+K735+K742+K749+K756+K686+K693+K700+K707+K714,0) -> 0 | L145: 0 | M145: 0 | N145: 0 | O145: 0 | P145: 0 | Q145: 0 | R145: 0 | S145: 0 | T145: 0 | U145: 0 | V145: 0 | W145: 0 | X145: =ROUND(X658+X665+X672+X679+X721+X728+X735+X742+X749+X756+X686+X693+X700+X707+X714,0) -> 0 | Y145: =ROUND(Y658+Y665+Y672+Y679+Y721+Y728+Y735+Y742+Y749+Y756+Y686+Y693+Y700+Y707+Y714,0) -> 0 | Z145: 0 | AA145: 0 | AB145: =ROUND(AB658+AB665+AB672+AB679+AB721+AB728+AB735+AB742+AB749+AB756+AB686+AB693+AB700+AB707+AB714,0) -> 0 | AC145: 0 | AD145: 0 | AE145: 0
B146: - dotacja do amortyzacji | K146: ='Środki trwałe'!K406 -> 0 | L146: ='Środki trwałe'!L406 -> 0 | M146: ='Środki trwałe'!M406 -> 0 | N146: ='Środki trwałe'!N406 -> 0 | O146: ='Środki trwałe'!O406 -> 0 | P146: ='Środki trwałe'!P406 -> 0 | Q146: ='Środki trwałe'!Q406 -> 0 | R146: ='Środki trwałe'!R406 -> 0 | S146: ='Środki trwałe'!S406 -> 0 | T146: ='Środki trwałe'!T406 -> 0 | U146: ='Środki trwałe'!U406 -> 0 | V146: ='Środki trwałe'!V406 -> 0 | W146: ='Środki trwałe'!W406 -> 0 | X146: ='Środki trwałe'!X406 -> 0 | Y146: ='Środki trwałe'!Y406 -> 0 | Z146: ='Środki trwałe'!Z406 -> 0 | AA146: ='Środki trwałe'!AA406 -> 0 | AB146: ='Środki trwałe'!AB406 -> 0 | AC146: ='Środki trwałe'!AC406 -> 0 | AD146: ='Środki trwałe'!AD406 -> 0 | AE146: ='Środki trwałe'!AE406 -> 0
B147: - rozliczenia międzyokresowe bierne | K147: =ROUND(K659+K666+K673+K680+K722+K729+K736+K743+K750+K757+K687+K694+K701+K715+K708,0) -> 0 | L147: =ROUND(L659+L666+L673+L680+L722+L729+L736+L743+L750+L757+L687+L694+L701+L715+L708,0) -> 0 | M147: 0 | N147: 0 | O147: 0 | P147: 0 | Q147: 0 | R147: 0 | S147: 0 | T147: 0 | U147: 0 | V147: 0 | W147: 0 | X147: =ROUND(X659+X666+X673+X680+X722+X729+X736+X743+X750+X757+X687+X694+X701+X715+X708,0) -> 0 | Y147: =ROUND(Y659+Y666+Y673+Y680+Y722+Y729+Y736+Y743+Y750+Y757+Y687+Y694+Y701+Y715+Y708,0) -> 0 | Z147: 0 | AA147: 0 | AB147: =ROUND(AB659+AB666+AB673+AB680+AB722+AB729+AB736+AB743+AB750+AB757+AB687+AB694+AB701+AB715+AB708,0) -> 0 | AC147: 0 | AD147: 0 | AE147: 0
B150: urządzenia techniczne i maszyny | C150: wartość netto | D150: rok i miesiąc zakupu | E150: dofinansowanie % | F150: dofinansowanie PLN | G150: dotacja do amortyzacji | K150: =LataProjekcji -> 2025 | L150: 2026 | M150: 2027 | N150: 2028 | O150: 2029 | P150: 2030 | Q150: 2031 | R150: 2032 | S150: 2033 | T150: 2034 | U150: 2035 | V150: 2036 | W150: 2037 | X150: 2038 | Y150: 2039 | Z150: 2040 | AA150: 2041 | AB150: 2042 | AC150: 2043 | AD150: 2044 | AE150: 2045
B151: =IF(ISBLANK('Środki trwałe'!B418),"",'Środki trwałe'!B418) ->  | C151: =IF(ISBLANK('Środki trwałe'!D418),"",'Środki trwałe'!D418) ->  | D151: =IF(ISBLANK('Środki trwałe'!E418),"",'Środki trwałe'!E418) ->  | E151: =IF(AND('Środki trwałe'!F418="tak",'Środki trwałe'!G418="nie"),'Środki trwałe'!H418,0) -> 0 | F151: =IFERROR(IF(E151=0,0,ROUND(E151*C151,0)),0) -> 0 | G151: =IF(AND('Środki trwałe'!F418="tak",'Środki trwałe'!G418="tak"),'Środki trwałe'!I418,0) -> 0 | J151: =IF(ISBLANK('Środki trwałe'!C418),"",'Środki trwałe'!C418) ->  | K151: =IFERROR(ROUND(IF(AND(YEAR($D151)=LataProjekcji,$F151>0),$F151,0),0),0) -> 0 | L151: 0 | M151: 0 | N151: 0 | O151: 0 | P151: 0 | Q151: 0 | R151: 0 | S151: 0 | T151: 0 | U151: 0 | V151: 0 | W151: 0 | X151: 0 | Y151: 0 | Z151: 0 | AA151: 0 | AB151: 0 | AC151: 0 | AD151: 0 | AE151: 0
B152: =IF(ISBLANK('Środki trwałe'!B419),"",'Środki trwałe'!B419) ->  | C152: =IF(ISBLANK('Środki trwałe'!D419),"",'Środki trwałe'!D419) ->  | D152: =IF(ISBLANK('Środki trwałe'!E419),"",'Środki trwałe'!E419) ->  | E152: =IF(AND('Środki trwałe'!F419="tak",'Środki trwałe'!G419="nie"),'Środki trwałe'!H419,0) -> 0 | F152: =IFERROR(IF(E152=0,0,ROUND(E152*C152,0)),0) -> 0 | G152: =IF(AND('Środki trwałe'!F419="tak",'Środki trwałe'!G419="tak"),'Środki trwałe'!I419,0) -> 0 | J152: =IF(ISBLANK('Środki trwałe'!C419),"",'Środki trwałe'!C419) ->  | K152: 0 | L152: 0 | M152: 0 | N152: 0 | O152: 0 | P152: 0 | Q152: 0 | R152: 0 | S152: 0 | T152: 0 | U152: 0 | V152: 0 | W152: 0 | X152: 0 | Y152: 0 | Z152: 0 | AA152: 0 | AB152: 0 | AC152: 0 | AD152: 0 | AE152: 0
B153: =IF(ISBLANK('Środki trwałe'!B420),"",'Środki trwałe'!B420) ->  | C153: =IF(ISBLANK('Środki trwałe'!D420),"",'Środki trwałe'!D420) ->  | D153: =IF(ISBLANK('Środki trwałe'!E420),"",'Środki trwałe'!E420) ->  | E153: =IF(AND('Środki trwałe'!F420="tak",'Środki trwałe'!G420="nie"),'Środki trwałe'!H420,0) -> 0 | F153: =IFERROR(IF(E153=0,0,ROUND(E153*C153,0)),0) -> 0 | G153: =IF(AND('Środki trwałe'!F420="tak",'Środki trwałe'!G420="tak"),'Środki trwałe'!I420,0) -> 0 | J153: =IF(ISBLANK('Środki trwałe'!C420),"",'Środki trwałe'!C420) ->  | K153: 0 | L153: 0 | M153: 0 | N153: 0 | O153: 0 | P153: 0 | Q153: 0 | R153: 0 | S153: 0 | T153: 0 | U153: 0 | V153: 0 | W153: 0 | X153: 0 | Y153: 0 | Z153: 0 | AA153: 0 | AB153: 0 | AC153: 0 | AD153: 0 | AE153: 0
B154: =IF(ISBLANK('Środki trwałe'!B421),"",'Środki trwałe'!B421) ->  | C154: =IF(ISBLANK('Środki trwałe'!D421),"",'Środki trwałe'!D421) ->  | D154: =IF(ISBLANK('Środki trwałe'!E421),"",'Środki trwałe'!E421) ->  | E154: =IF(AND('Środki trwałe'!F421="tak",'Środki trwałe'!G421="nie"),'Środki trwałe'!H421,0) -> 0 | F154: =IFERROR(IF(E154=0,0,ROUND(E154*C154,0)),0) -> 0 | G154: =IF(AND('Środki trwałe'!F421="tak",'Środki trwałe'!G421="tak"),'Środki trwałe'!I421,0) -> 0 | J154: =IF(ISBLANK('Środki trwałe'!C421),"",'Środki trwałe'!C421) ->  | K154: 0 | L154: 0 | M154: 0 | N154: 0 | O154: 0 | P154: 0 | Q154: 0 | R154: 0 | S154: 0 | T154: 0 | U154: 0 | V154: 0 | W154: 0 | X154: 0 | Y154: 0 | Z154: 0 | AA154: 0 | AB154: 0 | AC154: 0 | AD154: 0 | AE154: 0
B155: =IF(ISBLANK('Środki trwałe'!B422),"",'Środki trwałe'!B422) ->  | C155: =IF(ISBLANK('Środki trwałe'!D422),"",'Środki trwałe'!D422) ->  | D155: =IF(ISBLANK('Środki trwałe'!E422),"",'Środki trwałe'!E422) ->  | E155: =IF(AND('Środki trwałe'!F422="tak",'Środki trwałe'!G422="nie"),'Środki trwałe'!H422,0) -> 0 | F155: =IFERROR(IF(E155=0,0,ROUND(E155*C155,0)),0) -> 0 | G155: =IF(AND('Środki trwałe'!F422="tak",'Środki trwałe'!G422="tak"),'Środki trwałe'!I422,0) -> 0 | J155: =IF(ISBLANK('Środki trwałe'!C422),"",'Środki trwałe'!C422) ->  | K155: 0 | L155: 0 | M155: 0 | N155: 0 | O155: 0 | P155: 0 | Q155: 0 | R155: 0 | S155: 0 | T155: 0 | U155: 0 | V155: 0 | W155: 0 | X155: 0 | Y155: 0 | Z155: 0 | AA155: 0 | AB155: 0 | AC155: 0 | AD155: 0 | AE155: 0
B156: =IF(ISBLANK('Środki trwałe'!B423),"",'Środki trwałe'!B423) ->  | C156: =IF(ISBLANK('Środki trwałe'!D423),"",'Środki trwałe'!D423) ->  | D156: =IF(ISBLANK('Środki trwałe'!E423),"",'Środki trwałe'!E423) ->  | E156: =IF(AND('Środki trwałe'!F423="tak",'Środki trwałe'!G423="nie"),'Środki trwałe'!H423,0) -> 0 | F156: 0 | G156: =IF(AND('Środki trwałe'!F423="tak",'Środki trwałe'!G423="tak"),'Środki trwałe'!I423,0) -> 0 | J156: =IF(ISBLANK('Środki trwałe'!C423),"",'Środki trwałe'!C423) ->  | K156: 0 | L156: 0 | M156: 0 | N156: 0 | O156: 0 | P156: 0 | Q156: 0 | R156: 0 | S156: 0 | T156: 0 | U156: 0 | V156: 0 | W156: 0 | X156: 0 | Y156: 0 | Z156: 0 | AA156: 0 | AB156: 0 | AC156: 0 | AD156: 0 | AE156: 0
B157: =IF(ISBLANK('Środki trwałe'!B424),"",'Środki trwałe'!B424) ->  | C157: =IF(ISBLANK('Środki trwałe'!D424),"",'Środki trwałe'!D424) ->  | D157: =IF(ISBLANK('Środki trwałe'!E424),"",'Środki trwałe'!E424) ->  | E157: =IF(AND('Środki trwałe'!F424="tak",'Środki trwałe'!G424="nie"),'Środki trwałe'!H424,0) -> 0 | F157: 0 | G157: =IF(AND('Środki trwałe'!F424="tak",'Środki trwałe'!G424="tak"),'Środki trwałe'!I424,0) -> 0 | J157: =IF(ISBLANK('Środki trwałe'!C424),"",'Środki trwałe'!C424) ->  | K157: 0 | L157: 0 | M157: 0 | N157: 0 | O157: 0 | P157: 0 | Q157: 0 | R157: 0 | S157: 0 | T157: 0 | U157: 0 | V157: 0 | W157: 0 | X157: 0 | Y157: =IFERROR(ROUND(IF(AND(YEAR($D157)=LataProjekcji,$F157>0),$F157,0),0),0) -> 0 | Z157: 0 | AA157: 0 | AB157: 0 | AC157: 0 | AD157: 0 | AE157: 0
B158: =IF(ISBLANK('Środki trwałe'!B425),"",'Środki trwałe'!B425) ->  | C158: =IF(ISBLANK('Środki trwałe'!D425),"",'Środki trwałe'!D425) ->  | D158: =IF(ISBLANK('Środki trwałe'!E425),"",'Środki trwałe'!E425) ->  | E158: =IF(AND('Środki trwałe'!F425="tak",'Środki trwałe'!G425="nie"),'Środki trwałe'!H425,0) -> 0 | F158: 0 | G158: =IF(AND('Środki trwałe'!F425="tak",'Środki trwałe'!G425="tak"),'Środki trwałe'!I425,0) -> 0 | J158: =IF(ISBLANK('Środki trwałe'!C425),"",'Środki trwałe'!C425) ->  | K158: 0 | L158: 0 | M158: 0 | N158: 0 | O158: 0 | P158: 0 | Q158: 0 | R158: 0 | S158: 0 | T158: 0 | U158: 0 | V158: 0 | W158: 0 | X158: 0 | Y158: 0 | Z158: 0 | AA158: 0 | AB158: 0 | AC158: 0 | AD158: 0 | AE158: 0
B159: =IF(ISBLANK('Środki trwałe'!B426),"",'Środki trwałe'!B426) ->  | C159: =IF(ISBLANK('Środki trwałe'!D426),"",'Środki trwałe'!D426) ->  | D159: =IF(ISBLANK('Środki trwałe'!E426),"",'Środki trwałe'!E426) ->  | E159: =IF(AND('Środki trwałe'!F426="tak",'Środki trwałe'!G426="nie"),'Środki trwałe'!H426,0) -> 0 | F159: 0 | G159: =IF(AND('Środki trwałe'!F426="tak",'Środki trwałe'!G426="tak"),'Środki trwałe'!I426,0) -> 0 | J159: =IF(ISBLANK('Środki trwałe'!C426),"",'Środki trwałe'!C426) ->  | K159: 0 | L159: 0 | M159: 0 | N159: 0 | O159: 0 | P159: 0 | Q159: 0 | R159: 0 | S159: 0 | T159: 0 | U159: 0 | V159: 0 | W159: 0 | X159: 0 | Y159: 0 | Z159: 0 | AA159: 0 | AB159: 0 | AC159: 0 | AD159: 0 | AE159: 0
B160: =IF(ISBLANK('Środki trwałe'!B427),"",'Środki trwałe'!B427) ->  | C160: =IF(ISBLANK('Środki trwałe'!D427),"",'Środki trwałe'!D427) ->  | D160: =IF(ISBLANK('Środki trwałe'!E427),"",'Środki trwałe'!E427) ->  | E160: =IF(AND('Środki trwałe'!F427="tak",'Środki trwałe'!G427="nie"),'Środki trwałe'!H427,0) -> 0 | F160: 0 | G160: =IF(AND('Środki trwałe'!F427="tak",'Środki trwałe'!G427="tak"),'Środki trwałe'!I427,0) -> 0 | J160: =IF(ISBLANK('Środki trwałe'!C427),"",'Środki trwałe'!C427) ->  | K160: 0 | L160: 0 | M160: 0 | N160: 0 | O160: 0 | P160: 0 | Q160: 0 | R160: 0 | S160: 0 | T160: 0 | U160: 0 | V160: 0 | W160: 0 | X160: 0 | Y160: 0 | Z160: 0 | AA160: 0 | AB160: 0 | AC160: 0 | AD160: 0 | AE160: 0
B161: =IF(ISBLANK('Środki trwałe'!B428),"",'Środki trwałe'!B428) ->  | C161: =IF(ISBLANK('Środki trwałe'!D428),"",'Środki trwałe'!D428) ->  | D161: =IF(ISBLANK('Środki trwałe'!E428),"",'Środki trwałe'!E428) ->  | E161: =IF(AND('Środki trwałe'!F428="tak",'Środki trwałe'!G428="nie"),'Środki trwałe'!H428,0) -> 0 | F161: 0 | G161: =IF(AND('Środki trwałe'!F428="tak",'Środki trwałe'!G428="tak"),'Środki trwałe'!I428,0) -> 0 | J161: =IF(ISBLANK('Środki trwałe'!C428),"",'Środki trwałe'!C428) ->  | K161: 0 | L161: 0 | M161: 0 | N161: 0 | O161: 0 | P161: 0 | Q161: 0 | R161: 0 | S161: 0 | T161: 0 | U161: 0 | V161: 0 | W161: 0 | X161: 0 | Y161: 0 | Z161: 0 | AA161: 0 | AB161: 0 | AC161: 0 | AD161: 0 | AE161: 0
B162: =IF(ISBLANK('Środki trwałe'!B429),"",'Środki trwałe'!B429) ->  | C162: =IF(ISBLANK('Środki trwałe'!D429),"",'Środki trwałe'!D429) ->  | D162: =IF(ISBLANK('Środki trwałe'!E429),"",'Środki trwałe'!E429) ->  | E162: =IF(AND('Środki trwałe'!F429="tak",'Środki trwałe'!G429="nie"),'Środki trwałe'!H429,0) -> 0 | F162: 0 | G162: =IF(AND('Środki trwałe'!F429="tak",'Środki trwałe'!G429="tak"),'Środki trwałe'!I429,0) -> 0 | J162: =IF(ISBLANK('Środki trwałe'!C429),"",'Środki trwałe'!C429) ->  | K162: 0 | L162: 0 | M162: 0 | N162: 0 | O162: 0 | P162: 0 | Q162: 0 | R162: 0 | S162: 0 | T162: 0 | U162: 0 | V162: 0 | W162: 0 | X162: 0 | Y162: 0 | Z162: 0 | AA162: 0 | AB162: 0 | AC162: 0 | AD162: 0 | AE162: 0
B163: =IF(ISBLANK('Środki trwałe'!B430),"",'Środki trwałe'!B430) ->  | C163: =IF(ISBLANK('Środki trwałe'!D430),"",'Środki trwałe'!D430) ->  | D163: =IF(ISBLANK('Środki trwałe'!E430),"",'Środki trwałe'!E430) ->  | E163: =IF(AND('Środki trwałe'!F430="tak",'Środki trwałe'!G430="nie"),'Środki trwałe'!H430,0) -> 0 | F163: 0 | G163: =IF(AND('Środki trwałe'!F430="tak",'Środki trwałe'!G430="tak"),'Środki trwałe'!I430,0) -> 0 | J163: =IF(ISBLANK('Środki trwałe'!C430),"",'Środki trwałe'!C430) ->  | K163: =IFERROR(ROUND(IF(AND(YEAR($D163)=LataProjekcji,$F163>0),$F163,0),0),0) -> 0 | L163: =IFERROR(ROUND(IF(AND(YEAR($D163)=LataProjekcji,$F163>0),$F163,0),0),0) -> 0 | M163: =IFERROR(ROUND(IF(AND(YEAR($D163)=LataProjekcji,$F163>0),$F163,0),0),0) -> 0 | N163: =IFERROR(ROUND(IF(AND(YEAR($D163)=LataProjekcji,$F163>0),$F163,0),0),0) -> 0 | O163: 0 | P163: 0 | Q163: 0 | R163: 0 | S163: 0 | T163: 0 | U163: 0 | V163: 0 | W163: 0 | X163: 0 | Y163: 0 | Z163: 0 | AA163: 0 | AB163: 0 | AC163: 0 | AD163: 0 | AE163: 0
B164: =IF(ISBLANK('Środki trwałe'!B431),"",'Środki trwałe'!B431) ->  | C164: =IF(ISBLANK('Środki trwałe'!D431),"",'Środki trwałe'!D431) ->  | D164: =IF(ISBLANK('Środki trwałe'!E431),"",'Środki trwałe'!E431) ->  | E164: =IF(AND('Środki trwałe'!F431="tak",'Środki trwałe'!G431="nie"),'Środki trwałe'!H431,0) -> 0 | F164: 0 | G164: =IF(AND('Środki trwałe'!F431="tak",'Środki trwałe'!G431="tak"),'Środki trwałe'!I431,0) -> 0 | J164: =IF(ISBLANK('Środki trwałe'!C431),"",'Środki trwałe'!C431) ->  | K164: 0 | L164: 0 | M164: 0 | N164: 0 | O164: 0 | P164: 0 | Q164: 0 | R164: 0 | S164: 0 | T164: 0 | U164: 0 | V164: 0 | W164: 0 | X164: 0 | Y164: 0 | Z164: 0 | AA164: 0 | AB164: 0 | AC164: 0 | AD164: 0 | AE164: 0
B165: =IF(ISBLANK('Środki trwałe'!B432),"",'Środki trwałe'!B432) ->  | C165: =IF(ISBLANK('Środki trwałe'!D432),"",'Środki trwałe'!D432) ->  | D165: =IF(ISBLANK('Środki trwałe'!E432),"",'Środki trwałe'!E432) ->  | E165: =IF(AND('Środki trwałe'!F432="tak",'Środki trwałe'!G432="nie"),'Środki trwałe'!H432,0) -> 0 | F165: 0 | G165: =IF(AND('Środki trwałe'!F432="tak",'Środki trwałe'!G432="tak"),'Środki trwałe'!I432,0) -> 0 | J165: =IF(ISBLANK('Środki trwałe'!C432),"",'Środki trwałe'!C432) ->  | K165: 0 | L165: 0 | M165: 0 | N165: 0 | O165: 0 | P165: 0 | Q165: 0 | R165: 0 | S165: 0 | T165: 0 | U165: 0 | V165: 0 | W165: 0 | X165: 0 | Y165: 0 | Z165: 0 | AA165: 0 | AB165: 0 | AC165: 0 | AD165: 0 | AE165: 0
B166: =IF(ISBLANK('Środki trwałe'!B433),"",'Środki trwałe'!B433) ->  | C166: =IF(ISBLANK('Środki trwałe'!D433),"",'Środki trwałe'!D433) ->  | D166: =IF(ISBLANK('Środki trwałe'!E433),"",'Środki trwałe'!E433) ->  | E166: =IF(AND('Środki trwałe'!F433="tak",'Środki trwałe'!G433="nie"),'Środki trwałe'!H433,0) -> 0 | F166: 0 | G166: =IF(AND('Środki trwałe'!F433="tak",'Środki trwałe'!G433="tak"),'Środki trwałe'!I433,0) -> 0 | J166: =IF(ISBLANK('Środki trwałe'!C433),"",'Środki trwałe'!C433) ->  | K166: 0 | L166: 0 | M166: 0 | N166: 0 | O166: 0 | P166: 0 | Q166: 0 | R166: 0 | S166: 0 | T166: 0 | U166: 0 | V166: 0 | W166: 0 | X166: 0 | Y166: 0 | Z166: 0 | AA166: 0 | AB166: 0 | AC166: 0 | AD166: 0 | AE166: 0
B167: =IF(ISBLANK('Środki trwałe'!B434),"",'Środki trwałe'!B434) ->  | C167: =IF(ISBLANK('Środki trwałe'!D434),"",'Środki trwałe'!D434) ->  | D167: =IF(ISBLANK('Środki trwałe'!E434),"",'Środki trwałe'!E434) ->  | E167: =IF(AND('Środki trwałe'!F434="tak",'Środki trwałe'!G434="nie"),'Środki trwałe'!H434,0) -> 0 | F167: 0 | G167: =IF(AND('Środki trwałe'!F434="tak",'Środki trwałe'!G434="tak"),'Środki trwałe'!I434,0) -> 0 | J167: =IF(ISBLANK('Środki trwałe'!C434),"",'Środki trwałe'!C434) ->  | K167: 0 | L167: 0 | M167: 0 | N167: 0 | O167: 0 | P167: 0 | Q167: 0 | R167: 0 | S167: 0 | T167: 0 | U167: 0 | V167: 0 | W167: 0 | X167: =IFERROR(ROUND(IF(AND(YEAR($D167)=LataProjekcji,$F167>0),$F167,0),0),0) -> 0 | Y167: 0 | Z167: 0 | AA167: 0 | AB167: 0 | AC167: 0 | AD167: 0 | AE167: 0
B168: =IF(ISBLANK('Środki trwałe'!B435),"",'Środki trwałe'!B435) ->  | C168: =IF(ISBLANK('Środki trwałe'!D435),"",'Środki trwałe'!D435) ->  | D168: =IF(ISBLANK('Środki trwałe'!E435),"",'Środki trwałe'!E435) ->  | E168: =IF(AND('Środki trwałe'!F435="tak",'Środki trwałe'!G435="nie"),'Środki trwałe'!H435,0) -> 0 | F168: 0 | G168: =IF(AND('Środki trwałe'!F435="tak",'Środki trwałe'!G435="tak"),'Środki trwałe'!I435,0) -> 0 | J168: =IF(ISBLANK('Środki trwałe'!C435),"",'Środki trwałe'!C435) ->  | K168: 0 | L168: 0 | M168: 0 | N168: 0 | O168: 0 | P168: 0 | Q168: 0 | R168: 0 | S168: 0 | T168: 0 | U168: 0 | V168: 0 | W168: 0 | X168: 0 | Y168: 0 | Z168: 0 | AA168: 0 | AB168: 0 | AC168: 0 | AD168: 0 | AE168: 0
B169: =IF(ISBLANK('Środki trwałe'!B436),"",'Środki trwałe'!B436) ->  | C169: =IF(ISBLANK('Środki trwałe'!D436),"",'Środki trwałe'!D436) ->  | D169: =IF(ISBLANK('Środki trwałe'!E436),"",'Środki trwałe'!E436) ->  | E169: =IF(AND('Środki trwałe'!F436="tak",'Środki trwałe'!G436="nie"),'Środki trwałe'!H436,0) -> 0 | F169: 0 | G169: =IF(AND('Środki trwałe'!F436="tak",'Środki trwałe'!G436="tak"),'Środki trwałe'!I436,0) -> 0 | J169: =IF(ISBLANK('Środki trwałe'!C436),"",'Środki trwałe'!C436) ->  | K169: 0 | L169: 0 | M169: 0 | N169: 0 | O169: 0 | P169: 0 | Q169: 0 | R169: 0 | S169: 0 | T169: 0 | U169: 0 | V169: 0 | W169: 0 | X169: 0 | Y169: 0 | Z169: 0 | AA169: 0 | AB169: 0 | AC169: 0 | AD169: 0 | AE169: 0
B170: =IF(ISBLANK('Środki trwałe'!B437),"",'Środki trwałe'!B437) ->  | C170: =IF(ISBLANK('Środki trwałe'!D437),"",'Środki trwałe'!D437) ->  | D170: =IF(ISBLANK('Środki trwałe'!E437),"",'Środki trwałe'!E437) ->  | E170: =IF(AND('Środki trwałe'!F437="tak",'Środki trwałe'!G437="nie"),'Środki trwałe'!H437,0) -> 0 | F170: 0 | G170: =IF(AND('Środki trwałe'!F437="tak",'Środki trwałe'!G437="tak"),'Środki trwałe'!I437,0) -> 0 | J170: =IF(ISBLANK('Środki trwałe'!C437),"",'Środki trwałe'!C437) ->  | K170: 0 | L170: 0 | M170: 0 | N170: 0 | O170: 0 | P170: 0 | Q170: 0 | R170: 0 | S170: 0 | T170: 0 | U170: 0 | V170: 0 | W170: 0 | X170: 0 | Y170: 0 | Z170: 0 | AA170: 0 | AB170: 0 | AC170: 0 | AD170: 0 | AE170: 0
B171: =IF(ISBLANK('Środki trwałe'!B438),"",'Środki trwałe'!B438) ->  | C171: =IF(ISBLANK('Środki trwałe'!D438),"",'Środki trwałe'!D438) ->  | D171: =IF(ISBLANK('Środki trwałe'!E438),"",'Środki trwałe'!E438) ->  | E171: =IF(AND('Środki trwałe'!F438="tak",'Środki trwałe'!G438="nie"),'Środki trwałe'!H438,0) -> 0 | F171: 0 | G171: =IF(AND('Środki trwałe'!F438="tak",'Środki trwałe'!G438="tak"),'Środki trwałe'!I438,0) -> 0 | J171: =IF(ISBLANK('Środki trwałe'!C438),"",'Środki trwałe'!C438) ->  | K171: 0 | L171: 0 | M171: 0 | N171: 0 | O171: 0 | P171: 0 | Q171: 0 | R171: 0 | S171: 0 | T171: 0 | U171: 0 | V171: 0 | W171: 0 | X171: 0 | Y171: 0 | Z171: 0 | AA171: 0 | AB171: 0 | AC171: 0 | AD171: 0 | AE171: 0
B172: =IF(ISBLANK('Środki trwałe'!B439),"",'Środki trwałe'!B439) ->  | C172: =IF(ISBLANK('Środki trwałe'!D439),"",'Środki trwałe'!D439) ->  | D172: =IF(ISBLANK('Środki trwałe'!E439),"",'Środki trwałe'!E439) ->  | E172: =IF(AND('Środki trwałe'!F439="tak",'Środki trwałe'!G439="nie"),'Środki trwałe'!H439,0) -> 0 | F172: 0 | G172: =IF(AND('Środki trwałe'!F439="tak",'Środki trwałe'!G439="tak"),'Środki trwałe'!I439,0) -> 0 | J172: =IF(ISBLANK('Środki trwałe'!C439),"",'Środki trwałe'!C439) ->  | K172: 0 | L172: 0 | M172: 0 | N172: 0 | O172: 0 | P172: 0 | Q172: 0 | R172: 0 | S172: 0 | T172: 0 | U172: 0 | V172: 0 | W172: 0 | X172: 0 | Y172: 0 | Z172: 0 | AA172: 0 | AB172: 0 | AC172: 0 | AD172: 0 | AE172: 0
B173: =IF(ISBLANK('Środki trwałe'!B440),"",'Środki trwałe'!B440) ->  | C173: =IF(ISBLANK('Środki trwałe'!D440),"",'Środki trwałe'!D440) ->  | D173: =IF(ISBLANK('Środki trwałe'!E440),"",'Środki trwałe'!E440) ->  | E173: =IF(AND('Środki trwałe'!F440="tak",'Środki trwałe'!G440="nie"),'Środki trwałe'!H440,0) -> 0 | F173: 0 | G173: =IF(AND('Środki trwałe'!F440="tak",'Środki trwałe'!G440="tak"),'Środki trwałe'!I440,0) -> 0 | J173: =IF(ISBLANK('Środki trwałe'!C440),"",'Środki trwałe'!C440) ->  | K173: 0 | L173: 0 | M173: 0 | N173: 0 | O173: 0 | P173: 0 | Q173: 0 | R173: 0 | S173: 0 | T173: 0 | U173: 0 | V173: 0 | W173: 0 | X173: 0 | Y173: 0 | Z173: 0 | AA173: 0 | AB173: 0 | AC173: 0 | AD173: 0 | AE173: 0
B174: =IF(ISBLANK('Środki trwałe'!B441),"",'Środki trwałe'!B441) ->  | C174: =IF(ISBLANK('Środki trwałe'!D441),"",'Środki trwałe'!D441) ->  | D174: =IF(ISBLANK('Środki trwałe'!E441),"",'Środki trwałe'!E441) ->  | E174: =IF(AND('Środki trwałe'!F441="tak",'Środki trwałe'!G441="nie"),'Środki trwałe'!H441,0) -> 0 | F174: 0 | G174: =IF(AND('Środki trwałe'!F441="tak",'Środki trwałe'!G441="tak"),'Środki trwałe'!I441,0) -> 0 | J174: =IF(ISBLANK('Środki trwałe'!C441),"",'Środki trwałe'!C441) ->  | K174: 0 | L174: 0 | M174: 0 | N174: 0 | O174: 0 | P174: 0 | Q174: 0 | R174: 0 | S174: 0 | T174: 0 | U174: 0 | V174: 0 | W174: 0 | X174: 0 | Y174: 0 | Z174: 0 | AA174: 0 | AB174: 0 | AC174: 0 | AD174: 0 | AE174: 0
B175: =IF(ISBLANK('Środki trwałe'!B442),"",'Środki trwałe'!B442) ->  | C175: =IF(ISBLANK('Środki trwałe'!D442),"",'Środki trwałe'!D442) ->  | D175: =IF(ISBLANK('Środki trwałe'!E442),"",'Środki trwałe'!E442) ->  | E175: =IF(AND('Środki trwałe'!F442="tak",'Środki trwałe'!G442="nie"),'Środki trwałe'!H442,0) -> 0 | F175: 0 | G175: =IF(AND('Środki trwałe'!F442="tak",'Środki trwałe'!G442="tak"),'Środki trwałe'!I442,0) -> 0 | J175: =IF(ISBLANK('Środki trwałe'!C442),"",'Środki trwałe'!C442) ->  | K175: 0 | L175: 0 | M175: 0 | N175: 0 | O175: 0 | P175: 0 | Q175: 0 | R175: 0 | S175: 0 | T175: 0 | U175: 0 | V175: 0 | W175: 0 | X175: 0 | Y175: 0 | Z175: 0 | AA175: 0 | AB175: 0 | AC175: 0 | AD175: 0 | AE175: 0
B176: =IF(ISBLANK('Środki trwałe'!B443),"",'Środki trwałe'!B443) ->  | C176: =IF(ISBLANK('Środki trwałe'!D443),"",'Środki trwałe'!D443) ->  | D176: =IF(ISBLANK('Środki trwałe'!E443),"",'Środki trwałe'!E443) ->  | E176: =IF(AND('Środki trwałe'!F443="tak",'Środki trwałe'!G443="nie"),'Środki trwałe'!H443,0) -> 0 | F176: 0 | G176: =IF(AND('Środki trwałe'!F443="tak",'Środki trwałe'!G443="tak"),'Środki trwałe'!I443,0) -> 0 | J176: =IF(ISBLANK('Środki trwałe'!C443),"",'Środki trwałe'!C443) ->  | K176: 0 | L176: 0 | M176: 0 | N176: 0 | O176: 0 | P176: 0 | Q176: 0 | R176: 0 | S176: 0 | T176: 0 | U176: 0 | V176: 0 | W176: 0 | X176: 0 | Y176: 0 | Z176: 0 | AA176: 0 | AB176: 0 | AC176: 0 | AD176: 0 | AE176: 0
B177: =IF(ISBLANK('Środki trwałe'!B444),"",'Środki trwałe'!B444) ->  | C177: =IF(ISBLANK('Środki trwałe'!D444),"",'Środki trwałe'!D444) ->  | D177: =IF(ISBLANK('Środki trwałe'!E444),"",'Środki trwałe'!E444) ->  | E177: =IF(AND('Środki trwałe'!F444="tak",'Środki trwałe'!G444="nie"),'Środki trwałe'!H444,0) -> 0 | F177: 0 | G177: =IF(AND('Środki trwałe'!F444="tak",'Środki trwałe'!G444="tak"),'Środki trwałe'!I444,0) -> 0 | J177: =IF(ISBLANK('Środki trwałe'!C444),"",'Środki trwałe'!C444) ->  | K177: 0 | L177: 0 | M177: 0 | N177: 0 | O177: 0 | P177: 0 | Q177: 0 | R177: 0 | S177: 0 | T177: 0 | U177: 0 | V177: 0 | W177: 0 | X177: 0 | Y177: 0 | Z177: 0 | AA177: 0 | AB177: 0 | AC177: 0 | AD177: 0 | AE177: 0
B178: =IF(ISBLANK('Środki trwałe'!B445),"",'Środki trwałe'!B445) ->  | C178: =IF(ISBLANK('Środki trwałe'!D445),"",'Środki trwałe'!D445) ->  | D178: =IF(ISBLANK('Środki trwałe'!E445),"",'Środki trwałe'!E445) ->  | E178: =IF(AND('Środki trwałe'!F445="tak",'Środki trwałe'!G445="nie"),'Środki trwałe'!H445,0) -> 0 | F178: 0 | G178: =IF(AND('Środki trwałe'!F445="tak",'Środki trwałe'!G445="tak"),'Środki trwałe'!I445,0) -> 0 | J178: =IF(ISBLANK('Środki trwałe'!C445),"",'Środki trwałe'!C445) ->  | K178: 0 | L178: 0 | M178: 0 | N178: 0 | O178: 0 | P178: 0 | Q178: 0 | R178: 0 | S178: 0 | T178: 0 | U178: 0 | V178: 0 | W178: 0 | X178: 0 | Y178: 0 | Z178: 0 | AA178: 0 | AB178: 0 | AC178: 0 | AD178: 0 | AE178: 0
B179: =IF(ISBLANK('Środki trwałe'!B446),"",'Środki trwałe'!B446) ->  | C179: =IF(ISBLANK('Środki trwałe'!D446),"",'Środki trwałe'!D446) ->  | D179: =IF(ISBLANK('Środki trwałe'!E446),"",'Środki trwałe'!E446) ->  | E179: =IF(AND('Środki trwałe'!F446="tak",'Środki trwałe'!G446="nie"),'Środki trwałe'!H446,0) -> 0 | F179: 0 | G179: =IF(AND('Środki trwałe'!F446="tak",'Środki trwałe'!G446="tak"),'Środki trwałe'!I446,0) -> 0 | J179: =IF(ISBLANK('Środki trwałe'!C446),"",'Środki trwałe'!C446) ->  | K179: 0 | L179: 0 | M179: 0 | N179: 0 | O179: 0 | P179: 0 | Q179: 0 | R179: 0 | S179: 0 | T179: 0 | U179: 0 | V179: 0 | W179: 0 | X179: 0 | Y179: 0 | Z179: 0 | AA179: 0 | AB179: 0 | AC179: 0 | AD179: 0 | AE179: 0
B180: =IF(ISBLANK('Środki trwałe'!B447),"",'Środki trwałe'!B447) ->  | C180: =IF(ISBLANK('Środki trwałe'!D447),"",'Środki trwałe'!D447) ->  | D180: =IF(ISBLANK('Środki trwałe'!E447),"",'Środki trwałe'!E447) ->  | E180: =IF(AND('Środki trwałe'!F447="tak",'Środki trwałe'!G447="nie"),'Środki trwałe'!H447,0) -> 0 | F180: 0 | G180: =IF(AND('Środki trwałe'!F447="tak",'Środki trwałe'!G447="tak"),'Środki trwałe'!I447,0) -> 0 | J180: =IF(ISBLANK('Środki trwałe'!C447),"",'Środki trwałe'!C447) ->  | K180: 0 | L180: 0 | M180: 0 | N180: 0 | O180: 0 | P180: 0 | Q180: 0 | R180: 0 | S180: 0 | T180: 0 | U180: 0 | V180: 0 | W180: 0 | X180: 0 | Y180: 0 | Z180: 0 | AA180: 0 | AB180: 0 | AC180: 0 | AD180: 0 | AE180: 0
B181: =IF(ISBLANK('Środki trwałe'!B448),"",'Środki trwałe'!B448) ->  | C181: =IF(ISBLANK('Środki trwałe'!D448),"",'Środki trwałe'!D448) ->  | D181: =IF(ISBLANK('Środki trwałe'!E448),"",'Środki trwałe'!E448) ->  | E181: =IF(AND('Środki trwałe'!F448="tak",'Środki trwałe'!G448="nie"),'Środki trwałe'!H448,0) -> 0 | F181: 0 | G181: =IF(AND('Środki trwałe'!F448="tak",'Środki trwałe'!G448="tak"),'Środki trwałe'!I448,0) -> 0 | J181: =IF(ISBLANK('Środki trwałe'!C448),"",'Środki trwałe'!C448) ->  | K181: 0 | L181: 0 | M181: 0 | N181: 0 | O181: 0 | P181: 0 | Q181: =IFERROR(ROUND(IF(AND(YEAR($D181)=LataProjekcji,$F181>0),$F181,0),0),0) -> 0 | R181: 0 | S181: 0 | T181: 0 | U181: 0 | V181: 0 | W181: 0 | X181: 0 | Y181: 0 | Z181: 0 | AA181: 0 | AB181: 0 | AC181: 0 | AD181: 0 | AE181: 0
B182: =IF(ISBLANK('Środki trwałe'!B449),"",'Środki trwałe'!B449) ->  | C182: =IF(ISBLANK('Środki trwałe'!D449),"",'Środki trwałe'!D449) ->  | D182: =IF(ISBLANK('Środki trwałe'!E449),"",'Środki trwałe'!E449) ->  | E182: =IF(AND('Środki trwałe'!F449="tak",'Środki trwałe'!G449="nie"),'Środki trwałe'!H449,0) -> 0 | F182: 0 | G182: =IF(AND('Środki trwałe'!F449="tak",'Środki trwałe'!G449="tak"),'Środki trwałe'!I449,0) -> 0 | J182: =IF(ISBLANK('Środki trwałe'!C449),"",'Środki trwałe'!C449) ->  | K182: 0 | L182: 0 | M182: 0 | N182: 0 | O182: 0 | P182: 0 | Q182: 0 | R182: 0 | S182: 0 | T182: 0 | U182: 0 | V182: 0 | W182: 0 | X182: 0 | Y182: 0 | Z182: 0 | AA182: 0 | AB182: 0 | AC182: 0 | AD182: 0 | AE182: 0
B183: =IF(ISBLANK('Środki trwałe'!B450),"",'Środki trwałe'!B450) ->  | C183: =IF(ISBLANK('Środki trwałe'!D450),"",'Środki trwałe'!D450) ->  | D183: =IF(ISBLANK('Środki trwałe'!E450),"",'Środki trwałe'!E450) ->  | E183: =IF(AND('Środki trwałe'!F450="tak",'Środki trwałe'!G450="nie"),'Środki trwałe'!H450,0) -> 0 | F183: 0 | G183: =IF(AND('Środki trwałe'!F450="tak",'Środki trwałe'!G450="tak"),'Środki trwałe'!I450,0) -> 0 | J183: =IF(ISBLANK('Środki trwałe'!C450),"",'Środki trwałe'!C450) ->  | K183: 0 | L183: 0 | M183: 0 | N183: 0 | O183: 0 | P183: 0 | Q183: 0 | R183: 0 | S183: 0 | T183: 0 | U183: 0 | V183: 0 | W183: 0 | X183: 0 | Y183: 0 | Z183: 0 | AA183: 0 | AB183: 0 | AC183: 0 | AD183: 0 | AE183: 0
B184: =IF(ISBLANK('Środki trwałe'!B451),"",'Środki trwałe'!B451) ->  | C184: =IF(ISBLANK('Środki trwałe'!D451),"",'Środki trwałe'!D451) ->  | D184: =IF(ISBLANK('Środki trwałe'!E451),"",'Środki trwałe'!E451) ->  | E184: =IF(AND('Środki trwałe'!F451="tak",'Środki trwałe'!G451="nie"),'Środki trwałe'!H451,0) -> 0 | F184: 0 | G184: =IF(AND('Środki trwałe'!F451="tak",'Środki trwałe'!G451="tak"),'Środki trwałe'!I451,0) -> 0 | J184: =IF(ISBLANK('Środki trwałe'!C451),"",'Środki trwałe'!C451) ->  | K184: 0 | L184: 0 | M184: 0 | N184: 0 | O184: 0 | P184: 0 | Q184: 0 | R184: 0 | S184: 0 | T184: 0 | U184: 0 | V184: 0 | W184: 0 | X184: 0 | Y184: 0 | Z184: 0 | AA184: 0 | AB184: 0 | AC184: 0 | AD184: 0 | AE184: 0
B185: =IF(ISBLANK('Środki trwałe'!B452),"",'Środki trwałe'!B452) ->  | C185: =IF(ISBLANK('Środki trwałe'!D452),"",'Środki trwałe'!D452) ->  | D185: =IF(ISBLANK('Środki trwałe'!E452),"",'Środki trwałe'!E452) ->  | E185: =IF(AND('Środki trwałe'!F452="tak",'Środki trwałe'!G452="nie"),'Środki trwałe'!H452,0) -> 0 | F185: 0 | G185: =IF(AND('Środki trwałe'!F452="tak",'Środki trwałe'!G452="tak"),'Środki trwałe'!I452,0) -> 0 | J185: =IF(ISBLANK('Środki trwałe'!C452),"",'Środki trwałe'!C452) ->  | K185: 0 | L185: 0 | M185: 0 | N185: 0 | O185: 0 | P185: 0 | Q185: 0 | R185: 0 | S185: 0 | T185: 0 | U185: 0 | V185: 0 | W185: 0 | X185: 0 | Y185: 0 | Z185: 0 | AA185: 0 | AB185: 0 | AC185: 0 | AD185: 0 | AE185: 0
B186: =IF(ISBLANK('Środki trwałe'!B453),"",'Środki trwałe'!B453) ->  | C186: =IF(ISBLANK('Środki trwałe'!D453),"",'Środki trwałe'!D453) ->  | D186: =IF(ISBLANK('Środki trwałe'!E453),"",'Środki trwałe'!E453) ->  | E186: =IF(AND('Środki trwałe'!F453="tak",'Środki trwałe'!G453="nie"),'Środki trwałe'!H453,0) -> 0 | F186: 0 | G186: =IF(AND('Środki trwałe'!F453="tak",'Środki trwałe'!G453="tak"),'Środki trwałe'!I453,0) -> 0 | J186: =IF(ISBLANK('Środki trwałe'!C453),"",'Środki trwałe'!C453) ->  | K186: 0 | L186: 0 | M186: 0 | N186: 0 | O186: 0 | P186: 0 | Q186: 0 | R186: 0 | S186: 0 | T186: 0 | U186: 0 | V186: 0 | W186: 0 | X186: 0 | Y186: 0 | Z186: 0 | AA186: 0 | AB186: 0 | AC186: 0 | AD186: 0 | AE186: 0
B187: =IF(ISBLANK('Środki trwałe'!B454),"",'Środki trwałe'!B454) ->  | C187: =IF(ISBLANK('Środki trwałe'!D454),"",'Środki trwałe'!D454) ->  | D187: =IF(ISBLANK('Środki trwałe'!E454),"",'Środki trwałe'!E454) ->  | E187: =IF(AND('Środki trwałe'!F454="tak",'Środki trwałe'!G454="nie"),'Środki trwałe'!H454,0) -> 0 | F187: 0 | G187: =IF(AND('Środki trwałe'!F454="tak",'Środki trwałe'!G454="tak"),'Środki trwałe'!I454,0) -> 0 | J187: =IF(ISBLANK('Środki trwałe'!C454),"",'Środki trwałe'!C454) ->  | K187: 0 | L187: 0 | M187: 0 | N187: 0 | O187: 0 | P187: 0 | Q187: 0 | R187: 0 | S187: 0 | T187: 0 | U187: 0 | V187: 0 | W187: 0 | X187: 0 | Y187: 0 | Z187: 0 | AA187: 0 | AB187: 0 | AC187: 0 | AD187: 0 | AE187: 0
B188: =IF(ISBLANK('Środki trwałe'!B455),"",'Środki trwałe'!B455) ->  | C188: =IF(ISBLANK('Środki trwałe'!D455),"",'Środki trwałe'!D455) ->  | D188: =IF(ISBLANK('Środki trwałe'!E455),"",'Środki trwałe'!E455) ->  | E188: =IF(AND('Środki trwałe'!F455="tak",'Środki trwałe'!G455="nie"),'Środki trwałe'!H455,0) -> 0 | F188: 0 | G188: =IF(AND('Środki trwałe'!F455="tak",'Środki trwałe'!G455="tak"),'Środki trwałe'!I455,0) -> 0 | J188: =IF(ISBLANK('Środki trwałe'!C455),"",'Środki trwałe'!C455) ->  | K188: 0 | L188: 0 | M188: 0 | N188: 0 | O188: 0 | P188: 0 | Q188: 0 | R188: 0 | S188: 0 | T188: 0 | U188: 0 | V188: 0 | W188: 0 | X188: 0 | Y188: 0 | Z188: 0 | AA188: 0 | AB188: 0 | AC188: 0 | AD188: 0 | AE188: 0
B189: =IF(ISBLANK('Środki trwałe'!B456),"",'Środki trwałe'!B456) ->  | C189: =IF(ISBLANK('Środki trwałe'!D456),"",'Środki trwałe'!D456) ->  | D189: =IF(ISBLANK('Środki trwałe'!E456),"",'Środki trwałe'!E456) ->  | E189: =IF(AND('Środki trwałe'!F456="tak",'Środki trwałe'!G456="nie"),'Środki trwałe'!H456,0) -> 0 | F189: 0 | G189: =IF(AND('Środki trwałe'!F456="tak",'Środki trwałe'!G456="tak"),'Środki trwałe'!I456,0) -> 0 | J189: =IF(ISBLANK('Środki trwałe'!C456),"",'Środki trwałe'!C456) ->  | K189: 0 | L189: 0 | M189: 0 | N189: 0 | O189: 0 | P189: 0 | Q189: 0 | R189: 0 | S189: 0 | T189: 0 | U189: 0 | V189: 0 | W189: 0 | X189: 0 | Y189: 0 | Z189: 0 | AA189: 0 | AB189: 0 | AC189: 0 | AD189: 0 | AE189: 0
B190: =IF(ISBLANK('Środki trwałe'!B457),"",'Środki trwałe'!B457) ->  | C190: =IF(ISBLANK('Środki trwałe'!D457),"",'Środki trwałe'!D457) ->  | D190: =IF(ISBLANK('Środki trwałe'!E457),"",'Środki trwałe'!E457) ->  | E190: =IF(AND('Środki trwałe'!F457="tak",'Środki trwałe'!G457="nie"),'Środki trwałe'!H457,0) -> 0 | F190: =IFERROR(IF(E190=0,0,ROUND(E190*C190,0)),0) -> 0 | G190: =IF(AND('Środki trwałe'!F457="tak",'Środki trwałe'!G457="tak"),'Środki trwałe'!I457,0) -> 0 | J190: =IF(ISBLANK('Środki trwałe'!C457),"",'Środki trwałe'!C457) ->  | K190: =IFERROR(ROUND(IF(AND(YEAR($D190)=LataProjekcji,$F190>0),$F190,0),0),0) -> 0 | L190: 0 | M190: 0 | N190: 0 | O190: 0 | P190: 0 | Q190: 0 | R190: 0 | S190: 0 | T190: 0 | U190: 0 | V190: 0 | W190: 0 | X190: 0 | Y190: 0 | Z190: 0 | AA190: 0 | AB190: 0 | AC190: 0 | AD190: 0 | AE190: 0
B191: =IF(ISBLANK('Środki trwałe'!B458),"",'Środki trwałe'!B458) ->  | C191: =IF(ISBLANK('Środki trwałe'!D458),"",'Środki trwałe'!D458) ->  | D191: =IF(ISBLANK('Środki trwałe'!E458),"",'Środki trwałe'!E458) ->  | E191: =IF(AND('Środki trwałe'!F458="tak",'Środki trwałe'!G458="nie"),'Środki trwałe'!H458,0) -> 0 | F191: 0 | G191: =IF(AND('Środki trwałe'!F458="tak",'Środki trwałe'!G458="tak"),'Środki trwałe'!I458,0) -> 0 | J191: =IF(ISBLANK('Środki trwałe'!C458),"",'Środki trwałe'!C458) ->  | K191: 0 | L191: 0 | M191: 0 | N191: 0 | O191: 0 | P191: 0 | Q191: 0 | R191: 0 | S191: 0 | T191: 0 | U191: 0 | V191: 0 | W191: 0 | X191: 0 | Y191: 0 | Z191: 0 | AA191: 0 | AB191: 0 | AC191: 0 | AD191: 0 | AE191: 0
B192: =IF(ISBLANK('Środki trwałe'!B459),"",'Środki trwałe'!B459) ->  | C192: =IF(ISBLANK('Środki trwałe'!D459),"",'Środki trwałe'!D459) ->  | D192: =IF(ISBLANK('Środki trwałe'!E459),"",'Środki trwałe'!E459) ->  | E192: =IF(AND('Środki trwałe'!F459="tak",'Środki trwałe'!G459="nie"),'Środki trwałe'!H459,0) -> 0 | F192: 0 | G192: =IF(AND('Środki trwałe'!F459="tak",'Środki trwałe'!G459="tak"),'Środki trwałe'!I459,0) -> 0 | J192: =IF(ISBLANK('Środki trwałe'!C459),"",'Środki trwałe'!C459) ->  | K192: 0 | L192: 0 | M192: 0 | N192: 0 | O192: 0 | P192: 0 | Q192: 0 | R192: 0 | S192: 0 | T192: 0 | U192: 0 | V192: 0 | W192: 0 | X192: 0 | Y192: 0 | Z192: 0 | AA192: 0 | AB192: 0 | AC192: 0 | AD192: 0 | AE192: 0
B193: =IF(ISBLANK('Środki trwałe'!B460),"",'Środki trwałe'!B460) ->  | C193: =IF(ISBLANK('Środki trwałe'!D460),"",'Środki trwałe'!D460) ->  | D193: =IF(ISBLANK('Środki trwałe'!E460),"",'Środki trwałe'!E460) ->  | E193: =IF(AND('Środki trwałe'!F460="tak",'Środki trwałe'!G460="nie"),'Środki trwałe'!H460,0) -> 0 | F193: 0 | G193: =IF(AND('Środki trwałe'!F460="tak",'Środki trwałe'!G460="tak"),'Środki trwałe'!I460,0) -> 0 | J193: =IF(ISBLANK('Środki trwałe'!C460),"",'Środki trwałe'!C460) ->  | K193: 0 | L193: 0 | M193: 0 | N193: 0 | O193: 0 | P193: 0 | Q193: 0 | R193: 0 | S193: 0 | T193: 0 | U193: 0 | V193: 0 | W193: 0 | X193: 0 | Y193: 0 | Z193: 0 | AA193: 0 | AB193: 0 | AC193: 0 | AD193: 0 | AE193: 0
B194: =IF(ISBLANK('Środki trwałe'!B461),"",'Środki trwałe'!B461) ->  | C194: =IF(ISBLANK('Środki trwałe'!D461),"",'Środki trwałe'!D461) ->  | D194: =IF(ISBLANK('Środki trwałe'!E461),"",'Środki trwałe'!E461) ->  | E194: =IF(AND('Środki trwałe'!F461="tak",'Środki trwałe'!G461="nie"),'Środki trwałe'!H461,0) -> 0 | F194: 0 | G194: =IF(AND('Środki trwałe'!F461="tak",'Środki trwałe'!G461="tak"),'Środki trwałe'!I461,0) -> 0 | J194: =IF(ISBLANK('Środki trwałe'!C461),"",'Środki trwałe'!C461) ->  | K194: 0 | L194: 0 | M194: 0 | N194: 0 | O194: 0 | P194: 0 | Q194: 0 | R194: 0 | S194: 0 | T194: 0 | U194: 0 | V194: 0 | W194: 0 | X194: 0 | Y194: 0 | Z194: 0 | AA194: 0 | AB194: 0 | AC194: 0 | AD194: 0 | AE194: 0
B195: =IF(ISBLANK('Środki trwałe'!B462),"",'Środki trwałe'!B462) ->  | C195: =IF(ISBLANK('Środki trwałe'!D462),"",'Środki trwałe'!D462) ->  | D195: =IF(ISBLANK('Środki trwałe'!E462),"",'Środki trwałe'!E462) ->  | E195: =IF(AND('Środki trwałe'!F462="tak",'Środki trwałe'!G462="nie"),'Środki trwałe'!H462,0) -> 0 | F195: 0 | G195: =IF(AND('Środki trwałe'!F462="tak",'Środki trwałe'!G462="tak"),'Środki trwałe'!I462,0) -> 0 | J195: =IF(ISBLANK('Środki trwałe'!C462),"",'Środki trwałe'!C462) ->  | K195: 0 | L195: 0 | M195: 0 | N195: 0 | O195: 0 | P195: 0 | Q195: 0 | R195: 0 | S195: 0 | T195: 0 | U195: 0 | V195: 0 | W195: 0 | X195: 0 | Y195: 0 | Z195: 0 | AA195: 0 | AB195: 0 | AC195: 0 | AD195: 0 | AE195: 0
B196: Razem | C196: =SUM(C151:C195) -> 0 | F196: =SUM(F151:F195) -> 0 | G196: =SUM(G151:G195) -> 0 | K196: =ROUND(SUM(K151:K195),0) -> 0 | L196: 0 | M196: 0 | N196: 0 | O196: 0 | P196: 0 | Q196: 0 | R196: 0 | S196: 0 | T196: 0 | U196: 0 | V196: 0 | W196: 0 | X196: =ROUND(SUM(X151:X195),0) -> 0 | Y196: =ROUND(SUM(Y151:Y195),0) -> 0 | Z196: 0 | AA196: 0 | AB196: =ROUND(SUM(AB151:AB195),0) -> 0 | AC196: 0 | AD196: 0 | AE196: 0
B197: - dotacja w okresie (pozostałe przychody) | K197: =ROUND(K766+K773+K780+K787+K1039+K1046+K1053+K1060+K1067+K1074+K794+K801+K808+K815+K822+K829+K836+K843+K850+K857+K864+K871+K878+K885+K892+K899+K906+K913+K920+K927+K934+K941+K948+K955+K962+K969+K976+K983+K990+K997+K1004+K1011+K1018+K1025+K1032,0) -> 0 | L197: 0 | M197: 0 | N197: 0 | O197: 0 | P197: 0 | Q197: 0 | R197: 0 | S197: 0 | T197: 0 | U197: 0 | V197: 0 | W197: 0 | X197: =ROUND(X766+X773+X780+X787+X1039+X1046+X1053+X1060+X1067+X1074+X794+X801+X808+X815+X822+X829+X836+X843+X850+X857+X864+X871+X878+X885+X892+X899+X906+X913+X920+X927+X934+X941+X948+X955+X962+X969+X976+X983+X990+X997+X1004+X1011+X1018+X1025+X1032,0) -> 0 | Y197: =ROUND(Y766+Y773+Y780+Y787+Y1039+Y1046+Y1053+Y1060+Y1067+Y1074+Y794+Y801+Y808+Y815+Y822+Y829+Y836+Y843+Y850+Y857+Y864+Y871+Y878+Y885+Y892+Y899+Y906+Y913+Y920+Y927+Y934+Y941+Y948+Y955+Y962+Y969+Y976+Y983+Y990+Y997+Y1004+Y1011+Y1018+Y1025+Y1032,0) -> 0 | Z197: 0 | AA197: 0 | AB197: =ROUND(AB766+AB773+AB780+AB787+AB1039+AB1046+AB1053+AB1060+AB1067+AB1074+AB794+AB801+AB808+AB815+AB822+AB829+AB836+AB843+AB850+AB857+AB864+AB871+AB878+AB885+AB892+AB899+AB906+AB913+AB920+AB927+AB934+AB941+AB948+AB955+AB962+AB969+AB976+AB983+AB990+AB997+AB1004+AB1011+AB1018+AB1025+AB1032,0) -> 0 | AC197: 0 | AD197: 0 | AE197: 0
B198: - dotacja narastająco | K198: =ROUND(K767+K774+K781+K788+K1040+K1047+K1054+K1061+K1068+K1075+K795+K802+K809+K816+K823+K830+K837+K844+K851+K858+K865+K872+K879+K886+K893+K900+K907+K914+K921+K928+K935+K942+K949+K956+K963+K970+K977+K984+K991+K998+K1005+K1012+K1019+K1026+K1033,0) -> 0 | L198: 0 | M198: 0 | N198: 0 | O198: 0 | P198: 0 | Q198: 0 | R198: 0 | S198: 0 | T198: 0 | U198: 0 | V198: 0 | W198: 0 | X198: =ROUND(X767+X774+X781+X788+X1040+X1047+X1054+X1061+X1068+X1075+X795+X802+X809+X816+X823+X830+X837+X844+X851+X858+X865+X872+X879+X886+X893+X900+X907+X914+X921+X928+X935+X942+X949+X956+X963+X970+X977+X984+X991+X998+X1005+X1012+X1019+X1026+X1033,0) -> 0 | Y198: =ROUND(Y767+Y774+Y781+Y788+Y1040+Y1047+Y1054+Y1061+Y1068+Y1075+Y795+Y802+Y809+Y816+Y823+Y830+Y837+Y844+Y851+Y858+Y865+Y872+Y879+Y886+Y893+Y900+Y907+Y914+Y921+Y928+Y935+Y942+Y949+Y956+Y963+Y970+Y977+Y984+Y991+Y998+Y1005+Y1012+Y1019+Y1026+Y1033,0) -> 0 | Z198: 0 | AA198: 0 | AB198: =ROUND(AB767+AB774+AB781+AB788+AB1040+AB1047+AB1054+AB1061+AB1068+AB1075+AB795+AB802+AB809+AB816+AB823+AB830+AB837+AB844+AB851+AB858+AB865+AB872+AB879+AB886+AB893+AB900+AB907+AB914+AB921+AB928+AB935+AB942+AB949+AB956+AB963+AB970+AB977+AB984+AB991+AB998+AB1005+AB1012+AB1019+AB1026+AB1033,0) -> 0 | AC198: 0 | AD198: 0 | AE198: 0
B199: - dotacja do amortyzacji | K199: ='Środki trwałe'!K561 -> 0 | L199: ='Środki trwałe'!L561 -> 0 | M199: ='Środki trwałe'!M561 -> 0 | N199: ='Środki trwałe'!N561 -> 0 | O199: ='Środki trwałe'!O561 -> 0 | P199: ='Środki trwałe'!P561 -> 0 | Q199: ='Środki trwałe'!Q561 -> 0 | R199: ='Środki trwałe'!R561 -> 0 | S199: ='Środki trwałe'!S561 -> 0 | T199: ='Środki trwałe'!T561 -> 0 | U199: ='Środki trwałe'!U561 -> 0 | V199: ='Środki trwałe'!V561 -> 0 | W199: ='Środki trwałe'!W561 -> 0 | X199: ='Środki trwałe'!X561 -> 0 | Y199: ='Środki trwałe'!Y561 -> 0 | Z199: ='Środki trwałe'!Z561 -> 0 | AA199: ='Środki trwałe'!AA561 -> 0 | AB199: ='Środki trwałe'!AB561 -> 0 | AC199: ='Środki trwałe'!AC561 -> 0 | AD199: ='Środki trwałe'!AD561 -> 0 | AE199: ='Środki trwałe'!AE561 -> 0
B200: - rozliczenia międzyokresowe bierne | K200: =ROUND(K768+K775+K782+K789+K1041+K1048+K1055+K1062+K1069+K1076+K796+K803+K810+K817+K824+K831+K838+K845+K852+K859+K866+K873+K880+K887+K894+K901+K908+K915+K922+K929+K936+K943+K950+K957+K964+K971+K978+K985+K992+K999+K1006+K1013+K1020+K1027+K1034,0) -> 0 | L200: 0 | M200: 0 | N200: 0 | O200: 0 | P200: 0 | Q200: 0 | R200: 0 | S200: 0 | T200: 0 | U200: 0 | V200: 0 | W200: 0 | X200: =ROUND(X768+X775+X782+X789+X1041+X1048+X1055+X1062+X1069+X1076+X796+X803+X810+X817+X824+X831+X838+X845+X852+X859+X866+X873+X880+X887+X894+X901+X908+X915+X922+X929+X936+X943+X950+X957+X964+X971+X978+X985+X992+X999+X1006+X1013+X1020+X1027+X1034,0) -> 0 | Y200: =ROUND(Y768+Y775+Y782+Y789+Y1041+Y1048+Y1055+Y1062+Y1069+Y1076+Y796+Y803+Y810+Y817+Y824+Y831+Y838+Y845+Y852+Y859+Y866+Y873+Y880+Y887+Y894+Y901+Y908+Y915+Y922+Y929+Y936+Y943+Y950+Y957+Y964+Y971+Y978+Y985+Y992+Y999+Y1006+Y1013+Y1020+Y1027+Y1034,0) -> 0 | Z200: 0 | AA200: 0 | AB200: =ROUND(AB768+AB775+AB782+AB789+AB1041+AB1048+AB1055+AB1062+AB1069+AB1076+AB796+AB803+AB810+AB817+AB824+AB831+AB838+AB845+AB852+AB859+AB866+AB873+AB880+AB887+AB894+AB901+AB908+AB915+AB922+AB929+AB936+AB943+AB950+AB957+AB964+AB971+AB978+AB985+AB992+AB999+AB1006+AB1013+AB1020+AB1027+AB1034,0) -> 0 | AC200: 0 | AD200: 0 | AE200: 0
B203: środki transportu | C203: wartość netto | D203: rok i miesiąc zakupu | E203: dofinansowanie % | F203: dofinansowanie PLN | G203: dotacja do amortyzacji | K203: =LataProjekcji -> 2025 | L203: 2026 | M203: 2027 | N203: 2028 | O203: 2029 | P203: 2030 | Q203: 2031 | R203: 2032 | S203: 2033 | T203: 2034 | U203: 2035 | V203: 2036 | W203: 2037 | X203: 2038 | Y203: 2039 | Z203: 2040 | AA203: 2041 | AB203: 2042 | AC203: 2043 | AD203: 2044 | AE203: 2045
B204: =IF(ISBLANK('Środki trwałe'!B574),"",'Środki trwałe'!B574) ->  | C204: =IF(ISBLANK('Środki trwałe'!D574),"",'Środki trwałe'!D574) ->  | D204: =IF(ISBLANK('Środki trwałe'!E574),"",'Środki trwałe'!E574) ->  | E204: =IF(AND('Środki trwałe'!F574="tak",'Środki trwałe'!G574="nie"),'Środki trwałe'!H574,0) -> 0 | F204: =IFERROR(IF(E204=0,0,ROUND(E204*C204,0)),0) -> 0 | G204: =IF(AND('Środki trwałe'!F574="tak",'Środki trwałe'!G574="tak"),'Środki trwałe'!I574,0) -> 0 | J204: =IF(ISBLANK('Środki trwałe'!C574),"",'Środki trwałe'!C574) ->  | K204: =IFERROR(ROUND(IF(AND(YEAR($D204)=LataProjekcji,$F204>0),$F204,0),0),0) -> 0 | L204: 0 | M204: 0 | N204: 0 | O204: 0 | P204: 0 | Q204: 0 | R204: 0 | S204: 0 | T204: 0 | U204: 0 | V204: 0 | W204: 0 | X204: 0 | Y204: 0 | Z204: 0 | AA204: 0 | AB204: 0 | AC204: 0 | AD204: 0 | AE204: 0
B205: =IF(ISBLANK('Środki trwałe'!B575),"",'Środki trwałe'!B575) ->  | C205: =IF(ISBLANK('Środki trwałe'!D575),"",'Środki trwałe'!D575) ->  | D205: =IF(ISBLANK('Środki trwałe'!E575),"",'Środki trwałe'!E575) ->  | E205: =IF(AND('Środki trwałe'!F575="tak",'Środki trwałe'!G575="nie"),'Środki trwałe'!H575,0) -> 0 | F205: 0 | G205: =IF(AND('Środki trwałe'!F1713="tak",'Środki trwałe'!G1713="tak"),'Środki trwałe'!I1713,0) -> 0 | J205: =IF(ISBLANK('Środki trwałe'!C575),"",'Środki trwałe'!C575) ->  | K205: 0 | L205: 0 | M205: 0 | N205: 0 | O205: 0 | P205: 0 | Q205: 0 | R205: 0 | S205: 0 | T205: 0 | U205: 0 | V205: 0 | W205: 0 | X205: 0 | Y205: 0 | Z205: 0 | AA205: 0 | AB205: 0 | AC205: 0 | AD205: 0 | AE205: 0
B206: =IF(ISBLANK('Środki trwałe'!B576),"",'Środki trwałe'!B576) ->  | C206: =IF(ISBLANK('Środki trwałe'!D576),"",'Środki trwałe'!D576) ->  | D206: =IF(ISBLANK('Środki trwałe'!E576),"",'Środki trwałe'!E576) ->  | E206: =IF(AND('Środki trwałe'!F576="tak",'Środki trwałe'!G576="nie"),'Środki trwałe'!H576,0) -> 0 | F206: 0 | G206: =IF(AND('Środki trwałe'!F1714="tak",'Środki trwałe'!G1714="tak"),'Środki trwałe'!I1714,0) -> 0 | J206: =IF(ISBLANK('Środki trwałe'!C576),"",'Środki trwałe'!C576) ->  | K206: 0 | L206: 0 | M206: 0 | N206: 0 | O206: 0 | P206: 0 | Q206: 0 | R206: 0 | S206: 0 | T206: 0 | U206: 0 | V206: 0 | W206: 0 | X206: 0 | Y206: 0 | Z206: 0 | AA206: 0 | AB206: 0 | AC206: 0 | AD206: 0 | AE206: 0
B207: =IF(ISBLANK('Środki trwałe'!B577),"",'Środki trwałe'!B577) ->  | C207: =IF(ISBLANK('Środki trwałe'!D577),"",'Środki trwałe'!D577) ->  | D207: =IF(ISBLANK('Środki trwałe'!E577),"",'Środki trwałe'!E577) ->  | E207: =IF(AND('Środki trwałe'!F577="tak",'Środki trwałe'!G577="nie"),'Środki trwałe'!H577,0) -> 0 | F207: 0 | G207: =IF(AND('Środki trwałe'!F1715="tak",'Środki trwałe'!G1715="tak"),'Środki trwałe'!I1715,0) -> 0 | J207: =IF(ISBLANK('Środki trwałe'!C577),"",'Środki trwałe'!C577) ->  | K207: 0 | L207: 0 | M207: 0 | N207: 0 | O207: 0 | P207: 0 | Q207: 0 | R207: 0 | S207: 0 | T207: 0 | U207: 0 | V207: 0 | W207: 0 | X207: 0 | Y207: 0 | Z207: 0 | AA207: 0 | AB207: 0 | AC207: 0 | AD207: 0 | AE207: 0
B208: =IF(ISBLANK('Środki trwałe'!B578),"",'Środki trwałe'!B578) ->  | C208: =IF(ISBLANK('Środki trwałe'!D578),"",'Środki trwałe'!D578) ->  | D208: =IF(ISBLANK('Środki trwałe'!E578),"",'Środki trwałe'!E578) ->  | E208: =IF(AND('Środki trwałe'!F578="tak",'Środki trwałe'!G578="nie"),'Środki trwałe'!H578,0) -> 0 | F208: 0 | G208: =IF(AND('Środki trwałe'!F1716="tak",'Środki trwałe'!G1716="tak"),'Środki trwałe'!I1716,0) -> 0 | J208: =IF(ISBLANK('Środki trwałe'!C578),"",'Środki trwałe'!C578) ->  | K208: 0 | L208: 0 | M208: 0 | N208: 0 | O208: 0 | P208: 0 | Q208: 0 | R208: 0 | S208: 0 | T208: 0 | U208: 0 | V208: 0 | W208: 0 | X208: 0 | Y208: 0 | Z208: 0 | AA208: 0 | AB208: 0 | AC208: 0 | AD208: 0 | AE208: 0
B209: =IF(ISBLANK('Środki trwałe'!B579),"",'Środki trwałe'!B579) ->  | C209: =IF(ISBLANK('Środki trwałe'!D579),"",'Środki trwałe'!D579) ->  | D209: =IF(ISBLANK('Środki trwałe'!E579),"",'Środki trwałe'!E579) ->  | E209: =IF(AND('Środki trwałe'!F579="tak",'Środki trwałe'!G579="nie"),'Środki trwałe'!H579,0) -> 0 | F209: 0 | G209: =IF(AND('Środki trwałe'!F1717="tak",'Środki trwałe'!G1717="tak"),'Środki trwałe'!I1717,0) -> 0 | J209: =IF(ISBLANK('Środki trwałe'!C579),"",'Środki trwałe'!C579) ->  | K209: 0 | L209: 0 | M209: 0 | N209: 0 | O209: 0 | P209: 0 | Q209: 0 | R209: 0 | S209: 0 | T209: 0 | U209: 0 | V209: 0 | W209: 0 | X209: 0 | Y209: 0 | Z209: 0 | AA209: 0 | AB209: 0 | AC209: 0 | AD209: 0 | AE209: 0
B210: =IF(ISBLANK('Środki trwałe'!B580),"",'Środki trwałe'!B580) ->  | C210: =IF(ISBLANK('Środki trwałe'!D580),"",'Środki trwałe'!D580) ->  | D210: =IF(ISBLANK('Środki trwałe'!E580),"",'Środki trwałe'!E580) ->  | E210: =IF(AND('Środki trwałe'!F580="tak",'Środki trwałe'!G580="nie"),'Środki trwałe'!H580,0) -> 0 | F210: 0 | G210: =IF(AND('Środki trwałe'!F1718="tak",'Środki trwałe'!G1718="tak"),'Środki trwałe'!I1718,0) -> 0 | J210: =IF(ISBLANK('Środki trwałe'!C580),"",'Środki trwałe'!C580) ->  | K210: 0 | L210: 0 | M210: 0 | N210: 0 | O210: 0 | P210: 0 | Q210: 0 | R210: 0 | S210: 0 | T210: 0 | U210: 0 | V210: 0 | W210: 0 | X210: 0 | Y210: 0 | Z210: 0 | AA210: 0 | AB210: 0 | AC210: 0 | AD210: 0 | AE210: 0
B211: =IF(ISBLANK('Środki trwałe'!B581),"",'Środki trwałe'!B581) ->  | C211: =IF(ISBLANK('Środki trwałe'!D581),"",'Środki trwałe'!D581) ->  | D211: =IF(ISBLANK('Środki trwałe'!E581),"",'Środki trwałe'!E581) ->  | E211: =IF(AND('Środki trwałe'!F581="tak",'Środki trwałe'!G581="nie"),'Środki trwałe'!H581,0) -> 0 | F211: 0 | G211: =IF(AND('Środki trwałe'!F1719="tak",'Środki trwałe'!G1719="tak"),'Środki trwałe'!I1719,0) -> 0 | J211: =IF(ISBLANK('Środki trwałe'!C581),"",'Środki trwałe'!C581) ->  | K211: 0 | L211: 0 | M211: 0 | N211: 0 | O211: 0 | P211: 0 | Q211: 0 | R211: 0 | S211: 0 | T211: 0 | U211: 0 | V211: 0 | W211: 0 | X211: 0 | Y211: 0 | Z211: 0 | AA211: 0 | AB211: 0 | AC211: 0 | AD211: 0 | AE211: 0
B212: =IF(ISBLANK('Środki trwałe'!B582),"",'Środki trwałe'!B582) ->  | C212: =IF(ISBLANK('Środki trwałe'!D582),"",'Środki trwałe'!D582) ->  | D212: =IF(ISBLANK('Środki trwałe'!E582),"",'Środki trwałe'!E582) ->  | E212: =IF(AND('Środki trwałe'!F582="tak",'Środki trwałe'!G582="nie"),'Środki trwałe'!H582,0) -> 0 | F212: 0 | G212: =IF(AND('Środki trwałe'!F1720="tak",'Środki trwałe'!G1720="tak"),'Środki trwałe'!I1720,0) -> 0 | J212: =IF(ISBLANK('Środki trwałe'!C582),"",'Środki trwałe'!C582) ->  | K212: 0 | L212: 0 | M212: 0 | N212: 0 | O212: 0 | P212: 0 | Q212: 0 | R212: 0 | S212: 0 | T212: 0 | U212: 0 | V212: 0 | W212: 0 | X212: 0 | Y212: 0 | Z212: 0 | AA212: 0 | AB212: 0 | AC212: 0 | AD212: 0 | AE212: 0
B213: =IF(ISBLANK('Środki trwałe'!B583),"",'Środki trwałe'!B583) ->  | C213: =IF(ISBLANK('Środki trwałe'!D583),"",'Środki trwałe'!D583) ->  | D213: =IF(ISBLANK('Środki trwałe'!E583),"",'Środki trwałe'!E583) ->  | E213: =IF(AND('Środki trwałe'!F583="tak",'Środki trwałe'!G583="nie"),'Środki trwałe'!H583,0) -> 0 | F213: 0 | G213: =IF(AND('Środki trwałe'!F1721="tak",'Środki trwałe'!G1721="tak"),'Środki trwałe'!I1721,0) -> 0 | J213: =IF(ISBLANK('Środki trwałe'!C583),"",'Środki trwałe'!C583) ->  | K213: 0 | L213: 0 | M213: 0 | N213: 0 | O213: 0 | P213: 0 | Q213: 0 | R213: 0 | S213: 0 | T213: 0 | U213: 0 | V213: 0 | W213: 0 | X213: 0 | Y213: 0 | Z213: 0 | AA213: 0 | AB213: 0 | AC213: 0 | AD213: 0 | AE213: 0
B214: Razem | C214: =SUM(C204:C213) -> 0 | F214: =SUM(F204:F213) -> 0 | G214: =SUM(G204:G213) -> 0 | K214: =ROUND(SUM(K204:K213),0) -> 0 | L214: 0 | M214: 0 | N214: 0 | O214: 0 | P214: 0 | Q214: 0 | R214: 0 | S214: 0 | T214: 0 | U214: 0 | V214: 0 | W214: 0 | X214: =ROUND(SUM(X204:X213),0) -> 0 | Y214: =ROUND(SUM(Y204:Y213),0) -> 0 | Z214: 0 | AA214: 0 | AB214: =ROUND(SUM(AB204:AB213),0) -> 0 | AC214: 0 | AD214: 0 | AE214: 0
B215: - dotacja w okresie (pozostałe przychody) | K215: =ROUND(K1084+K1091+K1098+K1105+K1147+K1112+K1119+K1126+K1133+K1140,0) -> 0 | L215: 0 | M215: 0 | N215: 0 | O215: 0 | P215: 0 | Q215: 0 | R215: 0 | S215: 0 | T215: 0 | U215: 0 | V215: 0 | W215: 0 | X215: =ROUND(X1084+X1091+X1098+X1105+X1147+X1112+X1119+X1126+X1133+X1140,0) -> 0 | Y215: =ROUND(Y1084+Y1091+Y1098+Y1105+Y1147+Y1112+Y1119+Y1126+Y1133+Y1140,0) -> 0 | Z215: 0 | AA215: 0 | AB215: =ROUND(AB1084+AB1091+AB1098+AB1105+AB1147+AB1112+AB1119+AB1126+AB1133+AB1140,0) -> 0 | AC215: 0 | AD215: 0 | AE215: 0
